Workbook

Sheet CGS yields
A1: F16 INDICATIVE MID RATES OF SELECTED COMMONWEALTH GOVERNMENT SECURITIES | H1: https://www.rba.gov.au/statistics/historical-data.html
A2: Per cent per annum | H2: We have compiled the data in this tab from the F16 data series provided by the RBA, available at the link above
C3: TB121 | D3: TB117 | E3: TB123 | F3: TB127 | G3: TB118 | H3: Treasury Bonds | I3: Treasury Bonds | J3: Treasury Bonds | K3: Treasury Bonds | L3: Treasury Bonds | M3: Treasury Bonds | N3: Treasury Bonds | O3: Treasury Bonds | P3: Treasury Bonds | Q3: Treasury Bonds | R3: Treasury Bonds | S3: Treasury Bonds | T3: Treasury Bonds | U3: Treasury Bonds | V3: Treasury Bonds | W3: Treasury Bonds | X3: Treasury Bonds | Y3: Treasury Bonds | Z3: Treasury Bonds | AA3: Treasury Bonds | AB3: Treasury Bonds | AC3: Treasury Bonds | AD3: Treasury Bonds | AE3: Treasury Bonds | AF3: Treasury Bonds | AG3: Treasury Bonds | AH3: Treasury Bonds | AI3: Treasury Bonds | AJ3: Treasury Bonds | AK3: Treasury Bonds | AL3: Treasury Bonds | AM3: Treasury Bonds | AN3: Treasury Bonds
C4: 0.0525 | D4: 0.0575 | E4: 0.0575 | F4: 0.0475 | G4: 0.065 | H4: Treasury Bond 129 5.50% 15-Dec-13 | I4: Treasury Bond 125 6.25% 15-Jun-14 | J4: Treasury Bond 131 4.50% 21-Oct-14 | K4: Treasury Bond 119 6.25% 15-Apr-15 | L4: Treasury Bond 134 4.75% 21-Oct-15 | M4: Treasury Bond 130 4.75% 15-Jun-16 | N4: Treasury Bond 120 6.00% 15-Feb-17 | O4: Treasury Bond 135 4.25% 21-Jul-17 | P4: Treasury Bond 132 5.50% 21-Jan-18 | Q4: Treasury Bond 141 3.25% 21-Oct-18 | R4: Treasury Bond 122 5.25% 15-Mar-19 | S4: Treasury Bond 143 2.75% 21-Oct-19 | T4: Treasury Bond 126 4.50% 15-Apr-20 | U4: Treasury Bond 146 1.75% 21-Nov-20 | V4: Treasury Bond 124 5.75% 15-May-21 | W4: Treasury Bond 151 2.00% 21-Dec-2021 | X4: Treasury Bond 128 5.75% 15-Jul-22 | Y4: Treasury Bond 153 2.25% 21-Nov-2022 | Z4: Treasury Bond 133 5.50% 21-Apr-23 | AA4: Treasury Bond 137 2.75% 21-Apr-24 | AB4: Treasury Bond 139 3.25% 21-Apr-25 | AC4: Treasury Bond 142 4.25% 21-Apr-26 | AD4: Treasury Bond 136 4.75% 21-Apr-27 | AE4: Treasury Bond 148 2.75% 21-Nov-27 | AF4: Treasury Bond 149 2.25% 21-May-28 | AG4: Treasury Bond 152 2.75% 21-Nov-2028 | AH4: Treasury Bond 138 3.25% 21-Apr-29 | AI4: Treasury Bond 154 2.75% 21-Nov-2029 | AJ4: Treasury Bond 140 4.50% 21-Apr-33 | AK4: Treasury Bond 145 2.75% 21-Jun-35 | AL4: Treasury Bond 144 3.75% 21-Apr-37 | AM4: Treasury Bond 147 3.25% 21-Jun-39 | AN4: Treasury Bond 150 3.00% 21-Mar-47
C5: Daily | D5: Daily | E5: Daily | F5: Daily | G5: Daily | H5: Daily | I5: Daily | J5: Daily | K5: Daily | L5: Daily | M5: Daily | N5: Daily | O5: Daily | P5: Daily | Q5: Daily | R5: Daily | S5: Daily | T5: Daily | U5: Daily | V5: Daily | W5: Daily | X5: Daily | Y5: Daily | Z5: Daily | AA5: Daily | AB5: Daily | AC5: Daily | AD5: Daily | AE5: Daily | AF5: Daily | AG5: Daily | AH5: Daily | AI5: Daily | AJ5: Daily | AK5: Daily | AL5: Daily | AM5: Daily | AN5: Daily
C6: Original | D6: Original | E6: Original | F6: Original | G6: Original | H6: Original | I6: Original | J6: Original | K6: Original | L6: Original | M6: Original | N6: Original | O6: Original | P6: Original | Q6: Original | R6: Original | S6: Original | T6: Original | U6: Original | V6: Original | W6: Original | X6: Original | Y6: Original | Z6: Original | AA6: Original | AB6: Original | AC6: Original | AD6: Original | AE6: Original | AF6: Original | AG6: Original | AH6: Original | AI6: Original | AJ6: Original | AK6: Original | AL6: Original | AM6: Original | AN6: Original
C7: Per cent per annum | D7: Per cent per annum | E7: Per cent per annum | F7: Per cent per annum | G7: Per cent per annum | H7: Per cent per annum | I7: Per cent per annum | J7: Per cent per annum | K7: Per cent per annum | L7: Per cent per annum | M7: Per cent per annum | N7: Per cent per annum | O7: Per cent per annum | P7: Per cent per annum | Q7: Per cent per annum | R7: Per cent per annum | S7: Per cent per annum | T7: Per cent per annum | U7: Per cent per annum | V7: Per cent per annum | W7: Per cent per annum | X7: Per cent per annum | Y7: Per cent per annum | Z7: Per cent per annum | AA7: Per cent per annum | AB7: Per cent per annum | AC7: Per cent per annum | AD7: Per cent per annum | AE7: Per cent per annum | AF7: Per cent per annum | AG7: Per cent per annum | AH7: Per cent per annum | AI7: Per cent per annum | AJ7: Per cent per annum | AK7: Per cent per annum | AL7: Per cent per annum | AM7: Per cent per annum | AN7: Per cent per annum
B8: Count | C8: 2010-08-15 | D8: 2011-06-15 | E8: 2012-04-15 | F8: 2012-11-15 | G8: 2013-05-15 | H8: 2013-12-15 | I8: 2014-06-15 | J8: 2014-10-21 | K8: 2015-04-15 | L8: 2015-10-21 | M8: 2016-06-15 | N8: 2017-02-15 | O8: 2017-07-21 | P8: 2018-01-21 | Q8: 2018-10-21 | R8: 2019-03-15 | S8: 2019-10-21 | T8: 2020-04-15 | U8: 2020-11-21 | V8: 2021-05-15 | W8: 2021-12-21 | X8: 2022-07-15 | Y8: 2022-11-21 | Z8: 2023-04-21 | AA8: 2024-04-21 | AB8: 2025-04-21 | AC8: 2026-04-21 | AD8: 2027-04-21 | AE8: 2027-11-21 | AF8: 2028-05-21 | AG8: 2028-11-21 | AH8: 2029-04-21 | AI8: 2029-11-21 | AJ8: 2033-04-21 | AK8: 2035-06-21 | AL8: 2037-04-21 | AM8: 2039-06-21 | AN8: 2047-03-21
A10: 2010-03-01 | B10: =IF(A10="","",1) -> 1 | C10: 4.1 | D10: 4.255 | E10: 4.585 | F10: 4.77 | G10: 4.85 | I10: 5.05 | K10: 5.14 | N10: 5.335 | R10: 5.44 | T10: 5.5 | V10: 5.53
A11: 2010-03-02 | B11: =IF(A11="","",B10+1) -> 2 | C11: 4.155 | D11: 4.265 | E11: 4.59 | F11: 4.77 | G11: 4.845 | I11: 5.035 | K11: 5.125 | N11: 5.295 | R11: 5.39 | T11: 5.45 | V11: 5.48
A12: 2010-03-03 | B12: 3 | C12: 4.17 | D12: 4.29 | E12: 4.595 | F12: 4.775 | G12: 4.845 | I12: 5.04 | K12: 5.135 | N12: 5.325 | R12: 5.425 | T12: 5.485 | V12: 5.515
A13: 2010-03-04 | B13: 4 | C13: 4.145 | D13: 4.27 | E13: 4.57 | F13: 4.75 | G13: 4.825 | I13: 5.015 | K13: 5.11 | N13: 5.295 | R13: 5.395 | T13: 5.455 | V13: 5.49
A14: 2010-03-05 | B14: 5 | C14: 4.16 | D14: 4.29 | E14: 4.595 | F14: 4.775 | G14: 4.845 | I14: 5.035 | K14: 5.13 | N14: 5.31 | R14: 5.41 | T14: 5.47 | V14: 5.5
A15: 2010-03-08 | B15: 6 | C15: 4.22 | D15: 4.39 | E15: 4.72 | F15: 4.895 | G15: 4.965 | I15: 5.16 | K15: 5.25 | N15: 5.415 | R15: 5.505 | T15: 5.565 | V15: 5.595
A16: 2010-03-09 | B16: 7 | C16: 4.215 | D16: 4.4 | E16: 4.735 | F16: 4.91 | G16: 4.98 | I16: 5.17 | K16: 5.26 | N16: 5.395 | R16: 5.48 | T16: 5.54 | V16: 5.57
A17: 2010-03-10 | B17: 8 | C17: 4.235 | D17: 4.435 | E17: 4.785 | F17: 4.945 | G17: 5.02 | I17: 5.205 | K17: 5.29 | N17: 5.41 | R17: 5.49 | T17: 5.545 | V17: 5.575
A18: 2010-03-11 | B18: 9 | C18: 4.285 | D18: 4.49 | E18: 4.885 | F18: 5.055 | G18: 5.125 | I18: 5.315 | K18: 5.405 | N18: 5.53 | R18: 5.62 | T18: 5.67 | V18: 5.7
A19: 2010-03-12 | B19: 10 | C19: 4.255 | D19: 4.475 | E19: 4.87 | F19: 5.045 | G19: 5.115 | I19: 5.305 | K19: 5.39 | N19: 5.54 | R19: 5.63 | T19: 5.68 | V19: 5.71
A20: 2010-03-15 | B20: 11 | C20: 4.27 | D20: 4.48 | E20: 4.885 | F20: 5.06 | G20: 5.125 | I20: 5.315 | K20: 5.405 | N20: 5.54 | R20: 5.62 | T20: 5.67 | V20: 5.7
A21: 2010-03-16 | B21: 12 | C21: 4.235 | D21: 4.445 | E21: 4.85 | F21: 5.035 | G21: 5.095 | I21: 5.285 | K21: 5.37 | N21: 5.5 | R21: 5.58 | T21: 5.63 | V21: 5.66
A22: 2010-03-17 | B22: 13 | C22: 4.25 | D22: 4.465 | E22: 4.865 | F22: 5.055 | G22: 5.115 | I22: 5.305 | K22: 5.395 | N22: 5.53 | R22: 5.61 | T22: 5.66 | V22: 5.69
A23: 2010-03-18 | B23: 14 | C23: 4.245 | D23: 4.44 | E23: 4.835 | F23: 5.025 | G23: 5.085 | I23: 5.275 | K23: 5.365 | N23: 5.51 | R23: 5.59 | T23: 5.64 | V23: 5.67
A24: 2010-03-19 | B24: 15 | C24: 4.27 | D24: 4.48 | E24: 4.875 | F24: 5.07 | G24: 5.13 | I24: 5.32 | K24: 5.4 | N24: 5.54 | R24: 5.62 | T24: 5.67 | V24: 5.7
A25: 2010-03-22 | B25: 16 | C25: 4.29 | D25: 4.505 | E25: 4.9 | F25: 5.09 | G25: 5.145 | I25: 5.34 | K25: 5.425 | N25: 5.56 | R25: 5.64 | T25: 5.685 | V25: 5.71
A26: 2010-03-23 | B26: 17 | C26: 4.29 | D26: 4.5 | E26: 4.89 | F26: 5.08 | G26: 5.14 | I26: 5.335 | K26: 5.41 | N26: 5.54 | R26: 5.62 | T26: 5.66 | V26: 5.685
A27: 2010-03-24 | B27: 18 | C27: 4.32 | D27: 4.555 | E27: 4.94 | F27: 5.135 | G27: 5.2 | I27: 5.385 | K27: 5.455 | N27: 5.575 | R27: 5.65 | T27: 5.69 | V27: 5.715
A28: 2010-03-25 | B28: 19 | C28: 4.36 | D28: 4.57 | E28: 4.975 | F28: 5.175 | G28: 5.25 | I28: 5.44 | K28: 5.51 | N28: 5.63 | R28: 5.7 | T28: 5.75 | V28: 5.775
A29: 2010-03-26 | B29: 20 | C29: 4.34 | D29: 4.535 | E29: 4.935 | F29: 5.135 | G29: 5.215 | I29: 5.4 | K29: 5.48 | N29: 5.61 | R29: 5.685 | T29: 5.735 | V29: 5.765
A30: 2010-03-29 | B30: 21 | C30: 4.39 | D30: 4.58 | E30: 4.985 | F30: 5.185 | G30: 5.27 | I30: 5.455 | K30: 5.53 | N30: 5.67 | R30: 5.745 | T30: 5.79 | V30: 5.825
A31: 2010-03-30 | B31: 22 | C31: 4.42 | D31: 4.6 | E31: 5.015 | F31: 5.22 | G31: 5.3 | I31: 5.475 | K31: 5.55 | N31: 5.675 | R31: 5.75 | T31: 5.8 | V31: 5.825
A32: 2010-03-31 | B32: 23 | C32: 4.39 | D32: 4.55 | E32: 4.975 | F32: 5.18 | G32: 5.26 | I32: 5.425 | K32: 5.505 | N32: 5.635 | R32: 5.705 | T32: 5.76 | V32: 5.79
A33: 2010-04-01 | B33: 24 | C33: 4.365 | D33: 4.515 | E33: 4.935 | F33: 5.145 | G33: 5.225 | I33: 5.395 | K33: 5.475 | N33: 5.63 | R33: 5.7 | T33: 5.75 | V33: 5.785
A34: 2010-04-06 | B34: 25 | C34: 4.46 | D34: 4.62 | E34: 5.045 | F34: 5.255 | G34: 5.335 | I34: 5.5 | K34: 5.58 | N34: 5.725 | R34: 5.785 | T34: 5.84 | V34: 5.87
A35: 2010-04-07 | B35: 26 | C35: 4.44 | D35: 4.59 | E35: 5.025 | F35: 5.235 | G35: 5.315 | I35: 5.48 | K35: 5.565 | N35: 5.73 | R35: 5.795 | T35: 5.85 | V35: 5.88 | X35: 5.95
A36: 2010-04-08 | B36: 27 | C36: 4.42 | D36: 4.53 | E36: 4.965 | F36: 5.18 | G36: 5.265 | I36: 5.425 | K36: 5.505 | N36: 5.665 | R36: 5.725 | T36: 5.78 | V36: 5.81 | X36: 5.88
A37: 2010-04-09 | B37: 28 | C37: 4.45 | D37: 4.56 | E37: 4.995 | F37: 5.21 | G37: 5.295 | I37: 5.455 | K37: 5.54 | N37: 5.695 | R37: 5.76 | T37: 5.81 | V37: 5.845 | X37: 5.915
A38: 2010-04-12 | B38: 29 | C38: 4.435 | D38: 4.53 | E38: 4.99 | F38: 5.21 | G38: 5.29 | I38: 5.455 | K38: 5.54 | N38: 5.715 | R38: 5.785 | T38: 5.835 | V38: 5.87 | X38: 5.94
A39: 2010-04-13 | B39: =IF(A39="","",B38+1) -> 30 | C39: 4.41 | D39: 4.485 | E39: 4.945 | F39: 5.165 | G39: 5.25 | I39: 5.41 | K39: 5.495 | N39: 5.655 | R39: 5.72 | T39: 5.77 | V39: 5.805 | X39: 5.885
A40: 2010-04-14 | B40: 31 | C40: 4.445 | D40: 4.52 | E40: 4.985 | F40: 5.21 | G40: 5.295 | I40: 5.455 | K40: 5.54 | N40: 5.705 | R40: 5.77 | T40: 5.825 | V40: 5.86 | X40: 5.94
A41: 2010-04-15 | B41: 32 | C41: 4.46 | D41: 4.525 | E41: 5.01 | F41: 5.24 | G41: 5.32 | I41: 5.485 | K41: 5.575 | N41: 5.73 | R41: 5.795 | T41: 5.855 | V41: 5.885 | X41: 5.965
A42: 2010-04-16 | B42: 33 | C42: 4.425 | D42: 4.485 | E42: 4.97 | F42: 5.19 | G42: 5.285 | I42: 5.45 | K42: 5.535 | N42: 5.695 | R42: 5.76 | T42: 5.815 | V42: 5.845 | X42: 5.925
A43: 2010-04-19 | B43: 34 | C43: 4.395 | D43: 4.41 | E43: 4.89 | F43: 5.11 | G43: 5.205 | I43: 5.365 | K43: 5.45 | N43: 5.62 | R43: 5.695 | T43: 5.75 | V43: 5.78 | X43: 5.85
A44: 2010-04-20 | B44: 35 | C44: 4.47 | D44: 4.485 | E44: 4.96 | F44: 5.18 | G44: 5.275 | I44: 5.435 | K44: 5.52 | N44: 5.685 | R44: 5.755 | T44: 5.81 | V44: 5.84 | X44: 5.91
A45: 2010-04-21 | B45: 36 | C45: 4.51 | D45: 4.565 | E45: 5.04 | F45: 5.26 | G45: 5.355 | I45: 5.515 | K45: 5.6 | N45: 5.73 | R45: 5.8 | T45: 5.855 | V45: 5.88 | X45: 5.95
A46: 2010-04-22 | B46: 37 | C46: 4.495 | D46: 4.565 | E46: 5.02 | F46: 5.24 | G46: 5.335 | I46: 5.495 | K46: 5.575 | N46: 5.69 | R46: 5.755 | T46: 5.805 | V46: 5.83 | X46: 5.895
A47: 2010-04-23 | B47: 38 | C47: 4.465 | D47: 4.525 | E47: 4.985 | F47: 5.205 | G47: 5.295 | I47: 5.455 | K47: 5.54 | N47: 5.675 | R47: 5.745 | T47: 5.795 | V47: 5.82 | X47: 5.89
A48: 2010-04-27 | B48: 39 | C48: 4.455 | D48: 4.495 | E48: 4.975 | F48: 5.19 | G48: 5.29 | I48: 5.45 | K48: 5.535 | N48: 5.67 | R48: 5.735 | T48: 5.785 | V48: 5.81 | X48: 5.875
A49: 2010-04-28 | B49: 40 | C49: 4.455 | D49: 4.44 | E49: 4.915 | F49: 5.14 | G49: 5.245 | I49: 5.4 | K49: 5.48 | N49: 5.6 | R49: 5.665 | T49: 5.715 | V49: 5.74 | X49: 5.805
A50: 2010-04-29 | B50: 41 | C50: 4.47 | D50: 4.465 | E50: 4.945 | F50: 5.17 | G50: 5.28 | I50: 5.43 | K50: 5.515 | N50: 5.62 | R50: 5.685 | T50: 5.73 | V50: 5.755 | X50: 5.82
A51: 2010-04-30 | B51: 42 | C51: 4.47 | D51: 4.46 | E51: 4.945 | F51: 5.18 | G51: 5.28 | H51: 5.415 | I51: 5.435 | K51: 5.515 | N51: 5.605 | R51: 5.665 | T51: 5.71 | V51: 5.735 | X51: 5.8
A52: 2010-05-03 | B52: 43 | C52: 4.55 | D52: 4.535 | E52: 5.025 | F52: 5.275 | G52: 5.36 | H52: 5.495 | I52: 5.515 | K52: 5.595 | N52: 5.68 | R52: 5.735 | T52: 5.78 | V52: 5.81 | X52: 5.87
A53: 2010-05-04 | B53: 44 | C53: 4.57 | D53: 4.49 | E53: 4.98 | F53: 5.235 | G53: 5.31 | H53: 5.455 | I53: 5.475 | K53: 5.55 | N53: 5.645 | R53: 5.695 | T53: 5.74 | V53: 5.77 | X53: 5.835
A54: 2010-05-05 | B54: 45 | C54: 4.54 | D54: 4.445 | E54: 4.915 | F54: 5.175 | G54: 5.23 | H54: 5.385 | I54: 5.385 | K54: 5.465 | N54: 5.57 | R54: 5.62 | T54: 5.66 | V54: 5.69 | X54: 5.755
A55: 2010-05-06 | B55: 46 | C55: 4.51 | D55: 4.36 | E55: 4.815 | F55: 5.075 | G55: 5.115 | H55: 5.265 | I55: 5.27 | K55: 5.345 | N55: 5.445 | R55: 5.49 | T55: 5.535 | V55: 5.56 | X55: 5.625
A56: 2010-05-07 | B56: 47 | C56: 4.475 | D56: 4.36 | E56: 4.69 | F56: 4.945 | G56: 4.975 | H56: 5.12 | I56: 5.13 | K56: 5.215 | N56: 5.375 | R56: 5.43 | T56: 5.475 | V56: 5.505 | X56: 5.57
A57: 2010-05-10 | B57: 48 | C57: 4.565 | D57: 4.495 | E57: 4.83 | F57: 5.09 | G57: 5.13 | H57: 5.28 | I57: 5.29 | K57: 5.37 | N57: 5.465 | R57: 5.515 | T57: 5.56 | V57: 5.585 | X57: 5.655
A58: 2010-05-11 | B58: 49 | C58: 4.53 | D58: 4.425 | E58: 4.725 | F58: 4.985 | G58: 5.03 | H58: 5.18 | I58: 5.19 | K58: 5.27 | N58: 5.385 | R58: 5.44 | T58: 5.485 | V58: 5.515 | X58: 5.575
A59: 2010-05-12 | B59: 50 | C59: 4.52 | D59: 4.39 | E59: 4.7 | F59: 4.955 | G59: 5.005 | H59: 5.15 | I59: 5.16 | K59: 5.24 | N59: 5.38 | R59: 5.43 | T59: 5.48 | V59: 5.51 | X59: 5.57
A60: 2010-05-13 | B60: 51 | C60: 4.56 | D60: 4.465 | E60: 4.78 | F60: 5.035 | G60: 5.08 | H60: 5.23 | I60: 5.24 | K60: 5.315 | N60: 5.445 | R60: 5.495 | T60: 5.54 | V60: 5.57 | X60: 5.63
A61: 2010-05-14 | B61: 52 | C61: 4.53 | D61: 4.43 | E61: 4.725 | F61: 4.99 | G61: 5.03 | H61: 5.185 | I61: 5.195 | K61: 5.27 | N61: 5.415 | R61: 5.47 | T61: 5.51 | V61: 5.54 | X61: 5.605
A62: 2010-05-17 | B62: 53 | C62: 4.55 | D62: 4.365 | E62: 4.62 | F62: 4.885 | G62: 4.92 | H62: 5.065 | I62: 5.085 | K62: 5.165 | N62: 5.365 | R62: 5.425 | T62: 5.47 | V62: 5.495 | X62: 5.56
A63: 2010-05-18 | B63: 54 | C63: 4.545 | D63: 4.38 | E63: 4.63 | F63: 4.905 | G63: 4.935 | H63: 5.085 | I63: 5.11 | K63: 5.195 | N63: 5.4 | R63: 5.46 | T63: 5.505 | V63: 5.535 | X63: 5.595
A64: 2010-05-19 | B64: 55 | C64: 4.53 | D64: 4.275 | E64: 4.51 | F64: 4.785 | G64: 4.815 | H64: 4.96 | I64: 5.005 | K64: 5.095 | N64: 5.305 | R64: 5.385 | T64: 5.43 | V64: 5.46 | X64: 5.525
A65: 2010-05-20 | B65: 56 | C65: 4.495 | D65: 4.25 | E65: 4.485 | F65: 4.755 | G65: 4.785 | H65: 4.925 | I65: 4.975 | K65: 5.06 | N65: 5.27 | R65: 5.355 | T65: 5.4 | V65: 5.43 | X65: 5.49
A66: 2010-05-21 | B66: 57 | C66: 4.495 | D66: 4.175 | E66: 4.425 | F66: 4.69 | G66: 4.725 | H66: 4.87 | I66: 4.915 | K66: 5.015 | N66: 5.25 | R66: 5.345 | T66: 5.39 | V66: 5.42 | X66: 5.485
A67: 2010-05-24 | B67: 58 | C67: 4.515 | D67: 4.18 | E67: 4.42 | F67: 4.69 | G67: 4.725 | H67: 4.87 | I67: 4.915 | K67: 5.01 | N67: 5.195 | R67: 5.29 | T67: 5.34 | V67: 5.365 | X67: 5.425
A68: 2010-05-25 | B68: 59 | C68: 4.51 | D68: 4.1 | E68: 4.3 | F68: 4.555 | G68: 4.585 | H68: 4.73 | I68: 4.785 | K68: 4.88 | N68: 5.115 | R68: 5.215 | T68: 5.265 | V68: 5.295 | X68: 5.355
A69: 2010-05-26 | B69: 60 | C69: 4.525 | D69: 4.135 | E69: 4.36 | F69: 4.625 | G69: 4.655 | H69: 4.8 | I69: 4.855 | K69: 4.945 | N69: 5.165 | R69: 5.27 | T69: 5.325 | V69: 5.355 | X69: 5.415
A70: 2010-05-27 | B70: 61 | C70: 4.55 | D70: 4.22 | E70: 4.445 | F70: 4.71 | G70: 4.74 | H70: 4.885 | I70: 4.94 | K70: 5.03 | N70: 5.22 | R70: 5.325 | T70: 5.38 | V70: 5.41 | X70: 5.47
A71: 2010-05-28 | B71: 62 | C71: 4.525 | D71: 4.26 | E71: 4.48 | F71: 4.745 | G71: 4.775 | H71: 4.925 | I71: 4.98 | K71: 5.07 | N71: 5.255 | R71: 5.365 | T71: 5.415 | V71: 5.445 | X71: 5.505
A72: 2010-05-31 | B72: 63 | C72: 4.515 | D72: 4.225 | E72: 4.43 | F72: 4.695 | G72: 4.725 | H72: 4.875 | I72: 4.935 | K72: 5.025 | N72: 5.215 | R72: 5.325 | T72: 5.375 | V72: 5.41 | X72: 5.47
A73: 2010-06-01 | B73: 64 | C73: 4.53 | D73: 4.21 | E73: 4.4 | F73: 4.665 | G73: 4.695 | H73: 4.84 | I73: 4.9 | K73: 4.995 | N73: 5.18 | R73: 5.29 | T73: 5.34 | V73: 5.37 | X73: 5.43
A74: 2010-06-02 | B74: 65 | C74: 4.52 | D74: 4.195 | E74: 4.375 | F74: 4.635 | G74: 4.665 | H74: 4.81 | I74: 4.87 | K74: 4.965 | N74: 5.165 | R74: 5.28 | T74: 5.33 | V74: 5.36 | X74: 5.42
A75: 2010-06-03 | B75: 66 | C75: 4.535 | D75: 4.315 | E75: 4.5 | F75: 4.755 | G75: 4.78 | H75: 4.935 | I75: 4.995 | K75: 5.085 | N75: 5.265 | R75: 5.38 | T75: 5.43 | V75: 5.46 | X75: 5.52
A76: 2010-06-04 | B76: 67 | C76: 4.54 | D76: 4.365 | E76: 4.52 | F76: 4.74 | G76: 4.775 | H76: 4.92 | I76: 4.975 | K76: 5.06 | N76: 5.25 | R76: 5.365 | T76: 5.415 | V76: 5.45 | X76: 5.515
A77: 2010-06-07 | B77: 68 | C77: 4.51 | D77: 4.255 | E77: 4.405 | F77: 4.59 | G77: 4.625 | H77: 4.77 | I77: 4.825 | K77: 4.91 | N77: 5.115 | R77: 5.235 | T77: 5.29 | V77: 5.325 | X77: 5.39
A78: 2010-06-08 | B78: 69 | C78: 4.53 | D78: 4.3 | E78: 4.45 | F78: 4.63 | G78: 4.665 | H78: 4.815 | I78: 4.865 | K78: 4.95 | N78: 5.155 | R78: 5.275 | T78: 5.33 | V78: 5.37 | X78: 5.43
A79: 2010-06-09 | B79: 70 | C79: 4.54 | D79: 4.3 | E79: 4.475 | F79: 4.625 | G79: 4.655 | H79: 4.805 | I79: 4.855 | K79: 4.935 | N79: 5.13 | R79: 5.25 | T79: 5.305 | V79: 5.345 | X79: 5.405
A80: 2010-06-10 | B80: 71 | C80: 4.565 | D80: 4.44 | E80: 4.55 | F80: 4.68 | G80: 4.705 | H80: 4.855 | I80: 4.9 | K80: 4.98 | N80: 5.175 | R80: 5.295 | T80: 5.345 | V80: 5.39 | X80: 5.45
A81: 2010-06-11 | B81: 72 | C81: 4.56 | D81: 4.495 | E81: 4.585 | F81: 4.74 | G81: 4.765 | H81: 4.915 | I81: 4.96 | K81: 5.035 | N81: 5.23 | R81: 5.345 | T81: 5.4 | V81: 5.44 | X81: 5.5
A82: 2010-06-15 | B82: 73 | C82: 4.54 | D82: 4.445 | E82: 4.535 | F82: 4.665 | G82: 4.695 | H82: 4.845 | I82: 4.89 | K82: 4.965 | N82: 5.185 | R82: 5.305 | T82: 5.355 | V82: 5.395 | X82: 5.455
A83: 2010-06-16 | B83: 74 | C83: 4.565 | D83: 4.53 | E83: 4.635 | F83: 4.75 | G83: 4.775 | H83: 4.925 | I83: 4.97 | K83: 5.045 | N83: 5.255 | R83: 5.375 | T83: 5.425 | V83: 5.47 | X83: 5.525
A84: 2010-06-17 | B84: 75 | C84: 4.54 | D84: 4.495 | E84: 4.585 | F84: 4.7 | G84: 4.725 | H84: 4.875 | I84: 4.92 | K84: 4.995 | N84: 5.185 | R84: 5.31 | T84: 5.355 | V84: 5.405 | X84: 5.46
A85: 2010-06-18 | B85: 76 | C85: 4.555 | D85: 4.52 | E85: 4.615 | F85: 4.73 | G85: 4.75 | H85: 4.9 | I85: 4.945 | K85: 5.02 | N85: 5.185 | R85: 5.31 | T85: 5.36 | V85: 5.405 | X85: 5.46
A86: 2010-06-21 | B86: 77 | C86: 4.59 | D86: 4.605 | E86: 4.71 | F86: 4.82 | G86: 4.835 | H86: 4.99 | I86: 5.03 | K86: 5.1 | N86: 5.265 | R86: 5.385 | T86: 5.435 | V86: 5.48 | X86: 5.535
A87: 2010-06-22 | B87: 78 | C87: 4.59 | D87: 4.555 | E87: 4.655 | F87: 4.765 | G87: 4.78 | H87: 4.935 | I87: 4.975 | K87: 5.045 | N87: 5.225 | R87: 5.345 | T87: 5.395 | V87: 5.44 | X87: 5.495
A88: 2010-06-23 | B88: 79 | C88: 4.585 | D88: 4.495 | E88: 4.59 | F88: 4.685 | G88: 4.69 | H88: 4.845 | I88: 4.88 | K88: 4.945 | N88: 5.155 | R88: 5.275 | T88: 5.33 | V88: 5.375 | X88: 5.43
A89: 2010-06-24 | B89: 80 | C89: 4.595 | D89: 4.52 | E89: 4.61 | F89: 4.685 | G89: 4.69 | H89: 4.835 | I89: 4.87 | K89: 4.935 | N89: 5.135 | R89: 5.255 | T89: 5.305 | V89: 5.355 | X89: 5.41
A90: 2010-06-25 | B90: 81 | C90: 4.585 | D90: 4.495 | E90: 4.545 | F90: 4.6 | G90: 4.615 | H90: 4.75 | I90: 4.78 | K90: 4.845 | N90: 5.07 | R90: 5.195 | T90: 5.255 | V90: 5.305 | X90: 5.36
A91: 2010-06-28 | B91: 82 | C91: 4.585 | D91: 4.48 | E91: 4.505 | F91: 4.56 | G91: 4.565 | H91: 4.705 | I91: 4.74 | K91: 4.81 | N91: 5.05 | R91: 5.17 | T91: 5.23 | V91: 5.28 | X91: 5.34
A92: 2010-06-29 | B92: 83 | C92: 4.57 | D92: 4.46 | E92: 4.46 | F92: 4.495 | G92: 4.495 | H92: 4.64 | I92: 4.67 | K92: 4.74 | N92: 4.96 | R92: 5.085 | T92: 5.14 | V92: 5.19 | X92: 5.25
A93: 2010-06-30 | B93: 84 | C93: 4.565 | D93: 4.45 | E93: 4.44 | F93: 4.44 | G93: 4.44 | H93: 4.575 | I93: 4.61 | K93: 4.685 | N93: 4.905 | R93: 5.035 | T93: 5.095 | V93: 5.145 | X93: 5.2
A94: 2010-07-01 | B94: 85 | C94: 4.58 | D94: 4.43 | E94: 4.415 | F94: 4.41 | G94: 4.405 | H94: 4.54 | I94: 4.575 | K94: 4.65 | N94: 4.885 | R94: 5.02 | T94: 5.08 | V94: 5.135 | X94: 5.195
A95: 2010-07-02 | B95: 86 | C95: 4.585 | D95: 4.445 | E95: 4.43 | F95: 4.425 | G95: 4.425 | H95: 4.56 | I95: 4.59 | K95: 4.665 | N95: 4.9 | R95: 5.03 | T95: 5.095 | V95: 5.15 | X95: 5.21
A96: 2010-07-05 | B96: 87 | C96: 4.595 | D96: 4.44 | E96: 4.43 | F96: 4.425 | G96: 4.425 | H96: 4.56 | I96: 4.59 | K96: 4.66 | N96: 4.865 | R96: 4.995 | T96: 5.06 | V96: 5.115 | X96: 5.175
A97: 2010-07-06 | B97: 88 | C97: 4.59 | D97: 4.445 | E97: 4.435 | F97: 4.42 | G97: 4.42 | H97: 4.555 | I97: 4.585 | K97: 4.65 | N97: 4.845 | R97: 4.98 | T97: 5.04 | V97: 5.095 | X97: 5.155
A98: 2010-07-07 | B98: 89 | C98: 4.575 | D98: 4.445 | E98: 4.42 | F98: 4.42 | G98: 4.415 | H98: 4.545 | I98: 4.57 | K98: 4.64 | N98: 4.84 | R98: 4.97 | T98: 5.035 | V98: 5.085 | X98: 5.145
A99: 2010-07-08 | B99: 90 | C99: 4.6 | D99: 4.55 | E99: 4.545 | F99: 4.55 | G99: 4.555 | H99: 4.68 | I99: 4.71 | K99: 4.78 | M99: 4.93 | N99: 4.95 | R99: 5.07 | T99: 5.13 | V99: 5.18 | X99: 5.235
A100: 2010-07-09 | B100: 91 | C100: 4.59 | D100: 4.535 | E100: 4.53 | F100: 4.53 | G100: 4.535 | H100: 4.665 | I100: 4.695 | K100: 4.77 | M100: 4.905 | N100: 4.935 | R100: 5.05 | T100: 5.11 | V100: 5.16 | X100: 5.22
A101: 2010-07-12 | B101: 92 | C101: 4.585 | D101: 4.52 | E101: 4.51 | F101: 4.515 | G101: 4.52 | H101: 4.645 | I101: 4.675 | K101: 4.75 | M101: 4.89 | N101: 4.935 | R101: 5.055 | T101: 5.11 | V101: 5.155 | X101: 5.22
A102: 2010-07-13 | B102: 93 | C102: 4.575 | D102: 4.5 | E102: 4.475 | F102: 4.48 | G102: 4.49 | H102: 4.61 | I102: 4.635 | K102: 4.72 | M102: 4.86 | N102: 4.925 | R102: 5.04 | T102: 5.105 | V102: 5.155 | X102: 5.215
A103: 2010-07-14 | B103: =IF(A103="","",B102+1) -> 94 | C103: 4.57 | D103: 4.56 | E103: 4.56 | F103: 4.57 | G103: 4.58 | H103: 4.7 | I103: 4.725 | K103: 4.81 | M103: 4.95 | N103: 4.995 | R103: 5.115 | T103: 5.175 | V103: 5.225 | X103: 5.285
A104: 2010-07-15 | B104: 95 | C104: 4.555 | D104: 4.525 | E104: 4.505 | F104: 4.515 | G104: 4.525 | H104: 4.645 | I104: 4.665 | K104: 4.75 | M104: 4.89 | N104: 4.915 | R104: 5.035 | T104: 5.1 | V104: 5.15 | X104: 5.21
A105: 2010-07-16 | B105: 96 | C105: 4.56 | D105: 4.55 | E105: 4.535 | F105: 4.545 | G105: 4.55 | H105: 4.665 | I105: 4.685 | K105: 4.77 | M105: 4.91 | N105: 4.94 | R105: 5.055 | T105: 5.12 | V105: 5.17 | X105: 5.225
A106: 2010-07-19 | B106: 97 | C106: 4.555 | D106: 4.525 | E106: 4.525 | F106: 4.525 | G106: 4.53 | H106: 4.635 | I106: 4.655 | K106: 4.74 | M106: 4.885 | N106: 4.935 | R106: 5.05 | T106: 5.115 | V106: 5.17 | X106: 5.225
A107: 2010-07-20 | B107: 98 | C107: 4.56 | D107: 4.6 | E107: 4.635 | F107: 4.635 | G107: 4.64 | H107: 4.75 | I107: 4.77 | K107: 4.85 | M107: 5 | N107: 5.045 | R107: 5.155 | T107: 5.22 | V107: 5.275 | X107: 5.33
A108: 2010-07-21 | B108: 99 | C108: 4.56 | D108: 4.565 | E108: 4.62 | F108: 4.62 | G108: 4.62 | H108: 4.725 | I108: 4.745 | K108: 4.815 | M108: 4.97 | N108: 5.02 | R108: 5.12 | T108: 5.18 | V108: 5.23 | X108: 5.29
A109: 2010-07-22 | B109: 100 | C109: 4.545 | D109: 4.565 | E109: 4.62 | F109: 4.615 | G109: 4.605 | H109: 4.71 | I109: 4.725 | K109: 4.79 | M109: 4.95 | N109: 4.98 | R109: 5.085 | T109: 5.145 | V109: 5.195 | X109: 5.255
A110: 2010-07-23 | B110: 101 | C110: 4.56 | D110: 4.62 | E110: 4.68 | F110: 4.685 | G110: 4.68 | H110: 4.78 | I110: 4.8 | K110: 4.855 | M110: 5 | N110: 5.04 | R110: 5.145 | T110: 5.2 | V110: 5.25 | X110: 5.31
A111: 2010-07-26 | B111: 102 | C111: 4.57 | D111: 4.64 | E111: 4.7 | F111: 4.71 | G111: 4.71 | H111: 4.81 | I111: 4.83 | K111: 4.89 | M111: 5.035 | N111: 5.075 | R111: 5.185 | T111: 5.24 | V111: 5.29 | X111: 5.35
A112: 2010-07-27 | B112: 103 | C112: 4.56 | D112: 4.645 | E112: 4.71 | F112: 4.72 | G112: 4.72 | H112: 4.82 | I112: 4.84 | K112: 4.9 | M112: 5.045 | N112: 5.105 | R112: 5.215 | T112: 5.265 | V112: 5.315 | X112: 5.375
A113: 2010-07-28 | B113: 104 | C113: 4.54 | D113: 4.54 | E113: 4.615 | F113: 4.62 | G113: 4.615 | H113: 4.72 | I113: 4.745 | K113: 4.81 | M113: 4.965 | N113: 5.02 | R113: 5.145 | T113: 5.205 | V113: 5.26 | X113: 5.32
A114: 2010-07-29 | B114: 105 | C114: 4.55 | D114: 4.565 | E114: 4.635 | F114: 4.645 | G114: 4.64 | H114: 4.745 | I114: 4.77 | K114: 4.835 | M114: 4.985 | N114: 5.055 | R114: 5.18 | T114: 5.24 | V114: 5.295 | X114: 5.355
A115: 2010-07-30 | B115: 106 | C115: 4.53 | D115: 4.51 | E115: 4.56 | F115: 4.57 | G115: 4.565 | H115: 4.665 | I115: 4.69 | K115: 4.765 | M115: 4.92 | N115: 5 | R115: 5.125 | T115: 5.195 | V115: 5.25 | X115: 5.315
A116: 2010-08-02 | B116: 107 | C116: 4.55 | D116: 4.555 | E116: 4.6 | F116: 4.605 | G116: 4.6 | H116: 4.7 | I116: 4.73 | K116: 4.8 | M116: 4.96 | N116: 5.025 | R116: 5.155 | T116: 5.225 | V116: 5.28 | X116: 5.345
A117: 2010-08-03 | B117: 108 | C117: 4.53 | D117: 4.525 | E117: 4.555 | F117: 4.57 | G117: 4.56 | H117: 4.66 | I117: 4.685 | K117: 4.755 | M117: 4.92 | N117: 4.98 | R117: 5.105 | T117: 5.165 | V117: 5.22 | X117: 5.28
A118: 2010-08-04 | B118: 109 | C118: 4.535 | D118: 4.54 | E118: 4.55 | F118: 4.575 | G118: 4.565 | H118: 4.665 | I118: 4.685 | K118: 4.75 | M118: 4.91 | N118: 4.95 | R118: 5.07 | T118: 5.135 | V118: 5.185 | X118: 5.245
A119: 2010-08-05 | B119: 110 | C119: 4.535 | D119: 4.555 | E119: 4.58 | F119: 4.605 | G119: 4.595 | H119: 4.695 | I119: 4.72 | K119: 4.78 | M119: 4.935 | N119: 4.965 | R119: 5.08 | T119: 5.145 | V119: 5.195 | X119: 5.255
A120: 2010-08-06 | B120: 111 | C120: 4.54 | D120: 4.565 | E120: 4.595 | F120: 4.625 | G120: 4.615 | H120: 4.715 | I120: 4.74 | K120: 4.805 | M120: 4.945 | N120: 4.985 | R120: 5.095 | T120: 5.155 | V120: 5.205 | X120: 5.265
A121: 2010-08-09 | B121: 112 | C121: 4.53 | D121: 4.555 | E121: 4.58 | F121: 4.61 | G121: 4.595 | H121: 4.695 | I121: 4.715 | K121: 4.775 | M121: 4.91 | N121: 4.945 | R121: 5.045 | T121: 5.11 | V121: 5.155 | X121: 5.215
A122: 2010-08-10 | B122: 113 | C122: 4.525 | D122: 4.545 | E122: 4.575 | F122: 4.6 | G122: 4.59 | H122: 4.69 | I122: 4.71 | K122: 4.765 | M122: 4.905 | N122: 4.94 | R122: 5.04 | T122: 5.1 | V122: 5.15 | X122: 5.21
A123: 2010-08-11 | B123: 114 | C123: 4.505 | D123: 4.51 | E123: 4.515 | F123: 4.545 | G123: 4.53 | H123: 4.63 | I123: 4.65 | K123: 4.705 | M123: 4.845 | N123: 4.88 | R123: 4.985 | T123: 5.045 | V123: 5.09 | X123: 5.15
A124: 2010-08-12 | B124: 115 | C124: 4.505 | D124: 4.505 | E124: 4.49 | F124: 4.52 | G124: 4.505 | H124: 4.6 | I124: 4.62 | K124: 4.675 | M124: 4.815 | N124: 4.86 | R124: 4.97 | T124: 5.03 | V124: 5.075 | X124: 5.14
A125: 2010-08-13 | B125: 116 | C125: 4.51 | D125: 4.52 | E125: 4.53 | F125: 4.55 | G125: 4.535 | H125: 4.635 | I125: 4.655 | K125: 4.71 | M125: 4.85 | N125: 4.88 | R125: 4.99 | T125: 5.05 | V125: 5.095 | X125: 5.155
A126: 2010-08-16 | B126: 117 | D126: 4.485 | E126: 4.485 | F126: 4.51 | G126: 4.49 | H126: 4.59 | I126: 4.605 | K126: 4.665 | M126: 4.8 | N126: 4.805 | R126: 4.91 | T126: 4.965 | V126: 5.01 | X126: 5.07
A127: 2010-08-17 | B127: 118 | D127: 4.47 | E127: 4.465 | F127: 4.49 | G127: 4.47 | H127: 4.565 | I127: 4.585 | K127: 4.64 | M127: 4.765 | N127: 4.78 | R127: 4.875 | T127: 4.93 | V127: 4.975 | X127: 5.035
A128: 2010-08-18 | B128: 119 | D128: 4.45 | E128: 4.45 | F128: 4.48 | G128: 4.45 | H128: 4.55 | I128: 4.575 | K128: 4.63 | M128: 4.75 | N128: 4.78 | R128: 4.87 | T128: 4.93 | V128: 4.975 | X128: 5.03
A129: 2010-08-19 | B129: 120 | D129: 4.42 | E129: 4.42 | F129: 4.45 | G129: 4.42 | H129: 4.515 | I129: 4.545 | K129: 4.595 | M129: 4.72 | N129: 4.765 | R129: 4.86 | T129: 4.92 | V129: 4.965 | X129: 5.015
A130: 2010-08-20 | B130: 121 | D130: 4.405 | E130: 4.405 | F130: 4.435 | G130: 4.405 | H130: 4.5 | I130: 4.525 | K130: 4.575 | M130: 4.7 | N130: 4.75 | R130: 4.855 | T130: 4.91 | V130: 4.955 | X130: 5.005
A131: 2010-08-23 | B131: 122 | D131: 4.425 | E131: 4.425 | F131: 4.45 | G131: 4.425 | H131: 4.52 | I131: 4.545 | K131: 4.595 | M131: 4.725 | N131: 4.77 | R131: 4.875 | T131: 4.935 | V131: 4.98 | X131: 5.03
A132: 2010-08-24 | B132: 123 | D132: 4.37 | E132: 4.365 | F132: 4.39 | G132: 4.365 | H132: 4.46 | I132: 4.485 | K132: 4.53 | M132: 4.66 | N132: 4.69 | R132: 4.795 | T132: 4.855 | V132: 4.9 | X132: 4.945
A133: 2010-08-25 | B133: 124 | D133: 4.295 | E133: 4.285 | F133: 4.315 | G133: 4.29 | H133: 4.375 | I133: 4.405 | K133: 4.45 | M133: 4.58 | N133: 4.615 | R133: 4.72 | T133: 4.78 | V133: 4.825 | X133: 4.875
A134: 2010-08-26 | B134: 125 | D134: 4.31 | E134: 4.305 | F134: 4.33 | G134: 4.305 | H134: 4.395 | I134: 4.42 | K134: 4.465 | M134: 4.59 | N134: 4.625 | R134: 4.73 | T134: 4.785 | V134: 4.83 | X134: 4.875
A135: 2010-08-27 | B135: 126 | D135: 4.32 | E135: 4.315 | F135: 4.335 | G135: 4.31 | H135: 4.395 | I135: 4.425 | K135: 4.465 | M135: 4.595 | N135: 4.64 | R135: 4.745 | T135: 4.8 | V135: 4.845 | X135: 4.895
A136: 2010-08-30 | B136: 127 | D136: 4.335 | E136: 4.335 | F136: 4.355 | G136: 4.335 | H136: 4.415 | I136: 4.445 | K136: 4.485 | M136: 4.615 | N136: 4.67 | R136: 4.775 | T136: 4.835 | V136: 4.88 | X136: 4.925
A137: 2010-08-31 | B137: 128 | D137: 4.26 | E137: 4.23 | F137: 4.25 | G137: 4.23 | H137: 4.31 | I137: 4.34 | K137: 4.38 | M137: 4.51 | N137: 4.595 | R137: 4.705 | T137: 4.765 | V137: 4.81 | X137: 4.86
A138: 2010-09-01 | B138: 129 | D138: 4.34 | E138: 4.315 | F138: 4.335 | G138: 4.32 | H138: 4.4 | I138: 4.425 | K138: 4.46 | M138: 4.575 | N138: 4.645 | R138: 4.75 | T138: 4.805 | V138: 4.845 | X138: 4.895
A139: 2010-09-02 | B139: 130 | D139: 4.35 | E139: 4.335 | F139: 4.355 | G139: 4.34 | H139: 4.42 | I139: 4.445 | K139: 4.48 | M139: 4.59 | N139: 4.66 | R139: 4.76 | T139: 4.815 | V139: 4.855 | X139: 4.9
A140: 2010-09-03 | B140: 131 | D140: 4.37 | E140: 4.365 | F140: 4.39 | G140: 4.37 | H140: 4.45 | I140: 4.475 | K140: 4.51 | M140: 4.62 | N140: 4.685 | R140: 4.785 | T140: 4.84 | V140: 4.88 | X140: 4.925
A141: 2010-09-06 | B141: 132 | D141: 4.465 | E141: 4.475 | F141: 4.505 | G141: 4.49 | H141: 4.57 | I141: 4.595 | K141: 4.62 | M141: 4.725 | N141: 4.775 | R141: 4.875 | T141: 4.92 | V141: 4.96 | X141: 5.005
A142: 2010-09-07 | B142: 133 | D142: 4.43 | E142: 4.445 | F142: 4.475 | G142: 4.455 | H142: 4.535 | I142: 4.56 | K142: 4.59 | M142: 4.69 | N142: 4.725 | R142: 4.82 | T142: 4.865 | V142: 4.905 | X142: 4.95
A143: 2010-09-08 | B143: 134 | D143: 4.41 | E143: 4.425 | F143: 4.45 | G143: 4.435 | H143: 4.515 | I143: 4.545 | K143: 4.57 | M143: 4.675 | N143: 4.735 | R143: 4.83 | T143: 4.88 | V143: 4.92 | X143: 4.965
A144: 2010-09-09 | B144: 135 | D144: 4.53 | E144: 4.55 | F144: 4.575 | G144: 4.56 | H144: 4.635 | I144: 4.665 | K144: 4.685 | M144: 4.78 | N144: 4.795 | R144: 4.885 | T144: 4.93 | V144: 4.97 | X144: 5.01
A145: 2010-09-10 | B145: 136 | D145: 4.55 | E145: 4.565 | F145: 4.595 | G145: 4.58 | H145: 4.66 | I145: 4.685 | J145: 4.73 | K145: 4.715 | M145: 4.805 | N145: 4.84 | R145: 4.93 | T145: 4.975 | V145: 5.015 | X145: 5.06
A146: 2010-09-13 | B146: 137 | D146: 4.62 | E146: 4.65 | F146: 4.69 | G146: 4.68 | H146: 4.75 | I146: 4.78 | J146: 4.825 | K146: 4.82 | M146: 4.9 | N146: 4.935 | R146: 5.025 | T146: 5.07 | V146: 5.105 | X146: 5.15
A147: 2010-09-14 | B147: 138 | D147: 4.585 | E147: 4.64 | F147: 4.655 | G147: 4.645 | H147: 4.72 | I147: 4.75 | J147: 4.795 | K147: 4.785 | M147: 4.87 | N147: 4.9 | R147: 4.99 | T147: 5.035 | V147: 5.07 | X147: 5.115
A148: 2010-09-15 | B148: 139 | D148: 4.605 | E148: 4.675 | F148: 4.69 | G148: 4.68 | H148: 4.755 | I148: 4.785 | J148: 4.83 | K148: 4.82 | M148: 4.9 | N148: 4.93 | R148: 5.015 | T148: 5.06 | V148: 5.1 | X148: 5.14
A149: 2010-09-16 | B149: 140 | D149: 4.56 | E149: 4.645 | F149: 4.665 | G149: 4.655 | H149: 4.73 | I149: 4.76 | J149: 4.805 | K149: 4.8 | M149: 4.875 | N149: 4.91 | R149: 5 | T149: 5.04 | V149: 5.085 | X149: 5.13
A150: 2010-09-17 | B150: 141 | D150: 4.625 | E150: 4.73 | F150: 4.755 | G150: 4.745 | H150: 4.82 | I150: 4.85 | J150: 4.895 | K150: 4.885 | M150: 4.965 | N150: 4.985 | R150: 5.07 | T150: 5.11 | V150: 5.155 | X150: 5.2
A151: 2010-09-20 | B151: 142 | D151: 4.665 | E151: 4.795 | F151: 4.82 | G151: 4.815 | H151: 4.89 | I151: 4.91 | J151: 4.955 | K151: 4.945 | M151: 5.02 | N151: 5.03 | R151: 5.105 | T151: 5.14 | V151: 5.185 | X151: 5.23
A152: 2010-09-21 | B152: 143 | D152: 4.67 | E152: 4.825 | F152: 4.845 | G152: 4.84 | H152: 4.915 | I152: 4.94 | J152: 4.985 | K152: 4.965 | M152: 5.035 | N152: 5.04 | R152: 5.11 | T152: 5.14 | V152: 5.18 | X152: 5.225
A153: 2010-09-22 | B153: 144 | D153: 4.685 | E153: 4.825 | F153: 4.85 | G153: 4.84 | H153: 4.915 | I153: 4.925 | J153: 4.965 | K153: 4.945 | M153: 5.005 | N153: 5.025 | R153: 5.07 | T153: 5.1 | V153: 5.135 | X153: 5.175
A154: 2010-09-23 | B154: 145 | D154: 4.68 | E154: 4.83 | F154: 4.85 | G154: 4.84 | H154: 4.91 | I154: 4.93 | J154: 4.97 | K154: 4.95 | M154: 5.015 | N154: 5.03 | R154: 5.075 | T154: 5.105 | V154: 5.145 | X154: 5.18
A155: 2010-09-24 | B155: 146 | D155: 4.655 | E155: 4.795 | F155: 4.815 | G155: 4.805 | H155: 4.875 | I155: 4.89 | J155: 4.935 | K155: 4.915 | M155: 4.975 | N155: 4.98 | R155: 5.025 | T155: 5.05 | V155: 5.09 | X155: 5.125
A156: 2010-09-27 | B156: 147 | D156: 4.72 | E156: 4.87 | F156: 4.885 | G156: 4.88 | H156: 4.95 | I156: 4.97 | J156: 5.015 | K156: 4.985 | M156: 5.045 | N156: 5.065 | R156: 5.11 | T156: 5.13 | V156: 5.17 | X156: 5.21
A157: 2010-09-28 | B157: 148 | D157: 4.67 | E157: 4.81 | F157: 4.83 | G157: 4.82 | H157: 4.89 | I157: 4.91 | J157: 4.95 | K157: 4.92 | M157: 4.98 | N157: 5 | R157: 5.045 | T157: 5.065 | V157: 5.1 | X157: 5.14
A158: 2010-09-29 | B158: 149 | D158: 4.685 | E158: 4.835 | F158: 4.845 | G158: 4.835 | H158: 4.905 | I158: 4.92 | J158: 4.96 | K158: 4.93 | M158: 4.985 | N158: 4.99 | R158: 5.03 | T158: 5.045 | V158: 5.08 | X158: 5.115
A159: 2010-09-30 | B159: 150 | D159: 4.63 | E159: 4.76 | F159: 4.77 | G159: 4.75 | H159: 4.82 | I159: 4.84 | J159: 4.88 | K159: 4.85 | M159: 4.905 | N159: 4.91 | R159: 4.95 | T159: 4.96 | V159: 4.995 | X159: 5.035
A160: 2010-10-01 | B160: 151 | D160: 4.695 | E160: 4.825 | F160: 4.84 | G160: 4.825 | H160: 4.895 | I160: 4.91 | J160: 4.945 | K160: 4.925 | M160: 4.975 | N160: 5.01 | R160: 5.05 | T160: 5.065 | V160: 5.1 | X160: 5.135
A161: 2010-10-04 | B161: 152 | D161: 4.685 | E161: 4.815 | F161: 4.83 | G161: 4.82 | H161: 4.885 | I161: 4.905 | J161: 4.935 | K161: 4.915 | M161: 4.965 | N161: 4.95 | R161: 4.985 | T161: 5 | V161: 5.035 | X161: 5.07
A162: 2010-10-05 | B162: 153 | D162: 4.56 | E162: 4.69 | F162: 4.71 | G162: 4.705 | H162: 4.77 | I162: 4.79 | J162: 4.825 | K162: 4.805 | M162: 4.865 | N162: 4.91 | R162: 4.96 | T162: 4.98 | V162: 5.015 | X162: 5.055
A163: 2010-10-06 | B163: 154 | D163: 4.62 | E163: 4.755 | F163: 4.785 | G163: 4.78 | H163: 4.845 | I163: 4.86 | J163: 4.895 | K163: 4.87 | M163: 4.93 | N163: 4.95 | R163: 4.995 | T163: 5.01 | V163: 5.045 | X163: 5.085
A164: 2010-10-07 | B164: 155 | D164: 4.725 | E164: 4.9 | F164: 4.93 | G164: 4.93 | H164: 4.985 | I164: 4.995 | J164: 5.03 | K164: 5 | M164: 5.035 | N164: 5.03 | R164: 5.05 | T164: 5.055 | V164: 5.085 | X164: 5.115
A165: 2010-10-08 | B165: 156 | D165: 4.67 | E165: 4.84 | F165: 4.87 | G165: 4.87 | H165: 4.925 | I165: 4.935 | J165: 4.965 | K165: 4.945 | M165: 4.975 | N165: 4.98 | R165: 4.995 | T165: 5 | V165: 5.03 | X165: 5.06
A166: 2010-10-11 | B166: 157 | D166: 4.66 | E166: 4.83 | F166: 4.86 | G166: 4.86 | H166: 4.915 | I166: 4.925 | J166: 4.955 | K166: 4.935 | M166: 4.965 | N166: 4.985 | R166: 5 | T166: 5.005 | V166: 5.03 | X166: 5.065
A167: 2010-10-12 | B167: =IF(A167="","",B166+1) -> 158 | D167: 4.615 | E167: 4.78 | F167: 4.81 | G167: 4.81 | H167: 4.865 | I167: 4.875 | J167: 4.91 | K167: 4.89 | M167: 4.92 | N167: 4.955 | R167: 4.97 | T167: 4.98 | V167: 5.01 | X167: 5.045
A168: 2010-10-13 | B168: 159 | D168: 4.605 | E168: 4.775 | F168: 4.81 | G168: 4.815 | H168: 4.87 | I168: 4.875 | J168: 4.915 | K168: 4.89 | M168: 4.93 | N168: 4.97 | R168: 4.995 | T168: 5.005 | V168: 5.03 | X168: 5.07
A169: 2010-10-14 | B169: 160 | D169: 4.59 | E169: 4.76 | F169: 4.8 | G169: 4.8 | H169: 4.86 | I169: 4.865 | J169: 4.905 | K169: 4.885 | M169: 4.93 | N169: 4.98 | R169: 5.01 | T169: 5.025 | V169: 5.055 | X169: 5.09
A170: 2010-10-15 | B170: 161 | D170: 4.62 | E170: 4.8 | F170: 4.845 | G170: 4.84 | H170: 4.905 | I170: 4.91 | J170: 4.945 | K170: 4.925 | M170: 4.99 | N170: 5.025 | R170: 5.06 | T170: 5.075 | V170: 5.105 | X170: 5.14
A171: 2010-10-18 | B171: 162 | D171: 4.62 | E171: 4.82 | F171: 4.875 | G171: 4.87 | H171: 4.935 | I171: 4.94 | J171: 4.975 | K171: 4.955 | M171: 5.025 | N171: 5.085 | R171: 5.125 | T171: 5.145 | V171: 5.175 | X171: 5.215
A172: 2010-10-19 | B172: 163 | D172: 4.635 | E172: 4.84 | F172: 4.895 | G172: 4.885 | H172: 4.955 | I172: 4.96 | J172: 4.995 | K172: 4.975 | M172: 5.04 | N172: 5.08 | R172: 5.115 | T172: 5.135 | V172: 5.165 | X172: 5.2
A173: 2010-10-20 | B173: 164 | D173: 4.6 | E173: 4.805 | F173: 4.86 | G173: 4.85 | H173: 4.915 | I173: 4.92 | J173: 4.955 | K173: 4.935 | M173: 5.005 | N173: 5.045 | R173: 5.09 | T173: 5.11 | V173: 5.14 | X173: 5.18
A174: 2010-10-21 | B174: 165 | D174: 4.61 | E174: 4.82 | F174: 4.875 | G174: 4.865 | H174: 4.935 | I174: 4.935 | J174: 4.975 | K174: 4.955 | M174: 5.025 | N174: 5.055 | R174: 5.105 | T174: 5.12 | V174: 5.15 | X174: 5.19
A175: 2010-10-22 | B175: 166 | D175: 4.64 | E175: 4.85 | F175: 4.905 | G175: 4.895 | H175: 4.97 | I175: 4.97 | J175: 5.005 | K175: 4.985 | M175: 5.055 | N175: 5.085 | R175: 5.13 | T175: 5.145 | V175: 5.175 | X175: 5.215
A176: 2010-10-25 | B176: 167 | D176: 4.685 | E176: 4.925 | F176: 4.975 | G176: 4.965 | H176: 5.04 | I176: 5.035 | J176: 5.075 | K176: 5.05 | M176: 5.12 | N176: 5.135 | R176: 5.175 | T176: 5.19 | V176: 5.22 | X176: 5.255
A177: 2010-10-26 | B177: 168 | D177: 4.655 | E177: 4.905 | F177: 4.955 | G177: 4.945 | H177: 5.02 | I177: 5.01 | J177: 5.055 | K177: 5.035 | M177: 5.095 | N177: 5.115 | R177: 5.15 | T177: 5.165 | V177: 5.19 | X177: 5.23
A178: 2010-10-27 | B178: 169 | D178: 4.55 | E178: 4.81 | F178: 4.855 | G178: 4.86 | H178: 4.935 | I178: 4.935 | J178: 4.97 | K178: 4.965 | M178: 5.06 | N178: 5.09 | R178: 5.165 | T178: 5.185 | V178: 5.215 | X178: 5.255
A179: 2010-10-28 | B179: 170 | D179: 4.545 | E179: 4.81 | F179: 4.86 | G179: 4.86 | H179: 4.94 | I179: 4.935 | J179: 4.975 | K179: 4.97 | M179: 5.065 | N179: 5.095 | R179: 5.165 | T179: 5.19 | V179: 5.22 | X179: 5.265
A180: 2010-10-29 | B180: 171 | D180: 4.535 | E180: 4.805 | F180: 4.85 | G180: 4.85 | H180: 4.925 | I180: 4.925 | J180: 4.965 | K180: 4.965 | M180: 5.06 | N180: 5.105 | R180: 5.18 | T180: 5.205 | V180: 5.235 | X180: 5.28
A181: 2010-11-01 | B181: 172 | D181: 4.575 | E181: 4.83 | F181: 4.875 | G181: 4.875 | H181: 4.95 | I181: 4.955 | J181: 4.995 | K181: 4.995 | M181: 5.09 | N181: 5.13 | R181: 5.205 | T181: 5.235 | V181: 5.265 | X181: 5.31
A182: 2010-11-02 | B182: 173 | D182: 4.725 | E182: 4.945 | F182: 4.99 | G182: 4.97 | H182: 5.045 | I182: 5.04 | J182: 5.085 | K182: 5.07 | M182: 5.155 | N182: 5.18 | R182: 5.235 | T182: 5.26 | V182: 5.285 | X182: 5.32
A183: 2010-11-03 | B183: 174 | D183: 4.72 | E183: 4.93 | F183: 4.98 | G183: 4.965 | H183: 5.035 | I183: 5.035 | J183: 5.075 | K183: 5.065 | M183: 5.145 | N183: 5.175 | R183: 5.235 | T183: 5.255 | V183: 5.28 | X183: 5.32
A184: 2010-11-04 | B184: 175 | D184: 4.74 | E184: 4.96 | F184: 5.01 | G184: 4.99 | H184: 5.06 | I184: 5.065 | J184: 5.105 | K184: 5.09 | M184: 5.155 | N184: 5.165 | R184: 5.22 | T184: 5.23 | V184: 5.255 | X184: 5.29
A185: 2010-11-05 | B185: 176 | D185: 4.76 | E185: 4.985 | F185: 5.04 | G185: 5.02 | H185: 5.085 | I185: 5.09 | J185: 5.125 | K185: 5.115 | M185: 5.185 | N185: 5.195 | R185: 5.245 | T185: 5.25 | V185: 5.275 | X185: 5.31
A186: 2010-11-08 | B186: 177 | D186: 4.765 | E186: 5.02 | F186: 5.08 | G186: 5.065 | H186: 5.13 | I186: 5.13 | J186: 5.165 | K186: 5.155 | M186: 5.22 | N186: 5.225 | R186: 5.27 | T186: 5.28 | V186: 5.305 | X186: 5.335
A187: 2010-11-09 | B187: 178 | D187: 4.745 | E187: 4.995 | F187: 5.06 | G187: 5.045 | H187: 5.11 | I187: 5.11 | J187: 5.145 | K187: 5.135 | M187: 5.21 | N187: 5.23 | R187: 5.275 | T187: 5.29 | V187: 5.315 | X187: 5.35
A188: 2010-11-10 | B188: 179 | D188: 4.755 | E188: 5.03 | F188: 5.095 | G188: 5.08 | H188: 5.15 | I188: 5.15 | J188: 5.19 | K188: 5.185 | M188: 5.26 | N188: 5.285 | R188: 5.335 | T188: 5.355 | V188: 5.38 | X188: 5.42
A189: 2010-11-11 | B189: 180 | D189: 4.72 | E189: 4.995 | F189: 5.065 | G189: 5.05 | H189: 5.12 | I189: 5.12 | J189: 5.16 | K189: 5.155 | M189: 5.235 | N189: 5.26 | R189: 5.315 | T189: 5.335 | V189: 5.36 | X189: 5.4
A190: 2010-11-12 | B190: 181 | D190: 4.705 | E190: 4.955 | F190: 5.05 | G190: 5.04 | H190: 5.11 | I190: 5.11 | J190: 5.15 | K190: 5.145 | M190: 5.23 | N190: 5.26 | R190: 5.325 | T190: 5.34 | V190: 5.37 | X190: 5.405
A191: 2010-11-15 | B191: 182 | D191: 4.725 | E191: 4.96 | F191: 5.09 | G191: 5.09 | H191: 5.155 | I191: 5.16 | J191: 5.205 | K191: 5.195 | M191: 5.28 | N191: 5.325 | R191: 5.39 | T191: 5.41 | V191: 5.435 | X191: 5.475
A192: 2010-11-16 | B192: 183 | D192: 4.705 | E192: 4.925 | F192: 5.065 | G192: 5.07 | H192: 5.135 | I192: 5.14 | J192: 5.185 | K192: 5.185 | M192: 5.27 | N192: 5.31 | R192: 5.385 | T192: 5.405 | V192: 5.435 | X192: 5.475
A193: 2010-11-17 | B193: 184 | D193: 4.71 | E193: 4.925 | F193: 5.065 | G193: 5.075 | H193: 5.14 | I193: 5.145 | J193: 5.19 | K193: 5.19 | M193: 5.285 | N193: 5.325 | R193: 5.41 | T193: 5.43 | V193: 5.465 | X193: 5.505
A194: 2010-11-18 | B194: 185 | D194: 4.75 | E194: 4.965 | F194: 5.11 | G194: 5.12 | H194: 5.19 | I194: 5.195 | J194: 5.245 | K194: 5.245 | M194: 5.335 | N194: 5.37 | R194: 5.455 | T194: 5.475 | V194: 5.51 | X194: 5.55
A195: 2010-11-19 | B195: 186 | D195: 4.745 | E195: 4.98 | F195: 5.11 | G195: 5.13 | H195: 5.2 | I195: 5.205 | J195: 5.255 | K195: 5.255 | M195: 5.345 | N195: 5.38 | R195: 5.465 | T195: 5.485 | V195: 5.515 | X195: 5.56
A196: 2010-11-22 | B196: 187 | D196: 4.765 | E196: 5.005 | F196: 5.135 | G196: 5.155 | H196: 5.23 | I196: 5.235 | J196: 5.285 | K196: 5.285 | M196: 5.375 | N196: 5.4 | R196: 5.48 | T196: 5.5 | V196: 5.535 | X196: 5.575
A197: 2010-11-23 | B197: 188 | D197: 4.72 | E197: 4.95 | F197: 5.08 | G197: 5.1 | H197: 5.175 | I197: 5.18 | J197: 5.225 | K197: 5.225 | M197: 5.315 | N197: 5.335 | R197: 5.41 | T197: 5.425 | V197: 5.46 | X197: 5.5
A198: 2010-11-24 | B198: 189 | D198: 4.73 | E198: 4.955 | F198: 5.08 | G198: 5.1 | H198: 5.175 | I198: 5.18 | J198: 5.23 | K198: 5.23 | M198: 5.32 | N198: 5.36 | P198: 5.435 | R198: 5.435 | T198: 5.45 | V198: 5.485 | X198: 5.525
A199: 2010-11-25 | B199: 190 | D199: 4.735 | E199: 4.985 | F199: 5.12 | G199: 5.145 | H199: 5.22 | I199: 5.225 | J199: 5.27 | K199: 5.27 | M199: 5.365 | N199: 5.42 | P199: 5.495 | R199: 5.5 | T199: 5.52 | V199: 5.555 | X199: 5.595
A200: 2010-11-26 | B200: 191 | D200: 4.68 | E200: 4.925 | F200: 5.065 | G200: 5.08 | H200: 5.155 | I200: 5.16 | J200: 5.21 | K200: 5.215 | M200: 5.31 | N200: 5.38 | P200: 5.455 | R200: 5.465 | T200: 5.48 | V200: 5.52 | X200: 5.56
A201: 2010-11-29 | B201: 192 | D201: 4.66 | E201: 4.89 | F201: 5.025 | G201: 5.04 | H201: 5.115 | I201: 5.12 | J201: 5.17 | K201: 5.18 | M201: 5.28 | N201: 5.36 | P201: 5.445 | R201: 5.455 | T201: 5.475 | V201: 5.515 | X201: 5.56
... 1811 more rows

Sheet CGS terms
A1: AER analysis of the term
C2: TB121 | D2: TB117 | E2: TB123 | F2: TB127 | G2: TB118 | H2: Treasury Bonds | I2: Treasury Bonds | J2: Treasury Bonds | K2: Treasury Bonds | L2: Treasury Bonds | M2: Treasury Bonds | N2: Treasury Bonds | O2: Treasury Bonds | P2: Treasury Bonds | Q2: Treasury Bonds | R2: Treasury Bonds | S2: Treasury Bonds | T2: Treasury Bonds | U2: Treasury Bonds | V2: Treasury Bonds | W2: Treasury Bonds | X2: Treasury Bonds | Y2: Treasury Bonds | Z2: Treasury Bonds | AA2: Treasury Bonds | AB2: Treasury Bonds | AC2: Treasury Bonds | AD2: Treasury Bonds | AE2: Treasury Bonds | AF2: Treasury Bonds | AG2: Treasury Bonds | AH2: Treasury Bonds | AI2: Treasury Bonds | AJ2: Treasury Bonds | AK2: Treasury Bonds | AL2: Treasury Bonds | AM2: Treasury Bonds | AN2: Treasury Bonds
C3: 0.0525 | D3: 0.0575 | E3: 0.0575 | F3: 0.0475 | G3: 0.065 | H3: Treasury Bond 129 5.50% 15-Dec-13 | I3: Treasury Bond 125 6.25% 15-Jun-14 | J3: Treasury Bond 131 4.50% 21-Oct-14 | K3: Treasury Bond 119 6.25% 15-Apr-15 | L3: Treasury Bond 134 4.75% 21-Oct-15 | M3: Treasury Bond 130 4.75% 15-Jun-16 | N3: Treasury Bond 120 6.00% 15-Feb-17 | O3: Treasury Bond 135 4.25% 21-Jul-17 | P3: Treasury Bond 132 5.50% 21-Jan-18 | Q3: Treasury Bond 141 3.25% 21-Oct-18 | R3: Treasury Bond 122 5.25% 15-Mar-19 | S3: Treasury Bond 143 2.75% 21-Oct-19 | T3: Treasury Bond 126 4.50% 15-Apr-20 | U3: Treasury Bond 146 1.75% 21-Nov-20 | V3: Treasury Bond 124 5.75% 15-May-21 | W3: Treasury Bond 151 2.00% 21-Dec-2021 | X3: Treasury Bond 128 5.75% 15-Jul-22 | Y3: Treasury Bond 153 2.25% 21-Nov-2022 | Z3: Treasury Bond 133 5.50% 21-Apr-23 | AA3: Treasury Bond 137 2.75% 21-Apr-24 | AB3: Treasury Bond 139 3.25% 21-Apr-25 | AC3: Treasury Bond 142 4.25% 21-Apr-26 | AD3: Treasury Bond 136 4.75% 21-Apr-27 | AE3: Treasury Bond 148 2.75% 21-Nov-27 | AF3: Treasury Bond 149 2.25% 21-May-28 | AG3: Treasury Bond 152 2.75% 21-Nov-2028 | AH3: Treasury Bond 138 3.25% 21-Apr-29 | AI3: Treasury Bond 154 2.75% 21-Nov-2029 | AJ3: Treasury Bond 140 4.50% 21-Apr-33 | AK3: Treasury Bond 145 2.75% 21-Jun-35 | AL3: Treasury Bond 144 3.75% 21-Apr-37 | AM3: Treasury Bond 147 3.25% 21-Jun-39 | AN3: Treasury Bond 150 3.00% 21-Mar-47
C4: Daily | D4: Daily | E4: Daily | F4: Daily | G4: Daily | H4: Daily | I4: Daily | J4: Daily | K4: Daily | L4: Daily | M4: Daily | N4: Daily | O4: Daily | P4: Daily | Q4: Daily | R4: Daily | S4: Daily | T4: Daily | U4: Daily | V4: Daily | W4: Daily | X4: Daily | Y4: Daily | Z4: Daily | AA4: Daily | AB4: Daily | AC4: Daily | AD4: Daily | AE4: Daily | AF4: Daily | AG4: Daily | AH4: Daily | AI4: Daily | AJ4: Daily | AK4: Daily | AL4: Daily | AM4: Daily | AN4: Daily
C5: Original | D5: Original | E5: Original | F5: Original | G5: Original | H5: Original | I5: Original | J5: Original | K5: Original | L5: Original | M5: Original | N5: Original | O5: Original | P5: Original | Q5: Original | R5: Original | S5: Original | T5: Original | U5: Original | V5: Original | W5: Original | X5: Original | Y5: Original | Z5: Original | AA5: Original | AB5: Original | AC5: Original | AD5: Original | AE5: Original | AF5: Original | AG5: Original | AH5: Original | AI5: Original | AJ5: Original | AK5: Original | AL5: Original | AM5: Original | AN5: Original
C6: Per cent per annum | D6: Per cent per annum | E6: Per cent per annum | F6: Per cent per annum | G6: Per cent per annum | H6: Per cent per annum | I6: Per cent per annum | J6: Per cent per annum | K6: Per cent per annum | L6: Per cent per annum | M6: Per cent per annum | N6: Per cent per annum | O6: Per cent per annum | P6: Per cent per annum | Q6: Per cent per annum | R6: Per cent per annum | S6: Per cent per annum | T6: Per cent per annum | U6: Per cent per annum | V6: Per cent per annum | W6: Per cent per annum | X6: Per cent per annum | Y6: Per cent per annum | Z6: Per cent per annum | AA6: Per cent per annum | AB6: Per cent per annum | AC6: Per cent per annum | AD6: Per cent per annum | AE6: Per cent per annum | AF6: Per cent per annum | AG6: Per cent per annum | AH6: Per cent per annum | AI6: Per cent per annum | AJ6: Per cent per annum | AK6: Per cent per annum | AL6: Per cent per annum | AM6: Per cent per annum | AN6: Per cent per annum
B7: Count | C7: 2010-08-15 | D7: 2011-06-15 | E7: 2012-04-15 | F7: 2012-11-15 | G7: 2013-05-15 | H7: 2013-12-15 | I7: 2014-06-15 | J7: 2014-10-21 | K7: 2015-04-15 | L7: 2015-10-21 | M7: 2016-06-15 | N7: 2017-02-15 | O7: 2017-07-21 | P7: 2018-01-21 | Q7: 2018-10-21 | R7: 2019-03-15 | S7: 2019-10-21 | T7: 2020-04-15 | U7: 2020-11-21 | V7: 2021-05-15 | W7: 2021-12-21 | X7: 2022-07-15 | Y7: 2022-11-21 | Z7: 2023-04-21 | AA7: 2024-04-21 | AB7: 2025-04-21 | AC7: 2026-04-21 | AD7: 2027-04-21 | AE7: 2027-11-21 | AF7: 2028-05-21 | AG7: 2028-11-21 | AH7: 2029-04-21 | AI7: 2029-11-21 | AJ7: 2033-04-21 | AK7: 2035-06-21 | AL7: 2037-04-21 | AM7: 2039-06-21 | AN7: 2047-03-21
A9: ='CGS yields'!A10 -> 2010-03-01 | B9: 1 | C9: =IF('CGS yields'!$A10<>0,('CGS yields'!C$8-'CGS yields'!$A10)/365.25," ") -> 0.4572210815 | D9: =IF('CGS yields'!$A10<>0,('CGS yields'!D$8-'CGS yields'!$A10)/365.25," ") -> 1.289527721 | E9: =IF('CGS yields'!$A10<>0,('CGS yields'!E$8-'CGS yields'!$A10)/365.25," ") -> 2.124572211 | F9: =IF('CGS yields'!$A10<>0,('CGS yields'!F$8-'CGS yields'!$A10)/365.25," ") -> 2.710472279 | G9: =IF('CGS yields'!$A10<>0,('CGS yields'!G$8-'CGS yields'!$A10)/365.25," ") -> 3.206023272 | H9: =IF('CGS yields'!$A10<>0,('CGS yields'!H$8-'CGS yields'!$A10)/365.25," ") -> 3.79192334 | I9: =IF('CGS yields'!$A10<>0,('CGS yields'!I$8-'CGS yields'!$A10)/365.25," ") -> 4.290212183 | J9: =IF('CGS yields'!$A10<>0,('CGS yields'!J$8-'CGS yields'!$A10)/365.25," ") -> 4.640657084 | K9: =IF('CGS yields'!$A10<>0,('CGS yields'!K$8-'CGS yields'!$A10)/365.25," ") -> 5.122518823 | L9: =IF('CGS yields'!$A10<>0,('CGS yields'!L$8-'CGS yields'!$A10)/365.25," ") -> 5.639972621 | M9: =IF('CGS yields'!$A10<>0,('CGS yields'!M$8-'CGS yields'!$A10)/365.25," ") -> 6.291581109 | N9: =IF('CGS yields'!$A10<>0,('CGS yields'!N$8-'CGS yields'!$A10)/365.25," ") -> 6.962354552 | O9: =IF('CGS yields'!$A10<>0,('CGS yields'!O$8-'CGS yields'!$A10)/365.25," ") -> 7.389459274 | P9: =IF('CGS yields'!$A10<>0,('CGS yields'!P$8-'CGS yields'!$A10)/365.25," ") -> 7.893223819 | Q9: =IF('CGS yields'!$A10<>0,('CGS yields'!Q$8-'CGS yields'!$A10)/365.25," ") -> 8.640657084 | R9: =IF('CGS yields'!$A10<>0,('CGS yields'!R$8-'CGS yields'!$A10)/365.25," ") -> 9.037645448 | S9: =IF('CGS yields'!$A10<>0,('CGS yields'!S$8-'CGS yields'!$A10)/365.25," ") -> 9.639972621 | T9: =IF('CGS yields'!$A10<>0,('CGS yields'!T$8-'CGS yields'!$A10)/365.25," ") -> 10.12457221 | U9: =IF('CGS yields'!$A10<>0,('CGS yields'!U$8-'CGS yields'!$A10)/365.25," ") -> 10.72689938 | V9: =IF('CGS yields'!$A10<>0,('CGS yields'!V$8-'CGS yields'!$A10)/365.25," ") -> 11.20602327 | W9: =IF('CGS yields'!$A10<>0,('CGS yields'!W$8-'CGS yields'!$A10)/365.25," ") -> 11.80835044 | X9: =IF('CGS yields'!$A10<>0,('CGS yields'!X$8-'CGS yields'!$A10)/365.25," ") -> 12.37234771 | Y9: =IF('CGS yields'!$A10<>0,('CGS yields'!Y$8-'CGS yields'!$A10)/365.25," ") -> 12.72553046 | Z9: =IF('CGS yields'!$A10<>0,('CGS yields'!Z$8-'CGS yields'!$A10)/365.25," ") -> 13.13894593 | AA9: =IF('CGS yields'!$A10<>0,('CGS yields'!AA$8-'CGS yields'!$A10)/365.25," ") -> 14.14099932 | AB9: =IF('CGS yields'!$A10<>0,('CGS yields'!AB$8-'CGS yields'!$A10)/365.25," ") -> 15.14031485 | AC9: =IF('CGS yields'!$A10<>0,('CGS yields'!AC$8-'CGS yields'!$A10)/365.25," ") -> 16.13963039 | AD9: =IF('CGS yields'!$A10<>0,('CGS yields'!AD$8-'CGS yields'!$A10)/365.25," ") -> 17.13894593 | AE9: =IF('CGS yields'!$A10<>0,('CGS yields'!AE$8-'CGS yields'!$A10)/365.25," ") -> 17.724846 | AF9: =IF('CGS yields'!$A10<>0,('CGS yields'!AF$8-'CGS yields'!$A10)/365.25," ") -> 18.22313484 | AG9: =IF('CGS yields'!$A10<>0,('CGS yields'!AG$8-'CGS yields'!$A10)/365.25," ") -> 18.72689938 | AH9: =IF('CGS yields'!$A10<>0,('CGS yields'!AH$8-'CGS yields'!$A10)/365.25," ") -> 19.14031485 | AI9: =IF('CGS yields'!$A10<>0,('CGS yields'!AI$8-'CGS yields'!$A10)/365.25," ") -> 19.72621492 | AJ9: =IF('CGS yields'!$A10<>0,('CGS yields'!AJ$8-'CGS yields'!$A10)/365.25," ") -> 23.14031485 | AK9: =IF('CGS yields'!$A10<>0,('CGS yields'!AK$8-'CGS yields'!$A10)/365.25," ") -> 25.30595483 | AL9: =IF('CGS yields'!$A10<>0,('CGS yields'!AL$8-'CGS yields'!$A10)/365.25," ") -> 27.14031485 | AM9: =IF('CGS yields'!$A10<>0,('CGS yields'!AM$8-'CGS yields'!$A10)/365.25," ") -> 29.30595483 | AN9: =IF('CGS yields'!$A10<>0,('CGS yields'!AN$8-'CGS yields'!$A10)/365.25," ") -> 37.05407255
A10: ='CGS yields'!A11 -> 2010-03-02 | B10: =VLOOKUP(A10,'CGS yields'!$A$10:$B$2709,2,FALSE) -> 2 | C10: =IF('CGS yields'!$A11<>0,('CGS yields'!C$8-'CGS yields'!$A11)/365.25," ") -> 0.4544832307 | D10: =IF('CGS yields'!$A11<>0,('CGS yields'!D$8-'CGS yields'!$A11)/365.25," ") -> 1.28678987 | E10: =IF('CGS yields'!$A11<>0,('CGS yields'!E$8-'CGS yields'!$A11)/365.25," ") -> 2.12183436 | F10: =IF('CGS yields'!$A11<>0,('CGS yields'!F$8-'CGS yields'!$A11)/365.25," ") -> 2.707734428 | G10: =IF('CGS yields'!$A11<>0,('CGS yields'!G$8-'CGS yields'!$A11)/365.25," ") -> 3.203285421 | H10: =IF('CGS yields'!$A11<>0,('CGS yields'!H$8-'CGS yields'!$A11)/365.25," ") -> 3.789185489 | I10: =IF('CGS yields'!$A11<>0,('CGS yields'!I$8-'CGS yields'!$A11)/365.25," ") -> 4.287474333 | J10: =IF('CGS yields'!$A11<>0,('CGS yields'!J$8-'CGS yields'!$A11)/365.25," ") -> 4.637919233 | K10: =IF('CGS yields'!$A11<>0,('CGS yields'!K$8-'CGS yields'!$A11)/365.25," ") -> 5.119780972 | L10: =IF('CGS yields'!$A11<>0,('CGS yields'!L$8-'CGS yields'!$A11)/365.25," ") -> 5.637234771 | M10: =IF('CGS yields'!$A11<>0,('CGS yields'!M$8-'CGS yields'!$A11)/365.25," ") -> 6.288843258 | N10: =IF('CGS yields'!$A11<>0,('CGS yields'!N$8-'CGS yields'!$A11)/365.25," ") -> 6.959616701 | O10: =IF('CGS yields'!$A11<>0,('CGS yields'!O$8-'CGS yields'!$A11)/365.25," ") -> 7.386721424 | P10: =IF('CGS yields'!$A11<>0,('CGS yields'!P$8-'CGS yields'!$A11)/365.25," ") -> 7.890485969 | Q10: =IF('CGS yields'!$A11<>0,('CGS yields'!Q$8-'CGS yields'!$A11)/365.25," ") -> 8.637919233 | R10: =IF('CGS yields'!$A11<>0,('CGS yields'!R$8-'CGS yields'!$A11)/365.25," ") -> 9.034907598 | S10: =IF('CGS yields'!$A11<>0,('CGS yields'!S$8-'CGS yields'!$A11)/365.25," ") -> 9.637234771 | T10: =IF('CGS yields'!$A11<>0,('CGS yields'!T$8-'CGS yields'!$A11)/365.25," ") -> 10.12183436 | U10: =IF('CGS yields'!$A11<>0,('CGS yields'!U$8-'CGS yields'!$A11)/365.25," ") -> 10.72416153 | V10: =IF('CGS yields'!$A11<>0,('CGS yields'!V$8-'CGS yields'!$A11)/365.25," ") -> 11.20328542 | W10: =IF('CGS yields'!$A11<>0,('CGS yields'!W$8-'CGS yields'!$A11)/365.25," ") -> 11.80561259 | X10: =IF('CGS yields'!$A11<>0,('CGS yields'!X$8-'CGS yields'!$A11)/365.25," ") -> 12.36960986 | Y10: =IF('CGS yields'!$A11<>0,('CGS yields'!Y$8-'CGS yields'!$A11)/365.25," ") -> 12.72279261 | Z10: =IF('CGS yields'!$A11<>0,('CGS yields'!Z$8-'CGS yields'!$A11)/365.25," ") -> 13.13620808 | AA10: =IF('CGS yields'!$A11<>0,('CGS yields'!AA$8-'CGS yields'!$A11)/365.25," ") -> 14.13826146 | AB10: =IF('CGS yields'!$A11<>0,('CGS yields'!AB$8-'CGS yields'!$A11)/365.25," ") -> 15.137577 | AC10: =IF('CGS yields'!$A11<>0,('CGS yields'!AC$8-'CGS yields'!$A11)/365.25," ") -> 16.13689254 | AD10: =IF('CGS yields'!$A11<>0,('CGS yields'!AD$8-'CGS yields'!$A11)/365.25," ") -> 17.13620808 | AE10: =IF('CGS yields'!$A11<>0,('CGS yields'!AE$8-'CGS yields'!$A11)/365.25," ") -> 17.72210815 | AF10: =IF('CGS yields'!$A11<>0,('CGS yields'!AF$8-'CGS yields'!$A11)/365.25," ") -> 18.22039699 | AG10: =IF('CGS yields'!$A11<>0,('CGS yields'!AG$8-'CGS yields'!$A11)/365.25," ") -> 18.72416153 | AH10: =IF('CGS yields'!$A11<>0,('CGS yields'!AH$8-'CGS yields'!$A11)/365.25," ") -> 19.137577 | AI10: =IF('CGS yields'!$A11<>0,('CGS yields'!AI$8-'CGS yields'!$A11)/365.25," ") -> 19.72347707 | AJ10: =IF('CGS yields'!$A11<>0,('CGS yields'!AJ$8-'CGS yields'!$A11)/365.25," ") -> 23.137577 | AK10: =IF('CGS yields'!$A11<>0,('CGS yields'!AK$8-'CGS yields'!$A11)/365.25," ") -> 25.30321697 | AL10: =IF('CGS yields'!$A11<>0,('CGS yields'!AL$8-'CGS yields'!$A11)/365.25," ") -> 27.137577 | AM10: =IF('CGS yields'!$A11<>0,('CGS yields'!AM$8-'CGS yields'!$A11)/365.25," ") -> 29.30321697 | AN10: =IF('CGS yields'!$A11<>0,('CGS yields'!AN$8-'CGS yields'!$A11)/365.25," ") -> 37.0513347
A11: ='CGS yields'!A12 -> 2010-03-03 | B11: =VLOOKUP(A11,'CGS yields'!$A$10:$B$2709,2,FALSE) -> 3 | C11: =IF('CGS yields'!$A12<>0,('CGS yields'!C$8-'CGS yields'!$A12)/365.25," ") -> 0.4517453799 | D11: =IF('CGS yields'!$A12<>0,('CGS yields'!D$8-'CGS yields'!$A12)/365.25," ") -> 1.284052019 | E11: =IF('CGS yields'!$A12<>0,('CGS yields'!E$8-'CGS yields'!$A12)/365.25," ") -> 2.119096509 | F11: =IF('CGS yields'!$A12<>0,('CGS yields'!F$8-'CGS yields'!$A12)/365.25," ") -> 2.704996578 | G11: =IF('CGS yields'!$A12<>0,('CGS yields'!G$8-'CGS yields'!$A12)/365.25," ") -> 3.20054757 | H11: =IF('CGS yields'!$A12<>0,('CGS yields'!H$8-'CGS yields'!$A12)/365.25," ") -> 3.786447639 | I11: =IF('CGS yields'!$A12<>0,('CGS yields'!I$8-'CGS yields'!$A12)/365.25," ") -> 4.284736482 | J11: =IF('CGS yields'!$A12<>0,('CGS yields'!J$8-'CGS yields'!$A12)/365.25," ") -> 4.635181383 | K11: =IF('CGS yields'!$A12<>0,('CGS yields'!K$8-'CGS yields'!$A12)/365.25," ") -> 5.117043121 | L11: =IF('CGS yields'!$A12<>0,('CGS yields'!L$8-'CGS yields'!$A12)/365.25," ") -> 5.63449692 | M11: =IF('CGS yields'!$A12<>0,('CGS yields'!M$8-'CGS yields'!$A12)/365.25," ") -> 6.286105407 | N11: =IF('CGS yields'!$A12<>0,('CGS yields'!N$8-'CGS yields'!$A12)/365.25," ") -> 6.95687885 | O11: =IF('CGS yields'!$A12<>0,('CGS yields'!O$8-'CGS yields'!$A12)/365.25," ") -> 7.383983573 | P11: =IF('CGS yields'!$A12<>0,('CGS yields'!P$8-'CGS yields'!$A12)/365.25," ") -> 7.887748118 | Q11: =IF('CGS yields'!$A12<>0,('CGS yields'!Q$8-'CGS yields'!$A12)/365.25," ") -> 8.635181383 | R11: =IF('CGS yields'!$A12<>0,('CGS yields'!R$8-'CGS yields'!$A12)/365.25," ") -> 9.032169747 | S11: =IF('CGS yields'!$A12<>0,('CGS yields'!S$8-'CGS yields'!$A12)/365.25," ") -> 9.63449692 | T11: =IF('CGS yields'!$A12<>0,('CGS yields'!T$8-'CGS yields'!$A12)/365.25," ") -> 10.11909651 | U11: =IF('CGS yields'!$A12<>0,('CGS yields'!U$8-'CGS yields'!$A12)/365.25," ") -> 10.72142368 | V11: =IF('CGS yields'!$A12<>0,('CGS yields'!V$8-'CGS yields'!$A12)/365.25," ") -> 11.20054757 | W11: =IF('CGS yields'!$A12<>0,('CGS yields'!W$8-'CGS yields'!$A12)/365.25," ") -> 11.80287474 | X11: =IF('CGS yields'!$A12<>0,('CGS yields'!X$8-'CGS yields'!$A12)/365.25," ") -> 12.36687201 | Y11: =IF('CGS yields'!$A12<>0,('CGS yields'!Y$8-'CGS yields'!$A12)/365.25," ") -> 12.72005476 | Z11: =IF('CGS yields'!$A12<>0,('CGS yields'!Z$8-'CGS yields'!$A12)/365.25," ") -> 13.13347023 | AA11: =IF('CGS yields'!$A12<>0,('CGS yields'!AA$8-'CGS yields'!$A12)/365.25," ") -> 14.13552361 | AB11: =IF('CGS yields'!$A12<>0,('CGS yields'!AB$8-'CGS yields'!$A12)/365.25," ") -> 15.13483915 | AC11: =IF('CGS yields'!$A12<>0,('CGS yields'!AC$8-'CGS yields'!$A12)/365.25," ") -> 16.13415469 | AD11: =IF('CGS yields'!$A12<>0,('CGS yields'!AD$8-'CGS yields'!$A12)/365.25," ") -> 17.13347023 | AE11: =IF('CGS yields'!$A12<>0,('CGS yields'!AE$8-'CGS yields'!$A12)/365.25," ") -> 17.71937029 | AF11: =IF('CGS yields'!$A12<>0,('CGS yields'!AF$8-'CGS yields'!$A12)/365.25," ") -> 18.21765914 | AG11: =IF('CGS yields'!$A12<>0,('CGS yields'!AG$8-'CGS yields'!$A12)/365.25," ") -> 18.72142368 | AH11: =IF('CGS yields'!$A12<>0,('CGS yields'!AH$8-'CGS yields'!$A12)/365.25," ") -> 19.13483915 | AI11: =IF('CGS yields'!$A12<>0,('CGS yields'!AI$8-'CGS yields'!$A12)/365.25," ") -> 19.72073922 | AJ11: =IF('CGS yields'!$A12<>0,('CGS yields'!AJ$8-'CGS yields'!$A12)/365.25," ") -> 23.13483915 | AK11: =IF('CGS yields'!$A12<>0,('CGS yields'!AK$8-'CGS yields'!$A12)/365.25," ") -> 25.30047912 | AL11: =IF('CGS yields'!$A12<>0,('CGS yields'!AL$8-'CGS yields'!$A12)/365.25," ") -> 27.13483915 | AM11: =IF('CGS yields'!$A12<>0,('CGS yields'!AM$8-'CGS yields'!$A12)/365.25," ") -> 29.30047912 | AN11: =IF('CGS yields'!$A12<>0,('CGS yields'!AN$8-'CGS yields'!$A12)/365.25," ") -> 37.04859685
A12: ='CGS yields'!A13 -> 2010-03-04 | B12: =VLOOKUP(A12,'CGS yields'!$A$10:$B$2709,2,FALSE) -> 4 | C12: =IF('CGS yields'!$A13<>0,('CGS yields'!C$8-'CGS yields'!$A13)/365.25," ") -> 0.4490075291 | D12: =IF('CGS yields'!$A13<>0,('CGS yields'!D$8-'CGS yields'!$A13)/365.25," ") -> 1.281314168 | E12: =IF('CGS yields'!$A13<>0,('CGS yields'!E$8-'CGS yields'!$A13)/365.25," ") -> 2.116358658 | F12: =IF('CGS yields'!$A13<>0,('CGS yields'!F$8-'CGS yields'!$A13)/365.25," ") -> 2.702258727 | G12: =IF('CGS yields'!$A13<>0,('CGS yields'!G$8-'CGS yields'!$A13)/365.25," ") -> 3.197809719 | H12: =IF('CGS yields'!$A13<>0,('CGS yields'!H$8-'CGS yields'!$A13)/365.25," ") -> 3.783709788 | I12: =IF('CGS yields'!$A13<>0,('CGS yields'!I$8-'CGS yields'!$A13)/365.25," ") -> 4.281998631 | J12: =IF('CGS yields'!$A13<>0,('CGS yields'!J$8-'CGS yields'!$A13)/365.25," ") -> 4.632443532 | K12: =IF('CGS yields'!$A13<>0,('CGS yields'!K$8-'CGS yields'!$A13)/365.25," ") -> 5.11430527 | L12: =IF('CGS yields'!$A13<>0,('CGS yields'!L$8-'CGS yields'!$A13)/365.25," ") -> 5.631759069 | M12: =IF('CGS yields'!$A13<>0,('CGS yields'!M$8-'CGS yields'!$A13)/365.25," ") -> 6.283367556 | N12: =IF('CGS yields'!$A13<>0,('CGS yields'!N$8-'CGS yields'!$A13)/365.25," ") -> 6.954140999 | O12: =IF('CGS yields'!$A13<>0,('CGS yields'!O$8-'CGS yields'!$A13)/365.25," ") -> 7.381245722 | P12: =IF('CGS yields'!$A13<>0,('CGS yields'!P$8-'CGS yields'!$A13)/365.25," ") -> 7.885010267 | Q12: =IF('CGS yields'!$A13<>0,('CGS yields'!Q$8-'CGS yields'!$A13)/365.25," ") -> 8.632443532 | R12: =IF('CGS yields'!$A13<>0,('CGS yields'!R$8-'CGS yields'!$A13)/365.25," ") -> 9.029431896 | S12: =IF('CGS yields'!$A13<>0,('CGS yields'!S$8-'CGS yields'!$A13)/365.25," ") -> 9.631759069 | T12: =IF('CGS yields'!$A13<>0,('CGS yields'!T$8-'CGS yields'!$A13)/365.25," ") -> 10.11635866 | U12: =IF('CGS yields'!$A13<>0,('CGS yields'!U$8-'CGS yields'!$A13)/365.25," ") -> 10.71868583 | V12: =IF('CGS yields'!$A13<>0,('CGS yields'!V$8-'CGS yields'!$A13)/365.25," ") -> 11.19780972 | W12: =IF('CGS yields'!$A13<>0,('CGS yields'!W$8-'CGS yields'!$A13)/365.25," ") -> 11.80013689 | X12: =IF('CGS yields'!$A13<>0,('CGS yields'!X$8-'CGS yields'!$A13)/365.25," ") -> 12.36413415 | Y12: =IF('CGS yields'!$A13<>0,('CGS yields'!Y$8-'CGS yields'!$A13)/365.25," ") -> 12.71731691 | Z12: =IF('CGS yields'!$A13<>0,('CGS yields'!Z$8-'CGS yields'!$A13)/365.25," ") -> 13.13073238 | AA12: =IF('CGS yields'!$A13<>0,('CGS yields'!AA$8-'CGS yields'!$A13)/365.25," ") -> 14.13278576 | AB12: =IF('CGS yields'!$A13<>0,('CGS yields'!AB$8-'CGS yields'!$A13)/365.25," ") -> 15.1321013 | AC12: =IF('CGS yields'!$A13<>0,('CGS yields'!AC$8-'CGS yields'!$A13)/365.25," ") -> 16.13141684 | AD12: =IF('CGS yields'!$A13<>0,('CGS yields'!AD$8-'CGS yields'!$A13)/365.25," ") -> 17.13073238 | AE12: =IF('CGS yields'!$A13<>0,('CGS yields'!AE$8-'CGS yields'!$A13)/365.25," ") -> 17.71663244 | AF12: =IF('CGS yields'!$A13<>0,('CGS yields'!AF$8-'CGS yields'!$A13)/365.25," ") -> 18.21492129 | AG12: =IF('CGS yields'!$A13<>0,('CGS yields'!AG$8-'CGS yields'!$A13)/365.25," ") -> 18.71868583 | AH12: =IF('CGS yields'!$A13<>0,('CGS yields'!AH$8-'CGS yields'!$A13)/365.25," ") -> 19.1321013 | AI12: =IF('CGS yields'!$A13<>0,('CGS yields'!AI$8-'CGS yields'!$A13)/365.25," ") -> 19.71800137 | AJ12: =IF('CGS yields'!$A13<>0,('CGS yields'!AJ$8-'CGS yields'!$A13)/365.25," ") -> 23.1321013 | AK12: =IF('CGS yields'!$A13<>0,('CGS yields'!AK$8-'CGS yields'!$A13)/365.25," ") -> 25.29774127 | AL12: =IF('CGS yields'!$A13<>0,('CGS yields'!AL$8-'CGS yields'!$A13)/365.25," ") -> 27.1321013 | AM12: =IF('CGS yields'!$A13<>0,('CGS yields'!AM$8-'CGS yields'!$A13)/365.25," ") -> 29.29774127 | AN12: =IF('CGS yields'!$A13<>0,('CGS yields'!AN$8-'CGS yields'!$A13)/365.25," ") -> 37.045859
A13: ='CGS yields'!A14 -> 2010-03-05 | B13: =VLOOKUP(A13,'CGS yields'!$A$10:$B$2709,2,FALSE) -> 5 | C13: =IF('CGS yields'!$A14<>0,('CGS yields'!C$8-'CGS yields'!$A14)/365.25," ") -> 0.4462696783 | D13: =IF('CGS yields'!$A14<>0,('CGS yields'!D$8-'CGS yields'!$A14)/365.25," ") -> 1.278576318 | E13: =IF('CGS yields'!$A14<>0,('CGS yields'!E$8-'CGS yields'!$A14)/365.25," ") -> 2.113620808 | F13: =IF('CGS yields'!$A14<>0,('CGS yields'!F$8-'CGS yields'!$A14)/365.25," ") -> 2.699520876 | G13: =IF('CGS yields'!$A14<>0,('CGS yields'!G$8-'CGS yields'!$A14)/365.25," ") -> 3.195071869 | H13: =IF('CGS yields'!$A14<>0,('CGS yields'!H$8-'CGS yields'!$A14)/365.25," ") -> 3.780971937 | I13: =IF('CGS yields'!$A14<>0,('CGS yields'!I$8-'CGS yields'!$A14)/365.25," ") -> 4.27926078 | J13: =IF('CGS yields'!$A14<>0,('CGS yields'!J$8-'CGS yields'!$A14)/365.25," ") -> 4.629705681 | K13: =IF('CGS yields'!$A14<>0,('CGS yields'!K$8-'CGS yields'!$A14)/365.25," ") -> 5.11156742 | L13: =IF('CGS yields'!$A14<>0,('CGS yields'!L$8-'CGS yields'!$A14)/365.25," ") -> 5.629021218 | M13: =IF('CGS yields'!$A14<>0,('CGS yields'!M$8-'CGS yields'!$A14)/365.25," ") -> 6.280629706 | N13: =IF('CGS yields'!$A14<>0,('CGS yields'!N$8-'CGS yields'!$A14)/365.25," ") -> 6.951403149 | O13: =IF('CGS yields'!$A14<>0,('CGS yields'!O$8-'CGS yields'!$A14)/365.25," ") -> 7.378507871 | P13: =IF('CGS yields'!$A14<>0,('CGS yields'!P$8-'CGS yields'!$A14)/365.25," ") -> 7.882272416 | Q13: =IF('CGS yields'!$A14<>0,('CGS yields'!Q$8-'CGS yields'!$A14)/365.25," ") -> 8.629705681 | R13: =IF('CGS yields'!$A14<>0,('CGS yields'!R$8-'CGS yields'!$A14)/365.25," ") -> 9.026694045 | S13: =IF('CGS yields'!$A14<>0,('CGS yields'!S$8-'CGS yields'!$A14)/365.25," ") -> 9.629021218 | T13: =IF('CGS yields'!$A14<>0,('CGS yields'!T$8-'CGS yields'!$A14)/365.25," ") -> 10.11362081 | U13: =IF('CGS yields'!$A14<>0,('CGS yields'!U$8-'CGS yields'!$A14)/365.25," ") -> 10.71594798 | V13: =IF('CGS yields'!$A14<>0,('CGS yields'!V$8-'CGS yields'!$A14)/365.25," ") -> 11.19507187 | W13: =IF('CGS yields'!$A14<>0,('CGS yields'!W$8-'CGS yields'!$A14)/365.25," ") -> 11.79739904 | X13: =IF('CGS yields'!$A14<>0,('CGS yields'!X$8-'CGS yields'!$A14)/365.25," ") -> 12.3613963 | Y13: =IF('CGS yields'!$A14<>0,('CGS yields'!Y$8-'CGS yields'!$A14)/365.25," ") -> 12.71457906 | Z13: =IF('CGS yields'!$A14<>0,('CGS yields'!Z$8-'CGS yields'!$A14)/365.25," ") -> 13.12799452 | AA13: =IF('CGS yields'!$A14<>0,('CGS yields'!AA$8-'CGS yields'!$A14)/365.25," ") -> 14.13004791 | AB13: =IF('CGS yields'!$A14<>0,('CGS yields'!AB$8-'CGS yields'!$A14)/365.25," ") -> 15.12936345 | AC13: =IF('CGS yields'!$A14<>0,('CGS yields'!AC$8-'CGS yields'!$A14)/365.25," ") -> 16.12867899 | AD13: =IF('CGS yields'!$A14<>0,('CGS yields'!AD$8-'CGS yields'!$A14)/365.25," ") -> 17.12799452 | AE13: =IF('CGS yields'!$A14<>0,('CGS yields'!AE$8-'CGS yields'!$A14)/365.25," ") -> 17.71389459 | AF13: =IF('CGS yields'!$A14<>0,('CGS yields'!AF$8-'CGS yields'!$A14)/365.25," ") -> 18.21218344 | AG13: =IF('CGS yields'!$A14<>0,('CGS yields'!AG$8-'CGS yields'!$A14)/365.25," ") -> 18.71594798 | AH13: =IF('CGS yields'!$A14<>0,('CGS yields'!AH$8-'CGS yields'!$A14)/365.25," ") -> 19.12936345 | AI13: =IF('CGS yields'!$A14<>0,('CGS yields'!AI$8-'CGS yields'!$A14)/365.25," ") -> 19.71526352 | AJ13: =IF('CGS yields'!$A14<>0,('CGS yields'!AJ$8-'CGS yields'!$A14)/365.25," ") -> 23.12936345 | AK13: =IF('CGS yields'!$A14<>0,('CGS yields'!AK$8-'CGS yields'!$A14)/365.25," ") -> 25.29500342 | AL13: =IF('CGS yields'!$A14<>0,('CGS yields'!AL$8-'CGS yields'!$A14)/365.25," ") -> 27.12936345 | AM13: =IF('CGS yields'!$A14<>0,('CGS yields'!AM$8-'CGS yields'!$A14)/365.25," ") -> 29.29500342 | AN13: =IF('CGS yields'!$A14<>0,('CGS yields'!AN$8-'CGS yields'!$A14)/365.25," ") -> 37.04312115
A14: ='CGS yields'!A15 -> 2010-03-08 | B14: =VLOOKUP(A14,'CGS yields'!$A$10:$B$2709,2,FALSE) -> 6 | C14: =IF('CGS yields'!$A15<>0,('CGS yields'!C$8-'CGS yields'!$A15)/365.25," ") -> 0.4380561259 | D14: =IF('CGS yields'!$A15<>0,('CGS yields'!D$8-'CGS yields'!$A15)/365.25," ") -> 1.270362765 | E14: =IF('CGS yields'!$A15<>0,('CGS yields'!E$8-'CGS yields'!$A15)/365.25," ") -> 2.105407255 | F14: =IF('CGS yields'!$A15<>0,('CGS yields'!F$8-'CGS yields'!$A15)/365.25," ") -> 2.691307324 | G14: =IF('CGS yields'!$A15<>0,('CGS yields'!G$8-'CGS yields'!$A15)/365.25," ") -> 3.186858316 | H14: =IF('CGS yields'!$A15<>0,('CGS yields'!H$8-'CGS yields'!$A15)/365.25," ") -> 3.772758385 | I14: =IF('CGS yields'!$A15<>0,('CGS yields'!I$8-'CGS yields'!$A15)/365.25," ") -> 4.271047228 | J14: =IF('CGS yields'!$A15<>0,('CGS yields'!J$8-'CGS yields'!$A15)/365.25," ") -> 4.621492129 | K14: =IF('CGS yields'!$A15<>0,('CGS yields'!K$8-'CGS yields'!$A15)/365.25," ") -> 5.103353867 | L14: =IF('CGS yields'!$A15<>0,('CGS yields'!L$8-'CGS yields'!$A15)/365.25," ") -> 5.620807666 | M14: =IF('CGS yields'!$A15<>0,('CGS yields'!M$8-'CGS yields'!$A15)/365.25," ") -> 6.272416153 | N14: =IF('CGS yields'!$A15<>0,('CGS yields'!N$8-'CGS yields'!$A15)/365.25," ") -> 6.943189596 | O14: =IF('CGS yields'!$A15<>0,('CGS yields'!O$8-'CGS yields'!$A15)/365.25," ") -> 7.370294319 | P14: =IF('CGS yields'!$A15<>0,('CGS yields'!P$8-'CGS yields'!$A15)/365.25," ") -> 7.874058864 | Q14: =IF('CGS yields'!$A15<>0,('CGS yields'!Q$8-'CGS yields'!$A15)/365.25," ") -> 8.621492129 | R14: =IF('CGS yields'!$A15<>0,('CGS yields'!R$8-'CGS yields'!$A15)/365.25," ") -> 9.018480493 | S14: =IF('CGS yields'!$A15<>0,('CGS yields'!S$8-'CGS yields'!$A15)/365.25," ") -> 9.620807666 | T14: =IF('CGS yields'!$A15<>0,('CGS yields'!T$8-'CGS yields'!$A15)/365.25," ") -> 10.10540726 | U14: =IF('CGS yields'!$A15<>0,('CGS yields'!U$8-'CGS yields'!$A15)/365.25," ") -> 10.70773443 | V14: =IF('CGS yields'!$A15<>0,('CGS yields'!V$8-'CGS yields'!$A15)/365.25," ") -> 11.18685832 | W14: =IF('CGS yields'!$A15<>0,('CGS yields'!W$8-'CGS yields'!$A15)/365.25," ") -> 11.78918549 | X14: =IF('CGS yields'!$A15<>0,('CGS yields'!X$8-'CGS yields'!$A15)/365.25," ") -> 12.35318275 | Y14: =IF('CGS yields'!$A15<>0,('CGS yields'!Y$8-'CGS yields'!$A15)/365.25," ") -> 12.7063655 | Z14: =IF('CGS yields'!$A15<>0,('CGS yields'!Z$8-'CGS yields'!$A15)/365.25," ") -> 13.11978097 | AA14: =IF('CGS yields'!$A15<>0,('CGS yields'!AA$8-'CGS yields'!$A15)/365.25," ") -> 14.12183436 | AB14: =IF('CGS yields'!$A15<>0,('CGS yields'!AB$8-'CGS yields'!$A15)/365.25," ") -> 15.1211499 | AC14: =IF('CGS yields'!$A15<>0,('CGS yields'!AC$8-'CGS yields'!$A15)/365.25," ") -> 16.12046543 | AD14: =IF('CGS yields'!$A15<>0,('CGS yields'!AD$8-'CGS yields'!$A15)/365.25," ") -> 17.11978097 | AE14: =IF('CGS yields'!$A15<>0,('CGS yields'!AE$8-'CGS yields'!$A15)/365.25," ") -> 17.70568104 | AF14: =IF('CGS yields'!$A15<>0,('CGS yields'!AF$8-'CGS yields'!$A15)/365.25," ") -> 18.20396988 | AG14: =IF('CGS yields'!$A15<>0,('CGS yields'!AG$8-'CGS yields'!$A15)/365.25," ") -> 18.70773443 | AH14: =IF('CGS yields'!$A15<>0,('CGS yields'!AH$8-'CGS yields'!$A15)/365.25," ") -> 19.1211499 | AI14: =IF('CGS yields'!$A15<>0,('CGS yields'!AI$8-'CGS yields'!$A15)/365.25," ") -> 19.70704997 | AJ14: =IF('CGS yields'!$A15<>0,('CGS yields'!AJ$8-'CGS yields'!$A15)/365.25," ") -> 23.1211499 | AK14: =IF('CGS yields'!$A15<>0,('CGS yields'!AK$8-'CGS yields'!$A15)/365.25," ") -> 25.28678987 | AL14: =IF('CGS yields'!$A15<>0,('CGS yields'!AL$8-'CGS yields'!$A15)/365.25," ") -> 27.1211499 | AM14: =IF('CGS yields'!$A15<>0,('CGS yields'!AM$8-'CGS yields'!$A15)/365.25," ") -> 29.28678987 | AN14: =IF('CGS yields'!$A15<>0,('CGS yields'!AN$8-'CGS yields'!$A15)/365.25," ") -> 37.0349076
A15: ='CGS yields'!A16 -> 2010-03-09 | B15: =VLOOKUP(A15,'CGS yields'!$A$10:$B$2709,2,FALSE) -> 7 | C15: =IF('CGS yields'!$A16<>0,('CGS yields'!C$8-'CGS yields'!$A16)/365.25," ") -> 0.4353182752 | D15: =IF('CGS yields'!$A16<>0,('CGS yields'!D$8-'CGS yields'!$A16)/365.25," ") -> 1.267624914 | E15: =IF('CGS yields'!$A16<>0,('CGS yields'!E$8-'CGS yields'!$A16)/365.25," ") -> 2.102669405 | F15: =IF('CGS yields'!$A16<>0,('CGS yields'!F$8-'CGS yields'!$A16)/365.25," ") -> 2.688569473 | G15: =IF('CGS yields'!$A16<>0,('CGS yields'!G$8-'CGS yields'!$A16)/365.25," ") -> 3.184120465 | H15: =IF('CGS yields'!$A16<>0,('CGS yields'!H$8-'CGS yields'!$A16)/365.25," ") -> 3.770020534 | I15: =IF('CGS yields'!$A16<>0,('CGS yields'!I$8-'CGS yields'!$A16)/365.25," ") -> 4.268309377 | J15: =IF('CGS yields'!$A16<>0,('CGS yields'!J$8-'CGS yields'!$A16)/365.25," ") -> 4.618754278 | K15: =IF('CGS yields'!$A16<>0,('CGS yields'!K$8-'CGS yields'!$A16)/365.25," ") -> 5.100616016 | L15: =IF('CGS yields'!$A16<>0,('CGS yields'!L$8-'CGS yields'!$A16)/365.25," ") -> 5.618069815 | M15: =IF('CGS yields'!$A16<>0,('CGS yields'!M$8-'CGS yields'!$A16)/365.25," ") -> 6.269678303 | N15: =IF('CGS yields'!$A16<>0,('CGS yields'!N$8-'CGS yields'!$A16)/365.25," ") -> 6.940451745 | O15: =IF('CGS yields'!$A16<>0,('CGS yields'!O$8-'CGS yields'!$A16)/365.25," ") -> 7.367556468 | P15: =IF('CGS yields'!$A16<>0,('CGS yields'!P$8-'CGS yields'!$A16)/365.25," ") -> 7.871321013 | Q15: =IF('CGS yields'!$A16<>0,('CGS yields'!Q$8-'CGS yields'!$A16)/365.25," ") -> 8.618754278 | R15: =IF('CGS yields'!$A16<>0,('CGS yields'!R$8-'CGS yields'!$A16)/365.25," ") -> 9.015742642 | S15: =IF('CGS yields'!$A16<>0,('CGS yields'!S$8-'CGS yields'!$A16)/365.25," ") -> 9.618069815 | T15: =IF('CGS yields'!$A16<>0,('CGS yields'!T$8-'CGS yields'!$A16)/365.25," ") -> 10.1026694 | U15: =IF('CGS yields'!$A16<>0,('CGS yields'!U$8-'CGS yields'!$A16)/365.25," ") -> 10.70499658 | V15: =IF('CGS yields'!$A16<>0,('CGS yields'!V$8-'CGS yields'!$A16)/365.25," ") -> 11.18412047 | W15: =IF('CGS yields'!$A16<>0,('CGS yields'!W$8-'CGS yields'!$A16)/365.25," ") -> 11.78644764 | X15: =IF('CGS yields'!$A16<>0,('CGS yields'!X$8-'CGS yields'!$A16)/365.25," ") -> 12.3504449 | Y15: =IF('CGS yields'!$A16<>0,('CGS yields'!Y$8-'CGS yields'!$A16)/365.25," ") -> 12.70362765 | Z15: =IF('CGS yields'!$A16<>0,('CGS yields'!Z$8-'CGS yields'!$A16)/365.25," ") -> 13.11704312 | AA15: =IF('CGS yields'!$A16<>0,('CGS yields'!AA$8-'CGS yields'!$A16)/365.25," ") -> 14.11909651 | AB15: =IF('CGS yields'!$A16<>0,('CGS yields'!AB$8-'CGS yields'!$A16)/365.25," ") -> 15.11841205 | AC15: =IF('CGS yields'!$A16<>0,('CGS yields'!AC$8-'CGS yields'!$A16)/365.25," ") -> 16.11772758 | AD15: =IF('CGS yields'!$A16<>0,('CGS yields'!AD$8-'CGS yields'!$A16)/365.25," ") -> 17.11704312 | AE15: =IF('CGS yields'!$A16<>0,('CGS yields'!AE$8-'CGS yields'!$A16)/365.25," ") -> 17.70294319 | AF15: =IF('CGS yields'!$A16<>0,('CGS yields'!AF$8-'CGS yields'!$A16)/365.25," ") -> 18.20123203 | AG15: =IF('CGS yields'!$A16<>0,('CGS yields'!AG$8-'CGS yields'!$A16)/365.25," ") -> 18.70499658 | AH15: =IF('CGS yields'!$A16<>0,('CGS yields'!AH$8-'CGS yields'!$A16)/365.25," ") -> 19.11841205 | AI15: =IF('CGS yields'!$A16<>0,('CGS yields'!AI$8-'CGS yields'!$A16)/365.25," ") -> 19.70431211 | AJ15: =IF('CGS yields'!$A16<>0,('CGS yields'!AJ$8-'CGS yields'!$A16)/365.25," ") -> 23.11841205 | AK15: =IF('CGS yields'!$A16<>0,('CGS yields'!AK$8-'CGS yields'!$A16)/365.25," ") -> 25.28405202 | AL15: =IF('CGS yields'!$A16<>0,('CGS yields'!AL$8-'CGS yields'!$A16)/365.25," ") -> 27.11841205 | AM15: =IF('CGS yields'!$A16<>0,('CGS yields'!AM$8-'CGS yields'!$A16)/365.25," ") -> 29.28405202 | AN15: =IF('CGS yields'!$A16<>0,('CGS yields'!AN$8-'CGS yields'!$A16)/365.25," ") -> 37.03216975
A16: ='CGS yields'!A17 -> 2010-03-10 | B16: =VLOOKUP(A16,'CGS yields'!$A$10:$B$2709,2,FALSE) -> 8 | C16: =IF('CGS yields'!$A17<>0,('CGS yields'!C$8-'CGS yields'!$A17)/365.25," ") -> 0.4325804244 | D16: =IF('CGS yields'!$A17<>0,('CGS yields'!D$8-'CGS yields'!$A17)/365.25," ") -> 1.264887064 | E16: =IF('CGS yields'!$A17<>0,('CGS yields'!E$8-'CGS yields'!$A17)/365.25," ") -> 2.099931554 | F16: =IF('CGS yields'!$A17<>0,('CGS yields'!F$8-'CGS yields'!$A17)/365.25," ") -> 2.685831622 | G16: =IF('CGS yields'!$A17<>0,('CGS yields'!G$8-'CGS yields'!$A17)/365.25," ") -> 3.181382615 | H16: =IF('CGS yields'!$A17<>0,('CGS yields'!H$8-'CGS yields'!$A17)/365.25," ") -> 3.767282683 | I16: =IF('CGS yields'!$A17<>0,('CGS yields'!I$8-'CGS yields'!$A17)/365.25," ") -> 4.265571526 | J16: =IF('CGS yields'!$A17<>0,('CGS yields'!J$8-'CGS yields'!$A17)/365.25," ") -> 4.616016427 | K16: =IF('CGS yields'!$A17<>0,('CGS yields'!K$8-'CGS yields'!$A17)/365.25," ") -> 5.097878166 | L16: =IF('CGS yields'!$A17<>0,('CGS yields'!L$8-'CGS yields'!$A17)/365.25," ") -> 5.615331964 | M16: =IF('CGS yields'!$A17<>0,('CGS yields'!M$8-'CGS yields'!$A17)/365.25," ") -> 6.266940452 | N16: =IF('CGS yields'!$A17<>0,('CGS yields'!N$8-'CGS yields'!$A17)/365.25," ") -> 6.937713895 | O16: =IF('CGS yields'!$A17<>0,('CGS yields'!O$8-'CGS yields'!$A17)/365.25," ") -> 7.364818617 | P16: =IF('CGS yields'!$A17<>0,('CGS yields'!P$8-'CGS yields'!$A17)/365.25," ") -> 7.868583162 | Q16: =IF('CGS yields'!$A17<>0,('CGS yields'!Q$8-'CGS yields'!$A17)/365.25," ") -> 8.616016427 | R16: =IF('CGS yields'!$A17<>0,('CGS yields'!R$8-'CGS yields'!$A17)/365.25," ") -> 9.013004791 | S16: =IF('CGS yields'!$A17<>0,('CGS yields'!S$8-'CGS yields'!$A17)/365.25," ") -> 9.615331964 | T16: =IF('CGS yields'!$A17<>0,('CGS yields'!T$8-'CGS yields'!$A17)/365.25," ") -> 10.09993155 | U16: =IF('CGS yields'!$A17<>0,('CGS yields'!U$8-'CGS yields'!$A17)/365.25," ") -> 10.70225873 | V16: =IF('CGS yields'!$A17<>0,('CGS yields'!V$8-'CGS yields'!$A17)/365.25," ") -> 11.18138261 | W16: =IF('CGS yields'!$A17<>0,('CGS yields'!W$8-'CGS yields'!$A17)/365.25," ") -> 11.78370979 | X16: =IF('CGS yields'!$A17<>0,('CGS yields'!X$8-'CGS yields'!$A17)/365.25," ") -> 12.34770705 | Y16: =IF('CGS yields'!$A17<>0,('CGS yields'!Y$8-'CGS yields'!$A17)/365.25," ") -> 12.7008898 | Z16: =IF('CGS yields'!$A17<>0,('CGS yields'!Z$8-'CGS yields'!$A17)/365.25," ") -> 13.11430527 | AA16: =IF('CGS yields'!$A17<>0,('CGS yields'!AA$8-'CGS yields'!$A17)/365.25," ") -> 14.11635866 | AB16: =IF('CGS yields'!$A17<>0,('CGS yields'!AB$8-'CGS yields'!$A17)/365.25," ") -> 15.1156742 | AC16: =IF('CGS yields'!$A17<>0,('CGS yields'!AC$8-'CGS yields'!$A17)/365.25," ") -> 16.11498973 | AD16: =IF('CGS yields'!$A17<>0,('CGS yields'!AD$8-'CGS yields'!$A17)/365.25," ") -> 17.11430527 | AE16: =IF('CGS yields'!$A17<>0,('CGS yields'!AE$8-'CGS yields'!$A17)/365.25," ") -> 17.70020534 | AF16: =IF('CGS yields'!$A17<>0,('CGS yields'!AF$8-'CGS yields'!$A17)/365.25," ") -> 18.19849418 | AG16: =IF('CGS yields'!$A17<>0,('CGS yields'!AG$8-'CGS yields'!$A17)/365.25," ") -> 18.70225873 | AH16: =IF('CGS yields'!$A17<>0,('CGS yields'!AH$8-'CGS yields'!$A17)/365.25," ") -> 19.1156742 | AI16: =IF('CGS yields'!$A17<>0,('CGS yields'!AI$8-'CGS yields'!$A17)/365.25," ") -> 19.70157426 | AJ16: =IF('CGS yields'!$A17<>0,('CGS yields'!AJ$8-'CGS yields'!$A17)/365.25," ") -> 23.1156742 | AK16: =IF('CGS yields'!$A17<>0,('CGS yields'!AK$8-'CGS yields'!$A17)/365.25," ") -> 25.28131417 | AL16: =IF('CGS yields'!$A17<>0,('CGS yields'!AL$8-'CGS yields'!$A17)/365.25," ") -> 27.1156742 | AM16: =IF('CGS yields'!$A17<>0,('CGS yields'!AM$8-'CGS yields'!$A17)/365.25," ") -> 29.28131417 | AN16: =IF('CGS yields'!$A17<>0,('CGS yields'!AN$8-'CGS yields'!$A17)/365.25," ") -> 37.0294319
A17: ='CGS yields'!A18 -> 2010-03-11 | B17: =VLOOKUP(A17,'CGS yields'!$A$10:$B$2709,2,FALSE) -> 9 | C17: =IF('CGS yields'!$A18<>0,('CGS yields'!C$8-'CGS yields'!$A18)/365.25," ") -> 0.4298425736 | D17: =IF('CGS yields'!$A18<>0,('CGS yields'!D$8-'CGS yields'!$A18)/365.25," ") -> 1.262149213 | E17: =IF('CGS yields'!$A18<>0,('CGS yields'!E$8-'CGS yields'!$A18)/365.25," ") -> 2.097193703 | F17: =IF('CGS yields'!$A18<>0,('CGS yields'!F$8-'CGS yields'!$A18)/365.25," ") -> 2.683093771 | G17: =IF('CGS yields'!$A18<>0,('CGS yields'!G$8-'CGS yields'!$A18)/365.25," ") -> 3.178644764 | H17: =IF('CGS yields'!$A18<>0,('CGS yields'!H$8-'CGS yields'!$A18)/365.25," ") -> 3.764544832 | I17: =IF('CGS yields'!$A18<>0,('CGS yields'!I$8-'CGS yields'!$A18)/365.25," ") -> 4.262833676 | J17: =IF('CGS yields'!$A18<>0,('CGS yields'!J$8-'CGS yields'!$A18)/365.25," ") -> 4.613278576 | K17: =IF('CGS yields'!$A18<>0,('CGS yields'!K$8-'CGS yields'!$A18)/365.25," ") -> 5.095140315 | L17: =IF('CGS yields'!$A18<>0,('CGS yields'!L$8-'CGS yields'!$A18)/365.25," ") -> 5.612594114 | M17: =IF('CGS yields'!$A18<>0,('CGS yields'!M$8-'CGS yields'!$A18)/365.25," ") -> 6.264202601 | N17: =IF('CGS yields'!$A18<>0,('CGS yields'!N$8-'CGS yields'!$A18)/365.25," ") -> 6.934976044 | O17: =IF('CGS yields'!$A18<>0,('CGS yields'!O$8-'CGS yields'!$A18)/365.25," ") -> 7.362080767 | P17: =IF('CGS yields'!$A18<>0,('CGS yields'!P$8-'CGS yields'!$A18)/365.25," ") -> 7.865845311 | Q17: =IF('CGS yields'!$A18<>0,('CGS yields'!Q$8-'CGS yields'!$A18)/365.25," ") -> 8.613278576 | R17: =IF('CGS yields'!$A18<>0,('CGS yields'!R$8-'CGS yields'!$A18)/365.25," ") -> 9.01026694 | S17: =IF('CGS yields'!$A18<>0,('CGS yields'!S$8-'CGS yields'!$A18)/365.25," ") -> 9.612594114 | T17: =IF('CGS yields'!$A18<>0,('CGS yields'!T$8-'CGS yields'!$A18)/365.25," ") -> 10.0971937 | U17: =IF('CGS yields'!$A18<>0,('CGS yields'!U$8-'CGS yields'!$A18)/365.25," ") -> 10.69952088 | V17: =IF('CGS yields'!$A18<>0,('CGS yields'!V$8-'CGS yields'!$A18)/365.25," ") -> 11.17864476 | W17: =IF('CGS yields'!$A18<>0,('CGS yields'!W$8-'CGS yields'!$A18)/365.25," ") -> 11.78097194 | X17: =IF('CGS yields'!$A18<>0,('CGS yields'!X$8-'CGS yields'!$A18)/365.25," ") -> 12.3449692 | Y17: =IF('CGS yields'!$A18<>0,('CGS yields'!Y$8-'CGS yields'!$A18)/365.25," ") -> 12.69815195 | Z17: =IF('CGS yields'!$A18<>0,('CGS yields'!Z$8-'CGS yields'!$A18)/365.25," ") -> 13.11156742 | AA17: =IF('CGS yields'!$A18<>0,('CGS yields'!AA$8-'CGS yields'!$A18)/365.25," ") -> 14.11362081 | AB17: =IF('CGS yields'!$A18<>0,('CGS yields'!AB$8-'CGS yields'!$A18)/365.25," ") -> 15.11293634 | AC17: =IF('CGS yields'!$A18<>0,('CGS yields'!AC$8-'CGS yields'!$A18)/365.25," ") -> 16.11225188 | AD17: =IF('CGS yields'!$A18<>0,('CGS yields'!AD$8-'CGS yields'!$A18)/365.25," ") -> 17.11156742 | AE17: =IF('CGS yields'!$A18<>0,('CGS yields'!AE$8-'CGS yields'!$A18)/365.25," ") -> 17.69746749 | AF17: =IF('CGS yields'!$A18<>0,('CGS yields'!AF$8-'CGS yields'!$A18)/365.25," ") -> 18.19575633 | AG17: =IF('CGS yields'!$A18<>0,('CGS yields'!AG$8-'CGS yields'!$A18)/365.25," ") -> 18.69952088 | AH17: =IF('CGS yields'!$A18<>0,('CGS yields'!AH$8-'CGS yields'!$A18)/365.25," ") -> 19.11293634 | AI17: =IF('CGS yields'!$A18<>0,('CGS yields'!AI$8-'CGS yields'!$A18)/365.25," ") -> 19.69883641 | AJ17: =IF('CGS yields'!$A18<>0,('CGS yields'!AJ$8-'CGS yields'!$A18)/365.25," ") -> 23.11293634 | AK17: =IF('CGS yields'!$A18<>0,('CGS yields'!AK$8-'CGS yields'!$A18)/365.25," ") -> 25.27857632 | AL17: =IF('CGS yields'!$A18<>0,('CGS yields'!AL$8-'CGS yields'!$A18)/365.25," ") -> 27.11293634 | AM17: =IF('CGS yields'!$A18<>0,('CGS yields'!AM$8-'CGS yields'!$A18)/365.25," ") -> 29.27857632 | AN17: =IF('CGS yields'!$A18<>0,('CGS yields'!AN$8-'CGS yields'!$A18)/365.25," ") -> 37.02669405
A18: ='CGS yields'!A19 -> 2010-03-12 | B18: =VLOOKUP(A18,'CGS yields'!$A$10:$B$2709,2,FALSE) -> 10 | C18: =IF('CGS yields'!$A19<>0,('CGS yields'!C$8-'CGS yields'!$A19)/365.25," ") -> 0.4271047228 | D18: =IF('CGS yields'!$A19<>0,('CGS yields'!D$8-'CGS yields'!$A19)/365.25," ") -> 1.259411362 | E18: =IF('CGS yields'!$A19<>0,('CGS yields'!E$8-'CGS yields'!$A19)/365.25," ") -> 2.094455852 | F18: =IF('CGS yields'!$A19<>0,('CGS yields'!F$8-'CGS yields'!$A19)/365.25," ") -> 2.680355921 | G18: =IF('CGS yields'!$A19<>0,('CGS yields'!G$8-'CGS yields'!$A19)/365.25," ") -> 3.175906913 | H18: =IF('CGS yields'!$A19<>0,('CGS yields'!H$8-'CGS yields'!$A19)/365.25," ") -> 3.761806982 | I18: =IF('CGS yields'!$A19<>0,('CGS yields'!I$8-'CGS yields'!$A19)/365.25," ") -> 4.260095825 | J18: =IF('CGS yields'!$A19<>0,('CGS yields'!J$8-'CGS yields'!$A19)/365.25," ") -> 4.610540726 | K18: =IF('CGS yields'!$A19<>0,('CGS yields'!K$8-'CGS yields'!$A19)/365.25," ") -> 5.092402464 | L18: =IF('CGS yields'!$A19<>0,('CGS yields'!L$8-'CGS yields'!$A19)/365.25," ") -> 5.609856263 | M18: =IF('CGS yields'!$A19<>0,('CGS yields'!M$8-'CGS yields'!$A19)/365.25," ") -> 6.26146475 | N18: =IF('CGS yields'!$A19<>0,('CGS yields'!N$8-'CGS yields'!$A19)/365.25," ") -> 6.932238193 | O18: =IF('CGS yields'!$A19<>0,('CGS yields'!O$8-'CGS yields'!$A19)/365.25," ") -> 7.359342916 | P18: =IF('CGS yields'!$A19<>0,('CGS yields'!P$8-'CGS yields'!$A19)/365.25," ") -> 7.863107461 | Q18: =IF('CGS yields'!$A19<>0,('CGS yields'!Q$8-'CGS yields'!$A19)/365.25," ") -> 8.610540726 | R18: =IF('CGS yields'!$A19<>0,('CGS yields'!R$8-'CGS yields'!$A19)/365.25," ") -> 9.00752909 | S18: =IF('CGS yields'!$A19<>0,('CGS yields'!S$8-'CGS yields'!$A19)/365.25," ") -> 9.609856263 | T18: =IF('CGS yields'!$A19<>0,('CGS yields'!T$8-'CGS yields'!$A19)/365.25," ") -> 10.09445585 | U18: =IF('CGS yields'!$A19<>0,('CGS yields'!U$8-'CGS yields'!$A19)/365.25," ") -> 10.69678303 | V18: =IF('CGS yields'!$A19<>0,('CGS yields'!V$8-'CGS yields'!$A19)/365.25," ") -> 11.17590691 | W18: =IF('CGS yields'!$A19<>0,('CGS yields'!W$8-'CGS yields'!$A19)/365.25," ") -> 11.77823409 | X18: =IF('CGS yields'!$A19<>0,('CGS yields'!X$8-'CGS yields'!$A19)/365.25," ") -> 12.34223135 | Y18: =IF('CGS yields'!$A19<>0,('CGS yields'!Y$8-'CGS yields'!$A19)/365.25," ") -> 12.6954141 | Z18: =IF('CGS yields'!$A19<>0,('CGS yields'!Z$8-'CGS yields'!$A19)/365.25," ") -> 13.10882957 | AA18: =IF('CGS yields'!$A19<>0,('CGS yields'!AA$8-'CGS yields'!$A19)/365.25," ") -> 14.11088296 | AB18: =IF('CGS yields'!$A19<>0,('CGS yields'!AB$8-'CGS yields'!$A19)/365.25," ") -> 15.11019849 | AC18: =IF('CGS yields'!$A19<>0,('CGS yields'!AC$8-'CGS yields'!$A19)/365.25," ") -> 16.10951403 | AD18: =IF('CGS yields'!$A19<>0,('CGS yields'!AD$8-'CGS yields'!$A19)/365.25," ") -> 17.10882957 | AE18: =IF('CGS yields'!$A19<>0,('CGS yields'!AE$8-'CGS yields'!$A19)/365.25," ") -> 17.69472964 | AF18: =IF('CGS yields'!$A19<>0,('CGS yields'!AF$8-'CGS yields'!$A19)/365.25," ") -> 18.19301848 | AG18: =IF('CGS yields'!$A19<>0,('CGS yields'!AG$8-'CGS yields'!$A19)/365.25," ") -> 18.69678303 | AH18: =IF('CGS yields'!$A19<>0,('CGS yields'!AH$8-'CGS yields'!$A19)/365.25," ") -> 19.11019849 | AI18: =IF('CGS yields'!$A19<>0,('CGS yields'!AI$8-'CGS yields'!$A19)/365.25," ") -> 19.69609856 | AJ18: =IF('CGS yields'!$A19<>0,('CGS yields'!AJ$8-'CGS yields'!$A19)/365.25," ") -> 23.11019849 | AK18: =IF('CGS yields'!$A19<>0,('CGS yields'!AK$8-'CGS yields'!$A19)/365.25," ") -> 25.27583847 | AL18: =IF('CGS yields'!$A19<>0,('CGS yields'!AL$8-'CGS yields'!$A19)/365.25," ") -> 27.11019849 | AM18: =IF('CGS yields'!$A19<>0,('CGS yields'!AM$8-'CGS yields'!$A19)/365.25," ") -> 29.27583847 | AN18: =IF('CGS yields'!$A19<>0,('CGS yields'!AN$8-'CGS yields'!$A19)/365.25," ") -> 37.02395619
A19: ='CGS yields'!A20 -> 2010-03-15 | B19: =VLOOKUP(A19,'CGS yields'!$A$10:$B$2709,2,FALSE) -> 11 | C19: =IF('CGS yields'!$A20<>0,('CGS yields'!C$8-'CGS yields'!$A20)/365.25," ") -> 0.4188911704 | D19: =IF('CGS yields'!$A20<>0,('CGS yields'!D$8-'CGS yields'!$A20)/365.25," ") -> 1.25119781 | E19: =IF('CGS yields'!$A20<>0,('CGS yields'!E$8-'CGS yields'!$A20)/365.25," ") -> 2.0862423 | F19: =IF('CGS yields'!$A20<>0,('CGS yields'!F$8-'CGS yields'!$A20)/365.25," ") -> 2.672142368 | G19: =IF('CGS yields'!$A20<>0,('CGS yields'!G$8-'CGS yields'!$A20)/365.25," ") -> 3.167693361 | H19: =IF('CGS yields'!$A20<>0,('CGS yields'!H$8-'CGS yields'!$A20)/365.25," ") -> 3.753593429 | I19: =IF('CGS yields'!$A20<>0,('CGS yields'!I$8-'CGS yields'!$A20)/365.25," ") -> 4.251882272 | J19: =IF('CGS yields'!$A20<>0,('CGS yields'!J$8-'CGS yields'!$A20)/365.25," ") -> 4.602327173 | K19: =IF('CGS yields'!$A20<>0,('CGS yields'!K$8-'CGS yields'!$A20)/365.25," ") -> 5.084188912 | L19: =IF('CGS yields'!$A20<>0,('CGS yields'!L$8-'CGS yields'!$A20)/365.25," ") -> 5.60164271 | M19: =IF('CGS yields'!$A20<>0,('CGS yields'!M$8-'CGS yields'!$A20)/365.25," ") -> 6.253251198 | N19: =IF('CGS yields'!$A20<>0,('CGS yields'!N$8-'CGS yields'!$A20)/365.25," ") -> 6.924024641 | O19: =IF('CGS yields'!$A20<>0,('CGS yields'!O$8-'CGS yields'!$A20)/365.25," ") -> 7.351129363 | P19: =IF('CGS yields'!$A20<>0,('CGS yields'!P$8-'CGS yields'!$A20)/365.25," ") -> 7.854893908 | Q19: =IF('CGS yields'!$A20<>0,('CGS yields'!Q$8-'CGS yields'!$A20)/365.25," ") -> 8.602327173 | R19: =IF('CGS yields'!$A20<>0,('CGS yields'!R$8-'CGS yields'!$A20)/365.25," ") -> 8.999315537 | S19: =IF('CGS yields'!$A20<>0,('CGS yields'!S$8-'CGS yields'!$A20)/365.25," ") -> 9.60164271 | T19: =IF('CGS yields'!$A20<>0,('CGS yields'!T$8-'CGS yields'!$A20)/365.25," ") -> 10.0862423 | U19: =IF('CGS yields'!$A20<>0,('CGS yields'!U$8-'CGS yields'!$A20)/365.25," ") -> 10.68856947 | V19: =IF('CGS yields'!$A20<>0,('CGS yields'!V$8-'CGS yields'!$A20)/365.25," ") -> 11.16769336 | W19: =IF('CGS yields'!$A20<>0,('CGS yields'!W$8-'CGS yields'!$A20)/365.25," ") -> 11.77002053 | X19: =IF('CGS yields'!$A20<>0,('CGS yields'!X$8-'CGS yields'!$A20)/365.25," ") -> 12.3340178 | Y19: =IF('CGS yields'!$A20<>0,('CGS yields'!Y$8-'CGS yields'!$A20)/365.25," ") -> 12.68720055 | Z19: =IF('CGS yields'!$A20<>0,('CGS yields'!Z$8-'CGS yields'!$A20)/365.25," ") -> 13.10061602 | AA19: =IF('CGS yields'!$A20<>0,('CGS yields'!AA$8-'CGS yields'!$A20)/365.25," ") -> 14.1026694 | AB19: =IF('CGS yields'!$A20<>0,('CGS yields'!AB$8-'CGS yields'!$A20)/365.25," ") -> 15.10198494 | AC19: =IF('CGS yields'!$A20<>0,('CGS yields'!AC$8-'CGS yields'!$A20)/365.25," ") -> 16.10130048 | AD19: =IF('CGS yields'!$A20<>0,('CGS yields'!AD$8-'CGS yields'!$A20)/365.25," ") -> 17.10061602 | AE19: =IF('CGS yields'!$A20<>0,('CGS yields'!AE$8-'CGS yields'!$A20)/365.25," ") -> 17.68651608 | AF19: =IF('CGS yields'!$A20<>0,('CGS yields'!AF$8-'CGS yields'!$A20)/365.25," ") -> 18.18480493 | AG19: =IF('CGS yields'!$A20<>0,('CGS yields'!AG$8-'CGS yields'!$A20)/365.25," ") -> 18.68856947 | AH19: =IF('CGS yields'!$A20<>0,('CGS yields'!AH$8-'CGS yields'!$A20)/365.25," ") -> 19.10198494 | AI19: =IF('CGS yields'!$A20<>0,('CGS yields'!AI$8-'CGS yields'!$A20)/365.25," ") -> 19.68788501 | AJ19: =IF('CGS yields'!$A20<>0,('CGS yields'!AJ$8-'CGS yields'!$A20)/365.25," ") -> 23.10198494 | AK19: =IF('CGS yields'!$A20<>0,('CGS yields'!AK$8-'CGS yields'!$A20)/365.25," ") -> 25.26762491 | AL19: =IF('CGS yields'!$A20<>0,('CGS yields'!AL$8-'CGS yields'!$A20)/365.25," ") -> 27.10198494 | AM19: =IF('CGS yields'!$A20<>0,('CGS yields'!AM$8-'CGS yields'!$A20)/365.25," ") -> 29.26762491 | AN19: =IF('CGS yields'!$A20<>0,('CGS yields'!AN$8-'CGS yields'!$A20)/365.25," ") -> 37.01574264
A20: ='CGS yields'!A21 -> 2010-03-16 | B20: =VLOOKUP(A20,'CGS yields'!$A$10:$B$2709,2,FALSE) -> 12 | C20: =IF('CGS yields'!$A21<>0,('CGS yields'!C$8-'CGS yields'!$A21)/365.25," ") -> 0.4161533196 | D20: =IF('CGS yields'!$A21<>0,('CGS yields'!D$8-'CGS yields'!$A21)/365.25," ") -> 1.248459959 | E20: =IF('CGS yields'!$A21<>0,('CGS yields'!E$8-'CGS yields'!$A21)/365.25," ") -> 2.083504449 | F20: =IF('CGS yields'!$A21<>0,('CGS yields'!F$8-'CGS yields'!$A21)/365.25," ") -> 2.669404517 | G20: =IF('CGS yields'!$A21<>0,('CGS yields'!G$8-'CGS yields'!$A21)/365.25," ") -> 3.16495551 | H20: =IF('CGS yields'!$A21<>0,('CGS yields'!H$8-'CGS yields'!$A21)/365.25," ") -> 3.750855578 | I20: =IF('CGS yields'!$A21<>0,('CGS yields'!I$8-'CGS yields'!$A21)/365.25," ") -> 4.249144422 | J20: =IF('CGS yields'!$A21<>0,('CGS yields'!J$8-'CGS yields'!$A21)/365.25," ") -> 4.599589322 | K20: =IF('CGS yields'!$A21<>0,('CGS yields'!K$8-'CGS yields'!$A21)/365.25," ") -> 5.081451061 | L20: =IF('CGS yields'!$A21<>0,('CGS yields'!L$8-'CGS yields'!$A21)/365.25," ") -> 5.59890486 | M20: =IF('CGS yields'!$A21<>0,('CGS yields'!M$8-'CGS yields'!$A21)/365.25," ") -> 6.250513347 | N20: =IF('CGS yields'!$A21<>0,('CGS yields'!N$8-'CGS yields'!$A21)/365.25," ") -> 6.92128679 | O20: =IF('CGS yields'!$A21<>0,('CGS yields'!O$8-'CGS yields'!$A21)/365.25," ") -> 7.348391513 | P20: =IF('CGS yields'!$A21<>0,('CGS yields'!P$8-'CGS yields'!$A21)/365.25," ") -> 7.852156057 | Q20: =IF('CGS yields'!$A21<>0,('CGS yields'!Q$8-'CGS yields'!$A21)/365.25," ") -> 8.599589322 | R20: =IF('CGS yields'!$A21<>0,('CGS yields'!R$8-'CGS yields'!$A21)/365.25," ") -> 8.996577687 | S20: =IF('CGS yields'!$A21<>0,('CGS yields'!S$8-'CGS yields'!$A21)/365.25," ") -> 9.59890486 | T20: =IF('CGS yields'!$A21<>0,('CGS yields'!T$8-'CGS yields'!$A21)/365.25," ") -> 10.08350445 | U20: =IF('CGS yields'!$A21<>0,('CGS yields'!U$8-'CGS yields'!$A21)/365.25," ") -> 10.68583162 | V20: =IF('CGS yields'!$A21<>0,('CGS yields'!V$8-'CGS yields'!$A21)/365.25," ") -> 11.16495551 | W20: =IF('CGS yields'!$A21<>0,('CGS yields'!W$8-'CGS yields'!$A21)/365.25," ") -> 11.76728268 | X20: =IF('CGS yields'!$A21<>0,('CGS yields'!X$8-'CGS yields'!$A21)/365.25," ") -> 12.33127995 | Y20: =IF('CGS yields'!$A21<>0,('CGS yields'!Y$8-'CGS yields'!$A21)/365.25," ") -> 12.6844627 | Z20: =IF('CGS yields'!$A21<>0,('CGS yields'!Z$8-'CGS yields'!$A21)/365.25," ") -> 13.09787817 | AA20: =IF('CGS yields'!$A21<>0,('CGS yields'!AA$8-'CGS yields'!$A21)/365.25," ") -> 14.09993155 | AB20: =IF('CGS yields'!$A21<>0,('CGS yields'!AB$8-'CGS yields'!$A21)/365.25," ") -> 15.09924709 | AC20: =IF('CGS yields'!$A21<>0,('CGS yields'!AC$8-'CGS yields'!$A21)/365.25," ") -> 16.09856263 | AD20: =IF('CGS yields'!$A21<>0,('CGS yields'!AD$8-'CGS yields'!$A21)/365.25," ") -> 17.09787817 | AE20: =IF('CGS yields'!$A21<>0,('CGS yields'!AE$8-'CGS yields'!$A21)/365.25," ") -> 17.68377823 | AF20: =IF('CGS yields'!$A21<>0,('CGS yields'!AF$8-'CGS yields'!$A21)/365.25," ") -> 18.18206708 | AG20: =IF('CGS yields'!$A21<>0,('CGS yields'!AG$8-'CGS yields'!$A21)/365.25," ") -> 18.68583162 | AH20: =IF('CGS yields'!$A21<>0,('CGS yields'!AH$8-'CGS yields'!$A21)/365.25," ") -> 19.09924709 | AI20: =IF('CGS yields'!$A21<>0,('CGS yields'!AI$8-'CGS yields'!$A21)/365.25," ") -> 19.68514716 | AJ20: =IF('CGS yields'!$A21<>0,('CGS yields'!AJ$8-'CGS yields'!$A21)/365.25," ") -> 23.09924709 | AK20: =IF('CGS yields'!$A21<>0,('CGS yields'!AK$8-'CGS yields'!$A21)/365.25," ") -> 25.26488706 | AL20: =IF('CGS yields'!$A21<>0,('CGS yields'!AL$8-'CGS yields'!$A21)/365.25," ") -> 27.09924709 | AM20: =IF('CGS yields'!$A21<>0,('CGS yields'!AM$8-'CGS yields'!$A21)/365.25," ") -> 29.26488706 | AN20: =IF('CGS yields'!$A21<>0,('CGS yields'!AN$8-'CGS yields'!$A21)/365.25," ") -> 37.01300479
A21: ='CGS yields'!A22 -> 2010-03-17 | B21: =VLOOKUP(A21,'CGS yields'!$A$10:$B$2709,2,FALSE) -> 13 | C21: =IF('CGS yields'!$A22<>0,('CGS yields'!C$8-'CGS yields'!$A22)/365.25," ") -> 0.4134154689 | D21: =IF('CGS yields'!$A22<>0,('CGS yields'!D$8-'CGS yields'!$A22)/365.25," ") -> 1.245722108 | E21: =IF('CGS yields'!$A22<>0,('CGS yields'!E$8-'CGS yields'!$A22)/365.25," ") -> 2.080766598 | F21: =IF('CGS yields'!$A22<>0,('CGS yields'!F$8-'CGS yields'!$A22)/365.25," ") -> 2.666666667 | G21: =IF('CGS yields'!$A22<>0,('CGS yields'!G$8-'CGS yields'!$A22)/365.25," ") -> 3.162217659 | H21: =IF('CGS yields'!$A22<>0,('CGS yields'!H$8-'CGS yields'!$A22)/365.25," ") -> 3.748117728 | I21: =IF('CGS yields'!$A22<>0,('CGS yields'!I$8-'CGS yields'!$A22)/365.25," ") -> 4.246406571 | J21: =IF('CGS yields'!$A22<>0,('CGS yields'!J$8-'CGS yields'!$A22)/365.25," ") -> 4.596851472 | K21: =IF('CGS yields'!$A22<>0,('CGS yields'!K$8-'CGS yields'!$A22)/365.25," ") -> 5.07871321 | L21: =IF('CGS yields'!$A22<>0,('CGS yields'!L$8-'CGS yields'!$A22)/365.25," ") -> 5.596167009 | M21: =IF('CGS yields'!$A22<>0,('CGS yields'!M$8-'CGS yields'!$A22)/365.25," ") -> 6.247775496 | N21: =IF('CGS yields'!$A22<>0,('CGS yields'!N$8-'CGS yields'!$A22)/365.25," ") -> 6.918548939 | O21: =IF('CGS yields'!$A22<>0,('CGS yields'!O$8-'CGS yields'!$A22)/365.25," ") -> 7.345653662 | P21: =IF('CGS yields'!$A22<>0,('CGS yields'!P$8-'CGS yields'!$A22)/365.25," ") -> 7.849418207 | Q21: =IF('CGS yields'!$A22<>0,('CGS yields'!Q$8-'CGS yields'!$A22)/365.25," ") -> 8.596851472 | R21: =IF('CGS yields'!$A22<>0,('CGS yields'!R$8-'CGS yields'!$A22)/365.25," ") -> 8.993839836 | S21: =IF('CGS yields'!$A22<>0,('CGS yields'!S$8-'CGS yields'!$A22)/365.25," ") -> 9.596167009 | T21: =IF('CGS yields'!$A22<>0,('CGS yields'!T$8-'CGS yields'!$A22)/365.25," ") -> 10.0807666 | U21: =IF('CGS yields'!$A22<>0,('CGS yields'!U$8-'CGS yields'!$A22)/365.25," ") -> 10.68309377 | V21: =IF('CGS yields'!$A22<>0,('CGS yields'!V$8-'CGS yields'!$A22)/365.25," ") -> 11.16221766 | W21: =IF('CGS yields'!$A22<>0,('CGS yields'!W$8-'CGS yields'!$A22)/365.25," ") -> 11.76454483 | X21: =IF('CGS yields'!$A22<>0,('CGS yields'!X$8-'CGS yields'!$A22)/365.25," ") -> 12.32854209 | Y21: =IF('CGS yields'!$A22<>0,('CGS yields'!Y$8-'CGS yields'!$A22)/365.25," ") -> 12.68172485 | Z21: =IF('CGS yields'!$A22<>0,('CGS yields'!Z$8-'CGS yields'!$A22)/365.25," ") -> 13.09514031 | AA21: =IF('CGS yields'!$A22<>0,('CGS yields'!AA$8-'CGS yields'!$A22)/365.25," ") -> 14.0971937 | AB21: =IF('CGS yields'!$A22<>0,('CGS yields'!AB$8-'CGS yields'!$A22)/365.25," ") -> 15.09650924 | AC21: =IF('CGS yields'!$A22<>0,('CGS yields'!AC$8-'CGS yields'!$A22)/365.25," ") -> 16.09582478 | AD21: =IF('CGS yields'!$A22<>0,('CGS yields'!AD$8-'CGS yields'!$A22)/365.25," ") -> 17.09514031 | AE21: =IF('CGS yields'!$A22<>0,('CGS yields'!AE$8-'CGS yields'!$A22)/365.25," ") -> 17.68104038 | AF21: =IF('CGS yields'!$A22<>0,('CGS yields'!AF$8-'CGS yields'!$A22)/365.25," ") -> 18.17932923 | AG21: =IF('CGS yields'!$A22<>0,('CGS yields'!AG$8-'CGS yields'!$A22)/365.25," ") -> 18.68309377 | AH21: =IF('CGS yields'!$A22<>0,('CGS yields'!AH$8-'CGS yields'!$A22)/365.25," ") -> 19.09650924 | AI21: =IF('CGS yields'!$A22<>0,('CGS yields'!AI$8-'CGS yields'!$A22)/365.25," ") -> 19.68240931 | AJ21: =IF('CGS yields'!$A22<>0,('CGS yields'!AJ$8-'CGS yields'!$A22)/365.25," ") -> 23.09650924 | AK21: =IF('CGS yields'!$A22<>0,('CGS yields'!AK$8-'CGS yields'!$A22)/365.25," ") -> 25.26214921 | AL21: =IF('CGS yields'!$A22<>0,('CGS yields'!AL$8-'CGS yields'!$A22)/365.25," ") -> 27.09650924 | AM21: =IF('CGS yields'!$A22<>0,('CGS yields'!AM$8-'CGS yields'!$A22)/365.25," ") -> 29.26214921 | AN21: =IF('CGS yields'!$A22<>0,('CGS yields'!AN$8-'CGS yields'!$A22)/365.25," ") -> 37.01026694
A22: ='CGS yields'!A23 -> 2010-03-18 | B22: =VLOOKUP(A22,'CGS yields'!$A$10:$B$2709,2,FALSE) -> 14 | C22: =IF('CGS yields'!$A23<>0,('CGS yields'!C$8-'CGS yields'!$A23)/365.25," ") -> 0.4106776181 | D22: =IF('CGS yields'!$A23<>0,('CGS yields'!D$8-'CGS yields'!$A23)/365.25," ") -> 1.242984257 | E22: =IF('CGS yields'!$A23<>0,('CGS yields'!E$8-'CGS yields'!$A23)/365.25," ") -> 2.078028747 | F22: =IF('CGS yields'!$A23<>0,('CGS yields'!F$8-'CGS yields'!$A23)/365.25," ") -> 2.663928816 | G22: =IF('CGS yields'!$A23<>0,('CGS yields'!G$8-'CGS yields'!$A23)/365.25," ") -> 3.159479808 | H22: =IF('CGS yields'!$A23<>0,('CGS yields'!H$8-'CGS yields'!$A23)/365.25," ") -> 3.745379877 | I22: =IF('CGS yields'!$A23<>0,('CGS yields'!I$8-'CGS yields'!$A23)/365.25," ") -> 4.24366872 | J22: =IF('CGS yields'!$A23<>0,('CGS yields'!J$8-'CGS yields'!$A23)/365.25," ") -> 4.594113621 | K22: =IF('CGS yields'!$A23<>0,('CGS yields'!K$8-'CGS yields'!$A23)/365.25," ") -> 5.075975359 | L22: =IF('CGS yields'!$A23<>0,('CGS yields'!L$8-'CGS yields'!$A23)/365.25," ") -> 5.593429158 | M22: =IF('CGS yields'!$A23<>0,('CGS yields'!M$8-'CGS yields'!$A23)/365.25," ") -> 6.245037645 | N22: =IF('CGS yields'!$A23<>0,('CGS yields'!N$8-'CGS yields'!$A23)/365.25," ") -> 6.915811088 | O22: =IF('CGS yields'!$A23<>0,('CGS yields'!O$8-'CGS yields'!$A23)/365.25," ") -> 7.342915811 | P22: =IF('CGS yields'!$A23<>0,('CGS yields'!P$8-'CGS yields'!$A23)/365.25," ") -> 7.846680356 | Q22: =IF('CGS yields'!$A23<>0,('CGS yields'!Q$8-'CGS yields'!$A23)/365.25," ") -> 8.594113621 | R22: =IF('CGS yields'!$A23<>0,('CGS yields'!R$8-'CGS yields'!$A23)/365.25," ") -> 8.991101985 | S22: =IF('CGS yields'!$A23<>0,('CGS yields'!S$8-'CGS yields'!$A23)/365.25," ") -> 9.593429158 | T22: =IF('CGS yields'!$A23<>0,('CGS yields'!T$8-'CGS yields'!$A23)/365.25," ") -> 10.07802875 | U22: =IF('CGS yields'!$A23<>0,('CGS yields'!U$8-'CGS yields'!$A23)/365.25," ") -> 10.68035592 | V22: =IF('CGS yields'!$A23<>0,('CGS yields'!V$8-'CGS yields'!$A23)/365.25," ") -> 11.15947981 | W22: =IF('CGS yields'!$A23<>0,('CGS yields'!W$8-'CGS yields'!$A23)/365.25," ") -> 11.76180698 | X22: =IF('CGS yields'!$A23<>0,('CGS yields'!X$8-'CGS yields'!$A23)/365.25," ") -> 12.32580424 | Y22: =IF('CGS yields'!$A23<>0,('CGS yields'!Y$8-'CGS yields'!$A23)/365.25," ") -> 12.678987 | Z22: =IF('CGS yields'!$A23<>0,('CGS yields'!Z$8-'CGS yields'!$A23)/365.25," ") -> 13.09240246 | AA22: =IF('CGS yields'!$A23<>0,('CGS yields'!AA$8-'CGS yields'!$A23)/365.25," ") -> 14.09445585 | AB22: =IF('CGS yields'!$A23<>0,('CGS yields'!AB$8-'CGS yields'!$A23)/365.25," ") -> 15.09377139 | AC22: =IF('CGS yields'!$A23<>0,('CGS yields'!AC$8-'CGS yields'!$A23)/365.25," ") -> 16.09308693 | AD22: =IF('CGS yields'!$A23<>0,('CGS yields'!AD$8-'CGS yields'!$A23)/365.25," ") -> 17.09240246 | AE22: =IF('CGS yields'!$A23<>0,('CGS yields'!AE$8-'CGS yields'!$A23)/365.25," ") -> 17.67830253 | AF22: =IF('CGS yields'!$A23<>0,('CGS yields'!AF$8-'CGS yields'!$A23)/365.25," ") -> 18.17659138 | AG22: =IF('CGS yields'!$A23<>0,('CGS yields'!AG$8-'CGS yields'!$A23)/365.25," ") -> 18.68035592 | AH22: =IF('CGS yields'!$A23<>0,('CGS yields'!AH$8-'CGS yields'!$A23)/365.25," ") -> 19.09377139 | AI22: =IF('CGS yields'!$A23<>0,('CGS yields'!AI$8-'CGS yields'!$A23)/365.25," ") -> 19.67967146 | AJ22: =IF('CGS yields'!$A23<>0,('CGS yields'!AJ$8-'CGS yields'!$A23)/365.25," ") -> 23.09377139 | AK22: =IF('CGS yields'!$A23<>0,('CGS yields'!AK$8-'CGS yields'!$A23)/365.25," ") -> 25.25941136 | AL22: =IF('CGS yields'!$A23<>0,('CGS yields'!AL$8-'CGS yields'!$A23)/365.25," ") -> 27.09377139 | AM22: =IF('CGS yields'!$A23<>0,('CGS yields'!AM$8-'CGS yields'!$A23)/365.25," ") -> 29.25941136 | AN22: =IF('CGS yields'!$A23<>0,('CGS yields'!AN$8-'CGS yields'!$A23)/365.25," ") -> 37.00752909
A23: ='CGS yields'!A24 -> 2010-03-19 | B23: =VLOOKUP(A23,'CGS yields'!$A$10:$B$2709,2,FALSE) -> 15 | C23: =IF('CGS yields'!$A24<>0,('CGS yields'!C$8-'CGS yields'!$A24)/365.25," ") -> 0.4079397673 | D23: =IF('CGS yields'!$A24<>0,('CGS yields'!D$8-'CGS yields'!$A24)/365.25," ") -> 1.240246407 | E23: =IF('CGS yields'!$A24<>0,('CGS yields'!E$8-'CGS yields'!$A24)/365.25," ") -> 2.075290897 | F23: =IF('CGS yields'!$A24<>0,('CGS yields'!F$8-'CGS yields'!$A24)/365.25," ") -> 2.661190965 | G23: =IF('CGS yields'!$A24<>0,('CGS yields'!G$8-'CGS yields'!$A24)/365.25," ") -> 3.156741958 | H23: =IF('CGS yields'!$A24<>0,('CGS yields'!H$8-'CGS yields'!$A24)/365.25," ") -> 3.742642026 | I23: =IF('CGS yields'!$A24<>0,('CGS yields'!I$8-'CGS yields'!$A24)/365.25," ") -> 4.240930869 | J23: =IF('CGS yields'!$A24<>0,('CGS yields'!J$8-'CGS yields'!$A24)/365.25," ") -> 4.59137577 | K23: =IF('CGS yields'!$A24<>0,('CGS yields'!K$8-'CGS yields'!$A24)/365.25," ") -> 5.073237509 | L23: =IF('CGS yields'!$A24<>0,('CGS yields'!L$8-'CGS yields'!$A24)/365.25," ") -> 5.590691307 | M23: =IF('CGS yields'!$A24<>0,('CGS yields'!M$8-'CGS yields'!$A24)/365.25," ") -> 6.242299795 | N23: =IF('CGS yields'!$A24<>0,('CGS yields'!N$8-'CGS yields'!$A24)/365.25," ") -> 6.913073238 | O23: =IF('CGS yields'!$A24<>0,('CGS yields'!O$8-'CGS yields'!$A24)/365.25," ") -> 7.34017796 | P23: =IF('CGS yields'!$A24<>0,('CGS yields'!P$8-'CGS yields'!$A24)/365.25," ") -> 7.843942505 | Q23: =IF('CGS yields'!$A24<>0,('CGS yields'!Q$8-'CGS yields'!$A24)/365.25," ") -> 8.59137577 | R23: =IF('CGS yields'!$A24<>0,('CGS yields'!R$8-'CGS yields'!$A24)/365.25," ") -> 8.988364134 | S23: =IF('CGS yields'!$A24<>0,('CGS yields'!S$8-'CGS yields'!$A24)/365.25," ") -> 9.590691307 | T23: =IF('CGS yields'!$A24<>0,('CGS yields'!T$8-'CGS yields'!$A24)/365.25," ") -> 10.0752909 | U23: =IF('CGS yields'!$A24<>0,('CGS yields'!U$8-'CGS yields'!$A24)/365.25," ") -> 10.67761807 | V23: =IF('CGS yields'!$A24<>0,('CGS yields'!V$8-'CGS yields'!$A24)/365.25," ") -> 11.15674196 | W23: =IF('CGS yields'!$A24<>0,('CGS yields'!W$8-'CGS yields'!$A24)/365.25," ") -> 11.75906913 | X23: =IF('CGS yields'!$A24<>0,('CGS yields'!X$8-'CGS yields'!$A24)/365.25," ") -> 12.32306639 | Y23: =IF('CGS yields'!$A24<>0,('CGS yields'!Y$8-'CGS yields'!$A24)/365.25," ") -> 12.67624914 | Z23: =IF('CGS yields'!$A24<>0,('CGS yields'!Z$8-'CGS yields'!$A24)/365.25," ") -> 13.08966461 | AA23: =IF('CGS yields'!$A24<>0,('CGS yields'!AA$8-'CGS yields'!$A24)/365.25," ") -> 14.091718 | AB23: =IF('CGS yields'!$A24<>0,('CGS yields'!AB$8-'CGS yields'!$A24)/365.25," ") -> 15.09103354 | AC23: =IF('CGS yields'!$A24<>0,('CGS yields'!AC$8-'CGS yields'!$A24)/365.25," ") -> 16.09034908 | AD23: =IF('CGS yields'!$A24<>0,('CGS yields'!AD$8-'CGS yields'!$A24)/365.25," ") -> 17.08966461 | AE23: =IF('CGS yields'!$A24<>0,('CGS yields'!AE$8-'CGS yields'!$A24)/365.25," ") -> 17.67556468 | AF23: =IF('CGS yields'!$A24<>0,('CGS yields'!AF$8-'CGS yields'!$A24)/365.25," ") -> 18.17385352 | AG23: =IF('CGS yields'!$A24<>0,('CGS yields'!AG$8-'CGS yields'!$A24)/365.25," ") -> 18.67761807 | AH23: =IF('CGS yields'!$A24<>0,('CGS yields'!AH$8-'CGS yields'!$A24)/365.25," ") -> 19.09103354 | AI23: =IF('CGS yields'!$A24<>0,('CGS yields'!AI$8-'CGS yields'!$A24)/365.25," ") -> 19.67693361 | AJ23: =IF('CGS yields'!$A24<>0,('CGS yields'!AJ$8-'CGS yields'!$A24)/365.25," ") -> 23.09103354 | AK23: =IF('CGS yields'!$A24<>0,('CGS yields'!AK$8-'CGS yields'!$A24)/365.25," ") -> 25.25667351 | AL23: =IF('CGS yields'!$A24<>0,('CGS yields'!AL$8-'CGS yields'!$A24)/365.25," ") -> 27.09103354 | AM23: =IF('CGS yields'!$A24<>0,('CGS yields'!AM$8-'CGS yields'!$A24)/365.25," ") -> 29.25667351 | AN23: =IF('CGS yields'!$A24<>0,('CGS yields'!AN$8-'CGS yields'!$A24)/365.25," ") -> 37.00479124
A24: ='CGS yields'!A25 -> 2010-03-22 | B24: =VLOOKUP(A24,'CGS yields'!$A$10:$B$2709,2,FALSE) -> 16 | C24: =IF('CGS yields'!$A25<>0,('CGS yields'!C$8-'CGS yields'!$A25)/365.25," ") -> 0.3997262149 | D24: =IF('CGS yields'!$A25<>0,('CGS yields'!D$8-'CGS yields'!$A25)/365.25," ") -> 1.232032854 | E24: =IF('CGS yields'!$A25<>0,('CGS yields'!E$8-'CGS yields'!$A25)/365.25," ") -> 2.067077344 | F24: =IF('CGS yields'!$A25<>0,('CGS yields'!F$8-'CGS yields'!$A25)/365.25," ") -> 2.652977413 | G24: =IF('CGS yields'!$A25<>0,('CGS yields'!G$8-'CGS yields'!$A25)/365.25," ") -> 3.148528405 | H24: =IF('CGS yields'!$A25<>0,('CGS yields'!H$8-'CGS yields'!$A25)/365.25," ") -> 3.734428474 | I24: =IF('CGS yields'!$A25<>0,('CGS yields'!I$8-'CGS yields'!$A25)/365.25," ") -> 4.232717317 | J24: =IF('CGS yields'!$A25<>0,('CGS yields'!J$8-'CGS yields'!$A25)/365.25," ") -> 4.583162218 | K24: =IF('CGS yields'!$A25<>0,('CGS yields'!K$8-'CGS yields'!$A25)/365.25," ") -> 5.065023956 | L24: =IF('CGS yields'!$A25<>0,('CGS yields'!L$8-'CGS yields'!$A25)/365.25," ") -> 5.582477755 | M24: =IF('CGS yields'!$A25<>0,('CGS yields'!M$8-'CGS yields'!$A25)/365.25," ") -> 6.234086242 | N24: =IF('CGS yields'!$A25<>0,('CGS yields'!N$8-'CGS yields'!$A25)/365.25," ") -> 6.904859685 | O24: =IF('CGS yields'!$A25<>0,('CGS yields'!O$8-'CGS yields'!$A25)/365.25," ") -> 7.331964408 | P24: =IF('CGS yields'!$A25<>0,('CGS yields'!P$8-'CGS yields'!$A25)/365.25," ") -> 7.835728953 | Q24: =IF('CGS yields'!$A25<>0,('CGS yields'!Q$8-'CGS yields'!$A25)/365.25," ") -> 8.583162218 | R24: =IF('CGS yields'!$A25<>0,('CGS yields'!R$8-'CGS yields'!$A25)/365.25," ") -> 8.980150582 | S24: =IF('CGS yields'!$A25<>0,('CGS yields'!S$8-'CGS yields'!$A25)/365.25," ") -> 9.582477755 | T24: =IF('CGS yields'!$A25<>0,('CGS yields'!T$8-'CGS yields'!$A25)/365.25," ") -> 10.06707734 | U24: =IF('CGS yields'!$A25<>0,('CGS yields'!U$8-'CGS yields'!$A25)/365.25," ") -> 10.66940452 | V24: =IF('CGS yields'!$A25<>0,('CGS yields'!V$8-'CGS yields'!$A25)/365.25," ") -> 11.14852841 | W24: =IF('CGS yields'!$A25<>0,('CGS yields'!W$8-'CGS yields'!$A25)/365.25," ") -> 11.75085558 | X24: =IF('CGS yields'!$A25<>0,('CGS yields'!X$8-'CGS yields'!$A25)/365.25," ") -> 12.31485284 | Y24: =IF('CGS yields'!$A25<>0,('CGS yields'!Y$8-'CGS yields'!$A25)/365.25," ") -> 12.66803559 | Z24: =IF('CGS yields'!$A25<>0,('CGS yields'!Z$8-'CGS yields'!$A25)/365.25," ") -> 13.08145106 | AA24: =IF('CGS yields'!$A25<>0,('CGS yields'!AA$8-'CGS yields'!$A25)/365.25," ") -> 14.08350445 | AB24: =IF('CGS yields'!$A25<>0,('CGS yields'!AB$8-'CGS yields'!$A25)/365.25," ") -> 15.08281999 | AC24: =IF('CGS yields'!$A25<>0,('CGS yields'!AC$8-'CGS yields'!$A25)/365.25," ") -> 16.08213552 | AD24: =IF('CGS yields'!$A25<>0,('CGS yields'!AD$8-'CGS yields'!$A25)/365.25," ") -> 17.08145106 | AE24: =IF('CGS yields'!$A25<>0,('CGS yields'!AE$8-'CGS yields'!$A25)/365.25," ") -> 17.66735113 | AF24: =IF('CGS yields'!$A25<>0,('CGS yields'!AF$8-'CGS yields'!$A25)/365.25," ") -> 18.16563997 | AG24: =IF('CGS yields'!$A25<>0,('CGS yields'!AG$8-'CGS yields'!$A25)/365.25," ") -> 18.66940452 | AH24: =IF('CGS yields'!$A25<>0,('CGS yields'!AH$8-'CGS yields'!$A25)/365.25," ") -> 19.08281999 | AI24: =IF('CGS yields'!$A25<>0,('CGS yields'!AI$8-'CGS yields'!$A25)/365.25," ") -> 19.66872005 | AJ24: =IF('CGS yields'!$A25<>0,('CGS yields'!AJ$8-'CGS yields'!$A25)/365.25," ") -> 23.08281999 | AK24: =IF('CGS yields'!$A25<>0,('CGS yields'!AK$8-'CGS yields'!$A25)/365.25," ") -> 25.24845996 | AL24: =IF('CGS yields'!$A25<>0,('CGS yields'!AL$8-'CGS yields'!$A25)/365.25," ") -> 27.08281999 | AM24: =IF('CGS yields'!$A25<>0,('CGS yields'!AM$8-'CGS yields'!$A25)/365.25," ") -> 29.24845996 | AN24: =IF('CGS yields'!$A25<>0,('CGS yields'!AN$8-'CGS yields'!$A25)/365.25," ") -> 36.99657769
A25: ='CGS yields'!A26 -> 2010-03-23 | B25: =VLOOKUP(A25,'CGS yields'!$A$10:$B$2709,2,FALSE) -> 17 | C25: =IF('CGS yields'!$A26<>0,('CGS yields'!C$8-'CGS yields'!$A26)/365.25," ") -> 0.3969883641 | D25: =IF('CGS yields'!$A26<>0,('CGS yields'!D$8-'CGS yields'!$A26)/365.25," ") -> 1.229295003 | E25: =IF('CGS yields'!$A26<>0,('CGS yields'!E$8-'CGS yields'!$A26)/365.25," ") -> 2.064339493 | F25: =IF('CGS yields'!$A26<>0,('CGS yields'!F$8-'CGS yields'!$A26)/365.25," ") -> 2.650239562 | G25: =IF('CGS yields'!$A26<>0,('CGS yields'!G$8-'CGS yields'!$A26)/365.25," ") -> 3.145790554 | H25: =IF('CGS yields'!$A26<>0,('CGS yields'!H$8-'CGS yields'!$A26)/365.25," ") -> 3.731690623 | I25: =IF('CGS yields'!$A26<>0,('CGS yields'!I$8-'CGS yields'!$A26)/365.25," ") -> 4.229979466 | J25: =IF('CGS yields'!$A26<>0,('CGS yields'!J$8-'CGS yields'!$A26)/365.25," ") -> 4.580424367 | K25: =IF('CGS yields'!$A26<>0,('CGS yields'!K$8-'CGS yields'!$A26)/365.25," ") -> 5.062286105 | L25: =IF('CGS yields'!$A26<>0,('CGS yields'!L$8-'CGS yields'!$A26)/365.25," ") -> 5.579739904 | M25: =IF('CGS yields'!$A26<>0,('CGS yields'!M$8-'CGS yields'!$A26)/365.25," ") -> 6.231348392 | N25: =IF('CGS yields'!$A26<>0,('CGS yields'!N$8-'CGS yields'!$A26)/365.25," ") -> 6.902121834 | O25: =IF('CGS yields'!$A26<>0,('CGS yields'!O$8-'CGS yields'!$A26)/365.25," ") -> 7.329226557 | P25: =IF('CGS yields'!$A26<>0,('CGS yields'!P$8-'CGS yields'!$A26)/365.25," ") -> 7.832991102 | Q25: =IF('CGS yields'!$A26<>0,('CGS yields'!Q$8-'CGS yields'!$A26)/365.25," ") -> 8.580424367 | R25: =IF('CGS yields'!$A26<>0,('CGS yields'!R$8-'CGS yields'!$A26)/365.25," ") -> 8.977412731 | S25: =IF('CGS yields'!$A26<>0,('CGS yields'!S$8-'CGS yields'!$A26)/365.25," ") -> 9.579739904 | T25: =IF('CGS yields'!$A26<>0,('CGS yields'!T$8-'CGS yields'!$A26)/365.25," ") -> 10.06433949 | U25: =IF('CGS yields'!$A26<>0,('CGS yields'!U$8-'CGS yields'!$A26)/365.25," ") -> 10.66666667 | V25: =IF('CGS yields'!$A26<>0,('CGS yields'!V$8-'CGS yields'!$A26)/365.25," ") -> 11.14579055 | W25: =IF('CGS yields'!$A26<>0,('CGS yields'!W$8-'CGS yields'!$A26)/365.25," ") -> 11.74811773 | X25: =IF('CGS yields'!$A26<>0,('CGS yields'!X$8-'CGS yields'!$A26)/365.25," ") -> 12.31211499 | Y25: =IF('CGS yields'!$A26<>0,('CGS yields'!Y$8-'CGS yields'!$A26)/365.25," ") -> 12.66529774 | Z25: =IF('CGS yields'!$A26<>0,('CGS yields'!Z$8-'CGS yields'!$A26)/365.25," ") -> 13.07871321 | AA25: =IF('CGS yields'!$A26<>0,('CGS yields'!AA$8-'CGS yields'!$A26)/365.25," ") -> 14.0807666 | AB25: =IF('CGS yields'!$A26<>0,('CGS yields'!AB$8-'CGS yields'!$A26)/365.25," ") -> 15.08008214 | AC25: =IF('CGS yields'!$A26<>0,('CGS yields'!AC$8-'CGS yields'!$A26)/365.25," ") -> 16.07939767 | AD25: =IF('CGS yields'!$A26<>0,('CGS yields'!AD$8-'CGS yields'!$A26)/365.25," ") -> 17.07871321 | AE25: =IF('CGS yields'!$A26<>0,('CGS yields'!AE$8-'CGS yields'!$A26)/365.25," ") -> 17.66461328 | AF25: =IF('CGS yields'!$A26<>0,('CGS yields'!AF$8-'CGS yields'!$A26)/365.25," ") -> 18.16290212 | AG25: =IF('CGS yields'!$A26<>0,('CGS yields'!AG$8-'CGS yields'!$A26)/365.25," ") -> 18.66666667 | AH25: =IF('CGS yields'!$A26<>0,('CGS yields'!AH$8-'CGS yields'!$A26)/365.25," ") -> 19.08008214 | AI25: =IF('CGS yields'!$A26<>0,('CGS yields'!AI$8-'CGS yields'!$A26)/365.25," ") -> 19.6659822 | AJ25: =IF('CGS yields'!$A26<>0,('CGS yields'!AJ$8-'CGS yields'!$A26)/365.25," ") -> 23.08008214 | AK25: =IF('CGS yields'!$A26<>0,('CGS yields'!AK$8-'CGS yields'!$A26)/365.25," ") -> 25.24572211 | AL25: =IF('CGS yields'!$A26<>0,('CGS yields'!AL$8-'CGS yields'!$A26)/365.25," ") -> 27.08008214 | AM25: =IF('CGS yields'!$A26<>0,('CGS yields'!AM$8-'CGS yields'!$A26)/365.25," ") -> 29.24572211 | AN25: =IF('CGS yields'!$A26<>0,('CGS yields'!AN$8-'CGS yields'!$A26)/365.25," ") -> 36.99383984
A26: ='CGS yields'!A27 -> 2010-03-24 | B26: =VLOOKUP(A26,'CGS yields'!$A$10:$B$2709,2,FALSE) -> 18 | C26: =IF('CGS yields'!$A27<>0,('CGS yields'!C$8-'CGS yields'!$A27)/365.25," ") -> 0.3942505133 | D26: =IF('CGS yields'!$A27<>0,('CGS yields'!D$8-'CGS yields'!$A27)/365.25," ") -> 1.226557153 | E26: =IF('CGS yields'!$A27<>0,('CGS yields'!E$8-'CGS yields'!$A27)/365.25," ") -> 2.061601643 | F26: =IF('CGS yields'!$A27<>0,('CGS yields'!F$8-'CGS yields'!$A27)/365.25," ") -> 2.647501711 | G26: =IF('CGS yields'!$A27<>0,('CGS yields'!G$8-'CGS yields'!$A27)/365.25," ") -> 3.143052704 | H26: =IF('CGS yields'!$A27<>0,('CGS yields'!H$8-'CGS yields'!$A27)/365.25," ") -> 3.728952772 | I26: =IF('CGS yields'!$A27<>0,('CGS yields'!I$8-'CGS yields'!$A27)/365.25," ") -> 4.227241615 | J26: =IF('CGS yields'!$A27<>0,('CGS yields'!J$8-'CGS yields'!$A27)/365.25," ") -> 4.577686516 | K26: =IF('CGS yields'!$A27<>0,('CGS yields'!K$8-'CGS yields'!$A27)/365.25," ") -> 5.059548255 | L26: =IF('CGS yields'!$A27<>0,('CGS yields'!L$8-'CGS yields'!$A27)/365.25," ") -> 5.577002053 | M26: =IF('CGS yields'!$A27<>0,('CGS yields'!M$8-'CGS yields'!$A27)/365.25," ") -> 6.228610541 | N26: =IF('CGS yields'!$A27<>0,('CGS yields'!N$8-'CGS yields'!$A27)/365.25," ") -> 6.899383984 | O26: =IF('CGS yields'!$A27<>0,('CGS yields'!O$8-'CGS yields'!$A27)/365.25," ") -> 7.326488706 | P26: =IF('CGS yields'!$A27<>0,('CGS yields'!P$8-'CGS yields'!$A27)/365.25," ") -> 7.830253251 | Q26: =IF('CGS yields'!$A27<>0,('CGS yields'!Q$8-'CGS yields'!$A27)/365.25," ") -> 8.577686516 | R26: =IF('CGS yields'!$A27<>0,('CGS yields'!R$8-'CGS yields'!$A27)/365.25," ") -> 8.97467488 | S26: =IF('CGS yields'!$A27<>0,('CGS yields'!S$8-'CGS yields'!$A27)/365.25," ") -> 9.577002053 | T26: =IF('CGS yields'!$A27<>0,('CGS yields'!T$8-'CGS yields'!$A27)/365.25," ") -> 10.06160164 | U26: =IF('CGS yields'!$A27<>0,('CGS yields'!U$8-'CGS yields'!$A27)/365.25," ") -> 10.66392882 | V26: =IF('CGS yields'!$A27<>0,('CGS yields'!V$8-'CGS yields'!$A27)/365.25," ") -> 11.1430527 | W26: =IF('CGS yields'!$A27<>0,('CGS yields'!W$8-'CGS yields'!$A27)/365.25," ") -> 11.74537988 | X26: =IF('CGS yields'!$A27<>0,('CGS yields'!X$8-'CGS yields'!$A27)/365.25," ") -> 12.30937714 | Y26: =IF('CGS yields'!$A27<>0,('CGS yields'!Y$8-'CGS yields'!$A27)/365.25," ") -> 12.66255989 | Z26: =IF('CGS yields'!$A27<>0,('CGS yields'!Z$8-'CGS yields'!$A27)/365.25," ") -> 13.07597536 | AA26: =IF('CGS yields'!$A27<>0,('CGS yields'!AA$8-'CGS yields'!$A27)/365.25," ") -> 14.07802875 | AB26: =IF('CGS yields'!$A27<>0,('CGS yields'!AB$8-'CGS yields'!$A27)/365.25," ") -> 15.07734428 | AC26: =IF('CGS yields'!$A27<>0,('CGS yields'!AC$8-'CGS yields'!$A27)/365.25," ") -> 16.07665982 | AD26: =IF('CGS yields'!$A27<>0,('CGS yields'!AD$8-'CGS yields'!$A27)/365.25," ") -> 17.07597536 | AE26: =IF('CGS yields'!$A27<>0,('CGS yields'!AE$8-'CGS yields'!$A27)/365.25," ") -> 17.66187543 | AF26: =IF('CGS yields'!$A27<>0,('CGS yields'!AF$8-'CGS yields'!$A27)/365.25," ") -> 18.16016427 | AG26: =IF('CGS yields'!$A27<>0,('CGS yields'!AG$8-'CGS yields'!$A27)/365.25," ") -> 18.66392882 | AH26: =IF('CGS yields'!$A27<>0,('CGS yields'!AH$8-'CGS yields'!$A27)/365.25," ") -> 19.07734428 | AI26: =IF('CGS yields'!$A27<>0,('CGS yields'!AI$8-'CGS yields'!$A27)/365.25," ") -> 19.66324435 | AJ26: =IF('CGS yields'!$A27<>0,('CGS yields'!AJ$8-'CGS yields'!$A27)/365.25," ") -> 23.07734428 | AK26: =IF('CGS yields'!$A27<>0,('CGS yields'!AK$8-'CGS yields'!$A27)/365.25," ") -> 25.24298426 | AL26: =IF('CGS yields'!$A27<>0,('CGS yields'!AL$8-'CGS yields'!$A27)/365.25," ") -> 27.07734428 | AM26: =IF('CGS yields'!$A27<>0,('CGS yields'!AM$8-'CGS yields'!$A27)/365.25," ") -> 29.24298426 | AN26: =IF('CGS yields'!$A27<>0,('CGS yields'!AN$8-'CGS yields'!$A27)/365.25," ") -> 36.99110198
A27: ='CGS yields'!A28 -> 2010-03-25 | B27: =VLOOKUP(A27,'CGS yields'!$A$10:$B$2709,2,FALSE) -> 19 | C27: =IF('CGS yields'!$A28<>0,('CGS yields'!C$8-'CGS yields'!$A28)/365.25," ") -> 0.3915126626 | D27: =IF('CGS yields'!$A28<>0,('CGS yields'!D$8-'CGS yields'!$A28)/365.25," ") -> 1.223819302 | E27: =IF('CGS yields'!$A28<>0,('CGS yields'!E$8-'CGS yields'!$A28)/365.25," ") -> 2.058863792 | F27: =IF('CGS yields'!$A28<>0,('CGS yields'!F$8-'CGS yields'!$A28)/365.25," ") -> 2.64476386 | G27: =IF('CGS yields'!$A28<>0,('CGS yields'!G$8-'CGS yields'!$A28)/365.25," ") -> 3.140314853 | H27: =IF('CGS yields'!$A28<>0,('CGS yields'!H$8-'CGS yields'!$A28)/365.25," ") -> 3.726214921 | I27: =IF('CGS yields'!$A28<>0,('CGS yields'!I$8-'CGS yields'!$A28)/365.25," ") -> 4.224503765 | J27: =IF('CGS yields'!$A28<>0,('CGS yields'!J$8-'CGS yields'!$A28)/365.25," ") -> 4.574948665 | K27: =IF('CGS yields'!$A28<>0,('CGS yields'!K$8-'CGS yields'!$A28)/365.25," ") -> 5.056810404 | L27: =IF('CGS yields'!$A28<>0,('CGS yields'!L$8-'CGS yields'!$A28)/365.25," ") -> 5.574264203 | M27: =IF('CGS yields'!$A28<>0,('CGS yields'!M$8-'CGS yields'!$A28)/365.25," ") -> 6.22587269 | N27: =IF('CGS yields'!$A28<>0,('CGS yields'!N$8-'CGS yields'!$A28)/365.25," ") -> 6.896646133 | O27: =IF('CGS yields'!$A28<>0,('CGS yields'!O$8-'CGS yields'!$A28)/365.25," ") -> 7.323750856 | P27: =IF('CGS yields'!$A28<>0,('CGS yields'!P$8-'CGS yields'!$A28)/365.25," ") -> 7.8275154 | Q27: =IF('CGS yields'!$A28<>0,('CGS yields'!Q$8-'CGS yields'!$A28)/365.25," ") -> 8.574948665 | R27: =IF('CGS yields'!$A28<>0,('CGS yields'!R$8-'CGS yields'!$A28)/365.25," ") -> 8.971937029 | S27: =IF('CGS yields'!$A28<>0,('CGS yields'!S$8-'CGS yields'!$A28)/365.25," ") -> 9.574264203 | T27: =IF('CGS yields'!$A28<>0,('CGS yields'!T$8-'CGS yields'!$A28)/365.25," ") -> 10.05886379 | U27: =IF('CGS yields'!$A28<>0,('CGS yields'!U$8-'CGS yields'!$A28)/365.25," ") -> 10.66119097 | V27: =IF('CGS yields'!$A28<>0,('CGS yields'!V$8-'CGS yields'!$A28)/365.25," ") -> 11.14031485 | W27: =IF('CGS yields'!$A28<>0,('CGS yields'!W$8-'CGS yields'!$A28)/365.25," ") -> 11.74264203 | X27: =IF('CGS yields'!$A28<>0,('CGS yields'!X$8-'CGS yields'!$A28)/365.25," ") -> 12.30663929 | Y27: =IF('CGS yields'!$A28<>0,('CGS yields'!Y$8-'CGS yields'!$A28)/365.25," ") -> 12.65982204 | Z27: =IF('CGS yields'!$A28<>0,('CGS yields'!Z$8-'CGS yields'!$A28)/365.25," ") -> 13.07323751 | AA27: =IF('CGS yields'!$A28<>0,('CGS yields'!AA$8-'CGS yields'!$A28)/365.25," ") -> 14.0752909 | AB27: =IF('CGS yields'!$A28<>0,('CGS yields'!AB$8-'CGS yields'!$A28)/365.25," ") -> 15.07460643 | AC27: =IF('CGS yields'!$A28<>0,('CGS yields'!AC$8-'CGS yields'!$A28)/365.25," ") -> 16.07392197 | AD27: =IF('CGS yields'!$A28<>0,('CGS yields'!AD$8-'CGS yields'!$A28)/365.25," ") -> 17.07323751 | AE27: =IF('CGS yields'!$A28<>0,('CGS yields'!AE$8-'CGS yields'!$A28)/365.25," ") -> 17.65913758 | AF27: =IF('CGS yields'!$A28<>0,('CGS yields'!AF$8-'CGS yields'!$A28)/365.25," ") -> 18.15742642 | AG27: =IF('CGS yields'!$A28<>0,('CGS yields'!AG$8-'CGS yields'!$A28)/365.25," ") -> 18.66119097 | AH27: =IF('CGS yields'!$A28<>0,('CGS yields'!AH$8-'CGS yields'!$A28)/365.25," ") -> 19.07460643 | AI27: =IF('CGS yields'!$A28<>0,('CGS yields'!AI$8-'CGS yields'!$A28)/365.25," ") -> 19.6605065 | AJ27: =IF('CGS yields'!$A28<>0,('CGS yields'!AJ$8-'CGS yields'!$A28)/365.25," ") -> 23.07460643 | AK27: =IF('CGS yields'!$A28<>0,('CGS yields'!AK$8-'CGS yields'!$A28)/365.25," ") -> 25.24024641 | AL27: =IF('CGS yields'!$A28<>0,('CGS yields'!AL$8-'CGS yields'!$A28)/365.25," ") -> 27.07460643 | AM27: =IF('CGS yields'!$A28<>0,('CGS yields'!AM$8-'CGS yields'!$A28)/365.25," ") -> 29.24024641 | AN27: =IF('CGS yields'!$A28<>0,('CGS yields'!AN$8-'CGS yields'!$A28)/365.25," ") -> 36.98836413
A28: ='CGS yields'!A29 -> 2010-03-26 | B28: =VLOOKUP(A28,'CGS yields'!$A$10:$B$2709,2,FALSE) -> 20 | C28: =IF('CGS yields'!$A29<>0,('CGS yields'!C$8-'CGS yields'!$A29)/365.25," ") -> 0.3887748118 | D28: =IF('CGS yields'!$A29<>0,('CGS yields'!D$8-'CGS yields'!$A29)/365.25," ") -> 1.221081451 | E28: =IF('CGS yields'!$A29<>0,('CGS yields'!E$8-'CGS yields'!$A29)/365.25," ") -> 2.056125941 | F28: =IF('CGS yields'!$A29<>0,('CGS yields'!F$8-'CGS yields'!$A29)/365.25," ") -> 2.64202601 | G28: =IF('CGS yields'!$A29<>0,('CGS yields'!G$8-'CGS yields'!$A29)/365.25," ") -> 3.137577002 | H28: =IF('CGS yields'!$A29<>0,('CGS yields'!H$8-'CGS yields'!$A29)/365.25," ") -> 3.72347707 | I28: =IF('CGS yields'!$A29<>0,('CGS yields'!I$8-'CGS yields'!$A29)/365.25," ") -> 4.221765914 | J28: =IF('CGS yields'!$A29<>0,('CGS yields'!J$8-'CGS yields'!$A29)/365.25," ") -> 4.572210815 | K28: =IF('CGS yields'!$A29<>0,('CGS yields'!K$8-'CGS yields'!$A29)/365.25," ") -> 5.054072553 | L28: =IF('CGS yields'!$A29<>0,('CGS yields'!L$8-'CGS yields'!$A29)/365.25," ") -> 5.571526352 | M28: =IF('CGS yields'!$A29<>0,('CGS yields'!M$8-'CGS yields'!$A29)/365.25," ") -> 6.223134839 | N28: =IF('CGS yields'!$A29<>0,('CGS yields'!N$8-'CGS yields'!$A29)/365.25," ") -> 6.893908282 | O28: =IF('CGS yields'!$A29<>0,('CGS yields'!O$8-'CGS yields'!$A29)/365.25," ") -> 7.321013005 | P28: =IF('CGS yields'!$A29<>0,('CGS yields'!P$8-'CGS yields'!$A29)/365.25," ") -> 7.82477755 | Q28: =IF('CGS yields'!$A29<>0,('CGS yields'!Q$8-'CGS yields'!$A29)/365.25," ") -> 8.572210815 | R28: =IF('CGS yields'!$A29<>0,('CGS yields'!R$8-'CGS yields'!$A29)/365.25," ") -> 8.969199179 | S28: =IF('CGS yields'!$A29<>0,('CGS yields'!S$8-'CGS yields'!$A29)/365.25," ") -> 9.571526352 | T28: =IF('CGS yields'!$A29<>0,('CGS yields'!T$8-'CGS yields'!$A29)/365.25," ") -> 10.05612594 | U28: =IF('CGS yields'!$A29<>0,('CGS yields'!U$8-'CGS yields'!$A29)/365.25," ") -> 10.65845311 | V28: =IF('CGS yields'!$A29<>0,('CGS yields'!V$8-'CGS yields'!$A29)/365.25," ") -> 11.137577 | W28: =IF('CGS yields'!$A29<>0,('CGS yields'!W$8-'CGS yields'!$A29)/365.25," ") -> 11.73990418 | X28: =IF('CGS yields'!$A29<>0,('CGS yields'!X$8-'CGS yields'!$A29)/365.25," ") -> 12.30390144 | Y28: =IF('CGS yields'!$A29<>0,('CGS yields'!Y$8-'CGS yields'!$A29)/365.25," ") -> 12.65708419 | Z28: =IF('CGS yields'!$A29<>0,('CGS yields'!Z$8-'CGS yields'!$A29)/365.25," ") -> 13.07049966 | AA28: =IF('CGS yields'!$A29<>0,('CGS yields'!AA$8-'CGS yields'!$A29)/365.25," ") -> 14.07255305 | AB28: =IF('CGS yields'!$A29<>0,('CGS yields'!AB$8-'CGS yields'!$A29)/365.25," ") -> 15.07186858 | AC28: =IF('CGS yields'!$A29<>0,('CGS yields'!AC$8-'CGS yields'!$A29)/365.25," ") -> 16.07118412 | AD28: =IF('CGS yields'!$A29<>0,('CGS yields'!AD$8-'CGS yields'!$A29)/365.25," ") -> 17.07049966 | AE28: =IF('CGS yields'!$A29<>0,('CGS yields'!AE$8-'CGS yields'!$A29)/365.25," ") -> 17.65639973 | AF28: =IF('CGS yields'!$A29<>0,('CGS yields'!AF$8-'CGS yields'!$A29)/365.25," ") -> 18.15468857 | AG28: =IF('CGS yields'!$A29<>0,('CGS yields'!AG$8-'CGS yields'!$A29)/365.25," ") -> 18.65845311 | AH28: =IF('CGS yields'!$A29<>0,('CGS yields'!AH$8-'CGS yields'!$A29)/365.25," ") -> 19.07186858 | AI28: =IF('CGS yields'!$A29<>0,('CGS yields'!AI$8-'CGS yields'!$A29)/365.25," ") -> 19.65776865 | AJ28: =IF('CGS yields'!$A29<>0,('CGS yields'!AJ$8-'CGS yields'!$A29)/365.25," ") -> 23.07186858 | AK28: =IF('CGS yields'!$A29<>0,('CGS yields'!AK$8-'CGS yields'!$A29)/365.25," ") -> 25.23750856 | AL28: =IF('CGS yields'!$A29<>0,('CGS yields'!AL$8-'CGS yields'!$A29)/365.25," ") -> 27.07186858 | AM28: =IF('CGS yields'!$A29<>0,('CGS yields'!AM$8-'CGS yields'!$A29)/365.25," ") -> 29.23750856 | AN28: =IF('CGS yields'!$A29<>0,('CGS yields'!AN$8-'CGS yields'!$A29)/365.25," ") -> 36.98562628
A29: ='CGS yields'!A30 -> 2010-03-29 | B29: =VLOOKUP(A29,'CGS yields'!$A$10:$B$2709,2,FALSE) -> 21 | C29: =IF('CGS yields'!$A30<>0,('CGS yields'!C$8-'CGS yields'!$A30)/365.25," ") -> 0.3805612594 | D29: =IF('CGS yields'!$A30<>0,('CGS yields'!D$8-'CGS yields'!$A30)/365.25," ") -> 1.212867899 | E29: =IF('CGS yields'!$A30<>0,('CGS yields'!E$8-'CGS yields'!$A30)/365.25," ") -> 2.047912389 | F29: =IF('CGS yields'!$A30<>0,('CGS yields'!F$8-'CGS yields'!$A30)/365.25," ") -> 2.633812457 | G29: =IF('CGS yields'!$A30<>0,('CGS yields'!G$8-'CGS yields'!$A30)/365.25," ") -> 3.12936345 | H29: =IF('CGS yields'!$A30<>0,('CGS yields'!H$8-'CGS yields'!$A30)/365.25," ") -> 3.715263518 | I29: =IF('CGS yields'!$A30<>0,('CGS yields'!I$8-'CGS yields'!$A30)/365.25," ") -> 4.213552361 | J29: =IF('CGS yields'!$A30<>0,('CGS yields'!J$8-'CGS yields'!$A30)/365.25," ") -> 4.563997262 | K29: =IF('CGS yields'!$A30<>0,('CGS yields'!K$8-'CGS yields'!$A30)/365.25," ") -> 5.045859001 | L29: =IF('CGS yields'!$A30<>0,('CGS yields'!L$8-'CGS yields'!$A30)/365.25," ") -> 5.563312799 | M29: =IF('CGS yields'!$A30<>0,('CGS yields'!M$8-'CGS yields'!$A30)/365.25," ") -> 6.214921287 | N29: =IF('CGS yields'!$A30<>0,('CGS yields'!N$8-'CGS yields'!$A30)/365.25," ") -> 6.88569473 | O29: =IF('CGS yields'!$A30<>0,('CGS yields'!O$8-'CGS yields'!$A30)/365.25," ") -> 7.312799452 | P29: =IF('CGS yields'!$A30<>0,('CGS yields'!P$8-'CGS yields'!$A30)/365.25," ") -> 7.816563997 | Q29: =IF('CGS yields'!$A30<>0,('CGS yields'!Q$8-'CGS yields'!$A30)/365.25," ") -> 8.563997262 | R29: =IF('CGS yields'!$A30<>0,('CGS yields'!R$8-'CGS yields'!$A30)/365.25," ") -> 8.960985626 | S29: =IF('CGS yields'!$A30<>0,('CGS yields'!S$8-'CGS yields'!$A30)/365.25," ") -> 9.563312799 | T29: =IF('CGS yields'!$A30<>0,('CGS yields'!T$8-'CGS yields'!$A30)/365.25," ") -> 10.04791239 | U29: =IF('CGS yields'!$A30<>0,('CGS yields'!U$8-'CGS yields'!$A30)/365.25," ") -> 10.65023956 | V29: =IF('CGS yields'!$A30<>0,('CGS yields'!V$8-'CGS yields'!$A30)/365.25," ") -> 11.12936345 | W29: =IF('CGS yields'!$A30<>0,('CGS yields'!W$8-'CGS yields'!$A30)/365.25," ") -> 11.73169062 | X29: =IF('CGS yields'!$A30<>0,('CGS yields'!X$8-'CGS yields'!$A30)/365.25," ") -> 12.29568789 | Y29: =IF('CGS yields'!$A30<>0,('CGS yields'!Y$8-'CGS yields'!$A30)/365.25," ") -> 12.64887064 | Z29: =IF('CGS yields'!$A30<>0,('CGS yields'!Z$8-'CGS yields'!$A30)/365.25," ") -> 13.06228611 | AA29: =IF('CGS yields'!$A30<>0,('CGS yields'!AA$8-'CGS yields'!$A30)/365.25," ") -> 14.06433949 | AB29: =IF('CGS yields'!$A30<>0,('CGS yields'!AB$8-'CGS yields'!$A30)/365.25," ") -> 15.06365503 | AC29: =IF('CGS yields'!$A30<>0,('CGS yields'!AC$8-'CGS yields'!$A30)/365.25," ") -> 16.06297057 | AD29: =IF('CGS yields'!$A30<>0,('CGS yields'!AD$8-'CGS yields'!$A30)/365.25," ") -> 17.06228611 | AE29: =IF('CGS yields'!$A30<>0,('CGS yields'!AE$8-'CGS yields'!$A30)/365.25," ") -> 17.64818617 | AF29: =IF('CGS yields'!$A30<>0,('CGS yields'!AF$8-'CGS yields'!$A30)/365.25," ") -> 18.14647502 | AG29: =IF('CGS yields'!$A30<>0,('CGS yields'!AG$8-'CGS yields'!$A30)/365.25," ") -> 18.65023956 | AH29: =IF('CGS yields'!$A30<>0,('CGS yields'!AH$8-'CGS yields'!$A30)/365.25," ") -> 19.06365503 | AI29: =IF('CGS yields'!$A30<>0,('CGS yields'!AI$8-'CGS yields'!$A30)/365.25," ") -> 19.6495551 | AJ29: =IF('CGS yields'!$A30<>0,('CGS yields'!AJ$8-'CGS yields'!$A30)/365.25," ") -> 23.06365503 | AK29: =IF('CGS yields'!$A30<>0,('CGS yields'!AK$8-'CGS yields'!$A30)/365.25," ") -> 25.229295 | AL29: =IF('CGS yields'!$A30<>0,('CGS yields'!AL$8-'CGS yields'!$A30)/365.25," ") -> 27.06365503 | AM29: =IF('CGS yields'!$A30<>0,('CGS yields'!AM$8-'CGS yields'!$A30)/365.25," ") -> 29.229295 | AN29: =IF('CGS yields'!$A30<>0,('CGS yields'!AN$8-'CGS yields'!$A30)/365.25," ") -> 36.97741273
A30: ='CGS yields'!A31 -> 2010-03-30 | B30: =VLOOKUP(A30,'CGS yields'!$A$10:$B$2709,2,FALSE) -> 22 | C30: =IF('CGS yields'!$A31<>0,('CGS yields'!C$8-'CGS yields'!$A31)/365.25," ") -> 0.3778234086 | D30: =IF('CGS yields'!$A31<>0,('CGS yields'!D$8-'CGS yields'!$A31)/365.25," ") -> 1.210130048 | E30: =IF('CGS yields'!$A31<>0,('CGS yields'!E$8-'CGS yields'!$A31)/365.25," ") -> 2.045174538 | F30: =IF('CGS yields'!$A31<>0,('CGS yields'!F$8-'CGS yields'!$A31)/365.25," ") -> 2.631074606 | G30: =IF('CGS yields'!$A31<>0,('CGS yields'!G$8-'CGS yields'!$A31)/365.25," ") -> 3.126625599 | H30: =IF('CGS yields'!$A31<>0,('CGS yields'!H$8-'CGS yields'!$A31)/365.25," ") -> 3.712525667 | I30: =IF('CGS yields'!$A31<>0,('CGS yields'!I$8-'CGS yields'!$A31)/365.25," ") -> 4.210814511 | J30: =IF('CGS yields'!$A31<>0,('CGS yields'!J$8-'CGS yields'!$A31)/365.25," ") -> 4.561259411 | K30: =IF('CGS yields'!$A31<>0,('CGS yields'!K$8-'CGS yields'!$A31)/365.25," ") -> 5.04312115 | L30: =IF('CGS yields'!$A31<>0,('CGS yields'!L$8-'CGS yields'!$A31)/365.25," ") -> 5.560574949 | M30: =IF('CGS yields'!$A31<>0,('CGS yields'!M$8-'CGS yields'!$A31)/365.25," ") -> 6.212183436 | N30: =IF('CGS yields'!$A31<>0,('CGS yields'!N$8-'CGS yields'!$A31)/365.25," ") -> 6.882956879 | O30: =IF('CGS yields'!$A31<>0,('CGS yields'!O$8-'CGS yields'!$A31)/365.25," ") -> 7.310061602 | P30: =IF('CGS yields'!$A31<>0,('CGS yields'!P$8-'CGS yields'!$A31)/365.25," ") -> 7.813826146 | Q30: =IF('CGS yields'!$A31<>0,('CGS yields'!Q$8-'CGS yields'!$A31)/365.25," ") -> 8.561259411 | R30: =IF('CGS yields'!$A31<>0,('CGS yields'!R$8-'CGS yields'!$A31)/365.25," ") -> 8.958247775 | S30: =IF('CGS yields'!$A31<>0,('CGS yields'!S$8-'CGS yields'!$A31)/365.25," ") -> 9.560574949 | T30: =IF('CGS yields'!$A31<>0,('CGS yields'!T$8-'CGS yields'!$A31)/365.25," ") -> 10.04517454 | U30: =IF('CGS yields'!$A31<>0,('CGS yields'!U$8-'CGS yields'!$A31)/365.25," ") -> 10.64750171 | V30: =IF('CGS yields'!$A31<>0,('CGS yields'!V$8-'CGS yields'!$A31)/365.25," ") -> 11.1266256 | W30: =IF('CGS yields'!$A31<>0,('CGS yields'!W$8-'CGS yields'!$A31)/365.25," ") -> 11.72895277 | X30: =IF('CGS yields'!$A31<>0,('CGS yields'!X$8-'CGS yields'!$A31)/365.25," ") -> 12.29295003 | Y30: =IF('CGS yields'!$A31<>0,('CGS yields'!Y$8-'CGS yields'!$A31)/365.25," ") -> 12.64613279 | Z30: =IF('CGS yields'!$A31<>0,('CGS yields'!Z$8-'CGS yields'!$A31)/365.25," ") -> 13.05954825 | AA30: =IF('CGS yields'!$A31<>0,('CGS yields'!AA$8-'CGS yields'!$A31)/365.25," ") -> 14.06160164 | AB30: =IF('CGS yields'!$A31<>0,('CGS yields'!AB$8-'CGS yields'!$A31)/365.25," ") -> 15.06091718 | AC30: =IF('CGS yields'!$A31<>0,('CGS yields'!AC$8-'CGS yields'!$A31)/365.25," ") -> 16.06023272 | AD30: =IF('CGS yields'!$A31<>0,('CGS yields'!AD$8-'CGS yields'!$A31)/365.25," ") -> 17.05954825 | AE30: =IF('CGS yields'!$A31<>0,('CGS yields'!AE$8-'CGS yields'!$A31)/365.25," ") -> 17.64544832 | AF30: =IF('CGS yields'!$A31<>0,('CGS yields'!AF$8-'CGS yields'!$A31)/365.25," ") -> 18.14373717 | AG30: =IF('CGS yields'!$A31<>0,('CGS yields'!AG$8-'CGS yields'!$A31)/365.25," ") -> 18.64750171 | AH30: =IF('CGS yields'!$A31<>0,('CGS yields'!AH$8-'CGS yields'!$A31)/365.25," ") -> 19.06091718 | AI30: =IF('CGS yields'!$A31<>0,('CGS yields'!AI$8-'CGS yields'!$A31)/365.25," ") -> 19.64681725 | AJ30: =IF('CGS yields'!$A31<>0,('CGS yields'!AJ$8-'CGS yields'!$A31)/365.25," ") -> 23.06091718 | AK30: =IF('CGS yields'!$A31<>0,('CGS yields'!AK$8-'CGS yields'!$A31)/365.25," ") -> 25.22655715 | AL30: =IF('CGS yields'!$A31<>0,('CGS yields'!AL$8-'CGS yields'!$A31)/365.25," ") -> 27.06091718 | AM30: =IF('CGS yields'!$A31<>0,('CGS yields'!AM$8-'CGS yields'!$A31)/365.25," ") -> 29.22655715 | AN30: =IF('CGS yields'!$A31<>0,('CGS yields'!AN$8-'CGS yields'!$A31)/365.25," ") -> 36.97467488
A31: ='CGS yields'!A32 -> 2010-03-31 | B31: =VLOOKUP(A31,'CGS yields'!$A$10:$B$2709,2,FALSE) -> 23 | C31: =IF('CGS yields'!$A32<>0,('CGS yields'!C$8-'CGS yields'!$A32)/365.25," ") -> 0.3750855578 | D31: =IF('CGS yields'!$A32<>0,('CGS yields'!D$8-'CGS yields'!$A32)/365.25," ") -> 1.207392197 | E31: =IF('CGS yields'!$A32<>0,('CGS yields'!E$8-'CGS yields'!$A32)/365.25," ") -> 2.042436687 | F31: =IF('CGS yields'!$A32<>0,('CGS yields'!F$8-'CGS yields'!$A32)/365.25," ") -> 2.628336756 | G31: =IF('CGS yields'!$A32<>0,('CGS yields'!G$8-'CGS yields'!$A32)/365.25," ") -> 3.123887748 | H31: =IF('CGS yields'!$A32<>0,('CGS yields'!H$8-'CGS yields'!$A32)/365.25," ") -> 3.709787817 | I31: =IF('CGS yields'!$A32<>0,('CGS yields'!I$8-'CGS yields'!$A32)/365.25," ") -> 4.20807666 | J31: =IF('CGS yields'!$A32<>0,('CGS yields'!J$8-'CGS yields'!$A32)/365.25," ") -> 4.558521561 | K31: =IF('CGS yields'!$A32<>0,('CGS yields'!K$8-'CGS yields'!$A32)/365.25," ") -> 5.040383299 | L31: =IF('CGS yields'!$A32<>0,('CGS yields'!L$8-'CGS yields'!$A32)/365.25," ") -> 5.557837098 | M31: =IF('CGS yields'!$A32<>0,('CGS yields'!M$8-'CGS yields'!$A32)/365.25," ") -> 6.209445585 | N31: =IF('CGS yields'!$A32<>0,('CGS yields'!N$8-'CGS yields'!$A32)/365.25," ") -> 6.880219028 | O31: =IF('CGS yields'!$A32<>0,('CGS yields'!O$8-'CGS yields'!$A32)/365.25," ") -> 7.307323751 | P31: =IF('CGS yields'!$A32<>0,('CGS yields'!P$8-'CGS yields'!$A32)/365.25," ") -> 7.811088296 | Q31: =IF('CGS yields'!$A32<>0,('CGS yields'!Q$8-'CGS yields'!$A32)/365.25," ") -> 8.558521561 | R31: =IF('CGS yields'!$A32<>0,('CGS yields'!R$8-'CGS yields'!$A32)/365.25," ") -> 8.955509925 | S31: =IF('CGS yields'!$A32<>0,('CGS yields'!S$8-'CGS yields'!$A32)/365.25," ") -> 9.557837098 | T31: =IF('CGS yields'!$A32<>0,('CGS yields'!T$8-'CGS yields'!$A32)/365.25," ") -> 10.04243669 | U31: =IF('CGS yields'!$A32<>0,('CGS yields'!U$8-'CGS yields'!$A32)/365.25," ") -> 10.64476386 | V31: =IF('CGS yields'!$A32<>0,('CGS yields'!V$8-'CGS yields'!$A32)/365.25," ") -> 11.12388775 | W31: =IF('CGS yields'!$A32<>0,('CGS yields'!W$8-'CGS yields'!$A32)/365.25," ") -> 11.72621492 | X31: =IF('CGS yields'!$A32<>0,('CGS yields'!X$8-'CGS yields'!$A32)/365.25," ") -> 12.29021218 | Y31: =IF('CGS yields'!$A32<>0,('CGS yields'!Y$8-'CGS yields'!$A32)/365.25," ") -> 12.64339493 | Z31: =IF('CGS yields'!$A32<>0,('CGS yields'!Z$8-'CGS yields'!$A32)/365.25," ") -> 13.0568104 | AA31: =IF('CGS yields'!$A32<>0,('CGS yields'!AA$8-'CGS yields'!$A32)/365.25," ") -> 14.05886379 | AB31: =IF('CGS yields'!$A32<>0,('CGS yields'!AB$8-'CGS yields'!$A32)/365.25," ") -> 15.05817933 | AC31: =IF('CGS yields'!$A32<>0,('CGS yields'!AC$8-'CGS yields'!$A32)/365.25," ") -> 16.05749487 | AD31: =IF('CGS yields'!$A32<>0,('CGS yields'!AD$8-'CGS yields'!$A32)/365.25," ") -> 17.0568104 | AE31: =IF('CGS yields'!$A32<>0,('CGS yields'!AE$8-'CGS yields'!$A32)/365.25," ") -> 17.64271047 | AF31: =IF('CGS yields'!$A32<>0,('CGS yields'!AF$8-'CGS yields'!$A32)/365.25," ") -> 18.14099932 | AG31: =IF('CGS yields'!$A32<>0,('CGS yields'!AG$8-'CGS yields'!$A32)/365.25," ") -> 18.64476386 | AH31: =IF('CGS yields'!$A32<>0,('CGS yields'!AH$8-'CGS yields'!$A32)/365.25," ") -> 19.05817933 | AI31: =IF('CGS yields'!$A32<>0,('CGS yields'!AI$8-'CGS yields'!$A32)/365.25," ") -> 19.6440794 | AJ31: =IF('CGS yields'!$A32<>0,('CGS yields'!AJ$8-'CGS yields'!$A32)/365.25," ") -> 23.05817933 | AK31: =IF('CGS yields'!$A32<>0,('CGS yields'!AK$8-'CGS yields'!$A32)/365.25," ") -> 25.2238193 | AL31: =IF('CGS yields'!$A32<>0,('CGS yields'!AL$8-'CGS yields'!$A32)/365.25," ") -> 27.05817933 | AM31: =IF('CGS yields'!$A32<>0,('CGS yields'!AM$8-'CGS yields'!$A32)/365.25," ") -> 29.2238193 | AN31: =IF('CGS yields'!$A32<>0,('CGS yields'!AN$8-'CGS yields'!$A32)/365.25," ") -> 36.97193703
A32: ='CGS yields'!A33 -> 2010-04-01 | B32: =VLOOKUP(A32,'CGS yields'!$A$10:$B$2709,2,FALSE) -> 24 | C32: =IF('CGS yields'!$A33<>0,('CGS yields'!C$8-'CGS yields'!$A33)/365.25," ") -> 0.372347707 | D32: =IF('CGS yields'!$A33<>0,('CGS yields'!D$8-'CGS yields'!$A33)/365.25," ") -> 1.204654346 | E32: =IF('CGS yields'!$A33<>0,('CGS yields'!E$8-'CGS yields'!$A33)/365.25," ") -> 2.039698836 | F32: =IF('CGS yields'!$A33<>0,('CGS yields'!F$8-'CGS yields'!$A33)/365.25," ") -> 2.625598905 | G32: =IF('CGS yields'!$A33<>0,('CGS yields'!G$8-'CGS yields'!$A33)/365.25," ") -> 3.121149897 | H32: =IF('CGS yields'!$A33<>0,('CGS yields'!H$8-'CGS yields'!$A33)/365.25," ") -> 3.707049966 | I32: =IF('CGS yields'!$A33<>0,('CGS yields'!I$8-'CGS yields'!$A33)/365.25," ") -> 4.205338809 | J32: =IF('CGS yields'!$A33<>0,('CGS yields'!J$8-'CGS yields'!$A33)/365.25," ") -> 4.55578371 | K32: =IF('CGS yields'!$A33<>0,('CGS yields'!K$8-'CGS yields'!$A33)/365.25," ") -> 5.037645448 | L32: =IF('CGS yields'!$A33<>0,('CGS yields'!L$8-'CGS yields'!$A33)/365.25," ") -> 5.555099247 | M32: =IF('CGS yields'!$A33<>0,('CGS yields'!M$8-'CGS yields'!$A33)/365.25," ") -> 6.206707734 | N32: =IF('CGS yields'!$A33<>0,('CGS yields'!N$8-'CGS yields'!$A33)/365.25," ") -> 6.877481177 | O32: =IF('CGS yields'!$A33<>0,('CGS yields'!O$8-'CGS yields'!$A33)/365.25," ") -> 7.3045859 | P32: =IF('CGS yields'!$A33<>0,('CGS yields'!P$8-'CGS yields'!$A33)/365.25," ") -> 7.808350445 | Q32: =IF('CGS yields'!$A33<>0,('CGS yields'!Q$8-'CGS yields'!$A33)/365.25," ") -> 8.55578371 | R32: =IF('CGS yields'!$A33<>0,('CGS yields'!R$8-'CGS yields'!$A33)/365.25," ") -> 8.952772074 | S32: =IF('CGS yields'!$A33<>0,('CGS yields'!S$8-'CGS yields'!$A33)/365.25," ") -> 9.555099247 | T32: =IF('CGS yields'!$A33<>0,('CGS yields'!T$8-'CGS yields'!$A33)/365.25," ") -> 10.03969884 | U32: =IF('CGS yields'!$A33<>0,('CGS yields'!U$8-'CGS yields'!$A33)/365.25," ") -> 10.64202601 | V32: =IF('CGS yields'!$A33<>0,('CGS yields'!V$8-'CGS yields'!$A33)/365.25," ") -> 11.1211499 | W32: =IF('CGS yields'!$A33<>0,('CGS yields'!W$8-'CGS yields'!$A33)/365.25," ") -> 11.72347707 | X32: =IF('CGS yields'!$A33<>0,('CGS yields'!X$8-'CGS yields'!$A33)/365.25," ") -> 12.28747433 | Y32: =IF('CGS yields'!$A33<>0,('CGS yields'!Y$8-'CGS yields'!$A33)/365.25," ") -> 12.64065708 | Z32: =IF('CGS yields'!$A33<>0,('CGS yields'!Z$8-'CGS yields'!$A33)/365.25," ") -> 13.05407255 | AA32: =IF('CGS yields'!$A33<>0,('CGS yields'!AA$8-'CGS yields'!$A33)/365.25," ") -> 14.05612594 | AB32: =IF('CGS yields'!$A33<>0,('CGS yields'!AB$8-'CGS yields'!$A33)/365.25," ") -> 15.05544148 | AC32: =IF('CGS yields'!$A33<>0,('CGS yields'!AC$8-'CGS yields'!$A33)/365.25," ") -> 16.05475702 | AD32: =IF('CGS yields'!$A33<>0,('CGS yields'!AD$8-'CGS yields'!$A33)/365.25," ") -> 17.05407255 | AE32: =IF('CGS yields'!$A33<>0,('CGS yields'!AE$8-'CGS yields'!$A33)/365.25," ") -> 17.63997262 | AF32: =IF('CGS yields'!$A33<>0,('CGS yields'!AF$8-'CGS yields'!$A33)/365.25," ") -> 18.13826146 | AG32: =IF('CGS yields'!$A33<>0,('CGS yields'!AG$8-'CGS yields'!$A33)/365.25," ") -> 18.64202601 | AH32: =IF('CGS yields'!$A33<>0,('CGS yields'!AH$8-'CGS yields'!$A33)/365.25," ") -> 19.05544148 | AI32: =IF('CGS yields'!$A33<>0,('CGS yields'!AI$8-'CGS yields'!$A33)/365.25," ") -> 19.64134155 | AJ32: =IF('CGS yields'!$A33<>0,('CGS yields'!AJ$8-'CGS yields'!$A33)/365.25," ") -> 23.05544148 | AK32: =IF('CGS yields'!$A33<>0,('CGS yields'!AK$8-'CGS yields'!$A33)/365.25," ") -> 25.22108145 | AL32: =IF('CGS yields'!$A33<>0,('CGS yields'!AL$8-'CGS yields'!$A33)/365.25," ") -> 27.05544148 | AM32: =IF('CGS yields'!$A33<>0,('CGS yields'!AM$8-'CGS yields'!$A33)/365.25," ") -> 29.22108145 | AN32: =IF('CGS yields'!$A33<>0,('CGS yields'!AN$8-'CGS yields'!$A33)/365.25," ") -> 36.96919918
A33: ='CGS yields'!A34 -> 2010-04-06 | B33: =VLOOKUP(A33,'CGS yields'!$A$10:$B$2709,2,FALSE) -> 25 | C33: =IF('CGS yields'!$A34<>0,('CGS yields'!C$8-'CGS yields'!$A34)/365.25," ") -> 0.3586584531 | D33: =IF('CGS yields'!$A34<>0,('CGS yields'!D$8-'CGS yields'!$A34)/365.25," ") -> 1.190965092 | E33: =IF('CGS yields'!$A34<>0,('CGS yields'!E$8-'CGS yields'!$A34)/365.25," ") -> 2.026009582 | F33: =IF('CGS yields'!$A34<>0,('CGS yields'!F$8-'CGS yields'!$A34)/365.25," ") -> 2.611909651 | G33: =IF('CGS yields'!$A34<>0,('CGS yields'!G$8-'CGS yields'!$A34)/365.25," ") -> 3.107460643 | H33: =IF('CGS yields'!$A34<>0,('CGS yields'!H$8-'CGS yields'!$A34)/365.25," ") -> 3.693360712 | I33: =IF('CGS yields'!$A34<>0,('CGS yields'!I$8-'CGS yields'!$A34)/365.25," ") -> 4.191649555 | J33: =IF('CGS yields'!$A34<>0,('CGS yields'!J$8-'CGS yields'!$A34)/365.25," ") -> 4.542094456 | K33: =IF('CGS yields'!$A34<>0,('CGS yields'!K$8-'CGS yields'!$A34)/365.25," ") -> 5.023956194 | L33: =IF('CGS yields'!$A34<>0,('CGS yields'!L$8-'CGS yields'!$A34)/365.25," ") -> 5.541409993 | M33: =IF('CGS yields'!$A34<>0,('CGS yields'!M$8-'CGS yields'!$A34)/365.25," ") -> 6.19301848 | N33: =IF('CGS yields'!$A34<>0,('CGS yields'!N$8-'CGS yields'!$A34)/365.25," ") -> 6.863791923 | O33: =IF('CGS yields'!$A34<>0,('CGS yields'!O$8-'CGS yields'!$A34)/365.25," ") -> 7.290896646 | P33: =IF('CGS yields'!$A34<>0,('CGS yields'!P$8-'CGS yields'!$A34)/365.25," ") -> 7.794661191 | Q33: =IF('CGS yields'!$A34<>0,('CGS yields'!Q$8-'CGS yields'!$A34)/365.25," ") -> 8.542094456 | R33: =IF('CGS yields'!$A34<>0,('CGS yields'!R$8-'CGS yields'!$A34)/365.25," ") -> 8.93908282 | S33: =IF('CGS yields'!$A34<>0,('CGS yields'!S$8-'CGS yields'!$A34)/365.25," ") -> 9.541409993 | T33: =IF('CGS yields'!$A34<>0,('CGS yields'!T$8-'CGS yields'!$A34)/365.25," ") -> 10.02600958 | U33: =IF('CGS yields'!$A34<>0,('CGS yields'!U$8-'CGS yields'!$A34)/365.25," ") -> 10.62833676 | V33: =IF('CGS yields'!$A34<>0,('CGS yields'!V$8-'CGS yields'!$A34)/365.25," ") -> 11.10746064 | W33: =IF('CGS yields'!$A34<>0,('CGS yields'!W$8-'CGS yields'!$A34)/365.25," ") -> 11.70978782 | X33: =IF('CGS yields'!$A34<>0,('CGS yields'!X$8-'CGS yields'!$A34)/365.25," ") -> 12.27378508 | Y33: =IF('CGS yields'!$A34<>0,('CGS yields'!Y$8-'CGS yields'!$A34)/365.25," ") -> 12.62696783 | Z33: =IF('CGS yields'!$A34<>0,('CGS yields'!Z$8-'CGS yields'!$A34)/365.25," ") -> 13.0403833 | AA33: =IF('CGS yields'!$A34<>0,('CGS yields'!AA$8-'CGS yields'!$A34)/365.25," ") -> 14.04243669 | AB33: =IF('CGS yields'!$A34<>0,('CGS yields'!AB$8-'CGS yields'!$A34)/365.25," ") -> 15.04175222 | AC33: =IF('CGS yields'!$A34<>0,('CGS yields'!AC$8-'CGS yields'!$A34)/365.25," ") -> 16.04106776 | AD33: =IF('CGS yields'!$A34<>0,('CGS yields'!AD$8-'CGS yields'!$A34)/365.25," ") -> 17.0403833 | AE33: =IF('CGS yields'!$A34<>0,('CGS yields'!AE$8-'CGS yields'!$A34)/365.25," ") -> 17.62628337 | AF33: =IF('CGS yields'!$A34<>0,('CGS yields'!AF$8-'CGS yields'!$A34)/365.25," ") -> 18.12457221 | AG33: =IF('CGS yields'!$A34<>0,('CGS yields'!AG$8-'CGS yields'!$A34)/365.25," ") -> 18.62833676 | AH33: =IF('CGS yields'!$A34<>0,('CGS yields'!AH$8-'CGS yields'!$A34)/365.25," ") -> 19.04175222 | AI33: =IF('CGS yields'!$A34<>0,('CGS yields'!AI$8-'CGS yields'!$A34)/365.25," ") -> 19.62765229 | AJ33: =IF('CGS yields'!$A34<>0,('CGS yields'!AJ$8-'CGS yields'!$A34)/365.25," ") -> 23.04175222 | AK33: =IF('CGS yields'!$A34<>0,('CGS yields'!AK$8-'CGS yields'!$A34)/365.25," ") -> 25.2073922 | AL33: =IF('CGS yields'!$A34<>0,('CGS yields'!AL$8-'CGS yields'!$A34)/365.25," ") -> 27.04175222 | AM33: =IF('CGS yields'!$A34<>0,('CGS yields'!AM$8-'CGS yields'!$A34)/365.25," ") -> 29.2073922 | AN33: =IF('CGS yields'!$A34<>0,('CGS yields'!AN$8-'CGS yields'!$A34)/365.25," ") -> 36.95550992
A34: ='CGS yields'!A35 -> 2010-04-07 | B34: =VLOOKUP(A34,'CGS yields'!$A$10:$B$2709,2,FALSE) -> 26 | C34: =IF('CGS yields'!$A35<>0,('CGS yields'!C$8-'CGS yields'!$A35)/365.25," ") -> 0.3559206023 | D34: =IF('CGS yields'!$A35<>0,('CGS yields'!D$8-'CGS yields'!$A35)/365.25," ") -> 1.188227242 | E34: =IF('CGS yields'!$A35<>0,('CGS yields'!E$8-'CGS yields'!$A35)/365.25," ") -> 2.023271732 | F34: =IF('CGS yields'!$A35<>0,('CGS yields'!F$8-'CGS yields'!$A35)/365.25," ") -> 2.6091718 | G34: =IF('CGS yields'!$A35<>0,('CGS yields'!G$8-'CGS yields'!$A35)/365.25," ") -> 3.104722793 | H34: =IF('CGS yields'!$A35<>0,('CGS yields'!H$8-'CGS yields'!$A35)/365.25," ") -> 3.690622861 | I34: =IF('CGS yields'!$A35<>0,('CGS yields'!I$8-'CGS yields'!$A35)/365.25," ") -> 4.188911704 | J34: =IF('CGS yields'!$A35<>0,('CGS yields'!J$8-'CGS yields'!$A35)/365.25," ") -> 4.539356605 | K34: =IF('CGS yields'!$A35<>0,('CGS yields'!K$8-'CGS yields'!$A35)/365.25," ") -> 5.021218344 | L34: =IF('CGS yields'!$A35<>0,('CGS yields'!L$8-'CGS yields'!$A35)/365.25," ") -> 5.538672142 | M34: =IF('CGS yields'!$A35<>0,('CGS yields'!M$8-'CGS yields'!$A35)/365.25," ") -> 6.19028063 | N34: =IF('CGS yields'!$A35<>0,('CGS yields'!N$8-'CGS yields'!$A35)/365.25," ") -> 6.861054073 | O34: =IF('CGS yields'!$A35<>0,('CGS yields'!O$8-'CGS yields'!$A35)/365.25," ") -> 7.288158795 | P34: =IF('CGS yields'!$A35<>0,('CGS yields'!P$8-'CGS yields'!$A35)/365.25," ") -> 7.79192334 | Q34: =IF('CGS yields'!$A35<>0,('CGS yields'!Q$8-'CGS yields'!$A35)/365.25," ") -> 8.539356605 | R34: =IF('CGS yields'!$A35<>0,('CGS yields'!R$8-'CGS yields'!$A35)/365.25," ") -> 8.936344969 | S34: =IF('CGS yields'!$A35<>0,('CGS yields'!S$8-'CGS yields'!$A35)/365.25," ") -> 9.538672142 | T34: =IF('CGS yields'!$A35<>0,('CGS yields'!T$8-'CGS yields'!$A35)/365.25," ") -> 10.02327173 | U34: =IF('CGS yields'!$A35<>0,('CGS yields'!U$8-'CGS yields'!$A35)/365.25," ") -> 10.6255989 | V34: =IF('CGS yields'!$A35<>0,('CGS yields'!V$8-'CGS yields'!$A35)/365.25," ") -> 11.10472279 | W34: =IF('CGS yields'!$A35<>0,('CGS yields'!W$8-'CGS yields'!$A35)/365.25," ") -> 11.70704997 | X34: =IF('CGS yields'!$A35<>0,('CGS yields'!X$8-'CGS yields'!$A35)/365.25," ") -> 12.27104723 | Y34: =IF('CGS yields'!$A35<>0,('CGS yields'!Y$8-'CGS yields'!$A35)/365.25," ") -> 12.62422998 | Z34: =IF('CGS yields'!$A35<>0,('CGS yields'!Z$8-'CGS yields'!$A35)/365.25," ") -> 13.03764545 | AA34: =IF('CGS yields'!$A35<>0,('CGS yields'!AA$8-'CGS yields'!$A35)/365.25," ") -> 14.03969884 | AB34: =IF('CGS yields'!$A35<>0,('CGS yields'!AB$8-'CGS yields'!$A35)/365.25," ") -> 15.03901437 | AC34: =IF('CGS yields'!$A35<>0,('CGS yields'!AC$8-'CGS yields'!$A35)/365.25," ") -> 16.03832991 | AD34: =IF('CGS yields'!$A35<>0,('CGS yields'!AD$8-'CGS yields'!$A35)/365.25," ") -> 17.03764545 | AE34: =IF('CGS yields'!$A35<>0,('CGS yields'!AE$8-'CGS yields'!$A35)/365.25," ") -> 17.62354552 | AF34: =IF('CGS yields'!$A35<>0,('CGS yields'!AF$8-'CGS yields'!$A35)/365.25," ") -> 18.12183436 | AG34: =IF('CGS yields'!$A35<>0,('CGS yields'!AG$8-'CGS yields'!$A35)/365.25," ") -> 18.6255989 | AH34: =IF('CGS yields'!$A35<>0,('CGS yields'!AH$8-'CGS yields'!$A35)/365.25," ") -> 19.03901437 | AI34: =IF('CGS yields'!$A35<>0,('CGS yields'!AI$8-'CGS yields'!$A35)/365.25," ") -> 19.62491444 | AJ34: =IF('CGS yields'!$A35<>0,('CGS yields'!AJ$8-'CGS yields'!$A35)/365.25," ") -> 23.03901437 | AK34: =IF('CGS yields'!$A35<>0,('CGS yields'!AK$8-'CGS yields'!$A35)/365.25," ") -> 25.20465435 | AL34: =IF('CGS yields'!$A35<>0,('CGS yields'!AL$8-'CGS yields'!$A35)/365.25," ") -> 27.03901437 | AM34: =IF('CGS yields'!$A35<>0,('CGS yields'!AM$8-'CGS yields'!$A35)/365.25," ") -> 29.20465435 | AN34: =IF('CGS yields'!$A35<>0,('CGS yields'!AN$8-'CGS yields'!$A35)/365.25," ") -> 36.95277207
A35: ='CGS yields'!A36 -> 2010-04-08 | B35: =VLOOKUP(A35,'CGS yields'!$A$10:$B$2709,2,FALSE) -> 27 | C35: =IF('CGS yields'!$A36<>0,('CGS yields'!C$8-'CGS yields'!$A36)/365.25," ") -> 0.3531827515 | D35: =IF('CGS yields'!$A36<>0,('CGS yields'!D$8-'CGS yields'!$A36)/365.25," ") -> 1.185489391 | E35: =IF('CGS yields'!$A36<>0,('CGS yields'!E$8-'CGS yields'!$A36)/365.25," ") -> 2.020533881 | F35: =IF('CGS yields'!$A36<>0,('CGS yields'!F$8-'CGS yields'!$A36)/365.25," ") -> 2.606433949 | G35: =IF('CGS yields'!$A36<>0,('CGS yields'!G$8-'CGS yields'!$A36)/365.25," ") -> 3.101984942 | H35: =IF('CGS yields'!$A36<>0,('CGS yields'!H$8-'CGS yields'!$A36)/365.25," ") -> 3.68788501 | I35: =IF('CGS yields'!$A36<>0,('CGS yields'!I$8-'CGS yields'!$A36)/365.25," ") -> 4.186173854 | J35: =IF('CGS yields'!$A36<>0,('CGS yields'!J$8-'CGS yields'!$A36)/365.25," ") -> 4.536618754 | K35: =IF('CGS yields'!$A36<>0,('CGS yields'!K$8-'CGS yields'!$A36)/365.25," ") -> 5.018480493 | L35: =IF('CGS yields'!$A36<>0,('CGS yields'!L$8-'CGS yields'!$A36)/365.25," ") -> 5.535934292 | M35: =IF('CGS yields'!$A36<>0,('CGS yields'!M$8-'CGS yields'!$A36)/365.25," ") -> 6.187542779 | N35: =IF('CGS yields'!$A36<>0,('CGS yields'!N$8-'CGS yields'!$A36)/365.25," ") -> 6.858316222 | O35: =IF('CGS yields'!$A36<>0,('CGS yields'!O$8-'CGS yields'!$A36)/365.25," ") -> 7.285420945 | P35: =IF('CGS yields'!$A36<>0,('CGS yields'!P$8-'CGS yields'!$A36)/365.25," ") -> 7.789185489 | Q35: =IF('CGS yields'!$A36<>0,('CGS yields'!Q$8-'CGS yields'!$A36)/365.25," ") -> 8.536618754 | R35: =IF('CGS yields'!$A36<>0,('CGS yields'!R$8-'CGS yields'!$A36)/365.25," ") -> 8.933607118 | S35: =IF('CGS yields'!$A36<>0,('CGS yields'!S$8-'CGS yields'!$A36)/365.25," ") -> 9.535934292 | T35: =IF('CGS yields'!$A36<>0,('CGS yields'!T$8-'CGS yields'!$A36)/365.25," ") -> 10.02053388 | U35: =IF('CGS yields'!$A36<>0,('CGS yields'!U$8-'CGS yields'!$A36)/365.25," ") -> 10.62286105 | V35: =IF('CGS yields'!$A36<>0,('CGS yields'!V$8-'CGS yields'!$A36)/365.25," ") -> 11.10198494 | W35: =IF('CGS yields'!$A36<>0,('CGS yields'!W$8-'CGS yields'!$A36)/365.25," ") -> 11.70431211 | X35: =IF('CGS yields'!$A36<>0,('CGS yields'!X$8-'CGS yields'!$A36)/365.25," ") -> 12.26830938 | Y35: =IF('CGS yields'!$A36<>0,('CGS yields'!Y$8-'CGS yields'!$A36)/365.25," ") -> 12.62149213 | Z35: =IF('CGS yields'!$A36<>0,('CGS yields'!Z$8-'CGS yields'!$A36)/365.25," ") -> 13.0349076 | AA35: =IF('CGS yields'!$A36<>0,('CGS yields'!AA$8-'CGS yields'!$A36)/365.25," ") -> 14.03696099 | AB35: =IF('CGS yields'!$A36<>0,('CGS yields'!AB$8-'CGS yields'!$A36)/365.25," ") -> 15.03627652 | AC35: =IF('CGS yields'!$A36<>0,('CGS yields'!AC$8-'CGS yields'!$A36)/365.25," ") -> 16.03559206 | AD35: =IF('CGS yields'!$A36<>0,('CGS yields'!AD$8-'CGS yields'!$A36)/365.25," ") -> 17.0349076 | AE35: =IF('CGS yields'!$A36<>0,('CGS yields'!AE$8-'CGS yields'!$A36)/365.25," ") -> 17.62080767 | AF35: =IF('CGS yields'!$A36<>0,('CGS yields'!AF$8-'CGS yields'!$A36)/365.25," ") -> 18.11909651 | AG35: =IF('CGS yields'!$A36<>0,('CGS yields'!AG$8-'CGS yields'!$A36)/365.25," ") -> 18.62286105 | AH35: =IF('CGS yields'!$A36<>0,('CGS yields'!AH$8-'CGS yields'!$A36)/365.25," ") -> 19.03627652 | AI35: =IF('CGS yields'!$A36<>0,('CGS yields'!AI$8-'CGS yields'!$A36)/365.25," ") -> 19.62217659 | AJ35: =IF('CGS yields'!$A36<>0,('CGS yields'!AJ$8-'CGS yields'!$A36)/365.25," ") -> 23.03627652 | AK35: =IF('CGS yields'!$A36<>0,('CGS yields'!AK$8-'CGS yields'!$A36)/365.25," ") -> 25.2019165 | AL35: =IF('CGS yields'!$A36<>0,('CGS yields'!AL$8-'CGS yields'!$A36)/365.25," ") -> 27.03627652 | AM35: =IF('CGS yields'!$A36<>0,('CGS yields'!AM$8-'CGS yields'!$A36)/365.25," ") -> 29.2019165 | AN35: =IF('CGS yields'!$A36<>0,('CGS yields'!AN$8-'CGS yields'!$A36)/365.25," ") -> 36.95003422
A36: ='CGS yields'!A37 -> 2010-04-09 | B36: =VLOOKUP(A36,'CGS yields'!$A$10:$B$2709,2,FALSE) -> 28 | C36: =IF('CGS yields'!$A37<>0,('CGS yields'!C$8-'CGS yields'!$A37)/365.25," ") -> 0.3504449008 | D36: =IF('CGS yields'!$A37<>0,('CGS yields'!D$8-'CGS yields'!$A37)/365.25," ") -> 1.18275154 | E36: =IF('CGS yields'!$A37<>0,('CGS yields'!E$8-'CGS yields'!$A37)/365.25," ") -> 2.01779603 | F36: =IF('CGS yields'!$A37<>0,('CGS yields'!F$8-'CGS yields'!$A37)/365.25," ") -> 2.603696099 | G36: =IF('CGS yields'!$A37<>0,('CGS yields'!G$8-'CGS yields'!$A37)/365.25," ") -> 3.099247091 | H36: =IF('CGS yields'!$A37<>0,('CGS yields'!H$8-'CGS yields'!$A37)/365.25," ") -> 3.685147159 | I36: =IF('CGS yields'!$A37<>0,('CGS yields'!I$8-'CGS yields'!$A37)/365.25," ") -> 4.183436003 | J36: =IF('CGS yields'!$A37<>0,('CGS yields'!J$8-'CGS yields'!$A37)/365.25," ") -> 4.533880903 | K36: =IF('CGS yields'!$A37<>0,('CGS yields'!K$8-'CGS yields'!$A37)/365.25," ") -> 5.015742642 | L36: =IF('CGS yields'!$A37<>0,('CGS yields'!L$8-'CGS yields'!$A37)/365.25," ") -> 5.533196441 | M36: =IF('CGS yields'!$A37<>0,('CGS yields'!M$8-'CGS yields'!$A37)/365.25," ") -> 6.184804928 | N36: =IF('CGS yields'!$A37<>0,('CGS yields'!N$8-'CGS yields'!$A37)/365.25," ") -> 6.855578371 | O36: =IF('CGS yields'!$A37<>0,('CGS yields'!O$8-'CGS yields'!$A37)/365.25," ") -> 7.282683094 | P36: =IF('CGS yields'!$A37<>0,('CGS yields'!P$8-'CGS yields'!$A37)/365.25," ") -> 7.786447639 | Q36: =IF('CGS yields'!$A37<>0,('CGS yields'!Q$8-'CGS yields'!$A37)/365.25," ") -> 8.533880903 | R36: =IF('CGS yields'!$A37<>0,('CGS yields'!R$8-'CGS yields'!$A37)/365.25," ") -> 8.930869268 | S36: =IF('CGS yields'!$A37<>0,('CGS yields'!S$8-'CGS yields'!$A37)/365.25," ") -> 9.533196441 | T36: =IF('CGS yields'!$A37<>0,('CGS yields'!T$8-'CGS yields'!$A37)/365.25," ") -> 10.01779603 | U36: =IF('CGS yields'!$A37<>0,('CGS yields'!U$8-'CGS yields'!$A37)/365.25," ") -> 10.6201232 | V36: =IF('CGS yields'!$A37<>0,('CGS yields'!V$8-'CGS yields'!$A37)/365.25," ") -> 11.09924709 | W36: =IF('CGS yields'!$A37<>0,('CGS yields'!W$8-'CGS yields'!$A37)/365.25," ") -> 11.70157426 | X36: =IF('CGS yields'!$A37<>0,('CGS yields'!X$8-'CGS yields'!$A37)/365.25," ") -> 12.26557153 | Y36: =IF('CGS yields'!$A37<>0,('CGS yields'!Y$8-'CGS yields'!$A37)/365.25," ") -> 12.61875428 | Z36: =IF('CGS yields'!$A37<>0,('CGS yields'!Z$8-'CGS yields'!$A37)/365.25," ") -> 13.03216975 | AA36: =IF('CGS yields'!$A37<>0,('CGS yields'!AA$8-'CGS yields'!$A37)/365.25," ") -> 14.03422313 | AB36: =IF('CGS yields'!$A37<>0,('CGS yields'!AB$8-'CGS yields'!$A37)/365.25," ") -> 15.03353867 | AC36: =IF('CGS yields'!$A37<>0,('CGS yields'!AC$8-'CGS yields'!$A37)/365.25," ") -> 16.03285421 | AD36: =IF('CGS yields'!$A37<>0,('CGS yields'!AD$8-'CGS yields'!$A37)/365.25," ") -> 17.03216975 | AE36: =IF('CGS yields'!$A37<>0,('CGS yields'!AE$8-'CGS yields'!$A37)/365.25," ") -> 17.61806982 | AF36: =IF('CGS yields'!$A37<>0,('CGS yields'!AF$8-'CGS yields'!$A37)/365.25," ") -> 18.11635866 | AG36: =IF('CGS yields'!$A37<>0,('CGS yields'!AG$8-'CGS yields'!$A37)/365.25," ") -> 18.6201232 | AH36: =IF('CGS yields'!$A37<>0,('CGS yields'!AH$8-'CGS yields'!$A37)/365.25," ") -> 19.03353867 | AI36: =IF('CGS yields'!$A37<>0,('CGS yields'!AI$8-'CGS yields'!$A37)/365.25," ") -> 19.61943874 | AJ36: =IF('CGS yields'!$A37<>0,('CGS yields'!AJ$8-'CGS yields'!$A37)/365.25," ") -> 23.03353867 | AK36: =IF('CGS yields'!$A37<>0,('CGS yields'!AK$8-'CGS yields'!$A37)/365.25," ") -> 25.19917864 | AL36: =IF('CGS yields'!$A37<>0,('CGS yields'!AL$8-'CGS yields'!$A37)/365.25," ") -> 27.03353867 | AM36: =IF('CGS yields'!$A37<>0,('CGS yields'!AM$8-'CGS yields'!$A37)/365.25," ") -> 29.19917864 | AN36: =IF('CGS yields'!$A37<>0,('CGS yields'!AN$8-'CGS yields'!$A37)/365.25," ") -> 36.94729637
A37: ='CGS yields'!A38 -> 2010-04-12 | B37: =VLOOKUP(A37,'CGS yields'!$A$10:$B$2709,2,FALSE) -> 29 | C37: =IF('CGS yields'!$A38<>0,('CGS yields'!C$8-'CGS yields'!$A38)/365.25," ") -> 0.3422313484 | D37: =IF('CGS yields'!$A38<>0,('CGS yields'!D$8-'CGS yields'!$A38)/365.25," ") -> 1.174537988 | E37: =IF('CGS yields'!$A38<>0,('CGS yields'!E$8-'CGS yields'!$A38)/365.25," ") -> 2.009582478 | F37: =IF('CGS yields'!$A38<>0,('CGS yields'!F$8-'CGS yields'!$A38)/365.25," ") -> 2.595482546 | G37: =IF('CGS yields'!$A38<>0,('CGS yields'!G$8-'CGS yields'!$A38)/365.25," ") -> 3.091033539 | H37: =IF('CGS yields'!$A38<>0,('CGS yields'!H$8-'CGS yields'!$A38)/365.25," ") -> 3.676933607 | I37: =IF('CGS yields'!$A38<>0,('CGS yields'!I$8-'CGS yields'!$A38)/365.25," ") -> 4.17522245 | J37: =IF('CGS yields'!$A38<>0,('CGS yields'!J$8-'CGS yields'!$A38)/365.25," ") -> 4.525667351 | K37: =IF('CGS yields'!$A38<>0,('CGS yields'!K$8-'CGS yields'!$A38)/365.25," ") -> 5.00752909 | L37: =IF('CGS yields'!$A38<>0,('CGS yields'!L$8-'CGS yields'!$A38)/365.25," ") -> 5.524982888 | M37: =IF('CGS yields'!$A38<>0,('CGS yields'!M$8-'CGS yields'!$A38)/365.25," ") -> 6.176591376 | N37: =IF('CGS yields'!$A38<>0,('CGS yields'!N$8-'CGS yields'!$A38)/365.25," ") -> 6.847364819 | O37: =IF('CGS yields'!$A38<>0,('CGS yields'!O$8-'CGS yields'!$A38)/365.25," ") -> 7.274469541 | P37: =IF('CGS yields'!$A38<>0,('CGS yields'!P$8-'CGS yields'!$A38)/365.25," ") -> 7.778234086 | Q37: =IF('CGS yields'!$A38<>0,('CGS yields'!Q$8-'CGS yields'!$A38)/365.25," ") -> 8.525667351 | R37: =IF('CGS yields'!$A38<>0,('CGS yields'!R$8-'CGS yields'!$A38)/365.25," ") -> 8.922655715 | S37: =IF('CGS yields'!$A38<>0,('CGS yields'!S$8-'CGS yields'!$A38)/365.25," ") -> 9.524982888 | T37: =IF('CGS yields'!$A38<>0,('CGS yields'!T$8-'CGS yields'!$A38)/365.25," ") -> 10.00958248 | U37: =IF('CGS yields'!$A38<>0,('CGS yields'!U$8-'CGS yields'!$A38)/365.25," ") -> 10.61190965 | V37: =IF('CGS yields'!$A38<>0,('CGS yields'!V$8-'CGS yields'!$A38)/365.25," ") -> 11.09103354 | W37: =IF('CGS yields'!$A38<>0,('CGS yields'!W$8-'CGS yields'!$A38)/365.25," ") -> 11.69336071 | X37: =IF('CGS yields'!$A38<>0,('CGS yields'!X$8-'CGS yields'!$A38)/365.25," ") -> 12.25735797 | Y37: =IF('CGS yields'!$A38<>0,('CGS yields'!Y$8-'CGS yields'!$A38)/365.25," ") -> 12.61054073 | Z37: =IF('CGS yields'!$A38<>0,('CGS yields'!Z$8-'CGS yields'!$A38)/365.25," ") -> 13.02395619 | AA37: =IF('CGS yields'!$A38<>0,('CGS yields'!AA$8-'CGS yields'!$A38)/365.25," ") -> 14.02600958 | AB37: =IF('CGS yields'!$A38<>0,('CGS yields'!AB$8-'CGS yields'!$A38)/365.25," ") -> 15.02532512 | AC37: =IF('CGS yields'!$A38<>0,('CGS yields'!AC$8-'CGS yields'!$A38)/365.25," ") -> 16.02464066 | AD37: =IF('CGS yields'!$A38<>0,('CGS yields'!AD$8-'CGS yields'!$A38)/365.25," ") -> 17.02395619 | AE37: =IF('CGS yields'!$A38<>0,('CGS yields'!AE$8-'CGS yields'!$A38)/365.25," ") -> 17.60985626 | AF37: =IF('CGS yields'!$A38<>0,('CGS yields'!AF$8-'CGS yields'!$A38)/365.25," ") -> 18.10814511 | AG37: =IF('CGS yields'!$A38<>0,('CGS yields'!AG$8-'CGS yields'!$A38)/365.25," ") -> 18.61190965 | AH37: =IF('CGS yields'!$A38<>0,('CGS yields'!AH$8-'CGS yields'!$A38)/365.25," ") -> 19.02532512 | AI37: =IF('CGS yields'!$A38<>0,('CGS yields'!AI$8-'CGS yields'!$A38)/365.25," ") -> 19.61122519 | AJ37: =IF('CGS yields'!$A38<>0,('CGS yields'!AJ$8-'CGS yields'!$A38)/365.25," ") -> 23.02532512 | AK37: =IF('CGS yields'!$A38<>0,('CGS yields'!AK$8-'CGS yields'!$A38)/365.25," ") -> 25.19096509 | AL37: =IF('CGS yields'!$A38<>0,('CGS yields'!AL$8-'CGS yields'!$A38)/365.25," ") -> 27.02532512 | AM37: =IF('CGS yields'!$A38<>0,('CGS yields'!AM$8-'CGS yields'!$A38)/365.25," ") -> 29.19096509 | AN37: =IF('CGS yields'!$A38<>0,('CGS yields'!AN$8-'CGS yields'!$A38)/365.25," ") -> 36.93908282
A38: ='CGS yields'!A39 -> 2010-04-13 | B38: =VLOOKUP(A38,'CGS yields'!$A$10:$B$2709,2,FALSE) -> 30 | C38: =IF('CGS yields'!$A39<>0,('CGS yields'!C$8-'CGS yields'!$A39)/365.25," ") -> 0.3394934976 | D38: =IF('CGS yields'!$A39<>0,('CGS yields'!D$8-'CGS yields'!$A39)/365.25," ") -> 1.171800137 | E38: =IF('CGS yields'!$A39<>0,('CGS yields'!E$8-'CGS yields'!$A39)/365.25," ") -> 2.006844627 | F38: =IF('CGS yields'!$A39<>0,('CGS yields'!F$8-'CGS yields'!$A39)/365.25," ") -> 2.592744695 | G38: =IF('CGS yields'!$A39<>0,('CGS yields'!G$8-'CGS yields'!$A39)/365.25," ") -> 3.088295688 | H38: =IF('CGS yields'!$A39<>0,('CGS yields'!H$8-'CGS yields'!$A39)/365.25," ") -> 3.674195756 | I38: =IF('CGS yields'!$A39<>0,('CGS yields'!I$8-'CGS yields'!$A39)/365.25," ") -> 4.1724846 | J38: =IF('CGS yields'!$A39<>0,('CGS yields'!J$8-'CGS yields'!$A39)/365.25," ") -> 4.5229295 | K38: =IF('CGS yields'!$A39<>0,('CGS yields'!K$8-'CGS yields'!$A39)/365.25," ") -> 5.004791239 | L38: =IF('CGS yields'!$A39<>0,('CGS yields'!L$8-'CGS yields'!$A39)/365.25," ") -> 5.522245038 | M38: =IF('CGS yields'!$A39<>0,('CGS yields'!M$8-'CGS yields'!$A39)/365.25," ") -> 6.173853525 | N38: =IF('CGS yields'!$A39<>0,('CGS yields'!N$8-'CGS yields'!$A39)/365.25," ") -> 6.844626968 | O38: =IF('CGS yields'!$A39<>0,('CGS yields'!O$8-'CGS yields'!$A39)/365.25," ") -> 7.271731691 | P38: =IF('CGS yields'!$A39<>0,('CGS yields'!P$8-'CGS yields'!$A39)/365.25," ") -> 7.775496235 | Q38: =IF('CGS yields'!$A39<>0,('CGS yields'!Q$8-'CGS yields'!$A39)/365.25," ") -> 8.5229295 | R38: =IF('CGS yields'!$A39<>0,('CGS yields'!R$8-'CGS yields'!$A39)/365.25," ") -> 8.919917864 | S38: =IF('CGS yields'!$A39<>0,('CGS yields'!S$8-'CGS yields'!$A39)/365.25," ") -> 9.522245038 | T38: =IF('CGS yields'!$A39<>0,('CGS yields'!T$8-'CGS yields'!$A39)/365.25," ") -> 10.00684463 | U38: =IF('CGS yields'!$A39<>0,('CGS yields'!U$8-'CGS yields'!$A39)/365.25," ") -> 10.6091718 | V38: =IF('CGS yields'!$A39<>0,('CGS yields'!V$8-'CGS yields'!$A39)/365.25," ") -> 11.08829569 | W38: =IF('CGS yields'!$A39<>0,('CGS yields'!W$8-'CGS yields'!$A39)/365.25," ") -> 11.69062286 | X38: =IF('CGS yields'!$A39<>0,('CGS yields'!X$8-'CGS yields'!$A39)/365.25," ") -> 12.25462012 | Y38: =IF('CGS yields'!$A39<>0,('CGS yields'!Y$8-'CGS yields'!$A39)/365.25," ") -> 12.60780287 | Z38: =IF('CGS yields'!$A39<>0,('CGS yields'!Z$8-'CGS yields'!$A39)/365.25," ") -> 13.02121834 | AA38: =IF('CGS yields'!$A39<>0,('CGS yields'!AA$8-'CGS yields'!$A39)/365.25," ") -> 14.02327173 | AB38: =IF('CGS yields'!$A39<>0,('CGS yields'!AB$8-'CGS yields'!$A39)/365.25," ") -> 15.02258727 | AC38: =IF('CGS yields'!$A39<>0,('CGS yields'!AC$8-'CGS yields'!$A39)/365.25," ") -> 16.02190281 | AD38: =IF('CGS yields'!$A39<>0,('CGS yields'!AD$8-'CGS yields'!$A39)/365.25," ") -> 17.02121834 | AE38: =IF('CGS yields'!$A39<>0,('CGS yields'!AE$8-'CGS yields'!$A39)/365.25," ") -> 17.60711841 | AF38: =IF('CGS yields'!$A39<>0,('CGS yields'!AF$8-'CGS yields'!$A39)/365.25," ") -> 18.10540726 | AG38: =IF('CGS yields'!$A39<>0,('CGS yields'!AG$8-'CGS yields'!$A39)/365.25," ") -> 18.6091718 | AH38: =IF('CGS yields'!$A39<>0,('CGS yields'!AH$8-'CGS yields'!$A39)/365.25," ") -> 19.02258727 | AI38: =IF('CGS yields'!$A39<>0,('CGS yields'!AI$8-'CGS yields'!$A39)/365.25," ") -> 19.60848734 | AJ38: =IF('CGS yields'!$A39<>0,('CGS yields'!AJ$8-'CGS yields'!$A39)/365.25," ") -> 23.02258727 | AK38: =IF('CGS yields'!$A39<>0,('CGS yields'!AK$8-'CGS yields'!$A39)/365.25," ") -> 25.18822724 | AL38: =IF('CGS yields'!$A39<>0,('CGS yields'!AL$8-'CGS yields'!$A39)/365.25," ") -> 27.02258727 | AM38: =IF('CGS yields'!$A39<>0,('CGS yields'!AM$8-'CGS yields'!$A39)/365.25," ") -> 29.18822724 | AN38: =IF('CGS yields'!$A39<>0,('CGS yields'!AN$8-'CGS yields'!$A39)/365.25," ") -> 36.93634497
A39: ='CGS yields'!A40 -> 2010-04-14 | B39: =VLOOKUP(A39,'CGS yields'!$A$10:$B$2709,2,FALSE) -> 31 | C39: =IF('CGS yields'!$A40<>0,('CGS yields'!C$8-'CGS yields'!$A40)/365.25," ") -> 0.3367556468 | D39: =IF('CGS yields'!$A40<>0,('CGS yields'!D$8-'CGS yields'!$A40)/365.25," ") -> 1.169062286 | E39: =IF('CGS yields'!$A40<>0,('CGS yields'!E$8-'CGS yields'!$A40)/365.25," ") -> 2.004106776 | F39: =IF('CGS yields'!$A40<>0,('CGS yields'!F$8-'CGS yields'!$A40)/365.25," ") -> 2.590006845 | G39: =IF('CGS yields'!$A40<>0,('CGS yields'!G$8-'CGS yields'!$A40)/365.25," ") -> 3.085557837 | H39: =IF('CGS yields'!$A40<>0,('CGS yields'!H$8-'CGS yields'!$A40)/365.25," ") -> 3.671457906 | I39: =IF('CGS yields'!$A40<>0,('CGS yields'!I$8-'CGS yields'!$A40)/365.25," ") -> 4.169746749 | J39: =IF('CGS yields'!$A40<>0,('CGS yields'!J$8-'CGS yields'!$A40)/365.25," ") -> 4.52019165 | K39: =IF('CGS yields'!$A40<>0,('CGS yields'!K$8-'CGS yields'!$A40)/365.25," ") -> 5.002053388 | L39: =IF('CGS yields'!$A40<>0,('CGS yields'!L$8-'CGS yields'!$A40)/365.25," ") -> 5.519507187 | M39: =IF('CGS yields'!$A40<>0,('CGS yields'!M$8-'CGS yields'!$A40)/365.25," ") -> 6.171115674 | N39: =IF('CGS yields'!$A40<>0,('CGS yields'!N$8-'CGS yields'!$A40)/365.25," ") -> 6.841889117 | O39: =IF('CGS yields'!$A40<>0,('CGS yields'!O$8-'CGS yields'!$A40)/365.25," ") -> 7.26899384 | P39: =IF('CGS yields'!$A40<>0,('CGS yields'!P$8-'CGS yields'!$A40)/365.25," ") -> 7.772758385 | Q39: =IF('CGS yields'!$A40<>0,('CGS yields'!Q$8-'CGS yields'!$A40)/365.25," ") -> 8.52019165 | R39: =IF('CGS yields'!$A40<>0,('CGS yields'!R$8-'CGS yields'!$A40)/365.25," ") -> 8.917180014 | S39: =IF('CGS yields'!$A40<>0,('CGS yields'!S$8-'CGS yields'!$A40)/365.25," ") -> 9.519507187 | T39: =IF('CGS yields'!$A40<>0,('CGS yields'!T$8-'CGS yields'!$A40)/365.25," ") -> 10.00410678 | U39: =IF('CGS yields'!$A40<>0,('CGS yields'!U$8-'CGS yields'!$A40)/365.25," ") -> 10.60643395 | V39: =IF('CGS yields'!$A40<>0,('CGS yields'!V$8-'CGS yields'!$A40)/365.25," ") -> 11.08555784 | W39: =IF('CGS yields'!$A40<>0,('CGS yields'!W$8-'CGS yields'!$A40)/365.25," ") -> 11.68788501 | X39: =IF('CGS yields'!$A40<>0,('CGS yields'!X$8-'CGS yields'!$A40)/365.25," ") -> 12.25188227 | Y39: =IF('CGS yields'!$A40<>0,('CGS yields'!Y$8-'CGS yields'!$A40)/365.25," ") -> 12.60506502 | Z39: =IF('CGS yields'!$A40<>0,('CGS yields'!Z$8-'CGS yields'!$A40)/365.25," ") -> 13.01848049 | AA39: =IF('CGS yields'!$A40<>0,('CGS yields'!AA$8-'CGS yields'!$A40)/365.25," ") -> 14.02053388 | AB39: =IF('CGS yields'!$A40<>0,('CGS yields'!AB$8-'CGS yields'!$A40)/365.25," ") -> 15.01984942 | AC39: =IF('CGS yields'!$A40<>0,('CGS yields'!AC$8-'CGS yields'!$A40)/365.25," ") -> 16.01916496 | AD39: =IF('CGS yields'!$A40<>0,('CGS yields'!AD$8-'CGS yields'!$A40)/365.25," ") -> 17.01848049 | AE39: =IF('CGS yields'!$A40<>0,('CGS yields'!AE$8-'CGS yields'!$A40)/365.25," ") -> 17.60438056 | AF39: =IF('CGS yields'!$A40<>0,('CGS yields'!AF$8-'CGS yields'!$A40)/365.25," ") -> 18.1026694 | AG39: =IF('CGS yields'!$A40<>0,('CGS yields'!AG$8-'CGS yields'!$A40)/365.25," ") -> 18.60643395 | AH39: =IF('CGS yields'!$A40<>0,('CGS yields'!AH$8-'CGS yields'!$A40)/365.25," ") -> 19.01984942 | AI39: =IF('CGS yields'!$A40<>0,('CGS yields'!AI$8-'CGS yields'!$A40)/365.25," ") -> 19.60574949 | AJ39: =IF('CGS yields'!$A40<>0,('CGS yields'!AJ$8-'CGS yields'!$A40)/365.25," ") -> 23.01984942 | AK39: =IF('CGS yields'!$A40<>0,('CGS yields'!AK$8-'CGS yields'!$A40)/365.25," ") -> 25.18548939 | AL39: =IF('CGS yields'!$A40<>0,('CGS yields'!AL$8-'CGS yields'!$A40)/365.25," ") -> 27.01984942 | AM39: =IF('CGS yields'!$A40<>0,('CGS yields'!AM$8-'CGS yields'!$A40)/365.25," ") -> 29.18548939 | AN39: =IF('CGS yields'!$A40<>0,('CGS yields'!AN$8-'CGS yields'!$A40)/365.25," ") -> 36.93360712
A40: ='CGS yields'!A41 -> 2010-04-15 | B40: =VLOOKUP(A40,'CGS yields'!$A$10:$B$2709,2,FALSE) -> 32 | C40: =IF('CGS yields'!$A41<>0,('CGS yields'!C$8-'CGS yields'!$A41)/365.25," ") -> 0.334017796 | D40: =IF('CGS yields'!$A41<>0,('CGS yields'!D$8-'CGS yields'!$A41)/365.25," ") -> 1.166324435 | E40: =IF('CGS yields'!$A41<>0,('CGS yields'!E$8-'CGS yields'!$A41)/365.25," ") -> 2.001368925 | F40: =IF('CGS yields'!$A41<>0,('CGS yields'!F$8-'CGS yields'!$A41)/365.25," ") -> 2.587268994 | G40: =IF('CGS yields'!$A41<>0,('CGS yields'!G$8-'CGS yields'!$A41)/365.25," ") -> 3.082819986 | H40: =IF('CGS yields'!$A41<>0,('CGS yields'!H$8-'CGS yields'!$A41)/365.25," ") -> 3.668720055 | I40: =IF('CGS yields'!$A41<>0,('CGS yields'!I$8-'CGS yields'!$A41)/365.25," ") -> 4.167008898 | J40: =IF('CGS yields'!$A41<>0,('CGS yields'!J$8-'CGS yields'!$A41)/365.25," ") -> 4.517453799 | K40: =IF('CGS yields'!$A41<>0,('CGS yields'!K$8-'CGS yields'!$A41)/365.25," ") -> 4.999315537 | L40: =IF('CGS yields'!$A41<>0,('CGS yields'!L$8-'CGS yields'!$A41)/365.25," ") -> 5.516769336 | M40: =IF('CGS yields'!$A41<>0,('CGS yields'!M$8-'CGS yields'!$A41)/365.25," ") -> 6.168377823 | N40: =IF('CGS yields'!$A41<>0,('CGS yields'!N$8-'CGS yields'!$A41)/365.25," ") -> 6.839151266 | O40: =IF('CGS yields'!$A41<>0,('CGS yields'!O$8-'CGS yields'!$A41)/365.25," ") -> 7.266255989 | P40: =IF('CGS yields'!$A41<>0,('CGS yields'!P$8-'CGS yields'!$A41)/365.25," ") -> 7.770020534 | Q40: =IF('CGS yields'!$A41<>0,('CGS yields'!Q$8-'CGS yields'!$A41)/365.25," ") -> 8.517453799 | R40: =IF('CGS yields'!$A41<>0,('CGS yields'!R$8-'CGS yields'!$A41)/365.25," ") -> 8.914442163 | S40: =IF('CGS yields'!$A41<>0,('CGS yields'!S$8-'CGS yields'!$A41)/365.25," ") -> 9.516769336 | T40: =IF('CGS yields'!$A41<>0,('CGS yields'!T$8-'CGS yields'!$A41)/365.25," ") -> 10.00136893 | U40: =IF('CGS yields'!$A41<>0,('CGS yields'!U$8-'CGS yields'!$A41)/365.25," ") -> 10.6036961 | V40: =IF('CGS yields'!$A41<>0,('CGS yields'!V$8-'CGS yields'!$A41)/365.25," ") -> 11.08281999 | W40: =IF('CGS yields'!$A41<>0,('CGS yields'!W$8-'CGS yields'!$A41)/365.25," ") -> 11.68514716 | X40: =IF('CGS yields'!$A41<>0,('CGS yields'!X$8-'CGS yields'!$A41)/365.25," ") -> 12.24914442 | Y40: =IF('CGS yields'!$A41<>0,('CGS yields'!Y$8-'CGS yields'!$A41)/365.25," ") -> 12.60232717 | Z40: =IF('CGS yields'!$A41<>0,('CGS yields'!Z$8-'CGS yields'!$A41)/365.25," ") -> 13.01574264 | AA40: =IF('CGS yields'!$A41<>0,('CGS yields'!AA$8-'CGS yields'!$A41)/365.25," ") -> 14.01779603 | AB40: =IF('CGS yields'!$A41<>0,('CGS yields'!AB$8-'CGS yields'!$A41)/365.25," ") -> 15.01711157 | AC40: =IF('CGS yields'!$A41<>0,('CGS yields'!AC$8-'CGS yields'!$A41)/365.25," ") -> 16.0164271 | AD40: =IF('CGS yields'!$A41<>0,('CGS yields'!AD$8-'CGS yields'!$A41)/365.25," ") -> 17.01574264 | AE40: =IF('CGS yields'!$A41<>0,('CGS yields'!AE$8-'CGS yields'!$A41)/365.25," ") -> 17.60164271 | AF40: =IF('CGS yields'!$A41<>0,('CGS yields'!AF$8-'CGS yields'!$A41)/365.25," ") -> 18.09993155 | AG40: =IF('CGS yields'!$A41<>0,('CGS yields'!AG$8-'CGS yields'!$A41)/365.25," ") -> 18.6036961 | AH40: =IF('CGS yields'!$A41<>0,('CGS yields'!AH$8-'CGS yields'!$A41)/365.25," ") -> 19.01711157 | AI40: =IF('CGS yields'!$A41<>0,('CGS yields'!AI$8-'CGS yields'!$A41)/365.25," ") -> 19.60301164 | AJ40: =IF('CGS yields'!$A41<>0,('CGS yields'!AJ$8-'CGS yields'!$A41)/365.25," ") -> 23.01711157 | AK40: =IF('CGS yields'!$A41<>0,('CGS yields'!AK$8-'CGS yields'!$A41)/365.25," ") -> 25.18275154 | AL40: =IF('CGS yields'!$A41<>0,('CGS yields'!AL$8-'CGS yields'!$A41)/365.25," ") -> 27.01711157 | AM40: =IF('CGS yields'!$A41<>0,('CGS yields'!AM$8-'CGS yields'!$A41)/365.25," ") -> 29.18275154 | AN40: =IF('CGS yields'!$A41<>0,('CGS yields'!AN$8-'CGS yields'!$A41)/365.25," ") -> 36.93086927
A41: ='CGS yields'!A42 -> 2010-04-16 | B41: =VLOOKUP(A41,'CGS yields'!$A$10:$B$2709,2,FALSE) -> 33 | C41: =IF('CGS yields'!$A42<>0,('CGS yields'!C$8-'CGS yields'!$A42)/365.25," ") -> 0.3312799452 | D41: =IF('CGS yields'!$A42<>0,('CGS yields'!D$8-'CGS yields'!$A42)/365.25," ") -> 1.163586585 | E41: =IF('CGS yields'!$A42<>0,('CGS yields'!E$8-'CGS yields'!$A42)/365.25," ") -> 1.998631075 | F41: =IF('CGS yields'!$A42<>0,('CGS yields'!F$8-'CGS yields'!$A42)/365.25," ") -> 2.584531143 | G41: =IF('CGS yields'!$A42<>0,('CGS yields'!G$8-'CGS yields'!$A42)/365.25," ") -> 3.080082136 | H41: =IF('CGS yields'!$A42<>0,('CGS yields'!H$8-'CGS yields'!$A42)/365.25," ") -> 3.665982204 | I41: =IF('CGS yields'!$A42<>0,('CGS yields'!I$8-'CGS yields'!$A42)/365.25," ") -> 4.164271047 | J41: =IF('CGS yields'!$A42<>0,('CGS yields'!J$8-'CGS yields'!$A42)/365.25," ") -> 4.514715948 | K41: =IF('CGS yields'!$A42<>0,('CGS yields'!K$8-'CGS yields'!$A42)/365.25," ") -> 4.996577687 | L41: =IF('CGS yields'!$A42<>0,('CGS yields'!L$8-'CGS yields'!$A42)/365.25," ") -> 5.514031485 | M41: =IF('CGS yields'!$A42<>0,('CGS yields'!M$8-'CGS yields'!$A42)/365.25," ") -> 6.165639973 | N41: =IF('CGS yields'!$A42<>0,('CGS yields'!N$8-'CGS yields'!$A42)/365.25," ") -> 6.836413415 | O41: =IF('CGS yields'!$A42<>0,('CGS yields'!O$8-'CGS yields'!$A42)/365.25," ") -> 7.263518138 | P41: =IF('CGS yields'!$A42<>0,('CGS yields'!P$8-'CGS yields'!$A42)/365.25," ") -> 7.767282683 | Q41: =IF('CGS yields'!$A42<>0,('CGS yields'!Q$8-'CGS yields'!$A42)/365.25," ") -> 8.514715948 | R41: =IF('CGS yields'!$A42<>0,('CGS yields'!R$8-'CGS yields'!$A42)/365.25," ") -> 8.911704312 | S41: =IF('CGS yields'!$A42<>0,('CGS yields'!S$8-'CGS yields'!$A42)/365.25," ") -> 9.514031485 | T41: =IF('CGS yields'!$A42<>0,('CGS yields'!T$8-'CGS yields'!$A42)/365.25," ") -> 9.998631075 | U41: =IF('CGS yields'!$A42<>0,('CGS yields'!U$8-'CGS yields'!$A42)/365.25," ") -> 10.60095825 | V41: =IF('CGS yields'!$A42<>0,('CGS yields'!V$8-'CGS yields'!$A42)/365.25," ") -> 11.08008214 | W41: =IF('CGS yields'!$A42<>0,('CGS yields'!W$8-'CGS yields'!$A42)/365.25," ") -> 11.68240931 | X41: =IF('CGS yields'!$A42<>0,('CGS yields'!X$8-'CGS yields'!$A42)/365.25," ") -> 12.24640657 | Y41: =IF('CGS yields'!$A42<>0,('CGS yields'!Y$8-'CGS yields'!$A42)/365.25," ") -> 12.59958932 | Z41: =IF('CGS yields'!$A42<>0,('CGS yields'!Z$8-'CGS yields'!$A42)/365.25," ") -> 13.01300479 | AA41: =IF('CGS yields'!$A42<>0,('CGS yields'!AA$8-'CGS yields'!$A42)/365.25," ") -> 14.01505818 | AB41: =IF('CGS yields'!$A42<>0,('CGS yields'!AB$8-'CGS yields'!$A42)/365.25," ") -> 15.01437372 | AC41: =IF('CGS yields'!$A42<>0,('CGS yields'!AC$8-'CGS yields'!$A42)/365.25," ") -> 16.01368925 | AD41: =IF('CGS yields'!$A42<>0,('CGS yields'!AD$8-'CGS yields'!$A42)/365.25," ") -> 17.01300479 | AE41: =IF('CGS yields'!$A42<>0,('CGS yields'!AE$8-'CGS yields'!$A42)/365.25," ") -> 17.59890486 | AF41: =IF('CGS yields'!$A42<>0,('CGS yields'!AF$8-'CGS yields'!$A42)/365.25," ") -> 18.0971937 | AG41: =IF('CGS yields'!$A42<>0,('CGS yields'!AG$8-'CGS yields'!$A42)/365.25," ") -> 18.60095825 | AH41: =IF('CGS yields'!$A42<>0,('CGS yields'!AH$8-'CGS yields'!$A42)/365.25," ") -> 19.01437372 | AI41: =IF('CGS yields'!$A42<>0,('CGS yields'!AI$8-'CGS yields'!$A42)/365.25," ") -> 19.60027379 | AJ41: =IF('CGS yields'!$A42<>0,('CGS yields'!AJ$8-'CGS yields'!$A42)/365.25," ") -> 23.01437372 | AK41: =IF('CGS yields'!$A42<>0,('CGS yields'!AK$8-'CGS yields'!$A42)/365.25," ") -> 25.18001369 | AL41: =IF('CGS yields'!$A42<>0,('CGS yields'!AL$8-'CGS yields'!$A42)/365.25," ") -> 27.01437372 | AM41: =IF('CGS yields'!$A42<>0,('CGS yields'!AM$8-'CGS yields'!$A42)/365.25," ") -> 29.18001369 | AN41: =IF('CGS yields'!$A42<>0,('CGS yields'!AN$8-'CGS yields'!$A42)/365.25," ") -> 36.92813142
A42: ='CGS yields'!A43 -> 2010-04-19 | B42: =VLOOKUP(A42,'CGS yields'!$A$10:$B$2709,2,FALSE) -> 34 | C42: =IF('CGS yields'!$A43<>0,('CGS yields'!C$8-'CGS yields'!$A43)/365.25," ") -> 0.3230663929 | D42: =IF('CGS yields'!$A43<>0,('CGS yields'!D$8-'CGS yields'!$A43)/365.25," ") -> 1.155373032 | E42: =IF('CGS yields'!$A43<>0,('CGS yields'!E$8-'CGS yields'!$A43)/365.25," ") -> 1.990417522 | F42: =IF('CGS yields'!$A43<>0,('CGS yields'!F$8-'CGS yields'!$A43)/365.25," ") -> 2.576317591 | G42: =IF('CGS yields'!$A43<>0,('CGS yields'!G$8-'CGS yields'!$A43)/365.25," ") -> 3.071868583 | H42: =IF('CGS yields'!$A43<>0,('CGS yields'!H$8-'CGS yields'!$A43)/365.25," ") -> 3.657768652 | I42: =IF('CGS yields'!$A43<>0,('CGS yields'!I$8-'CGS yields'!$A43)/365.25," ") -> 4.156057495 | J42: =IF('CGS yields'!$A43<>0,('CGS yields'!J$8-'CGS yields'!$A43)/365.25," ") -> 4.506502396 | K42: =IF('CGS yields'!$A43<>0,('CGS yields'!K$8-'CGS yields'!$A43)/365.25," ") -> 4.988364134 | L42: =IF('CGS yields'!$A43<>0,('CGS yields'!L$8-'CGS yields'!$A43)/365.25," ") -> 5.505817933 | M42: =IF('CGS yields'!$A43<>0,('CGS yields'!M$8-'CGS yields'!$A43)/365.25," ") -> 6.15742642 | N42: =IF('CGS yields'!$A43<>0,('CGS yields'!N$8-'CGS yields'!$A43)/365.25," ") -> 6.828199863 | O42: =IF('CGS yields'!$A43<>0,('CGS yields'!O$8-'CGS yields'!$A43)/365.25," ") -> 7.255304586 | P42: =IF('CGS yields'!$A43<>0,('CGS yields'!P$8-'CGS yields'!$A43)/365.25," ") -> 7.759069131 | Q42: =IF('CGS yields'!$A43<>0,('CGS yields'!Q$8-'CGS yields'!$A43)/365.25," ") -> 8.506502396 | R42: =IF('CGS yields'!$A43<>0,('CGS yields'!R$8-'CGS yields'!$A43)/365.25," ") -> 8.90349076 | S42: =IF('CGS yields'!$A43<>0,('CGS yields'!S$8-'CGS yields'!$A43)/365.25," ") -> 9.505817933 | T42: =IF('CGS yields'!$A43<>0,('CGS yields'!T$8-'CGS yields'!$A43)/365.25," ") -> 9.990417522 | U42: =IF('CGS yields'!$A43<>0,('CGS yields'!U$8-'CGS yields'!$A43)/365.25," ") -> 10.5927447 | V42: =IF('CGS yields'!$A43<>0,('CGS yields'!V$8-'CGS yields'!$A43)/365.25," ") -> 11.07186858 | W42: =IF('CGS yields'!$A43<>0,('CGS yields'!W$8-'CGS yields'!$A43)/365.25," ") -> 11.67419576 | X42: =IF('CGS yields'!$A43<>0,('CGS yields'!X$8-'CGS yields'!$A43)/365.25," ") -> 12.23819302 | Y42: =IF('CGS yields'!$A43<>0,('CGS yields'!Y$8-'CGS yields'!$A43)/365.25," ") -> 12.59137577 | Z42: =IF('CGS yields'!$A43<>0,('CGS yields'!Z$8-'CGS yields'!$A43)/365.25," ") -> 13.00479124 | AA42: =IF('CGS yields'!$A43<>0,('CGS yields'!AA$8-'CGS yields'!$A43)/365.25," ") -> 14.00684463 | AB42: =IF('CGS yields'!$A43<>0,('CGS yields'!AB$8-'CGS yields'!$A43)/365.25," ") -> 15.00616016 | AC42: =IF('CGS yields'!$A43<>0,('CGS yields'!AC$8-'CGS yields'!$A43)/365.25," ") -> 16.0054757 | AD42: =IF('CGS yields'!$A43<>0,('CGS yields'!AD$8-'CGS yields'!$A43)/365.25," ") -> 17.00479124 | AE42: =IF('CGS yields'!$A43<>0,('CGS yields'!AE$8-'CGS yields'!$A43)/365.25," ") -> 17.59069131 | AF42: =IF('CGS yields'!$A43<>0,('CGS yields'!AF$8-'CGS yields'!$A43)/365.25," ") -> 18.08898015 | AG42: =IF('CGS yields'!$A43<>0,('CGS yields'!AG$8-'CGS yields'!$A43)/365.25," ") -> 18.5927447 | AH42: =IF('CGS yields'!$A43<>0,('CGS yields'!AH$8-'CGS yields'!$A43)/365.25," ") -> 19.00616016 | AI42: =IF('CGS yields'!$A43<>0,('CGS yields'!AI$8-'CGS yields'!$A43)/365.25," ") -> 19.59206023 | AJ42: =IF('CGS yields'!$A43<>0,('CGS yields'!AJ$8-'CGS yields'!$A43)/365.25," ") -> 23.00616016 | AK42: =IF('CGS yields'!$A43<>0,('CGS yields'!AK$8-'CGS yields'!$A43)/365.25," ") -> 25.17180014 | AL42: =IF('CGS yields'!$A43<>0,('CGS yields'!AL$8-'CGS yields'!$A43)/365.25," ") -> 27.00616016 | AM42: =IF('CGS yields'!$A43<>0,('CGS yields'!AM$8-'CGS yields'!$A43)/365.25," ") -> 29.17180014 | AN42: =IF('CGS yields'!$A43<>0,('CGS yields'!AN$8-'CGS yields'!$A43)/365.25," ") -> 36.91991786
A43: ='CGS yields'!A44 -> 2010-04-20 | B43: =VLOOKUP(A43,'CGS yields'!$A$10:$B$2709,2,FALSE) -> 35 | C43: =IF('CGS yields'!$A44<>0,('CGS yields'!C$8-'CGS yields'!$A44)/365.25," ") -> 0.3203285421 | D43: =IF('CGS yields'!$A44<>0,('CGS yields'!D$8-'CGS yields'!$A44)/365.25," ") -> 1.152635181 | E43: =IF('CGS yields'!$A44<>0,('CGS yields'!E$8-'CGS yields'!$A44)/365.25," ") -> 1.987679671 | F43: =IF('CGS yields'!$A44<>0,('CGS yields'!F$8-'CGS yields'!$A44)/365.25," ") -> 2.57357974 | G43: =IF('CGS yields'!$A44<>0,('CGS yields'!G$8-'CGS yields'!$A44)/365.25," ") -> 3.069130732 | H43: =IF('CGS yields'!$A44<>0,('CGS yields'!H$8-'CGS yields'!$A44)/365.25," ") -> 3.655030801 | I43: =IF('CGS yields'!$A44<>0,('CGS yields'!I$8-'CGS yields'!$A44)/365.25," ") -> 4.153319644 | J43: =IF('CGS yields'!$A44<>0,('CGS yields'!J$8-'CGS yields'!$A44)/365.25," ") -> 4.503764545 | K43: =IF('CGS yields'!$A44<>0,('CGS yields'!K$8-'CGS yields'!$A44)/365.25," ") -> 4.985626283 | L43: =IF('CGS yields'!$A44<>0,('CGS yields'!L$8-'CGS yields'!$A44)/365.25," ") -> 5.503080082 | M43: =IF('CGS yields'!$A44<>0,('CGS yields'!M$8-'CGS yields'!$A44)/365.25," ") -> 6.154688569 | N43: =IF('CGS yields'!$A44<>0,('CGS yields'!N$8-'CGS yields'!$A44)/365.25," ") -> 6.825462012 | O43: =IF('CGS yields'!$A44<>0,('CGS yields'!O$8-'CGS yields'!$A44)/365.25," ") -> 7.252566735 | P43: =IF('CGS yields'!$A44<>0,('CGS yields'!P$8-'CGS yields'!$A44)/365.25," ") -> 7.75633128 | Q43: =IF('CGS yields'!$A44<>0,('CGS yields'!Q$8-'CGS yields'!$A44)/365.25," ") -> 8.503764545 | R43: =IF('CGS yields'!$A44<>0,('CGS yields'!R$8-'CGS yields'!$A44)/365.25," ") -> 8.900752909 | S43: =IF('CGS yields'!$A44<>0,('CGS yields'!S$8-'CGS yields'!$A44)/365.25," ") -> 9.503080082 | T43: =IF('CGS yields'!$A44<>0,('CGS yields'!T$8-'CGS yields'!$A44)/365.25," ") -> 9.987679671 | U43: =IF('CGS yields'!$A44<>0,('CGS yields'!U$8-'CGS yields'!$A44)/365.25," ") -> 10.59000684 | V43: =IF('CGS yields'!$A44<>0,('CGS yields'!V$8-'CGS yields'!$A44)/365.25," ") -> 11.06913073 | W43: =IF('CGS yields'!$A44<>0,('CGS yields'!W$8-'CGS yields'!$A44)/365.25," ") -> 11.67145791 | X43: =IF('CGS yields'!$A44<>0,('CGS yields'!X$8-'CGS yields'!$A44)/365.25," ") -> 12.23545517 | Y43: =IF('CGS yields'!$A44<>0,('CGS yields'!Y$8-'CGS yields'!$A44)/365.25," ") -> 12.58863792 | Z43: =IF('CGS yields'!$A44<>0,('CGS yields'!Z$8-'CGS yields'!$A44)/365.25," ") -> 13.00205339 | AA43: =IF('CGS yields'!$A44<>0,('CGS yields'!AA$8-'CGS yields'!$A44)/365.25," ") -> 14.00410678 | AB43: =IF('CGS yields'!$A44<>0,('CGS yields'!AB$8-'CGS yields'!$A44)/365.25," ") -> 15.00342231 | AC43: =IF('CGS yields'!$A44<>0,('CGS yields'!AC$8-'CGS yields'!$A44)/365.25," ") -> 16.00273785 | AD43: =IF('CGS yields'!$A44<>0,('CGS yields'!AD$8-'CGS yields'!$A44)/365.25," ") -> 17.00205339 | AE43: =IF('CGS yields'!$A44<>0,('CGS yields'!AE$8-'CGS yields'!$A44)/365.25," ") -> 17.58795346 | AF43: =IF('CGS yields'!$A44<>0,('CGS yields'!AF$8-'CGS yields'!$A44)/365.25," ") -> 18.0862423 | AG43: =IF('CGS yields'!$A44<>0,('CGS yields'!AG$8-'CGS yields'!$A44)/365.25," ") -> 18.59000684 | AH43: =IF('CGS yields'!$A44<>0,('CGS yields'!AH$8-'CGS yields'!$A44)/365.25," ") -> 19.00342231 | AI43: =IF('CGS yields'!$A44<>0,('CGS yields'!AI$8-'CGS yields'!$A44)/365.25," ") -> 19.58932238 | AJ43: =IF('CGS yields'!$A44<>0,('CGS yields'!AJ$8-'CGS yields'!$A44)/365.25," ") -> 23.00342231 | AK43: =IF('CGS yields'!$A44<>0,('CGS yields'!AK$8-'CGS yields'!$A44)/365.25," ") -> 25.16906229 | AL43: =IF('CGS yields'!$A44<>0,('CGS yields'!AL$8-'CGS yields'!$A44)/365.25," ") -> 27.00342231 | AM43: =IF('CGS yields'!$A44<>0,('CGS yields'!AM$8-'CGS yields'!$A44)/365.25," ") -> 29.16906229 | AN43: =IF('CGS yields'!$A44<>0,('CGS yields'!AN$8-'CGS yields'!$A44)/365.25," ") -> 36.91718001
A44: ='CGS yields'!A45 -> 2010-04-21 | B44: =VLOOKUP(A44,'CGS yields'!$A$10:$B$2709,2,FALSE) -> 36 | C44: =IF('CGS yields'!$A45<>0,('CGS yields'!C$8-'CGS yields'!$A45)/365.25," ") -> 0.3175906913 | D44: =IF('CGS yields'!$A45<>0,('CGS yields'!D$8-'CGS yields'!$A45)/365.25," ") -> 1.149897331 | E44: =IF('CGS yields'!$A45<>0,('CGS yields'!E$8-'CGS yields'!$A45)/365.25," ") -> 1.984941821 | F44: =IF('CGS yields'!$A45<>0,('CGS yields'!F$8-'CGS yields'!$A45)/365.25," ") -> 2.570841889 | G44: =IF('CGS yields'!$A45<>0,('CGS yields'!G$8-'CGS yields'!$A45)/365.25," ") -> 3.066392882 | H44: =IF('CGS yields'!$A45<>0,('CGS yields'!H$8-'CGS yields'!$A45)/365.25," ") -> 3.65229295 | I44: =IF('CGS yields'!$A45<>0,('CGS yields'!I$8-'CGS yields'!$A45)/365.25," ") -> 4.150581793 | J44: =IF('CGS yields'!$A45<>0,('CGS yields'!J$8-'CGS yields'!$A45)/365.25," ") -> 4.501026694 | K44: =IF('CGS yields'!$A45<>0,('CGS yields'!K$8-'CGS yields'!$A45)/365.25," ") -> 4.982888433 | L44: =IF('CGS yields'!$A45<>0,('CGS yields'!L$8-'CGS yields'!$A45)/365.25," ") -> 5.500342231 | M44: =IF('CGS yields'!$A45<>0,('CGS yields'!M$8-'CGS yields'!$A45)/365.25," ") -> 6.151950719 | N44: =IF('CGS yields'!$A45<>0,('CGS yields'!N$8-'CGS yields'!$A45)/365.25," ") -> 6.822724162 | O44: =IF('CGS yields'!$A45<>0,('CGS yields'!O$8-'CGS yields'!$A45)/365.25," ") -> 7.249828884 | P44: =IF('CGS yields'!$A45<>0,('CGS yields'!P$8-'CGS yields'!$A45)/365.25," ") -> 7.753593429 | Q44: =IF('CGS yields'!$A45<>0,('CGS yields'!Q$8-'CGS yields'!$A45)/365.25," ") -> 8.501026694 | R44: =IF('CGS yields'!$A45<>0,('CGS yields'!R$8-'CGS yields'!$A45)/365.25," ") -> 8.898015058 | S44: =IF('CGS yields'!$A45<>0,('CGS yields'!S$8-'CGS yields'!$A45)/365.25," ") -> 9.500342231 | T44: =IF('CGS yields'!$A45<>0,('CGS yields'!T$8-'CGS yields'!$A45)/365.25," ") -> 9.984941821 | U44: =IF('CGS yields'!$A45<>0,('CGS yields'!U$8-'CGS yields'!$A45)/365.25," ") -> 10.58726899 | V44: =IF('CGS yields'!$A45<>0,('CGS yields'!V$8-'CGS yields'!$A45)/365.25," ") -> 11.06639288 | W44: =IF('CGS yields'!$A45<>0,('CGS yields'!W$8-'CGS yields'!$A45)/365.25," ") -> 11.66872005 | X44: =IF('CGS yields'!$A45<>0,('CGS yields'!X$8-'CGS yields'!$A45)/365.25," ") -> 12.23271732 | Y44: =IF('CGS yields'!$A45<>0,('CGS yields'!Y$8-'CGS yields'!$A45)/365.25," ") -> 12.58590007 | Z44: =IF('CGS yields'!$A45<>0,('CGS yields'!Z$8-'CGS yields'!$A45)/365.25," ") -> 12.99931554 | AA44: =IF('CGS yields'!$A45<>0,('CGS yields'!AA$8-'CGS yields'!$A45)/365.25," ") -> 14.00136893 | AB44: =IF('CGS yields'!$A45<>0,('CGS yields'!AB$8-'CGS yields'!$A45)/365.25," ") -> 15.00068446 | AC44: =IF('CGS yields'!$A45<>0,('CGS yields'!AC$8-'CGS yields'!$A45)/365.25," ") -> 16 | AD44: =IF('CGS yields'!$A45<>0,('CGS yields'!AD$8-'CGS yields'!$A45)/365.25," ") -> 16.99931554 | AE44: =IF('CGS yields'!$A45<>0,('CGS yields'!AE$8-'CGS yields'!$A45)/365.25," ") -> 17.58521561 | AF44: =IF('CGS yields'!$A45<>0,('CGS yields'!AF$8-'CGS yields'!$A45)/365.25," ") -> 18.08350445 | AG44: =IF('CGS yields'!$A45<>0,('CGS yields'!AG$8-'CGS yields'!$A45)/365.25," ") -> 18.58726899 | AH44: =IF('CGS yields'!$A45<>0,('CGS yields'!AH$8-'CGS yields'!$A45)/365.25," ") -> 19.00068446 | AI44: =IF('CGS yields'!$A45<>0,('CGS yields'!AI$8-'CGS yields'!$A45)/365.25," ") -> 19.58658453 | AJ44: =IF('CGS yields'!$A45<>0,('CGS yields'!AJ$8-'CGS yields'!$A45)/365.25," ") -> 23.00068446 | AK44: =IF('CGS yields'!$A45<>0,('CGS yields'!AK$8-'CGS yields'!$A45)/365.25," ") -> 25.16632444 | AL44: =IF('CGS yields'!$A45<>0,('CGS yields'!AL$8-'CGS yields'!$A45)/365.25," ") -> 27.00068446 | AM44: =IF('CGS yields'!$A45<>0,('CGS yields'!AM$8-'CGS yields'!$A45)/365.25," ") -> 29.16632444 | AN44: =IF('CGS yields'!$A45<>0,('CGS yields'!AN$8-'CGS yields'!$A45)/365.25," ") -> 36.91444216
A45: ='CGS yields'!A46 -> 2010-04-22 | B45: =VLOOKUP(A45,'CGS yields'!$A$10:$B$2709,2,FALSE) -> 37 | C45: =IF('CGS yields'!$A46<>0,('CGS yields'!C$8-'CGS yields'!$A46)/365.25," ") -> 0.3148528405 | D45: =IF('CGS yields'!$A46<>0,('CGS yields'!D$8-'CGS yields'!$A46)/365.25," ") -> 1.14715948 | E45: =IF('CGS yields'!$A46<>0,('CGS yields'!E$8-'CGS yields'!$A46)/365.25," ") -> 1.98220397 | F45: =IF('CGS yields'!$A46<>0,('CGS yields'!F$8-'CGS yields'!$A46)/365.25," ") -> 2.568104038 | G45: =IF('CGS yields'!$A46<>0,('CGS yields'!G$8-'CGS yields'!$A46)/365.25," ") -> 3.063655031 | H45: =IF('CGS yields'!$A46<>0,('CGS yields'!H$8-'CGS yields'!$A46)/365.25," ") -> 3.649555099 | I45: =IF('CGS yields'!$A46<>0,('CGS yields'!I$8-'CGS yields'!$A46)/365.25," ") -> 4.147843943 | J45: =IF('CGS yields'!$A46<>0,('CGS yields'!J$8-'CGS yields'!$A46)/365.25," ") -> 4.498288843 | K45: =IF('CGS yields'!$A46<>0,('CGS yields'!K$8-'CGS yields'!$A46)/365.25," ") -> 4.980150582 | L45: =IF('CGS yields'!$A46<>0,('CGS yields'!L$8-'CGS yields'!$A46)/365.25," ") -> 5.497604381 | M45: =IF('CGS yields'!$A46<>0,('CGS yields'!M$8-'CGS yields'!$A46)/365.25," ") -> 6.149212868 | N45: =IF('CGS yields'!$A46<>0,('CGS yields'!N$8-'CGS yields'!$A46)/365.25," ") -> 6.819986311 | O45: =IF('CGS yields'!$A46<>0,('CGS yields'!O$8-'CGS yields'!$A46)/365.25," ") -> 7.247091034 | P45: =IF('CGS yields'!$A46<>0,('CGS yields'!P$8-'CGS yields'!$A46)/365.25," ") -> 7.750855578 | Q45: =IF('CGS yields'!$A46<>0,('CGS yields'!Q$8-'CGS yields'!$A46)/365.25," ") -> 8.498288843 | R45: =IF('CGS yields'!$A46<>0,('CGS yields'!R$8-'CGS yields'!$A46)/365.25," ") -> 8.895277207 | S45: =IF('CGS yields'!$A46<>0,('CGS yields'!S$8-'CGS yields'!$A46)/365.25," ") -> 9.497604381 | T45: =IF('CGS yields'!$A46<>0,('CGS yields'!T$8-'CGS yields'!$A46)/365.25," ") -> 9.98220397 | U45: =IF('CGS yields'!$A46<>0,('CGS yields'!U$8-'CGS yields'!$A46)/365.25," ") -> 10.58453114 | V45: =IF('CGS yields'!$A46<>0,('CGS yields'!V$8-'CGS yields'!$A46)/365.25," ") -> 11.06365503 | W45: =IF('CGS yields'!$A46<>0,('CGS yields'!W$8-'CGS yields'!$A46)/365.25," ") -> 11.6659822 | X45: =IF('CGS yields'!$A46<>0,('CGS yields'!X$8-'CGS yields'!$A46)/365.25," ") -> 12.22997947 | Y45: =IF('CGS yields'!$A46<>0,('CGS yields'!Y$8-'CGS yields'!$A46)/365.25," ") -> 12.58316222 | Z45: =IF('CGS yields'!$A46<>0,('CGS yields'!Z$8-'CGS yields'!$A46)/365.25," ") -> 12.99657769 | AA45: =IF('CGS yields'!$A46<>0,('CGS yields'!AA$8-'CGS yields'!$A46)/365.25," ") -> 13.99863107 | AB45: =IF('CGS yields'!$A46<>0,('CGS yields'!AB$8-'CGS yields'!$A46)/365.25," ") -> 14.99794661 | AC45: =IF('CGS yields'!$A46<>0,('CGS yields'!AC$8-'CGS yields'!$A46)/365.25," ") -> 15.99726215 | AD45: =IF('CGS yields'!$A46<>0,('CGS yields'!AD$8-'CGS yields'!$A46)/365.25," ") -> 16.99657769 | AE45: =IF('CGS yields'!$A46<>0,('CGS yields'!AE$8-'CGS yields'!$A46)/365.25," ") -> 17.58247775 | AF45: =IF('CGS yields'!$A46<>0,('CGS yields'!AF$8-'CGS yields'!$A46)/365.25," ") -> 18.0807666 | AG45: =IF('CGS yields'!$A46<>0,('CGS yields'!AG$8-'CGS yields'!$A46)/365.25," ") -> 18.58453114 | AH45: =IF('CGS yields'!$A46<>0,('CGS yields'!AH$8-'CGS yields'!$A46)/365.25," ") -> 18.99794661 | AI45: =IF('CGS yields'!$A46<>0,('CGS yields'!AI$8-'CGS yields'!$A46)/365.25," ") -> 19.58384668 | AJ45: =IF('CGS yields'!$A46<>0,('CGS yields'!AJ$8-'CGS yields'!$A46)/365.25," ") -> 22.99794661 | AK45: =IF('CGS yields'!$A46<>0,('CGS yields'!AK$8-'CGS yields'!$A46)/365.25," ") -> 25.16358658 | AL45: =IF('CGS yields'!$A46<>0,('CGS yields'!AL$8-'CGS yields'!$A46)/365.25," ") -> 26.99794661 | AM45: =IF('CGS yields'!$A46<>0,('CGS yields'!AM$8-'CGS yields'!$A46)/365.25," ") -> 29.16358658 | AN45: =IF('CGS yields'!$A46<>0,('CGS yields'!AN$8-'CGS yields'!$A46)/365.25," ") -> 36.91170431
A46: ='CGS yields'!A47 -> 2010-04-23 | B46: =VLOOKUP(A46,'CGS yields'!$A$10:$B$2709,2,FALSE) -> 38 | C46: =IF('CGS yields'!$A47<>0,('CGS yields'!C$8-'CGS yields'!$A47)/365.25," ") -> 0.3121149897 | D46: =IF('CGS yields'!$A47<>0,('CGS yields'!D$8-'CGS yields'!$A47)/365.25," ") -> 1.144421629 | E46: =IF('CGS yields'!$A47<>0,('CGS yields'!E$8-'CGS yields'!$A47)/365.25," ") -> 1.979466119 | F46: =IF('CGS yields'!$A47<>0,('CGS yields'!F$8-'CGS yields'!$A47)/365.25," ") -> 2.565366188 | G46: =IF('CGS yields'!$A47<>0,('CGS yields'!G$8-'CGS yields'!$A47)/365.25," ") -> 3.06091718 | H46: =IF('CGS yields'!$A47<>0,('CGS yields'!H$8-'CGS yields'!$A47)/365.25," ") -> 3.646817248 | I46: =IF('CGS yields'!$A47<>0,('CGS yields'!I$8-'CGS yields'!$A47)/365.25," ") -> 4.145106092 | J46: =IF('CGS yields'!$A47<>0,('CGS yields'!J$8-'CGS yields'!$A47)/365.25," ") -> 4.495550992 | K46: =IF('CGS yields'!$A47<>0,('CGS yields'!K$8-'CGS yields'!$A47)/365.25," ") -> 4.977412731 | L46: =IF('CGS yields'!$A47<>0,('CGS yields'!L$8-'CGS yields'!$A47)/365.25," ") -> 5.49486653 | M46: =IF('CGS yields'!$A47<>0,('CGS yields'!M$8-'CGS yields'!$A47)/365.25," ") -> 6.146475017 | N46: =IF('CGS yields'!$A47<>0,('CGS yields'!N$8-'CGS yields'!$A47)/365.25," ") -> 6.81724846 | O46: =IF('CGS yields'!$A47<>0,('CGS yields'!O$8-'CGS yields'!$A47)/365.25," ") -> 7.244353183 | P46: =IF('CGS yields'!$A47<>0,('CGS yields'!P$8-'CGS yields'!$A47)/365.25," ") -> 7.748117728 | Q46: =IF('CGS yields'!$A47<>0,('CGS yields'!Q$8-'CGS yields'!$A47)/365.25," ") -> 8.495550992 | R46: =IF('CGS yields'!$A47<>0,('CGS yields'!R$8-'CGS yields'!$A47)/365.25," ") -> 8.892539357 | S46: =IF('CGS yields'!$A47<>0,('CGS yields'!S$8-'CGS yields'!$A47)/365.25," ") -> 9.49486653 | T46: =IF('CGS yields'!$A47<>0,('CGS yields'!T$8-'CGS yields'!$A47)/365.25," ") -> 9.979466119 | U46: =IF('CGS yields'!$A47<>0,('CGS yields'!U$8-'CGS yields'!$A47)/365.25," ") -> 10.58179329 | V46: =IF('CGS yields'!$A47<>0,('CGS yields'!V$8-'CGS yields'!$A47)/365.25," ") -> 11.06091718 | W46: =IF('CGS yields'!$A47<>0,('CGS yields'!W$8-'CGS yields'!$A47)/365.25," ") -> 11.66324435 | X46: =IF('CGS yields'!$A47<>0,('CGS yields'!X$8-'CGS yields'!$A47)/365.25," ") -> 12.22724162 | Y46: =IF('CGS yields'!$A47<>0,('CGS yields'!Y$8-'CGS yields'!$A47)/365.25," ") -> 12.58042437 | Z46: =IF('CGS yields'!$A47<>0,('CGS yields'!Z$8-'CGS yields'!$A47)/365.25," ") -> 12.99383984 | AA46: =IF('CGS yields'!$A47<>0,('CGS yields'!AA$8-'CGS yields'!$A47)/365.25," ") -> 13.99589322 | AB46: =IF('CGS yields'!$A47<>0,('CGS yields'!AB$8-'CGS yields'!$A47)/365.25," ") -> 14.99520876 | AC46: =IF('CGS yields'!$A47<>0,('CGS yields'!AC$8-'CGS yields'!$A47)/365.25," ") -> 15.9945243 | AD46: =IF('CGS yields'!$A47<>0,('CGS yields'!AD$8-'CGS yields'!$A47)/365.25," ") -> 16.99383984 | AE46: =IF('CGS yields'!$A47<>0,('CGS yields'!AE$8-'CGS yields'!$A47)/365.25," ") -> 17.5797399 | AF46: =IF('CGS yields'!$A47<>0,('CGS yields'!AF$8-'CGS yields'!$A47)/365.25," ") -> 18.07802875 | AG46: =IF('CGS yields'!$A47<>0,('CGS yields'!AG$8-'CGS yields'!$A47)/365.25," ") -> 18.58179329 | AH46: =IF('CGS yields'!$A47<>0,('CGS yields'!AH$8-'CGS yields'!$A47)/365.25," ") -> 18.99520876 | AI46: =IF('CGS yields'!$A47<>0,('CGS yields'!AI$8-'CGS yields'!$A47)/365.25," ") -> 19.58110883 | AJ46: =IF('CGS yields'!$A47<>0,('CGS yields'!AJ$8-'CGS yields'!$A47)/365.25," ") -> 22.99520876 | AK46: =IF('CGS yields'!$A47<>0,('CGS yields'!AK$8-'CGS yields'!$A47)/365.25," ") -> 25.16084873 | AL46: =IF('CGS yields'!$A47<>0,('CGS yields'!AL$8-'CGS yields'!$A47)/365.25," ") -> 26.99520876 | AM46: =IF('CGS yields'!$A47<>0,('CGS yields'!AM$8-'CGS yields'!$A47)/365.25," ") -> 29.16084873 | AN46: =IF('CGS yields'!$A47<>0,('CGS yields'!AN$8-'CGS yields'!$A47)/365.25," ") -> 36.90896646
A47: ='CGS yields'!A48 -> 2010-04-27 | B47: =VLOOKUP(A47,'CGS yields'!$A$10:$B$2709,2,FALSE) -> 39 | C47: =IF('CGS yields'!$A48<>0,('CGS yields'!C$8-'CGS yields'!$A48)/365.25," ") -> 0.3011635866 | D47: =IF('CGS yields'!$A48<>0,('CGS yields'!D$8-'CGS yields'!$A48)/365.25," ") -> 1.133470226 | E47: =IF('CGS yields'!$A48<>0,('CGS yields'!E$8-'CGS yields'!$A48)/365.25," ") -> 1.968514716 | F47: =IF('CGS yields'!$A48<>0,('CGS yields'!F$8-'CGS yields'!$A48)/365.25," ") -> 2.554414784 | G47: =IF('CGS yields'!$A48<>0,('CGS yields'!G$8-'CGS yields'!$A48)/365.25," ") -> 3.049965777 | H47: =IF('CGS yields'!$A48<>0,('CGS yields'!H$8-'CGS yields'!$A48)/365.25," ") -> 3.635865845 | I47: =IF('CGS yields'!$A48<>0,('CGS yields'!I$8-'CGS yields'!$A48)/365.25," ") -> 4.134154689 | J47: =IF('CGS yields'!$A48<>0,('CGS yields'!J$8-'CGS yields'!$A48)/365.25," ") -> 4.484599589 | K47: =IF('CGS yields'!$A48<>0,('CGS yields'!K$8-'CGS yields'!$A48)/365.25," ") -> 4.966461328 | L47: =IF('CGS yields'!$A48<>0,('CGS yields'!L$8-'CGS yields'!$A48)/365.25," ") -> 5.483915127 | M47: =IF('CGS yields'!$A48<>0,('CGS yields'!M$8-'CGS yields'!$A48)/365.25," ") -> 6.135523614 | N47: =IF('CGS yields'!$A48<>0,('CGS yields'!N$8-'CGS yields'!$A48)/365.25," ") -> 6.806297057 | O47: =IF('CGS yields'!$A48<>0,('CGS yields'!O$8-'CGS yields'!$A48)/365.25," ") -> 7.23340178 | P47: =IF('CGS yields'!$A48<>0,('CGS yields'!P$8-'CGS yields'!$A48)/365.25," ") -> 7.737166324 | Q47: =IF('CGS yields'!$A48<>0,('CGS yields'!Q$8-'CGS yields'!$A48)/365.25," ") -> 8.484599589 | R47: =IF('CGS yields'!$A48<>0,('CGS yields'!R$8-'CGS yields'!$A48)/365.25," ") -> 8.881587953 | S47: =IF('CGS yields'!$A48<>0,('CGS yields'!S$8-'CGS yields'!$A48)/365.25," ") -> 9.483915127 | T47: =IF('CGS yields'!$A48<>0,('CGS yields'!T$8-'CGS yields'!$A48)/365.25," ") -> 9.968514716 | U47: =IF('CGS yields'!$A48<>0,('CGS yields'!U$8-'CGS yields'!$A48)/365.25," ") -> 10.57084189 | V47: =IF('CGS yields'!$A48<>0,('CGS yields'!V$8-'CGS yields'!$A48)/365.25," ") -> 11.04996578 | W47: =IF('CGS yields'!$A48<>0,('CGS yields'!W$8-'CGS yields'!$A48)/365.25," ") -> 11.65229295 | X47: =IF('CGS yields'!$A48<>0,('CGS yields'!X$8-'CGS yields'!$A48)/365.25," ") -> 12.21629021 | Y47: =IF('CGS yields'!$A48<>0,('CGS yields'!Y$8-'CGS yields'!$A48)/365.25," ") -> 12.56947296 | Z47: =IF('CGS yields'!$A48<>0,('CGS yields'!Z$8-'CGS yields'!$A48)/365.25," ") -> 12.98288843 | AA47: =IF('CGS yields'!$A48<>0,('CGS yields'!AA$8-'CGS yields'!$A48)/365.25," ") -> 13.98494182 | AB47: =IF('CGS yields'!$A48<>0,('CGS yields'!AB$8-'CGS yields'!$A48)/365.25," ") -> 14.98425736 | AC47: =IF('CGS yields'!$A48<>0,('CGS yields'!AC$8-'CGS yields'!$A48)/365.25," ") -> 15.9835729 | AD47: =IF('CGS yields'!$A48<>0,('CGS yields'!AD$8-'CGS yields'!$A48)/365.25," ") -> 16.98288843 | AE47: =IF('CGS yields'!$A48<>0,('CGS yields'!AE$8-'CGS yields'!$A48)/365.25," ") -> 17.5687885 | AF47: =IF('CGS yields'!$A48<>0,('CGS yields'!AF$8-'CGS yields'!$A48)/365.25," ") -> 18.06707734 | AG47: =IF('CGS yields'!$A48<>0,('CGS yields'!AG$8-'CGS yields'!$A48)/365.25," ") -> 18.57084189 | AH47: =IF('CGS yields'!$A48<>0,('CGS yields'!AH$8-'CGS yields'!$A48)/365.25," ") -> 18.98425736 | AI47: =IF('CGS yields'!$A48<>0,('CGS yields'!AI$8-'CGS yields'!$A48)/365.25," ") -> 19.57015743 | AJ47: =IF('CGS yields'!$A48<>0,('CGS yields'!AJ$8-'CGS yields'!$A48)/365.25," ") -> 22.98425736 | AK47: =IF('CGS yields'!$A48<>0,('CGS yields'!AK$8-'CGS yields'!$A48)/365.25," ") -> 25.14989733 | AL47: =IF('CGS yields'!$A48<>0,('CGS yields'!AL$8-'CGS yields'!$A48)/365.25," ") -> 26.98425736 | AM47: =IF('CGS yields'!$A48<>0,('CGS yields'!AM$8-'CGS yields'!$A48)/365.25," ") -> 29.14989733 | AN47: =IF('CGS yields'!$A48<>0,('CGS yields'!AN$8-'CGS yields'!$A48)/365.25," ") -> 36.89801506
A48: ='CGS yields'!A49 -> 2010-04-28 | B48: =VLOOKUP(A48,'CGS yields'!$A$10:$B$2709,2,FALSE) -> 40 | C48: =IF('CGS yields'!$A49<>0,('CGS yields'!C$8-'CGS yields'!$A49)/365.25," ") -> 0.2984257358 | D48: =IF('CGS yields'!$A49<>0,('CGS yields'!D$8-'CGS yields'!$A49)/365.25," ") -> 1.130732375 | E48: =IF('CGS yields'!$A49<>0,('CGS yields'!E$8-'CGS yields'!$A49)/365.25," ") -> 1.965776865 | F48: =IF('CGS yields'!$A49<>0,('CGS yields'!F$8-'CGS yields'!$A49)/365.25," ") -> 2.551676934 | G48: =IF('CGS yields'!$A49<>0,('CGS yields'!G$8-'CGS yields'!$A49)/365.25," ") -> 3.047227926 | H48: =IF('CGS yields'!$A49<>0,('CGS yields'!H$8-'CGS yields'!$A49)/365.25," ") -> 3.633127995 | I48: =IF('CGS yields'!$A49<>0,('CGS yields'!I$8-'CGS yields'!$A49)/365.25," ") -> 4.131416838 | J48: =IF('CGS yields'!$A49<>0,('CGS yields'!J$8-'CGS yields'!$A49)/365.25," ") -> 4.481861739 | K48: =IF('CGS yields'!$A49<>0,('CGS yields'!K$8-'CGS yields'!$A49)/365.25," ") -> 4.963723477 | L48: =IF('CGS yields'!$A49<>0,('CGS yields'!L$8-'CGS yields'!$A49)/365.25," ") -> 5.481177276 | M48: =IF('CGS yields'!$A49<>0,('CGS yields'!M$8-'CGS yields'!$A49)/365.25," ") -> 6.132785763 | N48: =IF('CGS yields'!$A49<>0,('CGS yields'!N$8-'CGS yields'!$A49)/365.25," ") -> 6.803559206 | O48: =IF('CGS yields'!$A49<>0,('CGS yields'!O$8-'CGS yields'!$A49)/365.25," ") -> 7.230663929 | P48: =IF('CGS yields'!$A49<>0,('CGS yields'!P$8-'CGS yields'!$A49)/365.25," ") -> 7.734428474 | Q48: =IF('CGS yields'!$A49<>0,('CGS yields'!Q$8-'CGS yields'!$A49)/365.25," ") -> 8.481861739 | R48: =IF('CGS yields'!$A49<>0,('CGS yields'!R$8-'CGS yields'!$A49)/365.25," ") -> 8.878850103 | S48: =IF('CGS yields'!$A49<>0,('CGS yields'!S$8-'CGS yields'!$A49)/365.25," ") -> 9.481177276 | T48: =IF('CGS yields'!$A49<>0,('CGS yields'!T$8-'CGS yields'!$A49)/365.25," ") -> 9.965776865 | U48: =IF('CGS yields'!$A49<>0,('CGS yields'!U$8-'CGS yields'!$A49)/365.25," ") -> 10.56810404 | V48: =IF('CGS yields'!$A49<>0,('CGS yields'!V$8-'CGS yields'!$A49)/365.25," ") -> 11.04722793 | W48: =IF('CGS yields'!$A49<>0,('CGS yields'!W$8-'CGS yields'!$A49)/365.25," ") -> 11.6495551 | X48: =IF('CGS yields'!$A49<>0,('CGS yields'!X$8-'CGS yields'!$A49)/365.25," ") -> 12.21355236 | Y48: =IF('CGS yields'!$A49<>0,('CGS yields'!Y$8-'CGS yields'!$A49)/365.25," ") -> 12.56673511 | Z48: =IF('CGS yields'!$A49<>0,('CGS yields'!Z$8-'CGS yields'!$A49)/365.25," ") -> 12.98015058 | AA48: =IF('CGS yields'!$A49<>0,('CGS yields'!AA$8-'CGS yields'!$A49)/365.25," ") -> 13.98220397 | AB48: =IF('CGS yields'!$A49<>0,('CGS yields'!AB$8-'CGS yields'!$A49)/365.25," ") -> 14.98151951 | AC48: =IF('CGS yields'!$A49<>0,('CGS yields'!AC$8-'CGS yields'!$A49)/365.25," ") -> 15.98083504 | AD48: =IF('CGS yields'!$A49<>0,('CGS yields'!AD$8-'CGS yields'!$A49)/365.25," ") -> 16.98015058 | AE48: =IF('CGS yields'!$A49<>0,('CGS yields'!AE$8-'CGS yields'!$A49)/365.25," ") -> 17.56605065 | AF48: =IF('CGS yields'!$A49<>0,('CGS yields'!AF$8-'CGS yields'!$A49)/365.25," ") -> 18.06433949 | AG48: =IF('CGS yields'!$A49<>0,('CGS yields'!AG$8-'CGS yields'!$A49)/365.25," ") -> 18.56810404 | AH48: =IF('CGS yields'!$A49<>0,('CGS yields'!AH$8-'CGS yields'!$A49)/365.25," ") -> 18.98151951 | AI48: =IF('CGS yields'!$A49<>0,('CGS yields'!AI$8-'CGS yields'!$A49)/365.25," ") -> 19.56741958 | AJ48: =IF('CGS yields'!$A49<>0,('CGS yields'!AJ$8-'CGS yields'!$A49)/365.25," ") -> 22.98151951 | AK48: =IF('CGS yields'!$A49<>0,('CGS yields'!AK$8-'CGS yields'!$A49)/365.25," ") -> 25.14715948 | AL48: =IF('CGS yields'!$A49<>0,('CGS yields'!AL$8-'CGS yields'!$A49)/365.25," ") -> 26.98151951 | AM48: =IF('CGS yields'!$A49<>0,('CGS yields'!AM$8-'CGS yields'!$A49)/365.25," ") -> 29.14715948 | AN48: =IF('CGS yields'!$A49<>0,('CGS yields'!AN$8-'CGS yields'!$A49)/365.25," ") -> 36.89527721
A49: ='CGS yields'!A50 -> 2010-04-29 | B49: =VLOOKUP(A49,'CGS yields'!$A$10:$B$2709,2,FALSE) -> 41 | C49: =IF('CGS yields'!$A50<>0,('CGS yields'!C$8-'CGS yields'!$A50)/365.25," ") -> 0.295687885 | D49: =IF('CGS yields'!$A50<>0,('CGS yields'!D$8-'CGS yields'!$A50)/365.25," ") -> 1.127994524 | E49: =IF('CGS yields'!$A50<>0,('CGS yields'!E$8-'CGS yields'!$A50)/365.25," ") -> 1.963039014 | F49: =IF('CGS yields'!$A50<>0,('CGS yields'!F$8-'CGS yields'!$A50)/365.25," ") -> 2.548939083 | G49: =IF('CGS yields'!$A50<>0,('CGS yields'!G$8-'CGS yields'!$A50)/365.25," ") -> 3.044490075 | H49: =IF('CGS yields'!$A50<>0,('CGS yields'!H$8-'CGS yields'!$A50)/365.25," ") -> 3.630390144 | I49: =IF('CGS yields'!$A50<>0,('CGS yields'!I$8-'CGS yields'!$A50)/365.25," ") -> 4.128678987 | J49: =IF('CGS yields'!$A50<>0,('CGS yields'!J$8-'CGS yields'!$A50)/365.25," ") -> 4.479123888 | K49: =IF('CGS yields'!$A50<>0,('CGS yields'!K$8-'CGS yields'!$A50)/365.25," ") -> 4.960985626 | L49: =IF('CGS yields'!$A50<>0,('CGS yields'!L$8-'CGS yields'!$A50)/365.25," ") -> 5.478439425 | M49: =IF('CGS yields'!$A50<>0,('CGS yields'!M$8-'CGS yields'!$A50)/365.25," ") -> 6.130047912 | N49: =IF('CGS yields'!$A50<>0,('CGS yields'!N$8-'CGS yields'!$A50)/365.25," ") -> 6.800821355 | O49: =IF('CGS yields'!$A50<>0,('CGS yields'!O$8-'CGS yields'!$A50)/365.25," ") -> 7.227926078 | P49: =IF('CGS yields'!$A50<>0,('CGS yields'!P$8-'CGS yields'!$A50)/365.25," ") -> 7.731690623 | Q49: =IF('CGS yields'!$A50<>0,('CGS yields'!Q$8-'CGS yields'!$A50)/365.25," ") -> 8.479123888 | R49: =IF('CGS yields'!$A50<>0,('CGS yields'!R$8-'CGS yields'!$A50)/365.25," ") -> 8.876112252 | S49: =IF('CGS yields'!$A50<>0,('CGS yields'!S$8-'CGS yields'!$A50)/365.25," ") -> 9.478439425 | T49: =IF('CGS yields'!$A50<>0,('CGS yields'!T$8-'CGS yields'!$A50)/365.25," ") -> 9.963039014 | U49: =IF('CGS yields'!$A50<>0,('CGS yields'!U$8-'CGS yields'!$A50)/365.25," ") -> 10.56536619 | V49: =IF('CGS yields'!$A50<>0,('CGS yields'!V$8-'CGS yields'!$A50)/365.25," ") -> 11.04449008 | W49: =IF('CGS yields'!$A50<>0,('CGS yields'!W$8-'CGS yields'!$A50)/365.25," ") -> 11.64681725 | X49: =IF('CGS yields'!$A50<>0,('CGS yields'!X$8-'CGS yields'!$A50)/365.25," ") -> 12.21081451 | Y49: =IF('CGS yields'!$A50<>0,('CGS yields'!Y$8-'CGS yields'!$A50)/365.25," ") -> 12.56399726 | Z49: =IF('CGS yields'!$A50<>0,('CGS yields'!Z$8-'CGS yields'!$A50)/365.25," ") -> 12.97741273 | AA49: =IF('CGS yields'!$A50<>0,('CGS yields'!AA$8-'CGS yields'!$A50)/365.25," ") -> 13.97946612 | AB49: =IF('CGS yields'!$A50<>0,('CGS yields'!AB$8-'CGS yields'!$A50)/365.25," ") -> 14.97878166 | AC49: =IF('CGS yields'!$A50<>0,('CGS yields'!AC$8-'CGS yields'!$A50)/365.25," ") -> 15.97809719 | AD49: =IF('CGS yields'!$A50<>0,('CGS yields'!AD$8-'CGS yields'!$A50)/365.25," ") -> 16.97741273 | AE49: =IF('CGS yields'!$A50<>0,('CGS yields'!AE$8-'CGS yields'!$A50)/365.25," ") -> 17.5633128 | AF49: =IF('CGS yields'!$A50<>0,('CGS yields'!AF$8-'CGS yields'!$A50)/365.25," ") -> 18.06160164 | AG49: =IF('CGS yields'!$A50<>0,('CGS yields'!AG$8-'CGS yields'!$A50)/365.25," ") -> 18.56536619 | AH49: =IF('CGS yields'!$A50<>0,('CGS yields'!AH$8-'CGS yields'!$A50)/365.25," ") -> 18.97878166 | AI49: =IF('CGS yields'!$A50<>0,('CGS yields'!AI$8-'CGS yields'!$A50)/365.25," ") -> 19.56468172 | AJ49: =IF('CGS yields'!$A50<>0,('CGS yields'!AJ$8-'CGS yields'!$A50)/365.25," ") -> 22.97878166 | AK49: =IF('CGS yields'!$A50<>0,('CGS yields'!AK$8-'CGS yields'!$A50)/365.25," ") -> 25.14442163 | AL49: =IF('CGS yields'!$A50<>0,('CGS yields'!AL$8-'CGS yields'!$A50)/365.25," ") -> 26.97878166 | AM49: =IF('CGS yields'!$A50<>0,('CGS yields'!AM$8-'CGS yields'!$A50)/365.25," ") -> 29.14442163 | AN49: =IF('CGS yields'!$A50<>0,('CGS yields'!AN$8-'CGS yields'!$A50)/365.25," ") -> 36.89253936
A50: ='CGS yields'!A51 -> 2010-04-30 | B50: =VLOOKUP(A50,'CGS yields'!$A$10:$B$2709,2,FALSE) -> 42 | C50: =IF('CGS yields'!$A51<>0,('CGS yields'!C$8-'CGS yields'!$A51)/365.25," ") -> 0.2929500342 | D50: =IF('CGS yields'!$A51<>0,('CGS yields'!D$8-'CGS yields'!$A51)/365.25," ") -> 1.125256674 | E50: =IF('CGS yields'!$A51<>0,('CGS yields'!E$8-'CGS yields'!$A51)/365.25," ") -> 1.960301164 | F50: =IF('CGS yields'!$A51<>0,('CGS yields'!F$8-'CGS yields'!$A51)/365.25," ") -> 2.546201232 | G50: =IF('CGS yields'!$A51<>0,('CGS yields'!G$8-'CGS yields'!$A51)/365.25," ") -> 3.041752225 | H50: =IF('CGS yields'!$A51<>0,('CGS yields'!H$8-'CGS yields'!$A51)/365.25," ") -> 3.627652293 | I50: =IF('CGS yields'!$A51<>0,('CGS yields'!I$8-'CGS yields'!$A51)/365.25," ") -> 4.125941136 | J50: =IF('CGS yields'!$A51<>0,('CGS yields'!J$8-'CGS yields'!$A51)/365.25," ") -> 4.476386037 | K50: =IF('CGS yields'!$A51<>0,('CGS yields'!K$8-'CGS yields'!$A51)/365.25," ") -> 4.958247775 | L50: =IF('CGS yields'!$A51<>0,('CGS yields'!L$8-'CGS yields'!$A51)/365.25," ") -> 5.475701574 | M50: =IF('CGS yields'!$A51<>0,('CGS yields'!M$8-'CGS yields'!$A51)/365.25," ") -> 6.127310062 | N50: =IF('CGS yields'!$A51<>0,('CGS yields'!N$8-'CGS yields'!$A51)/365.25," ") -> 6.798083504 | O50: =IF('CGS yields'!$A51<>0,('CGS yields'!O$8-'CGS yields'!$A51)/365.25," ") -> 7.225188227 | P50: =IF('CGS yields'!$A51<>0,('CGS yields'!P$8-'CGS yields'!$A51)/365.25," ") -> 7.728952772 | Q50: =IF('CGS yields'!$A51<>0,('CGS yields'!Q$8-'CGS yields'!$A51)/365.25," ") -> 8.476386037 | R50: =IF('CGS yields'!$A51<>0,('CGS yields'!R$8-'CGS yields'!$A51)/365.25," ") -> 8.873374401 | S50: =IF('CGS yields'!$A51<>0,('CGS yields'!S$8-'CGS yields'!$A51)/365.25," ") -> 9.475701574 | T50: =IF('CGS yields'!$A51<>0,('CGS yields'!T$8-'CGS yields'!$A51)/365.25," ") -> 9.960301164 | U50: =IF('CGS yields'!$A51<>0,('CGS yields'!U$8-'CGS yields'!$A51)/365.25," ") -> 10.56262834 | V50: =IF('CGS yields'!$A51<>0,('CGS yields'!V$8-'CGS yields'!$A51)/365.25," ") -> 11.04175222 | W50: =IF('CGS yields'!$A51<>0,('CGS yields'!W$8-'CGS yields'!$A51)/365.25," ") -> 11.6440794 | X50: =IF('CGS yields'!$A51<>0,('CGS yields'!X$8-'CGS yields'!$A51)/365.25," ") -> 12.20807666 | Y50: =IF('CGS yields'!$A51<>0,('CGS yields'!Y$8-'CGS yields'!$A51)/365.25," ") -> 12.56125941 | Z50: =IF('CGS yields'!$A51<>0,('CGS yields'!Z$8-'CGS yields'!$A51)/365.25," ") -> 12.97467488 | AA50: =IF('CGS yields'!$A51<>0,('CGS yields'!AA$8-'CGS yields'!$A51)/365.25," ") -> 13.97672827 | AB50: =IF('CGS yields'!$A51<>0,('CGS yields'!AB$8-'CGS yields'!$A51)/365.25," ") -> 14.97604381 | AC50: =IF('CGS yields'!$A51<>0,('CGS yields'!AC$8-'CGS yields'!$A51)/365.25," ") -> 15.97535934 | AD50: =IF('CGS yields'!$A51<>0,('CGS yields'!AD$8-'CGS yields'!$A51)/365.25," ") -> 16.97467488 | AE50: =IF('CGS yields'!$A51<>0,('CGS yields'!AE$8-'CGS yields'!$A51)/365.25," ") -> 17.56057495 | AF50: =IF('CGS yields'!$A51<>0,('CGS yields'!AF$8-'CGS yields'!$A51)/365.25," ") -> 18.05886379 | AG50: =IF('CGS yields'!$A51<>0,('CGS yields'!AG$8-'CGS yields'!$A51)/365.25," ") -> 18.56262834 | AH50: =IF('CGS yields'!$A51<>0,('CGS yields'!AH$8-'CGS yields'!$A51)/365.25," ") -> 18.97604381 | AI50: =IF('CGS yields'!$A51<>0,('CGS yields'!AI$8-'CGS yields'!$A51)/365.25," ") -> 19.56194387 | AJ50: =IF('CGS yields'!$A51<>0,('CGS yields'!AJ$8-'CGS yields'!$A51)/365.25," ") -> 22.97604381 | AK50: =IF('CGS yields'!$A51<>0,('CGS yields'!AK$8-'CGS yields'!$A51)/365.25," ") -> 25.14168378 | AL50: =IF('CGS yields'!$A51<>0,('CGS yields'!AL$8-'CGS yields'!$A51)/365.25," ") -> 26.97604381 | AM50: =IF('CGS yields'!$A51<>0,('CGS yields'!AM$8-'CGS yields'!$A51)/365.25," ") -> 29.14168378 | AN50: =IF('CGS yields'!$A51<>0,('CGS yields'!AN$8-'CGS yields'!$A51)/365.25," ") -> 36.88980151
A51: ='CGS yields'!A52 -> 2010-05-03 | B51: =VLOOKUP(A51,'CGS yields'!$A$10:$B$2709,2,FALSE) -> 43 | C51: =IF('CGS yields'!$A52<>0,('CGS yields'!C$8-'CGS yields'!$A52)/365.25," ") -> 0.2847364819 | D51: =IF('CGS yields'!$A52<>0,('CGS yields'!D$8-'CGS yields'!$A52)/365.25," ") -> 1.117043121 | E51: =IF('CGS yields'!$A52<>0,('CGS yields'!E$8-'CGS yields'!$A52)/365.25," ") -> 1.952087611 | F51: =IF('CGS yields'!$A52<>0,('CGS yields'!F$8-'CGS yields'!$A52)/365.25," ") -> 2.53798768 | G51: =IF('CGS yields'!$A52<>0,('CGS yields'!G$8-'CGS yields'!$A52)/365.25," ") -> 3.033538672 | H51: =IF('CGS yields'!$A52<>0,('CGS yields'!H$8-'CGS yields'!$A52)/365.25," ") -> 3.619438741 | I51: =IF('CGS yields'!$A52<>0,('CGS yields'!I$8-'CGS yields'!$A52)/365.25," ") -> 4.117727584 | J51: =IF('CGS yields'!$A52<>0,('CGS yields'!J$8-'CGS yields'!$A52)/365.25," ") -> 4.468172485 | K51: =IF('CGS yields'!$A52<>0,('CGS yields'!K$8-'CGS yields'!$A52)/365.25," ") -> 4.950034223 | L51: =IF('CGS yields'!$A52<>0,('CGS yields'!L$8-'CGS yields'!$A52)/365.25," ") -> 5.467488022 | M51: =IF('CGS yields'!$A52<>0,('CGS yields'!M$8-'CGS yields'!$A52)/365.25," ") -> 6.119096509 | N51: =IF('CGS yields'!$A52<>0,('CGS yields'!N$8-'CGS yields'!$A52)/365.25," ") -> 6.789869952 | O51: =IF('CGS yields'!$A52<>0,('CGS yields'!O$8-'CGS yields'!$A52)/365.25," ") -> 7.216974675 | P51: =IF('CGS yields'!$A52<>0,('CGS yields'!P$8-'CGS yields'!$A52)/365.25," ") -> 7.72073922 | Q51: =IF('CGS yields'!$A52<>0,('CGS yields'!Q$8-'CGS yields'!$A52)/365.25," ") -> 8.468172485 | R51: =IF('CGS yields'!$A52<>0,('CGS yields'!R$8-'CGS yields'!$A52)/365.25," ") -> 8.865160849 | S51: =IF('CGS yields'!$A52<>0,('CGS yields'!S$8-'CGS yields'!$A52)/365.25," ") -> 9.467488022 | T51: =IF('CGS yields'!$A52<>0,('CGS yields'!T$8-'CGS yields'!$A52)/365.25," ") -> 9.952087611 | U51: =IF('CGS yields'!$A52<>0,('CGS yields'!U$8-'CGS yields'!$A52)/365.25," ") -> 10.55441478 | V51: =IF('CGS yields'!$A52<>0,('CGS yields'!V$8-'CGS yields'!$A52)/365.25," ") -> 11.03353867 | W51: =IF('CGS yields'!$A52<>0,('CGS yields'!W$8-'CGS yields'!$A52)/365.25," ") -> 11.63586585 | X51: =IF('CGS yields'!$A52<>0,('CGS yields'!X$8-'CGS yields'!$A52)/365.25," ") -> 12.19986311 | Y51: =IF('CGS yields'!$A52<>0,('CGS yields'!Y$8-'CGS yields'!$A52)/365.25," ") -> 12.55304586 | Z51: =IF('CGS yields'!$A52<>0,('CGS yields'!Z$8-'CGS yields'!$A52)/365.25," ") -> 12.96646133 | AA51: =IF('CGS yields'!$A52<>0,('CGS yields'!AA$8-'CGS yields'!$A52)/365.25," ") -> 13.96851472 | AB51: =IF('CGS yields'!$A52<>0,('CGS yields'!AB$8-'CGS yields'!$A52)/365.25," ") -> 14.96783025 | AC51: =IF('CGS yields'!$A52<>0,('CGS yields'!AC$8-'CGS yields'!$A52)/365.25," ") -> 15.96714579 | AD51: =IF('CGS yields'!$A52<>0,('CGS yields'!AD$8-'CGS yields'!$A52)/365.25," ") -> 16.96646133 | AE51: =IF('CGS yields'!$A52<>0,('CGS yields'!AE$8-'CGS yields'!$A52)/365.25," ") -> 17.5523614 | AF51: =IF('CGS yields'!$A52<>0,('CGS yields'!AF$8-'CGS yields'!$A52)/365.25," ") -> 18.05065024 | AG51: =IF('CGS yields'!$A52<>0,('CGS yields'!AG$8-'CGS yields'!$A52)/365.25," ") -> 18.55441478 | AH51: =IF('CGS yields'!$A52<>0,('CGS yields'!AH$8-'CGS yields'!$A52)/365.25," ") -> 18.96783025 | AI51: =IF('CGS yields'!$A52<>0,('CGS yields'!AI$8-'CGS yields'!$A52)/365.25," ") -> 19.55373032 | AJ51: =IF('CGS yields'!$A52<>0,('CGS yields'!AJ$8-'CGS yields'!$A52)/365.25," ") -> 22.96783025 | AK51: =IF('CGS yields'!$A52<>0,('CGS yields'!AK$8-'CGS yields'!$A52)/365.25," ") -> 25.13347023 | AL51: =IF('CGS yields'!$A52<>0,('CGS yields'!AL$8-'CGS yields'!$A52)/365.25," ") -> 26.96783025 | AM51: =IF('CGS yields'!$A52<>0,('CGS yields'!AM$8-'CGS yields'!$A52)/365.25," ") -> 29.13347023 | AN51: =IF('CGS yields'!$A52<>0,('CGS yields'!AN$8-'CGS yields'!$A52)/365.25," ") -> 36.88158795
A52: ='CGS yields'!A53 -> 2010-05-04 | B52: =VLOOKUP(A52,'CGS yields'!$A$10:$B$2709,2,FALSE) -> 44 | C52: =IF('CGS yields'!$A53<>0,('CGS yields'!C$8-'CGS yields'!$A53)/365.25," ") -> 0.2819986311 | D52: =IF('CGS yields'!$A53<>0,('CGS yields'!D$8-'CGS yields'!$A53)/365.25," ") -> 1.11430527 | E52: =IF('CGS yields'!$A53<>0,('CGS yields'!E$8-'CGS yields'!$A53)/365.25," ") -> 1.94934976 | F52: =IF('CGS yields'!$A53<>0,('CGS yields'!F$8-'CGS yields'!$A53)/365.25," ") -> 2.535249829 | G52: =IF('CGS yields'!$A53<>0,('CGS yields'!G$8-'CGS yields'!$A53)/365.25," ") -> 3.030800821 | H52: =IF('CGS yields'!$A53<>0,('CGS yields'!H$8-'CGS yields'!$A53)/365.25," ") -> 3.61670089 | I52: =IF('CGS yields'!$A53<>0,('CGS yields'!I$8-'CGS yields'!$A53)/365.25," ") -> 4.114989733 | J52: =IF('CGS yields'!$A53<>0,('CGS yields'!J$8-'CGS yields'!$A53)/365.25," ") -> 4.465434634 | K52: =IF('CGS yields'!$A53<>0,('CGS yields'!K$8-'CGS yields'!$A53)/365.25," ") -> 4.947296372 | L52: =IF('CGS yields'!$A53<>0,('CGS yields'!L$8-'CGS yields'!$A53)/365.25," ") -> 5.464750171 | M52: =IF('CGS yields'!$A53<>0,('CGS yields'!M$8-'CGS yields'!$A53)/365.25," ") -> 6.116358658 | N52: =IF('CGS yields'!$A53<>0,('CGS yields'!N$8-'CGS yields'!$A53)/365.25," ") -> 6.787132101 | O52: =IF('CGS yields'!$A53<>0,('CGS yields'!O$8-'CGS yields'!$A53)/365.25," ") -> 7.214236824 | P52: =IF('CGS yields'!$A53<>0,('CGS yields'!P$8-'CGS yields'!$A53)/365.25," ") -> 7.718001369 | Q52: =IF('CGS yields'!$A53<>0,('CGS yields'!Q$8-'CGS yields'!$A53)/365.25," ") -> 8.465434634 | R52: =IF('CGS yields'!$A53<>0,('CGS yields'!R$8-'CGS yields'!$A53)/365.25," ") -> 8.862422998 | S52: =IF('CGS yields'!$A53<>0,('CGS yields'!S$8-'CGS yields'!$A53)/365.25," ") -> 9.464750171 | T52: =IF('CGS yields'!$A53<>0,('CGS yields'!T$8-'CGS yields'!$A53)/365.25," ") -> 9.94934976 | U52: =IF('CGS yields'!$A53<>0,('CGS yields'!U$8-'CGS yields'!$A53)/365.25," ") -> 10.55167693 | V52: =IF('CGS yields'!$A53<>0,('CGS yields'!V$8-'CGS yields'!$A53)/365.25," ") -> 11.03080082 | W52: =IF('CGS yields'!$A53<>0,('CGS yields'!W$8-'CGS yields'!$A53)/365.25," ") -> 11.63312799 | X52: =IF('CGS yields'!$A53<>0,('CGS yields'!X$8-'CGS yields'!$A53)/365.25," ") -> 12.19712526 | Y52: =IF('CGS yields'!$A53<>0,('CGS yields'!Y$8-'CGS yields'!$A53)/365.25," ") -> 12.55030801 | Z52: =IF('CGS yields'!$A53<>0,('CGS yields'!Z$8-'CGS yields'!$A53)/365.25," ") -> 12.96372348 | AA52: =IF('CGS yields'!$A53<>0,('CGS yields'!AA$8-'CGS yields'!$A53)/365.25," ") -> 13.96577687 | AB52: =IF('CGS yields'!$A53<>0,('CGS yields'!AB$8-'CGS yields'!$A53)/365.25," ") -> 14.9650924 | AC52: =IF('CGS yields'!$A53<>0,('CGS yields'!AC$8-'CGS yields'!$A53)/365.25," ") -> 15.96440794 | AD52: =IF('CGS yields'!$A53<>0,('CGS yields'!AD$8-'CGS yields'!$A53)/365.25," ") -> 16.96372348 | AE52: =IF('CGS yields'!$A53<>0,('CGS yields'!AE$8-'CGS yields'!$A53)/365.25," ") -> 17.54962355 | AF52: =IF('CGS yields'!$A53<>0,('CGS yields'!AF$8-'CGS yields'!$A53)/365.25," ") -> 18.04791239 | AG52: =IF('CGS yields'!$A53<>0,('CGS yields'!AG$8-'CGS yields'!$A53)/365.25," ") -> 18.55167693 | AH52: =IF('CGS yields'!$A53<>0,('CGS yields'!AH$8-'CGS yields'!$A53)/365.25," ") -> 18.9650924 | AI52: =IF('CGS yields'!$A53<>0,('CGS yields'!AI$8-'CGS yields'!$A53)/365.25," ") -> 19.55099247 | AJ52: =IF('CGS yields'!$A53<>0,('CGS yields'!AJ$8-'CGS yields'!$A53)/365.25," ") -> 22.9650924 | AK52: =IF('CGS yields'!$A53<>0,('CGS yields'!AK$8-'CGS yields'!$A53)/365.25," ") -> 25.13073238 | AL52: =IF('CGS yields'!$A53<>0,('CGS yields'!AL$8-'CGS yields'!$A53)/365.25," ") -> 26.9650924 | AM52: =IF('CGS yields'!$A53<>0,('CGS yields'!AM$8-'CGS yields'!$A53)/365.25," ") -> 29.13073238 | AN52: =IF('CGS yields'!$A53<>0,('CGS yields'!AN$8-'CGS yields'!$A53)/365.25," ") -> 36.8788501
A53: ='CGS yields'!A54 -> 2010-05-05 | B53: =VLOOKUP(A53,'CGS yields'!$A$10:$B$2709,2,FALSE) -> 45 | C53: =IF('CGS yields'!$A54<>0,('CGS yields'!C$8-'CGS yields'!$A54)/365.25," ") -> 0.2792607803 | D53: =IF('CGS yields'!$A54<>0,('CGS yields'!D$8-'CGS yields'!$A54)/365.25," ") -> 1.11156742 | E53: =IF('CGS yields'!$A54<>0,('CGS yields'!E$8-'CGS yields'!$A54)/365.25," ") -> 1.94661191 | F53: =IF('CGS yields'!$A54<>0,('CGS yields'!F$8-'CGS yields'!$A54)/365.25," ") -> 2.532511978 | G53: =IF('CGS yields'!$A54<>0,('CGS yields'!G$8-'CGS yields'!$A54)/365.25," ") -> 3.028062971 | H53: =IF('CGS yields'!$A54<>0,('CGS yields'!H$8-'CGS yields'!$A54)/365.25," ") -> 3.613963039 | I53: =IF('CGS yields'!$A54<>0,('CGS yields'!I$8-'CGS yields'!$A54)/365.25," ") -> 4.112251882 | J53: =IF('CGS yields'!$A54<>0,('CGS yields'!J$8-'CGS yields'!$A54)/365.25," ") -> 4.462696783 | K53: =IF('CGS yields'!$A54<>0,('CGS yields'!K$8-'CGS yields'!$A54)/365.25," ") -> 4.944558522 | L53: =IF('CGS yields'!$A54<>0,('CGS yields'!L$8-'CGS yields'!$A54)/365.25," ") -> 5.46201232 | M53: =IF('CGS yields'!$A54<>0,('CGS yields'!M$8-'CGS yields'!$A54)/365.25," ") -> 6.113620808 | N53: =IF('CGS yields'!$A54<>0,('CGS yields'!N$8-'CGS yields'!$A54)/365.25," ") -> 6.784394251 | O53: =IF('CGS yields'!$A54<>0,('CGS yields'!O$8-'CGS yields'!$A54)/365.25," ") -> 7.211498973 | P53: =IF('CGS yields'!$A54<>0,('CGS yields'!P$8-'CGS yields'!$A54)/365.25," ") -> 7.715263518 | Q53: =IF('CGS yields'!$A54<>0,('CGS yields'!Q$8-'CGS yields'!$A54)/365.25," ") -> 8.462696783 | R53: =IF('CGS yields'!$A54<>0,('CGS yields'!R$8-'CGS yields'!$A54)/365.25," ") -> 8.859685147 | S53: =IF('CGS yields'!$A54<>0,('CGS yields'!S$8-'CGS yields'!$A54)/365.25," ") -> 9.46201232 | T53: =IF('CGS yields'!$A54<>0,('CGS yields'!T$8-'CGS yields'!$A54)/365.25," ") -> 9.94661191 | U53: =IF('CGS yields'!$A54<>0,('CGS yields'!U$8-'CGS yields'!$A54)/365.25," ") -> 10.54893908 | V53: =IF('CGS yields'!$A54<>0,('CGS yields'!V$8-'CGS yields'!$A54)/365.25," ") -> 11.02806297 | W53: =IF('CGS yields'!$A54<>0,('CGS yields'!W$8-'CGS yields'!$A54)/365.25," ") -> 11.63039014 | X53: =IF('CGS yields'!$A54<>0,('CGS yields'!X$8-'CGS yields'!$A54)/365.25," ") -> 12.19438741 | Y53: =IF('CGS yields'!$A54<>0,('CGS yields'!Y$8-'CGS yields'!$A54)/365.25," ") -> 12.54757016 | Z53: =IF('CGS yields'!$A54<>0,('CGS yields'!Z$8-'CGS yields'!$A54)/365.25," ") -> 12.96098563 | AA53: =IF('CGS yields'!$A54<>0,('CGS yields'!AA$8-'CGS yields'!$A54)/365.25," ") -> 13.96303901 | AB53: =IF('CGS yields'!$A54<>0,('CGS yields'!AB$8-'CGS yields'!$A54)/365.25," ") -> 14.96235455 | AC53: =IF('CGS yields'!$A54<>0,('CGS yields'!AC$8-'CGS yields'!$A54)/365.25," ") -> 15.96167009 | AD53: =IF('CGS yields'!$A54<>0,('CGS yields'!AD$8-'CGS yields'!$A54)/365.25," ") -> 16.96098563 | AE53: =IF('CGS yields'!$A54<>0,('CGS yields'!AE$8-'CGS yields'!$A54)/365.25," ") -> 17.54688569 | AF53: =IF('CGS yields'!$A54<>0,('CGS yields'!AF$8-'CGS yields'!$A54)/365.25," ") -> 18.04517454 | AG53: =IF('CGS yields'!$A54<>0,('CGS yields'!AG$8-'CGS yields'!$A54)/365.25," ") -> 18.54893908 | AH53: =IF('CGS yields'!$A54<>0,('CGS yields'!AH$8-'CGS yields'!$A54)/365.25," ") -> 18.96235455 | AI53: =IF('CGS yields'!$A54<>0,('CGS yields'!AI$8-'CGS yields'!$A54)/365.25," ") -> 19.54825462 | AJ53: =IF('CGS yields'!$A54<>0,('CGS yields'!AJ$8-'CGS yields'!$A54)/365.25," ") -> 22.96235455 | AK53: =IF('CGS yields'!$A54<>0,('CGS yields'!AK$8-'CGS yields'!$A54)/365.25," ") -> 25.12799452 | AL53: =IF('CGS yields'!$A54<>0,('CGS yields'!AL$8-'CGS yields'!$A54)/365.25," ") -> 26.96235455 | AM53: =IF('CGS yields'!$A54<>0,('CGS yields'!AM$8-'CGS yields'!$A54)/365.25," ") -> 29.12799452 | AN53: =IF('CGS yields'!$A54<>0,('CGS yields'!AN$8-'CGS yields'!$A54)/365.25," ") -> 36.87611225
A54: ='CGS yields'!A55 -> 2010-05-06 | B54: =VLOOKUP(A54,'CGS yields'!$A$10:$B$2709,2,FALSE) -> 46 | C54: =IF('CGS yields'!$A55<>0,('CGS yields'!C$8-'CGS yields'!$A55)/365.25," ") -> 0.2765229295 | D54: =IF('CGS yields'!$A55<>0,('CGS yields'!D$8-'CGS yields'!$A55)/365.25," ") -> 1.108829569 | E54: =IF('CGS yields'!$A55<>0,('CGS yields'!E$8-'CGS yields'!$A55)/365.25," ") -> 1.943874059 | F54: =IF('CGS yields'!$A55<>0,('CGS yields'!F$8-'CGS yields'!$A55)/365.25," ") -> 2.529774127 | G54: =IF('CGS yields'!$A55<>0,('CGS yields'!G$8-'CGS yields'!$A55)/365.25," ") -> 3.02532512 | H54: =IF('CGS yields'!$A55<>0,('CGS yields'!H$8-'CGS yields'!$A55)/365.25," ") -> 3.611225188 | I54: =IF('CGS yields'!$A55<>0,('CGS yields'!I$8-'CGS yields'!$A55)/365.25," ") -> 4.109514031 | J54: =IF('CGS yields'!$A55<>0,('CGS yields'!J$8-'CGS yields'!$A55)/365.25," ") -> 4.459958932 | K54: =IF('CGS yields'!$A55<>0,('CGS yields'!K$8-'CGS yields'!$A55)/365.25," ") -> 4.941820671 | L54: =IF('CGS yields'!$A55<>0,('CGS yields'!L$8-'CGS yields'!$A55)/365.25," ") -> 5.45927447 | M54: =IF('CGS yields'!$A55<>0,('CGS yields'!M$8-'CGS yields'!$A55)/365.25," ") -> 6.110882957 | N54: =IF('CGS yields'!$A55<>0,('CGS yields'!N$8-'CGS yields'!$A55)/365.25," ") -> 6.7816564 | O54: =IF('CGS yields'!$A55<>0,('CGS yields'!O$8-'CGS yields'!$A55)/365.25," ") -> 7.208761123 | P54: =IF('CGS yields'!$A55<>0,('CGS yields'!P$8-'CGS yields'!$A55)/365.25," ") -> 7.712525667 | Q54: =IF('CGS yields'!$A55<>0,('CGS yields'!Q$8-'CGS yields'!$A55)/365.25," ") -> 8.459958932 | R54: =IF('CGS yields'!$A55<>0,('CGS yields'!R$8-'CGS yields'!$A55)/365.25," ") -> 8.856947296 | S54: =IF('CGS yields'!$A55<>0,('CGS yields'!S$8-'CGS yields'!$A55)/365.25," ") -> 9.45927447 | T54: =IF('CGS yields'!$A55<>0,('CGS yields'!T$8-'CGS yields'!$A55)/365.25," ") -> 9.943874059 | U54: =IF('CGS yields'!$A55<>0,('CGS yields'!U$8-'CGS yields'!$A55)/365.25," ") -> 10.54620123 | V54: =IF('CGS yields'!$A55<>0,('CGS yields'!V$8-'CGS yields'!$A55)/365.25," ") -> 11.02532512 | W54: =IF('CGS yields'!$A55<>0,('CGS yields'!W$8-'CGS yields'!$A55)/365.25," ") -> 11.62765229 | X54: =IF('CGS yields'!$A55<>0,('CGS yields'!X$8-'CGS yields'!$A55)/365.25," ") -> 12.19164956 | Y54: =IF('CGS yields'!$A55<>0,('CGS yields'!Y$8-'CGS yields'!$A55)/365.25," ") -> 12.54483231 | Z54: =IF('CGS yields'!$A55<>0,('CGS yields'!Z$8-'CGS yields'!$A55)/365.25," ") -> 12.95824778 | AA54: =IF('CGS yields'!$A55<>0,('CGS yields'!AA$8-'CGS yields'!$A55)/365.25," ") -> 13.96030116 | AB54: =IF('CGS yields'!$A55<>0,('CGS yields'!AB$8-'CGS yields'!$A55)/365.25," ") -> 14.9596167 | AC54: =IF('CGS yields'!$A55<>0,('CGS yields'!AC$8-'CGS yields'!$A55)/365.25," ") -> 15.95893224 | AD54: =IF('CGS yields'!$A55<>0,('CGS yields'!AD$8-'CGS yields'!$A55)/365.25," ") -> 16.95824778 | AE54: =IF('CGS yields'!$A55<>0,('CGS yields'!AE$8-'CGS yields'!$A55)/365.25," ") -> 17.54414784 | AF54: =IF('CGS yields'!$A55<>0,('CGS yields'!AF$8-'CGS yields'!$A55)/365.25," ") -> 18.04243669 | AG54: =IF('CGS yields'!$A55<>0,('CGS yields'!AG$8-'CGS yields'!$A55)/365.25," ") -> 18.54620123 | AH54: =IF('CGS yields'!$A55<>0,('CGS yields'!AH$8-'CGS yields'!$A55)/365.25," ") -> 18.9596167 | AI54: =IF('CGS yields'!$A55<>0,('CGS yields'!AI$8-'CGS yields'!$A55)/365.25," ") -> 19.54551677 | AJ54: =IF('CGS yields'!$A55<>0,('CGS yields'!AJ$8-'CGS yields'!$A55)/365.25," ") -> 22.9596167 | AK54: =IF('CGS yields'!$A55<>0,('CGS yields'!AK$8-'CGS yields'!$A55)/365.25," ") -> 25.12525667 | AL54: =IF('CGS yields'!$A55<>0,('CGS yields'!AL$8-'CGS yields'!$A55)/365.25," ") -> 26.9596167 | AM54: =IF('CGS yields'!$A55<>0,('CGS yields'!AM$8-'CGS yields'!$A55)/365.25," ") -> 29.12525667 | AN54: =IF('CGS yields'!$A55<>0,('CGS yields'!AN$8-'CGS yields'!$A55)/365.25," ") -> 36.8733744
A55: ='CGS yields'!A56 -> 2010-05-07 | B55: =VLOOKUP(A55,'CGS yields'!$A$10:$B$2709,2,FALSE) -> 47 | C55: =IF('CGS yields'!$A56<>0,('CGS yields'!C$8-'CGS yields'!$A56)/365.25," ") -> 0.2737850787 | D55: =IF('CGS yields'!$A56<>0,('CGS yields'!D$8-'CGS yields'!$A56)/365.25," ") -> 1.106091718 | E55: =IF('CGS yields'!$A56<>0,('CGS yields'!E$8-'CGS yields'!$A56)/365.25," ") -> 1.941136208 | F55: =IF('CGS yields'!$A56<>0,('CGS yields'!F$8-'CGS yields'!$A56)/365.25," ") -> 2.527036277 | G55: =IF('CGS yields'!$A56<>0,('CGS yields'!G$8-'CGS yields'!$A56)/365.25," ") -> 3.022587269 | H55: =IF('CGS yields'!$A56<>0,('CGS yields'!H$8-'CGS yields'!$A56)/365.25," ") -> 3.608487337 | I55: =IF('CGS yields'!$A56<>0,('CGS yields'!I$8-'CGS yields'!$A56)/365.25," ") -> 4.106776181 | J55: =IF('CGS yields'!$A56<>0,('CGS yields'!J$8-'CGS yields'!$A56)/365.25," ") -> 4.457221081 | K55: =IF('CGS yields'!$A56<>0,('CGS yields'!K$8-'CGS yields'!$A56)/365.25," ") -> 4.93908282 | L55: =IF('CGS yields'!$A56<>0,('CGS yields'!L$8-'CGS yields'!$A56)/365.25," ") -> 5.456536619 | M55: =IF('CGS yields'!$A56<>0,('CGS yields'!M$8-'CGS yields'!$A56)/365.25," ") -> 6.108145106 | N55: =IF('CGS yields'!$A56<>0,('CGS yields'!N$8-'CGS yields'!$A56)/365.25," ") -> 6.778918549 | O55: =IF('CGS yields'!$A56<>0,('CGS yields'!O$8-'CGS yields'!$A56)/365.25," ") -> 7.206023272 | P55: =IF('CGS yields'!$A56<>0,('CGS yields'!P$8-'CGS yields'!$A56)/365.25," ") -> 7.709787817 | Q55: =IF('CGS yields'!$A56<>0,('CGS yields'!Q$8-'CGS yields'!$A56)/365.25," ") -> 8.457221081 | R55: =IF('CGS yields'!$A56<>0,('CGS yields'!R$8-'CGS yields'!$A56)/365.25," ") -> 8.854209446 | S55: =IF('CGS yields'!$A56<>0,('CGS yields'!S$8-'CGS yields'!$A56)/365.25," ") -> 9.456536619 | T55: =IF('CGS yields'!$A56<>0,('CGS yields'!T$8-'CGS yields'!$A56)/365.25," ") -> 9.941136208 | U55: =IF('CGS yields'!$A56<>0,('CGS yields'!U$8-'CGS yields'!$A56)/365.25," ") -> 10.54346338 | V55: =IF('CGS yields'!$A56<>0,('CGS yields'!V$8-'CGS yields'!$A56)/365.25," ") -> 11.02258727 | W55: =IF('CGS yields'!$A56<>0,('CGS yields'!W$8-'CGS yields'!$A56)/365.25," ") -> 11.62491444 | X55: =IF('CGS yields'!$A56<>0,('CGS yields'!X$8-'CGS yields'!$A56)/365.25," ") -> 12.1889117 | Y55: =IF('CGS yields'!$A56<>0,('CGS yields'!Y$8-'CGS yields'!$A56)/365.25," ") -> 12.54209446 | Z55: =IF('CGS yields'!$A56<>0,('CGS yields'!Z$8-'CGS yields'!$A56)/365.25," ") -> 12.95550992 | AA55: =IF('CGS yields'!$A56<>0,('CGS yields'!AA$8-'CGS yields'!$A56)/365.25," ") -> 13.95756331 | AB55: =IF('CGS yields'!$A56<>0,('CGS yields'!AB$8-'CGS yields'!$A56)/365.25," ") -> 14.95687885 | AC55: =IF('CGS yields'!$A56<>0,('CGS yields'!AC$8-'CGS yields'!$A56)/365.25," ") -> 15.95619439 | AD55: =IF('CGS yields'!$A56<>0,('CGS yields'!AD$8-'CGS yields'!$A56)/365.25," ") -> 16.95550992 | AE55: =IF('CGS yields'!$A56<>0,('CGS yields'!AE$8-'CGS yields'!$A56)/365.25," ") -> 17.54140999 | AF55: =IF('CGS yields'!$A56<>0,('CGS yields'!AF$8-'CGS yields'!$A56)/365.25," ") -> 18.03969884 | AG55: =IF('CGS yields'!$A56<>0,('CGS yields'!AG$8-'CGS yields'!$A56)/365.25," ") -> 18.54346338 | AH55: =IF('CGS yields'!$A56<>0,('CGS yields'!AH$8-'CGS yields'!$A56)/365.25," ") -> 18.95687885 | AI55: =IF('CGS yields'!$A56<>0,('CGS yields'!AI$8-'CGS yields'!$A56)/365.25," ") -> 19.54277892 | AJ55: =IF('CGS yields'!$A56<>0,('CGS yields'!AJ$8-'CGS yields'!$A56)/365.25," ") -> 22.95687885 | AK55: =IF('CGS yields'!$A56<>0,('CGS yields'!AK$8-'CGS yields'!$A56)/365.25," ") -> 25.12251882 | AL55: =IF('CGS yields'!$A56<>0,('CGS yields'!AL$8-'CGS yields'!$A56)/365.25," ") -> 26.95687885 | AM55: =IF('CGS yields'!$A56<>0,('CGS yields'!AM$8-'CGS yields'!$A56)/365.25," ") -> 29.12251882 | AN55: =IF('CGS yields'!$A56<>0,('CGS yields'!AN$8-'CGS yields'!$A56)/365.25," ") -> 36.87063655
A56: ='CGS yields'!A57 -> 2010-05-10 | B56: =VLOOKUP(A56,'CGS yields'!$A$10:$B$2709,2,FALSE) -> 48 | C56: =IF('CGS yields'!$A57<>0,('CGS yields'!C$8-'CGS yields'!$A57)/365.25," ") -> 0.2655715264 | D56: =IF('CGS yields'!$A57<>0,('CGS yields'!D$8-'CGS yields'!$A57)/365.25," ") -> 1.097878166 | E56: =IF('CGS yields'!$A57<>0,('CGS yields'!E$8-'CGS yields'!$A57)/365.25," ") -> 1.932922656 | F56: =IF('CGS yields'!$A57<>0,('CGS yields'!F$8-'CGS yields'!$A57)/365.25," ") -> 2.518822724 | G56: =IF('CGS yields'!$A57<>0,('CGS yields'!G$8-'CGS yields'!$A57)/365.25," ") -> 3.014373717 | H56: =IF('CGS yields'!$A57<>0,('CGS yields'!H$8-'CGS yields'!$A57)/365.25," ") -> 3.600273785 | I56: =IF('CGS yields'!$A57<>0,('CGS yields'!I$8-'CGS yields'!$A57)/365.25," ") -> 4.098562628 | J56: =IF('CGS yields'!$A57<>0,('CGS yields'!J$8-'CGS yields'!$A57)/365.25," ") -> 4.449007529 | K56: =IF('CGS yields'!$A57<>0,('CGS yields'!K$8-'CGS yields'!$A57)/365.25," ") -> 4.930869268 | L56: =IF('CGS yields'!$A57<>0,('CGS yields'!L$8-'CGS yields'!$A57)/365.25," ") -> 5.448323066 | M56: =IF('CGS yields'!$A57<>0,('CGS yields'!M$8-'CGS yields'!$A57)/365.25," ") -> 6.099931554 | N56: =IF('CGS yields'!$A57<>0,('CGS yields'!N$8-'CGS yields'!$A57)/365.25," ") -> 6.770704997 | O56: =IF('CGS yields'!$A57<>0,('CGS yields'!O$8-'CGS yields'!$A57)/365.25," ") -> 7.197809719 | P56: =IF('CGS yields'!$A57<>0,('CGS yields'!P$8-'CGS yields'!$A57)/365.25," ") -> 7.701574264 | Q56: =IF('CGS yields'!$A57<>0,('CGS yields'!Q$8-'CGS yields'!$A57)/365.25," ") -> 8.449007529 | R56: =IF('CGS yields'!$A57<>0,('CGS yields'!R$8-'CGS yields'!$A57)/365.25," ") -> 8.845995893 | S56: =IF('CGS yields'!$A57<>0,('CGS yields'!S$8-'CGS yields'!$A57)/365.25," ") -> 9.448323066 | T56: =IF('CGS yields'!$A57<>0,('CGS yields'!T$8-'CGS yields'!$A57)/365.25," ") -> 9.932922656 | U56: =IF('CGS yields'!$A57<>0,('CGS yields'!U$8-'CGS yields'!$A57)/365.25," ") -> 10.53524983 | V56: =IF('CGS yields'!$A57<>0,('CGS yields'!V$8-'CGS yields'!$A57)/365.25," ") -> 11.01437372 | W56: =IF('CGS yields'!$A57<>0,('CGS yields'!W$8-'CGS yields'!$A57)/365.25," ") -> 11.61670089 | X56: =IF('CGS yields'!$A57<>0,('CGS yields'!X$8-'CGS yields'!$A57)/365.25," ") -> 12.18069815 | Y56: =IF('CGS yields'!$A57<>0,('CGS yields'!Y$8-'CGS yields'!$A57)/365.25," ") -> 12.5338809 | Z56: =IF('CGS yields'!$A57<>0,('CGS yields'!Z$8-'CGS yields'!$A57)/365.25," ") -> 12.94729637 | AA56: =IF('CGS yields'!$A57<>0,('CGS yields'!AA$8-'CGS yields'!$A57)/365.25," ") -> 13.94934976 | AB56: =IF('CGS yields'!$A57<>0,('CGS yields'!AB$8-'CGS yields'!$A57)/365.25," ") -> 14.9486653 | AC56: =IF('CGS yields'!$A57<>0,('CGS yields'!AC$8-'CGS yields'!$A57)/365.25," ") -> 15.94798084 | AD56: =IF('CGS yields'!$A57<>0,('CGS yields'!AD$8-'CGS yields'!$A57)/365.25," ") -> 16.94729637 | AE56: =IF('CGS yields'!$A57<>0,('CGS yields'!AE$8-'CGS yields'!$A57)/365.25," ") -> 17.53319644 | AF56: =IF('CGS yields'!$A57<>0,('CGS yields'!AF$8-'CGS yields'!$A57)/365.25," ") -> 18.03148528 | AG56: =IF('CGS yields'!$A57<>0,('CGS yields'!AG$8-'CGS yields'!$A57)/365.25," ") -> 18.53524983 | AH56: =IF('CGS yields'!$A57<>0,('CGS yields'!AH$8-'CGS yields'!$A57)/365.25," ") -> 18.9486653 | AI56: =IF('CGS yields'!$A57<>0,('CGS yields'!AI$8-'CGS yields'!$A57)/365.25," ") -> 19.53456537 | AJ56: =IF('CGS yields'!$A57<>0,('CGS yields'!AJ$8-'CGS yields'!$A57)/365.25," ") -> 22.9486653 | AK56: =IF('CGS yields'!$A57<>0,('CGS yields'!AK$8-'CGS yields'!$A57)/365.25," ") -> 25.11430527 | AL56: =IF('CGS yields'!$A57<>0,('CGS yields'!AL$8-'CGS yields'!$A57)/365.25," ") -> 26.9486653 | AM56: =IF('CGS yields'!$A57<>0,('CGS yields'!AM$8-'CGS yields'!$A57)/365.25," ") -> 29.11430527 | AN56: =IF('CGS yields'!$A57<>0,('CGS yields'!AN$8-'CGS yields'!$A57)/365.25," ") -> 36.862423
A57: ='CGS yields'!A58 -> 2010-05-11 | B57: =VLOOKUP(A57,'CGS yields'!$A$10:$B$2709,2,FALSE) -> 49 | C57: =IF('CGS yields'!$A58<>0,('CGS yields'!C$8-'CGS yields'!$A58)/365.25," ") -> 0.2628336756 | D57: =IF('CGS yields'!$A58<>0,('CGS yields'!D$8-'CGS yields'!$A58)/365.25," ") -> 1.095140315 | E57: =IF('CGS yields'!$A58<>0,('CGS yields'!E$8-'CGS yields'!$A58)/365.25," ") -> 1.930184805 | F57: =IF('CGS yields'!$A58<>0,('CGS yields'!F$8-'CGS yields'!$A58)/365.25," ") -> 2.516084873 | G57: =IF('CGS yields'!$A58<>0,('CGS yields'!G$8-'CGS yields'!$A58)/365.25," ") -> 3.011635866 | H57: =IF('CGS yields'!$A58<>0,('CGS yields'!H$8-'CGS yields'!$A58)/365.25," ") -> 3.597535934 | I57: =IF('CGS yields'!$A58<>0,('CGS yields'!I$8-'CGS yields'!$A58)/365.25," ") -> 4.095824778 | J57: =IF('CGS yields'!$A58<>0,('CGS yields'!J$8-'CGS yields'!$A58)/365.25," ") -> 4.446269678 | K57: =IF('CGS yields'!$A58<>0,('CGS yields'!K$8-'CGS yields'!$A58)/365.25," ") -> 4.928131417 | L57: =IF('CGS yields'!$A58<>0,('CGS yields'!L$8-'CGS yields'!$A58)/365.25," ") -> 5.445585216 | M57: =IF('CGS yields'!$A58<>0,('CGS yields'!M$8-'CGS yields'!$A58)/365.25," ") -> 6.097193703 | N57: =IF('CGS yields'!$A58<>0,('CGS yields'!N$8-'CGS yields'!$A58)/365.25," ") -> 6.767967146 | O57: =IF('CGS yields'!$A58<>0,('CGS yields'!O$8-'CGS yields'!$A58)/365.25," ") -> 7.195071869 | P57: =IF('CGS yields'!$A58<>0,('CGS yields'!P$8-'CGS yields'!$A58)/365.25," ") -> 7.698836413 | Q57: =IF('CGS yields'!$A58<>0,('CGS yields'!Q$8-'CGS yields'!$A58)/365.25," ") -> 8.446269678 | R57: =IF('CGS yields'!$A58<>0,('CGS yields'!R$8-'CGS yields'!$A58)/365.25," ") -> 8.843258042 | S57: =IF('CGS yields'!$A58<>0,('CGS yields'!S$8-'CGS yields'!$A58)/365.25," ") -> 9.445585216 | T57: =IF('CGS yields'!$A58<>0,('CGS yields'!T$8-'CGS yields'!$A58)/365.25," ") -> 9.930184805 | U57: =IF('CGS yields'!$A58<>0,('CGS yields'!U$8-'CGS yields'!$A58)/365.25," ") -> 10.53251198 | V57: =IF('CGS yields'!$A58<>0,('CGS yields'!V$8-'CGS yields'!$A58)/365.25," ") -> 11.01163587 | W57: =IF('CGS yields'!$A58<>0,('CGS yields'!W$8-'CGS yields'!$A58)/365.25," ") -> 11.61396304 | X57: =IF('CGS yields'!$A58<>0,('CGS yields'!X$8-'CGS yields'!$A58)/365.25," ") -> 12.1779603 | Y57: =IF('CGS yields'!$A58<>0,('CGS yields'!Y$8-'CGS yields'!$A58)/365.25," ") -> 12.53114305 | Z57: =IF('CGS yields'!$A58<>0,('CGS yields'!Z$8-'CGS yields'!$A58)/365.25," ") -> 12.94455852 | AA57: =IF('CGS yields'!$A58<>0,('CGS yields'!AA$8-'CGS yields'!$A58)/365.25," ") -> 13.94661191 | AB57: =IF('CGS yields'!$A58<>0,('CGS yields'!AB$8-'CGS yields'!$A58)/365.25," ") -> 14.94592745 | AC57: =IF('CGS yields'!$A58<>0,('CGS yields'!AC$8-'CGS yields'!$A58)/365.25," ") -> 15.94524298 | AD57: =IF('CGS yields'!$A58<>0,('CGS yields'!AD$8-'CGS yields'!$A58)/365.25," ") -> 16.94455852 | AE57: =IF('CGS yields'!$A58<>0,('CGS yields'!AE$8-'CGS yields'!$A58)/365.25," ") -> 17.53045859 | AF57: =IF('CGS yields'!$A58<>0,('CGS yields'!AF$8-'CGS yields'!$A58)/365.25," ") -> 18.02874743 | AG57: =IF('CGS yields'!$A58<>0,('CGS yields'!AG$8-'CGS yields'!$A58)/365.25," ") -> 18.53251198 | AH57: =IF('CGS yields'!$A58<>0,('CGS yields'!AH$8-'CGS yields'!$A58)/365.25," ") -> 18.94592745 | AI57: =IF('CGS yields'!$A58<>0,('CGS yields'!AI$8-'CGS yields'!$A58)/365.25," ") -> 19.53182752 | AJ57: =IF('CGS yields'!$A58<>0,('CGS yields'!AJ$8-'CGS yields'!$A58)/365.25," ") -> 22.94592745 | AK57: =IF('CGS yields'!$A58<>0,('CGS yields'!AK$8-'CGS yields'!$A58)/365.25," ") -> 25.11156742 | AL57: =IF('CGS yields'!$A58<>0,('CGS yields'!AL$8-'CGS yields'!$A58)/365.25," ") -> 26.94592745 | AM57: =IF('CGS yields'!$A58<>0,('CGS yields'!AM$8-'CGS yields'!$A58)/365.25," ") -> 29.11156742 | AN57: =IF('CGS yields'!$A58<>0,('CGS yields'!AN$8-'CGS yields'!$A58)/365.25," ") -> 36.85968515
A58: ='CGS yields'!A59 -> 2010-05-12 | B58: =VLOOKUP(A58,'CGS yields'!$A$10:$B$2709,2,FALSE) -> 50 | C58: =IF('CGS yields'!$A59<>0,('CGS yields'!C$8-'CGS yields'!$A59)/365.25," ") -> 0.2600958248 | D58: =IF('CGS yields'!$A59<>0,('CGS yields'!D$8-'CGS yields'!$A59)/365.25," ") -> 1.092402464 | E58: =IF('CGS yields'!$A59<>0,('CGS yields'!E$8-'CGS yields'!$A59)/365.25," ") -> 1.927446954 | F58: =IF('CGS yields'!$A59<>0,('CGS yields'!F$8-'CGS yields'!$A59)/365.25," ") -> 2.513347023 | G58: =IF('CGS yields'!$A59<>0,('CGS yields'!G$8-'CGS yields'!$A59)/365.25," ") -> 3.008898015 | H58: =IF('CGS yields'!$A59<>0,('CGS yields'!H$8-'CGS yields'!$A59)/365.25," ") -> 3.594798084 | I58: =IF('CGS yields'!$A59<>0,('CGS yields'!I$8-'CGS yields'!$A59)/365.25," ") -> 4.093086927 | J58: =IF('CGS yields'!$A59<>0,('CGS yields'!J$8-'CGS yields'!$A59)/365.25," ") -> 4.443531828 | K58: =IF('CGS yields'!$A59<>0,('CGS yields'!K$8-'CGS yields'!$A59)/365.25," ") -> 4.925393566 | L58: =IF('CGS yields'!$A59<>0,('CGS yields'!L$8-'CGS yields'!$A59)/365.25," ") -> 5.442847365 | M58: =IF('CGS yields'!$A59<>0,('CGS yields'!M$8-'CGS yields'!$A59)/365.25," ") -> 6.094455852 | N58: =IF('CGS yields'!$A59<>0,('CGS yields'!N$8-'CGS yields'!$A59)/365.25," ") -> 6.765229295 | O58: =IF('CGS yields'!$A59<>0,('CGS yields'!O$8-'CGS yields'!$A59)/365.25," ") -> 7.192334018 | P58: =IF('CGS yields'!$A59<>0,('CGS yields'!P$8-'CGS yields'!$A59)/365.25," ") -> 7.696098563 | Q58: =IF('CGS yields'!$A59<>0,('CGS yields'!Q$8-'CGS yields'!$A59)/365.25," ") -> 8.443531828 | R58: =IF('CGS yields'!$A59<>0,('CGS yields'!R$8-'CGS yields'!$A59)/365.25," ") -> 8.840520192 | S58: =IF('CGS yields'!$A59<>0,('CGS yields'!S$8-'CGS yields'!$A59)/365.25," ") -> 9.442847365 | T58: =IF('CGS yields'!$A59<>0,('CGS yields'!T$8-'CGS yields'!$A59)/365.25," ") -> 9.927446954 | U58: =IF('CGS yields'!$A59<>0,('CGS yields'!U$8-'CGS yields'!$A59)/365.25," ") -> 10.52977413 | V58: =IF('CGS yields'!$A59<>0,('CGS yields'!V$8-'CGS yields'!$A59)/365.25," ") -> 11.00889802 | W58: =IF('CGS yields'!$A59<>0,('CGS yields'!W$8-'CGS yields'!$A59)/365.25," ") -> 11.61122519 | X58: =IF('CGS yields'!$A59<>0,('CGS yields'!X$8-'CGS yields'!$A59)/365.25," ") -> 12.17522245 | Y58: =IF('CGS yields'!$A59<>0,('CGS yields'!Y$8-'CGS yields'!$A59)/365.25," ") -> 12.5284052 | Z58: =IF('CGS yields'!$A59<>0,('CGS yields'!Z$8-'CGS yields'!$A59)/365.25," ") -> 12.94182067 | AA58: =IF('CGS yields'!$A59<>0,('CGS yields'!AA$8-'CGS yields'!$A59)/365.25," ") -> 13.94387406 | AB58: =IF('CGS yields'!$A59<>0,('CGS yields'!AB$8-'CGS yields'!$A59)/365.25," ") -> 14.9431896 | AC58: =IF('CGS yields'!$A59<>0,('CGS yields'!AC$8-'CGS yields'!$A59)/365.25," ") -> 15.94250513 | AD58: =IF('CGS yields'!$A59<>0,('CGS yields'!AD$8-'CGS yields'!$A59)/365.25," ") -> 16.94182067 | AE58: =IF('CGS yields'!$A59<>0,('CGS yields'!AE$8-'CGS yields'!$A59)/365.25," ") -> 17.52772074 | AF58: =IF('CGS yields'!$A59<>0,('CGS yields'!AF$8-'CGS yields'!$A59)/365.25," ") -> 18.02600958 | AG58: =IF('CGS yields'!$A59<>0,('CGS yields'!AG$8-'CGS yields'!$A59)/365.25," ") -> 18.52977413 | AH58: =IF('CGS yields'!$A59<>0,('CGS yields'!AH$8-'CGS yields'!$A59)/365.25," ") -> 18.9431896 | AI58: =IF('CGS yields'!$A59<>0,('CGS yields'!AI$8-'CGS yields'!$A59)/365.25," ") -> 19.52908966 | AJ58: =IF('CGS yields'!$A59<>0,('CGS yields'!AJ$8-'CGS yields'!$A59)/365.25," ") -> 22.9431896 | AK58: =IF('CGS yields'!$A59<>0,('CGS yields'!AK$8-'CGS yields'!$A59)/365.25," ") -> 25.10882957 | AL58: =IF('CGS yields'!$A59<>0,('CGS yields'!AL$8-'CGS yields'!$A59)/365.25," ") -> 26.9431896 | AM58: =IF('CGS yields'!$A59<>0,('CGS yields'!AM$8-'CGS yields'!$A59)/365.25," ") -> 29.10882957 | AN58: =IF('CGS yields'!$A59<>0,('CGS yields'!AN$8-'CGS yields'!$A59)/365.25," ") -> 36.8569473
A59: ='CGS yields'!A60 -> 2010-05-13 | B59: =VLOOKUP(A59,'CGS yields'!$A$10:$B$2709,2,FALSE) -> 51 | C59: =IF('CGS yields'!$A60<>0,('CGS yields'!C$8-'CGS yields'!$A60)/365.25," ") -> 0.257357974 | D59: =IF('CGS yields'!$A60<>0,('CGS yields'!D$8-'CGS yields'!$A60)/365.25," ") -> 1.089664613 | E59: =IF('CGS yields'!$A60<>0,('CGS yields'!E$8-'CGS yields'!$A60)/365.25," ") -> 1.924709103 | F59: =IF('CGS yields'!$A60<>0,('CGS yields'!F$8-'CGS yields'!$A60)/365.25," ") -> 2.510609172 | G59: =IF('CGS yields'!$A60<>0,('CGS yields'!G$8-'CGS yields'!$A60)/365.25," ") -> 3.006160164 | H59: =IF('CGS yields'!$A60<>0,('CGS yields'!H$8-'CGS yields'!$A60)/365.25," ") -> 3.592060233 | I59: =IF('CGS yields'!$A60<>0,('CGS yields'!I$8-'CGS yields'!$A60)/365.25," ") -> 4.090349076 | J59: =IF('CGS yields'!$A60<>0,('CGS yields'!J$8-'CGS yields'!$A60)/365.25," ") -> 4.440793977 | K59: =IF('CGS yields'!$A60<>0,('CGS yields'!K$8-'CGS yields'!$A60)/365.25," ") -> 4.922655715 | L59: =IF('CGS yields'!$A60<>0,('CGS yields'!L$8-'CGS yields'!$A60)/365.25," ") -> 5.440109514 | M59: =IF('CGS yields'!$A60<>0,('CGS yields'!M$8-'CGS yields'!$A60)/365.25," ") -> 6.091718001 | N59: =IF('CGS yields'!$A60<>0,('CGS yields'!N$8-'CGS yields'!$A60)/365.25," ") -> 6.762491444 | O59: =IF('CGS yields'!$A60<>0,('CGS yields'!O$8-'CGS yields'!$A60)/365.25," ") -> 7.189596167 | P59: =IF('CGS yields'!$A60<>0,('CGS yields'!P$8-'CGS yields'!$A60)/365.25," ") -> 7.693360712 | Q59: =IF('CGS yields'!$A60<>0,('CGS yields'!Q$8-'CGS yields'!$A60)/365.25," ") -> 8.440793977 | R59: =IF('CGS yields'!$A60<>0,('CGS yields'!R$8-'CGS yields'!$A60)/365.25," ") -> 8.837782341 | S59: =IF('CGS yields'!$A60<>0,('CGS yields'!S$8-'CGS yields'!$A60)/365.25," ") -> 9.440109514 | T59: =IF('CGS yields'!$A60<>0,('CGS yields'!T$8-'CGS yields'!$A60)/365.25," ") -> 9.924709103 | U59: =IF('CGS yields'!$A60<>0,('CGS yields'!U$8-'CGS yields'!$A60)/365.25," ") -> 10.52703628 | V59: =IF('CGS yields'!$A60<>0,('CGS yields'!V$8-'CGS yields'!$A60)/365.25," ") -> 11.00616016 | W59: =IF('CGS yields'!$A60<>0,('CGS yields'!W$8-'CGS yields'!$A60)/365.25," ") -> 11.60848734 | X59: =IF('CGS yields'!$A60<>0,('CGS yields'!X$8-'CGS yields'!$A60)/365.25," ") -> 12.1724846 | Y59: =IF('CGS yields'!$A60<>0,('CGS yields'!Y$8-'CGS yields'!$A60)/365.25," ") -> 12.52566735 | Z59: =IF('CGS yields'!$A60<>0,('CGS yields'!Z$8-'CGS yields'!$A60)/365.25," ") -> 12.93908282 | AA59: =IF('CGS yields'!$A60<>0,('CGS yields'!AA$8-'CGS yields'!$A60)/365.25," ") -> 13.94113621 | AB59: =IF('CGS yields'!$A60<>0,('CGS yields'!AB$8-'CGS yields'!$A60)/365.25," ") -> 14.94045175 | AC59: =IF('CGS yields'!$A60<>0,('CGS yields'!AC$8-'CGS yields'!$A60)/365.25," ") -> 15.93976728 | AD59: =IF('CGS yields'!$A60<>0,('CGS yields'!AD$8-'CGS yields'!$A60)/365.25," ") -> 16.93908282 | AE59: =IF('CGS yields'!$A60<>0,('CGS yields'!AE$8-'CGS yields'!$A60)/365.25," ") -> 17.52498289 | AF59: =IF('CGS yields'!$A60<>0,('CGS yields'!AF$8-'CGS yields'!$A60)/365.25," ") -> 18.02327173 | AG59: =IF('CGS yields'!$A60<>0,('CGS yields'!AG$8-'CGS yields'!$A60)/365.25," ") -> 18.52703628 | AH59: =IF('CGS yields'!$A60<>0,('CGS yields'!AH$8-'CGS yields'!$A60)/365.25," ") -> 18.94045175 | AI59: =IF('CGS yields'!$A60<>0,('CGS yields'!AI$8-'CGS yields'!$A60)/365.25," ") -> 19.52635181 | AJ59: =IF('CGS yields'!$A60<>0,('CGS yields'!AJ$8-'CGS yields'!$A60)/365.25," ") -> 22.94045175 | AK59: =IF('CGS yields'!$A60<>0,('CGS yields'!AK$8-'CGS yields'!$A60)/365.25," ") -> 25.10609172 | AL59: =IF('CGS yields'!$A60<>0,('CGS yields'!AL$8-'CGS yields'!$A60)/365.25," ") -> 26.94045175 | AM59: =IF('CGS yields'!$A60<>0,('CGS yields'!AM$8-'CGS yields'!$A60)/365.25," ") -> 29.10609172 | AN59: =IF('CGS yields'!$A60<>0,('CGS yields'!AN$8-'CGS yields'!$A60)/365.25," ") -> 36.85420945
A60: ='CGS yields'!A61 -> 2010-05-14 | B60: =VLOOKUP(A60,'CGS yields'!$A$10:$B$2709,2,FALSE) -> 52 | C60: =IF('CGS yields'!$A61<>0,('CGS yields'!C$8-'CGS yields'!$A61)/365.25," ") -> 0.2546201232 | D60: =IF('CGS yields'!$A61<>0,('CGS yields'!D$8-'CGS yields'!$A61)/365.25," ") -> 1.086926762 | E60: =IF('CGS yields'!$A61<>0,('CGS yields'!E$8-'CGS yields'!$A61)/365.25," ") -> 1.921971253 | F60: =IF('CGS yields'!$A61<>0,('CGS yields'!F$8-'CGS yields'!$A61)/365.25," ") -> 2.507871321 | G60: =IF('CGS yields'!$A61<>0,('CGS yields'!G$8-'CGS yields'!$A61)/365.25," ") -> 3.003422313 | H60: =IF('CGS yields'!$A61<>0,('CGS yields'!H$8-'CGS yields'!$A61)/365.25," ") -> 3.589322382 | I60: =IF('CGS yields'!$A61<>0,('CGS yields'!I$8-'CGS yields'!$A61)/365.25," ") -> 4.087611225 | J60: =IF('CGS yields'!$A61<>0,('CGS yields'!J$8-'CGS yields'!$A61)/365.25," ") -> 4.438056126 | K60: =IF('CGS yields'!$A61<>0,('CGS yields'!K$8-'CGS yields'!$A61)/365.25," ") -> 4.919917864 | L60: =IF('CGS yields'!$A61<>0,('CGS yields'!L$8-'CGS yields'!$A61)/365.25," ") -> 5.437371663 | M60: =IF('CGS yields'!$A61<>0,('CGS yields'!M$8-'CGS yields'!$A61)/365.25," ") -> 6.088980151 | N60: =IF('CGS yields'!$A61<>0,('CGS yields'!N$8-'CGS yields'!$A61)/365.25," ") -> 6.759753593 | O60: =IF('CGS yields'!$A61<>0,('CGS yields'!O$8-'CGS yields'!$A61)/365.25," ") -> 7.186858316 | P60: =IF('CGS yields'!$A61<>0,('CGS yields'!P$8-'CGS yields'!$A61)/365.25," ") -> 7.690622861 | Q60: =IF('CGS yields'!$A61<>0,('CGS yields'!Q$8-'CGS yields'!$A61)/365.25," ") -> 8.438056126 | R60: =IF('CGS yields'!$A61<>0,('CGS yields'!R$8-'CGS yields'!$A61)/365.25," ") -> 8.83504449 | S60: =IF('CGS yields'!$A61<>0,('CGS yields'!S$8-'CGS yields'!$A61)/365.25," ") -> 9.437371663 | T60: =IF('CGS yields'!$A61<>0,('CGS yields'!T$8-'CGS yields'!$A61)/365.25," ") -> 9.921971253 | U60: =IF('CGS yields'!$A61<>0,('CGS yields'!U$8-'CGS yields'!$A61)/365.25," ") -> 10.52429843 | V60: =IF('CGS yields'!$A61<>0,('CGS yields'!V$8-'CGS yields'!$A61)/365.25," ") -> 11.00342231 | W60: =IF('CGS yields'!$A61<>0,('CGS yields'!W$8-'CGS yields'!$A61)/365.25," ") -> 11.60574949 | X60: =IF('CGS yields'!$A61<>0,('CGS yields'!X$8-'CGS yields'!$A61)/365.25," ") -> 12.16974675 | Y60: =IF('CGS yields'!$A61<>0,('CGS yields'!Y$8-'CGS yields'!$A61)/365.25," ") -> 12.5229295 | Z60: =IF('CGS yields'!$A61<>0,('CGS yields'!Z$8-'CGS yields'!$A61)/365.25," ") -> 12.93634497 | AA60: =IF('CGS yields'!$A61<>0,('CGS yields'!AA$8-'CGS yields'!$A61)/365.25," ") -> 13.93839836 | AB60: =IF('CGS yields'!$A61<>0,('CGS yields'!AB$8-'CGS yields'!$A61)/365.25," ") -> 14.93771389 | AC60: =IF('CGS yields'!$A61<>0,('CGS yields'!AC$8-'CGS yields'!$A61)/365.25," ") -> 15.93702943 | AD60: =IF('CGS yields'!$A61<>0,('CGS yields'!AD$8-'CGS yields'!$A61)/365.25," ") -> 16.93634497 | AE60: =IF('CGS yields'!$A61<>0,('CGS yields'!AE$8-'CGS yields'!$A61)/365.25," ") -> 17.52224504 | AF60: =IF('CGS yields'!$A61<>0,('CGS yields'!AF$8-'CGS yields'!$A61)/365.25," ") -> 18.02053388 | AG60: =IF('CGS yields'!$A61<>0,('CGS yields'!AG$8-'CGS yields'!$A61)/365.25," ") -> 18.52429843 | AH60: =IF('CGS yields'!$A61<>0,('CGS yields'!AH$8-'CGS yields'!$A61)/365.25," ") -> 18.93771389 | AI60: =IF('CGS yields'!$A61<>0,('CGS yields'!AI$8-'CGS yields'!$A61)/365.25," ") -> 19.52361396 | AJ60: =IF('CGS yields'!$A61<>0,('CGS yields'!AJ$8-'CGS yields'!$A61)/365.25," ") -> 22.93771389 | AK60: =IF('CGS yields'!$A61<>0,('CGS yields'!AK$8-'CGS yields'!$A61)/365.25," ") -> 25.10335387 | AL60: =IF('CGS yields'!$A61<>0,('CGS yields'!AL$8-'CGS yields'!$A61)/365.25," ") -> 26.93771389 | AM60: =IF('CGS yields'!$A61<>0,('CGS yields'!AM$8-'CGS yields'!$A61)/365.25," ") -> 29.10335387 | AN60: =IF('CGS yields'!$A61<>0,('CGS yields'!AN$8-'CGS yields'!$A61)/365.25," ") -> 36.85147159
A61: ='CGS yields'!A62 -> 2010-05-17 | B61: =VLOOKUP(A61,'CGS yields'!$A$10:$B$2709,2,FALSE) -> 53 | C61: =IF('CGS yields'!$A62<>0,('CGS yields'!C$8-'CGS yields'!$A62)/365.25," ") -> 0.2464065708 | D61: =IF('CGS yields'!$A62<>0,('CGS yields'!D$8-'CGS yields'!$A62)/365.25," ") -> 1.07871321 | E61: =IF('CGS yields'!$A62<>0,('CGS yields'!E$8-'CGS yields'!$A62)/365.25," ") -> 1.9137577 | F61: =IF('CGS yields'!$A62<>0,('CGS yields'!F$8-'CGS yields'!$A62)/365.25," ") -> 2.499657769 | G61: =IF('CGS yields'!$A62<>0,('CGS yields'!G$8-'CGS yields'!$A62)/365.25," ") -> 2.995208761 | H61: =IF('CGS yields'!$A62<>0,('CGS yields'!H$8-'CGS yields'!$A62)/365.25," ") -> 3.58110883 | I61: =IF('CGS yields'!$A62<>0,('CGS yields'!I$8-'CGS yields'!$A62)/365.25," ") -> 4.079397673 | J61: =IF('CGS yields'!$A62<>0,('CGS yields'!J$8-'CGS yields'!$A62)/365.25," ") -> 4.429842574 | K61: =IF('CGS yields'!$A62<>0,('CGS yields'!K$8-'CGS yields'!$A62)/365.25," ") -> 4.911704312 | L61: =IF('CGS yields'!$A62<>0,('CGS yields'!L$8-'CGS yields'!$A62)/365.25," ") -> 5.429158111 | M61: =IF('CGS yields'!$A62<>0,('CGS yields'!M$8-'CGS yields'!$A62)/365.25," ") -> 6.080766598 | N61: =IF('CGS yields'!$A62<>0,('CGS yields'!N$8-'CGS yields'!$A62)/365.25," ") -> 6.751540041 | O61: =IF('CGS yields'!$A62<>0,('CGS yields'!O$8-'CGS yields'!$A62)/365.25," ") -> 7.178644764 | P61: =IF('CGS yields'!$A62<>0,('CGS yields'!P$8-'CGS yields'!$A62)/365.25," ") -> 7.682409309 | Q61: =IF('CGS yields'!$A62<>0,('CGS yields'!Q$8-'CGS yields'!$A62)/365.25," ") -> 8.429842574 | R61: =IF('CGS yields'!$A62<>0,('CGS yields'!R$8-'CGS yields'!$A62)/365.25," ") -> 8.826830938 | S61: =IF('CGS yields'!$A62<>0,('CGS yields'!S$8-'CGS yields'!$A62)/365.25," ") -> 9.429158111 | T61: =IF('CGS yields'!$A62<>0,('CGS yields'!T$8-'CGS yields'!$A62)/365.25," ") -> 9.9137577 | U61: =IF('CGS yields'!$A62<>0,('CGS yields'!U$8-'CGS yields'!$A62)/365.25," ") -> 10.51608487 | V61: =IF('CGS yields'!$A62<>0,('CGS yields'!V$8-'CGS yields'!$A62)/365.25," ") -> 10.99520876 | W61: =IF('CGS yields'!$A62<>0,('CGS yields'!W$8-'CGS yields'!$A62)/365.25," ") -> 11.59753593 | X61: =IF('CGS yields'!$A62<>0,('CGS yields'!X$8-'CGS yields'!$A62)/365.25," ") -> 12.1615332 | Y61: =IF('CGS yields'!$A62<>0,('CGS yields'!Y$8-'CGS yields'!$A62)/365.25," ") -> 12.51471595 | Z61: =IF('CGS yields'!$A62<>0,('CGS yields'!Z$8-'CGS yields'!$A62)/365.25," ") -> 12.92813142 | AA61: =IF('CGS yields'!$A62<>0,('CGS yields'!AA$8-'CGS yields'!$A62)/365.25," ") -> 13.9301848 | AB61: =IF('CGS yields'!$A62<>0,('CGS yields'!AB$8-'CGS yields'!$A62)/365.25," ") -> 14.92950034 | AC61: =IF('CGS yields'!$A62<>0,('CGS yields'!AC$8-'CGS yields'!$A62)/365.25," ") -> 15.92881588 | AD61: =IF('CGS yields'!$A62<>0,('CGS yields'!AD$8-'CGS yields'!$A62)/365.25," ") -> 16.92813142 | AE61: =IF('CGS yields'!$A62<>0,('CGS yields'!AE$8-'CGS yields'!$A62)/365.25," ") -> 17.51403149 | AF61: =IF('CGS yields'!$A62<>0,('CGS yields'!AF$8-'CGS yields'!$A62)/365.25," ") -> 18.01232033 | AG61: =IF('CGS yields'!$A62<>0,('CGS yields'!AG$8-'CGS yields'!$A62)/365.25," ") -> 18.51608487 | AH61: =IF('CGS yields'!$A62<>0,('CGS yields'!AH$8-'CGS yields'!$A62)/365.25," ") -> 18.92950034 | AI61: =IF('CGS yields'!$A62<>0,('CGS yields'!AI$8-'CGS yields'!$A62)/365.25," ") -> 19.51540041 | AJ61: =IF('CGS yields'!$A62<>0,('CGS yields'!AJ$8-'CGS yields'!$A62)/365.25," ") -> 22.92950034 | AK61: =IF('CGS yields'!$A62<>0,('CGS yields'!AK$8-'CGS yields'!$A62)/365.25," ") -> 25.09514031 | AL61: =IF('CGS yields'!$A62<>0,('CGS yields'!AL$8-'CGS yields'!$A62)/365.25," ") -> 26.92950034 | AM61: =IF('CGS yields'!$A62<>0,('CGS yields'!AM$8-'CGS yields'!$A62)/365.25," ") -> 29.09514031 | AN61: =IF('CGS yields'!$A62<>0,('CGS yields'!AN$8-'CGS yields'!$A62)/365.25," ") -> 36.84325804
A62: ='CGS yields'!A63 -> 2010-05-18 | B62: =VLOOKUP(A62,'CGS yields'!$A$10:$B$2709,2,FALSE) -> 54 | C62: =IF('CGS yields'!$A63<>0,('CGS yields'!C$8-'CGS yields'!$A63)/365.25," ") -> 0.2436687201 | D62: =IF('CGS yields'!$A63<>0,('CGS yields'!D$8-'CGS yields'!$A63)/365.25," ") -> 1.075975359 | E62: =IF('CGS yields'!$A63<>0,('CGS yields'!E$8-'CGS yields'!$A63)/365.25," ") -> 1.911019849 | F62: =IF('CGS yields'!$A63<>0,('CGS yields'!F$8-'CGS yields'!$A63)/365.25," ") -> 2.496919918 | G62: =IF('CGS yields'!$A63<>0,('CGS yields'!G$8-'CGS yields'!$A63)/365.25," ") -> 2.99247091 | H62: =IF('CGS yields'!$A63<>0,('CGS yields'!H$8-'CGS yields'!$A63)/365.25," ") -> 3.578370979 | I62: =IF('CGS yields'!$A63<>0,('CGS yields'!I$8-'CGS yields'!$A63)/365.25," ") -> 4.076659822 | J62: =IF('CGS yields'!$A63<>0,('CGS yields'!J$8-'CGS yields'!$A63)/365.25," ") -> 4.427104723 | K62: =IF('CGS yields'!$A63<>0,('CGS yields'!K$8-'CGS yields'!$A63)/365.25," ") -> 4.908966461 | L62: =IF('CGS yields'!$A63<>0,('CGS yields'!L$8-'CGS yields'!$A63)/365.25," ") -> 5.42642026 | M62: =IF('CGS yields'!$A63<>0,('CGS yields'!M$8-'CGS yields'!$A63)/365.25," ") -> 6.078028747 | N62: =IF('CGS yields'!$A63<>0,('CGS yields'!N$8-'CGS yields'!$A63)/365.25," ") -> 6.74880219 | O62: =IF('CGS yields'!$A63<>0,('CGS yields'!O$8-'CGS yields'!$A63)/365.25," ") -> 7.175906913 | P62: =IF('CGS yields'!$A63<>0,('CGS yields'!P$8-'CGS yields'!$A63)/365.25," ") -> 7.679671458 | Q62: =IF('CGS yields'!$A63<>0,('CGS yields'!Q$8-'CGS yields'!$A63)/365.25," ") -> 8.427104723 | R62: =IF('CGS yields'!$A63<>0,('CGS yields'!R$8-'CGS yields'!$A63)/365.25," ") -> 8.824093087 | S62: =IF('CGS yields'!$A63<>0,('CGS yields'!S$8-'CGS yields'!$A63)/365.25," ") -> 9.42642026 | T62: =IF('CGS yields'!$A63<>0,('CGS yields'!T$8-'CGS yields'!$A63)/365.25," ") -> 9.911019849 | U62: =IF('CGS yields'!$A63<>0,('CGS yields'!U$8-'CGS yields'!$A63)/365.25," ") -> 10.51334702 | V62: =IF('CGS yields'!$A63<>0,('CGS yields'!V$8-'CGS yields'!$A63)/365.25," ") -> 10.99247091 | W62: =IF('CGS yields'!$A63<>0,('CGS yields'!W$8-'CGS yields'!$A63)/365.25," ") -> 11.59479808 | X62: =IF('CGS yields'!$A63<>0,('CGS yields'!X$8-'CGS yields'!$A63)/365.25," ") -> 12.15879535 | Y62: =IF('CGS yields'!$A63<>0,('CGS yields'!Y$8-'CGS yields'!$A63)/365.25," ") -> 12.5119781 | Z62: =IF('CGS yields'!$A63<>0,('CGS yields'!Z$8-'CGS yields'!$A63)/365.25," ") -> 12.92539357 | AA62: =IF('CGS yields'!$A63<>0,('CGS yields'!AA$8-'CGS yields'!$A63)/365.25," ") -> 13.92744695 | AB62: =IF('CGS yields'!$A63<>0,('CGS yields'!AB$8-'CGS yields'!$A63)/365.25," ") -> 14.92676249 | AC62: =IF('CGS yields'!$A63<>0,('CGS yields'!AC$8-'CGS yields'!$A63)/365.25," ") -> 15.92607803 | AD62: =IF('CGS yields'!$A63<>0,('CGS yields'!AD$8-'CGS yields'!$A63)/365.25," ") -> 16.92539357 | AE62: =IF('CGS yields'!$A63<>0,('CGS yields'!AE$8-'CGS yields'!$A63)/365.25," ") -> 17.51129363 | AF62: =IF('CGS yields'!$A63<>0,('CGS yields'!AF$8-'CGS yields'!$A63)/365.25," ") -> 18.00958248 | AG62: =IF('CGS yields'!$A63<>0,('CGS yields'!AG$8-'CGS yields'!$A63)/365.25," ") -> 18.51334702 | AH62: =IF('CGS yields'!$A63<>0,('CGS yields'!AH$8-'CGS yields'!$A63)/365.25," ") -> 18.92676249 | AI62: =IF('CGS yields'!$A63<>0,('CGS yields'!AI$8-'CGS yields'!$A63)/365.25," ") -> 19.51266256 | AJ62: =IF('CGS yields'!$A63<>0,('CGS yields'!AJ$8-'CGS yields'!$A63)/365.25," ") -> 22.92676249 | AK62: =IF('CGS yields'!$A63<>0,('CGS yields'!AK$8-'CGS yields'!$A63)/365.25," ") -> 25.09240246 | AL62: =IF('CGS yields'!$A63<>0,('CGS yields'!AL$8-'CGS yields'!$A63)/365.25," ") -> 26.92676249 | AM62: =IF('CGS yields'!$A63<>0,('CGS yields'!AM$8-'CGS yields'!$A63)/365.25," ") -> 29.09240246 | AN62: =IF('CGS yields'!$A63<>0,('CGS yields'!AN$8-'CGS yields'!$A63)/365.25," ") -> 36.84052019
A63: ='CGS yields'!A64 -> 2010-05-19 | B63: =VLOOKUP(A63,'CGS yields'!$A$10:$B$2709,2,FALSE) -> 55 | C63: =IF('CGS yields'!$A64<>0,('CGS yields'!C$8-'CGS yields'!$A64)/365.25," ") -> 0.2409308693 | D63: =IF('CGS yields'!$A64<>0,('CGS yields'!D$8-'CGS yields'!$A64)/365.25," ") -> 1.073237509 | E63: =IF('CGS yields'!$A64<>0,('CGS yields'!E$8-'CGS yields'!$A64)/365.25," ") -> 1.908281999 | F63: =IF('CGS yields'!$A64<>0,('CGS yields'!F$8-'CGS yields'!$A64)/365.25," ") -> 2.494182067 | G63: =IF('CGS yields'!$A64<>0,('CGS yields'!G$8-'CGS yields'!$A64)/365.25," ") -> 2.98973306 | H63: =IF('CGS yields'!$A64<>0,('CGS yields'!H$8-'CGS yields'!$A64)/365.25," ") -> 3.575633128 | I63: =IF('CGS yields'!$A64<>0,('CGS yields'!I$8-'CGS yields'!$A64)/365.25," ") -> 4.073921971 | J63: =IF('CGS yields'!$A64<>0,('CGS yields'!J$8-'CGS yields'!$A64)/365.25," ") -> 4.424366872 | K63: =IF('CGS yields'!$A64<>0,('CGS yields'!K$8-'CGS yields'!$A64)/365.25," ") -> 4.906228611 | L63: =IF('CGS yields'!$A64<>0,('CGS yields'!L$8-'CGS yields'!$A64)/365.25," ") -> 5.423682409 | M63: =IF('CGS yields'!$A64<>0,('CGS yields'!M$8-'CGS yields'!$A64)/365.25," ") -> 6.075290897 | N63: =IF('CGS yields'!$A64<>0,('CGS yields'!N$8-'CGS yields'!$A64)/365.25," ") -> 6.746064339 | O63: =IF('CGS yields'!$A64<>0,('CGS yields'!O$8-'CGS yields'!$A64)/365.25," ") -> 7.173169062 | P63: =IF('CGS yields'!$A64<>0,('CGS yields'!P$8-'CGS yields'!$A64)/365.25," ") -> 7.676933607 | Q63: =IF('CGS yields'!$A64<>0,('CGS yields'!Q$8-'CGS yields'!$A64)/365.25," ") -> 8.424366872 | R63: =IF('CGS yields'!$A64<>0,('CGS yields'!R$8-'CGS yields'!$A64)/365.25," ") -> 8.821355236 | S63: =IF('CGS yields'!$A64<>0,('CGS yields'!S$8-'CGS yields'!$A64)/365.25," ") -> 9.423682409 | T63: =IF('CGS yields'!$A64<>0,('CGS yields'!T$8-'CGS yields'!$A64)/365.25," ") -> 9.908281999 | U63: =IF('CGS yields'!$A64<>0,('CGS yields'!U$8-'CGS yields'!$A64)/365.25," ") -> 10.51060917 | V63: =IF('CGS yields'!$A64<>0,('CGS yields'!V$8-'CGS yields'!$A64)/365.25," ") -> 10.98973306 | W63: =IF('CGS yields'!$A64<>0,('CGS yields'!W$8-'CGS yields'!$A64)/365.25," ") -> 11.59206023 | X63: =IF('CGS yields'!$A64<>0,('CGS yields'!X$8-'CGS yields'!$A64)/365.25," ") -> 12.15605749 | Y63: =IF('CGS yields'!$A64<>0,('CGS yields'!Y$8-'CGS yields'!$A64)/365.25," ") -> 12.50924025 | Z63: =IF('CGS yields'!$A64<>0,('CGS yields'!Z$8-'CGS yields'!$A64)/365.25," ") -> 12.92265572 | AA63: =IF('CGS yields'!$A64<>0,('CGS yields'!AA$8-'CGS yields'!$A64)/365.25," ") -> 13.9247091 | AB63: =IF('CGS yields'!$A64<>0,('CGS yields'!AB$8-'CGS yields'!$A64)/365.25," ") -> 14.92402464 | AC63: =IF('CGS yields'!$A64<>0,('CGS yields'!AC$8-'CGS yields'!$A64)/365.25," ") -> 15.92334018 | AD63: =IF('CGS yields'!$A64<>0,('CGS yields'!AD$8-'CGS yields'!$A64)/365.25," ") -> 16.92265572 | AE63: =IF('CGS yields'!$A64<>0,('CGS yields'!AE$8-'CGS yields'!$A64)/365.25," ") -> 17.50855578 | AF63: =IF('CGS yields'!$A64<>0,('CGS yields'!AF$8-'CGS yields'!$A64)/365.25," ") -> 18.00684463 | AG63: =IF('CGS yields'!$A64<>0,('CGS yields'!AG$8-'CGS yields'!$A64)/365.25," ") -> 18.51060917 | AH63: =IF('CGS yields'!$A64<>0,('CGS yields'!AH$8-'CGS yields'!$A64)/365.25," ") -> 18.92402464 | AI63: =IF('CGS yields'!$A64<>0,('CGS yields'!AI$8-'CGS yields'!$A64)/365.25," ") -> 19.50992471 | AJ63: =IF('CGS yields'!$A64<>0,('CGS yields'!AJ$8-'CGS yields'!$A64)/365.25," ") -> 22.92402464 | AK63: =IF('CGS yields'!$A64<>0,('CGS yields'!AK$8-'CGS yields'!$A64)/365.25," ") -> 25.08966461 | AL63: =IF('CGS yields'!$A64<>0,('CGS yields'!AL$8-'CGS yields'!$A64)/365.25," ") -> 26.92402464 | AM63: =IF('CGS yields'!$A64<>0,('CGS yields'!AM$8-'CGS yields'!$A64)/365.25," ") -> 29.08966461 | AN63: =IF('CGS yields'!$A64<>0,('CGS yields'!AN$8-'CGS yields'!$A64)/365.25," ") -> 36.83778234
A64: ='CGS yields'!A65 -> 2010-05-20 | B64: =VLOOKUP(A64,'CGS yields'!$A$10:$B$2709,2,FALSE) -> 56 | C64: =IF('CGS yields'!$A65<>0,('CGS yields'!C$8-'CGS yields'!$A65)/365.25," ") -> 0.2381930185 | D64: =IF('CGS yields'!$A65<>0,('CGS yields'!D$8-'CGS yields'!$A65)/365.25," ") -> 1.070499658 | E64: =IF('CGS yields'!$A65<>0,('CGS yields'!E$8-'CGS yields'!$A65)/365.25," ") -> 1.905544148 | F64: =IF('CGS yields'!$A65<>0,('CGS yields'!F$8-'CGS yields'!$A65)/365.25," ") -> 2.491444216 | G64: =IF('CGS yields'!$A65<>0,('CGS yields'!G$8-'CGS yields'!$A65)/365.25," ") -> 2.986995209 | H64: =IF('CGS yields'!$A65<>0,('CGS yields'!H$8-'CGS yields'!$A65)/365.25," ") -> 3.572895277 | I64: =IF('CGS yields'!$A65<>0,('CGS yields'!I$8-'CGS yields'!$A65)/365.25," ") -> 4.07118412 | J64: =IF('CGS yields'!$A65<>0,('CGS yields'!J$8-'CGS yields'!$A65)/365.25," ") -> 4.421629021 | K64: =IF('CGS yields'!$A65<>0,('CGS yields'!K$8-'CGS yields'!$A65)/365.25," ") -> 4.90349076 | L64: =IF('CGS yields'!$A65<>0,('CGS yields'!L$8-'CGS yields'!$A65)/365.25," ") -> 5.420944559 | M64: =IF('CGS yields'!$A65<>0,('CGS yields'!M$8-'CGS yields'!$A65)/365.25," ") -> 6.072553046 | N64: =IF('CGS yields'!$A65<>0,('CGS yields'!N$8-'CGS yields'!$A65)/365.25," ") -> 6.743326489 | O64: =IF('CGS yields'!$A65<>0,('CGS yields'!O$8-'CGS yields'!$A65)/365.25," ") -> 7.170431211 | P64: =IF('CGS yields'!$A65<>0,('CGS yields'!P$8-'CGS yields'!$A65)/365.25," ") -> 7.674195756 | Q64: =IF('CGS yields'!$A65<>0,('CGS yields'!Q$8-'CGS yields'!$A65)/365.25," ") -> 8.421629021 | R64: =IF('CGS yields'!$A65<>0,('CGS yields'!R$8-'CGS yields'!$A65)/365.25," ") -> 8.818617385 | S64: =IF('CGS yields'!$A65<>0,('CGS yields'!S$8-'CGS yields'!$A65)/365.25," ") -> 9.420944559 | T64: =IF('CGS yields'!$A65<>0,('CGS yields'!T$8-'CGS yields'!$A65)/365.25," ") -> 9.905544148 | U64: =IF('CGS yields'!$A65<>0,('CGS yields'!U$8-'CGS yields'!$A65)/365.25," ") -> 10.50787132 | V64: =IF('CGS yields'!$A65<>0,('CGS yields'!V$8-'CGS yields'!$A65)/365.25," ") -> 10.98699521 | W64: =IF('CGS yields'!$A65<>0,('CGS yields'!W$8-'CGS yields'!$A65)/365.25," ") -> 11.58932238 | X64: =IF('CGS yields'!$A65<>0,('CGS yields'!X$8-'CGS yields'!$A65)/365.25," ") -> 12.15331964 | Y64: =IF('CGS yields'!$A65<>0,('CGS yields'!Y$8-'CGS yields'!$A65)/365.25," ") -> 12.5065024 | Z64: =IF('CGS yields'!$A65<>0,('CGS yields'!Z$8-'CGS yields'!$A65)/365.25," ") -> 12.91991786 | AA64: =IF('CGS yields'!$A65<>0,('CGS yields'!AA$8-'CGS yields'!$A65)/365.25," ") -> 13.92197125 | AB64: =IF('CGS yields'!$A65<>0,('CGS yields'!AB$8-'CGS yields'!$A65)/365.25," ") -> 14.92128679 | AC64: =IF('CGS yields'!$A65<>0,('CGS yields'!AC$8-'CGS yields'!$A65)/365.25," ") -> 15.92060233 | AD64: =IF('CGS yields'!$A65<>0,('CGS yields'!AD$8-'CGS yields'!$A65)/365.25," ") -> 16.91991786 | AE64: =IF('CGS yields'!$A65<>0,('CGS yields'!AE$8-'CGS yields'!$A65)/365.25," ") -> 17.50581793 | AF64: =IF('CGS yields'!$A65<>0,('CGS yields'!AF$8-'CGS yields'!$A65)/365.25," ") -> 18.00410678 | AG64: =IF('CGS yields'!$A65<>0,('CGS yields'!AG$8-'CGS yields'!$A65)/365.25," ") -> 18.50787132 | AH64: =IF('CGS yields'!$A65<>0,('CGS yields'!AH$8-'CGS yields'!$A65)/365.25," ") -> 18.92128679 | AI64: =IF('CGS yields'!$A65<>0,('CGS yields'!AI$8-'CGS yields'!$A65)/365.25," ") -> 19.50718686 | AJ64: =IF('CGS yields'!$A65<>0,('CGS yields'!AJ$8-'CGS yields'!$A65)/365.25," ") -> 22.92128679 | AK64: =IF('CGS yields'!$A65<>0,('CGS yields'!AK$8-'CGS yields'!$A65)/365.25," ") -> 25.08692676 | AL64: =IF('CGS yields'!$A65<>0,('CGS yields'!AL$8-'CGS yields'!$A65)/365.25," ") -> 26.92128679 | AM64: =IF('CGS yields'!$A65<>0,('CGS yields'!AM$8-'CGS yields'!$A65)/365.25," ") -> 29.08692676 | AN64: =IF('CGS yields'!$A65<>0,('CGS yields'!AN$8-'CGS yields'!$A65)/365.25," ") -> 36.83504449
A65: ='CGS yields'!A66 -> 2010-05-21 | B65: =VLOOKUP(A65,'CGS yields'!$A$10:$B$2709,2,FALSE) -> 57 | C65: =IF('CGS yields'!$A66<>0,('CGS yields'!C$8-'CGS yields'!$A66)/365.25," ") -> 0.2354551677 | D65: =IF('CGS yields'!$A66<>0,('CGS yields'!D$8-'CGS yields'!$A66)/365.25," ") -> 1.067761807 | E65: =IF('CGS yields'!$A66<>0,('CGS yields'!E$8-'CGS yields'!$A66)/365.25," ") -> 1.902806297 | F65: =IF('CGS yields'!$A66<>0,('CGS yields'!F$8-'CGS yields'!$A66)/365.25," ") -> 2.488706366 | G65: =IF('CGS yields'!$A66<>0,('CGS yields'!G$8-'CGS yields'!$A66)/365.25," ") -> 2.984257358 | H65: =IF('CGS yields'!$A66<>0,('CGS yields'!H$8-'CGS yields'!$A66)/365.25," ") -> 3.570157426 | I65: =IF('CGS yields'!$A66<>0,('CGS yields'!I$8-'CGS yields'!$A66)/365.25," ") -> 4.06844627 | J65: =IF('CGS yields'!$A66<>0,('CGS yields'!J$8-'CGS yields'!$A66)/365.25," ") -> 4.41889117 | K65: =IF('CGS yields'!$A66<>0,('CGS yields'!K$8-'CGS yields'!$A66)/365.25," ") -> 4.900752909 | L65: =IF('CGS yields'!$A66<>0,('CGS yields'!L$8-'CGS yields'!$A66)/365.25," ") -> 5.418206708 | M65: =IF('CGS yields'!$A66<>0,('CGS yields'!M$8-'CGS yields'!$A66)/365.25," ") -> 6.069815195 | N65: =IF('CGS yields'!$A66<>0,('CGS yields'!N$8-'CGS yields'!$A66)/365.25," ") -> 6.740588638 | O65: =IF('CGS yields'!$A66<>0,('CGS yields'!O$8-'CGS yields'!$A66)/365.25," ") -> 7.167693361 | P65: =IF('CGS yields'!$A66<>0,('CGS yields'!P$8-'CGS yields'!$A66)/365.25," ") -> 7.671457906 | Q65: =IF('CGS yields'!$A66<>0,('CGS yields'!Q$8-'CGS yields'!$A66)/365.25," ") -> 8.41889117 | R65: =IF('CGS yields'!$A66<>0,('CGS yields'!R$8-'CGS yields'!$A66)/365.25," ") -> 8.815879535 | S65: =IF('CGS yields'!$A66<>0,('CGS yields'!S$8-'CGS yields'!$A66)/365.25," ") -> 9.418206708 | T65: =IF('CGS yields'!$A66<>0,('CGS yields'!T$8-'CGS yields'!$A66)/365.25," ") -> 9.902806297 | U65: =IF('CGS yields'!$A66<>0,('CGS yields'!U$8-'CGS yields'!$A66)/365.25," ") -> 10.50513347 | V65: =IF('CGS yields'!$A66<>0,('CGS yields'!V$8-'CGS yields'!$A66)/365.25," ") -> 10.98425736 | W65: =IF('CGS yields'!$A66<>0,('CGS yields'!W$8-'CGS yields'!$A66)/365.25," ") -> 11.58658453 | X65: =IF('CGS yields'!$A66<>0,('CGS yields'!X$8-'CGS yields'!$A66)/365.25," ") -> 12.15058179 | Y65: =IF('CGS yields'!$A66<>0,('CGS yields'!Y$8-'CGS yields'!$A66)/365.25," ") -> 12.50376454 | Z65: =IF('CGS yields'!$A66<>0,('CGS yields'!Z$8-'CGS yields'!$A66)/365.25," ") -> 12.91718001 | AA65: =IF('CGS yields'!$A66<>0,('CGS yields'!AA$8-'CGS yields'!$A66)/365.25," ") -> 13.9192334 | AB65: =IF('CGS yields'!$A66<>0,('CGS yields'!AB$8-'CGS yields'!$A66)/365.25," ") -> 14.91854894 | AC65: =IF('CGS yields'!$A66<>0,('CGS yields'!AC$8-'CGS yields'!$A66)/365.25," ") -> 15.91786448 | AD65: =IF('CGS yields'!$A66<>0,('CGS yields'!AD$8-'CGS yields'!$A66)/365.25," ") -> 16.91718001 | AE65: =IF('CGS yields'!$A66<>0,('CGS yields'!AE$8-'CGS yields'!$A66)/365.25," ") -> 17.50308008 | AF65: =IF('CGS yields'!$A66<>0,('CGS yields'!AF$8-'CGS yields'!$A66)/365.25," ") -> 18.00136893 | AG65: =IF('CGS yields'!$A66<>0,('CGS yields'!AG$8-'CGS yields'!$A66)/365.25," ") -> 18.50513347 | AH65: =IF('CGS yields'!$A66<>0,('CGS yields'!AH$8-'CGS yields'!$A66)/365.25," ") -> 18.91854894 | AI65: =IF('CGS yields'!$A66<>0,('CGS yields'!AI$8-'CGS yields'!$A66)/365.25," ") -> 19.50444901 | AJ65: =IF('CGS yields'!$A66<>0,('CGS yields'!AJ$8-'CGS yields'!$A66)/365.25," ") -> 22.91854894 | AK65: =IF('CGS yields'!$A66<>0,('CGS yields'!AK$8-'CGS yields'!$A66)/365.25," ") -> 25.08418891 | AL65: =IF('CGS yields'!$A66<>0,('CGS yields'!AL$8-'CGS yields'!$A66)/365.25," ") -> 26.91854894 | AM65: =IF('CGS yields'!$A66<>0,('CGS yields'!AM$8-'CGS yields'!$A66)/365.25," ") -> 29.08418891 | AN65: =IF('CGS yields'!$A66<>0,('CGS yields'!AN$8-'CGS yields'!$A66)/365.25," ") -> 36.83230664
A66: ='CGS yields'!A67 -> 2010-05-24 | B66: =VLOOKUP(A66,'CGS yields'!$A$10:$B$2709,2,FALSE) -> 58 | C66: =IF('CGS yields'!$A67<>0,('CGS yields'!C$8-'CGS yields'!$A67)/365.25," ") -> 0.2272416153 | D66: =IF('CGS yields'!$A67<>0,('CGS yields'!D$8-'CGS yields'!$A67)/365.25," ") -> 1.059548255 | E66: =IF('CGS yields'!$A67<>0,('CGS yields'!E$8-'CGS yields'!$A67)/365.25," ") -> 1.894592745 | F66: =IF('CGS yields'!$A67<>0,('CGS yields'!F$8-'CGS yields'!$A67)/365.25," ") -> 2.480492813 | G66: =IF('CGS yields'!$A67<>0,('CGS yields'!G$8-'CGS yields'!$A67)/365.25," ") -> 2.976043806 | H66: =IF('CGS yields'!$A67<>0,('CGS yields'!H$8-'CGS yields'!$A67)/365.25," ") -> 3.561943874 | I66: =IF('CGS yields'!$A67<>0,('CGS yields'!I$8-'CGS yields'!$A67)/365.25," ") -> 4.060232717 | J66: =IF('CGS yields'!$A67<>0,('CGS yields'!J$8-'CGS yields'!$A67)/365.25," ") -> 4.410677618 | K66: =IF('CGS yields'!$A67<>0,('CGS yields'!K$8-'CGS yields'!$A67)/365.25," ") -> 4.892539357 | L66: =IF('CGS yields'!$A67<>0,('CGS yields'!L$8-'CGS yields'!$A67)/365.25," ") -> 5.409993155 | M66: =IF('CGS yields'!$A67<>0,('CGS yields'!M$8-'CGS yields'!$A67)/365.25," ") -> 6.061601643 | N66: =IF('CGS yields'!$A67<>0,('CGS yields'!N$8-'CGS yields'!$A67)/365.25," ") -> 6.732375086 | O66: =IF('CGS yields'!$A67<>0,('CGS yields'!O$8-'CGS yields'!$A67)/365.25," ") -> 7.159479808 | P66: =IF('CGS yields'!$A67<>0,('CGS yields'!P$8-'CGS yields'!$A67)/365.25," ") -> 7.663244353 | Q66: =IF('CGS yields'!$A67<>0,('CGS yields'!Q$8-'CGS yields'!$A67)/365.25," ") -> 8.410677618 | R66: =IF('CGS yields'!$A67<>0,('CGS yields'!R$8-'CGS yields'!$A67)/365.25," ") -> 8.807665982 | S66: =IF('CGS yields'!$A67<>0,('CGS yields'!S$8-'CGS yields'!$A67)/365.25," ") -> 9.409993155 | T66: =IF('CGS yields'!$A67<>0,('CGS yields'!T$8-'CGS yields'!$A67)/365.25," ") -> 9.894592745 | U66: =IF('CGS yields'!$A67<>0,('CGS yields'!U$8-'CGS yields'!$A67)/365.25," ") -> 10.49691992 | V66: =IF('CGS yields'!$A67<>0,('CGS yields'!V$8-'CGS yields'!$A67)/365.25," ") -> 10.97604381 | W66: =IF('CGS yields'!$A67<>0,('CGS yields'!W$8-'CGS yields'!$A67)/365.25," ") -> 11.57837098 | X66: =IF('CGS yields'!$A67<>0,('CGS yields'!X$8-'CGS yields'!$A67)/365.25," ") -> 12.14236824 | Y66: =IF('CGS yields'!$A67<>0,('CGS yields'!Y$8-'CGS yields'!$A67)/365.25," ") -> 12.49555099 | Z66: =IF('CGS yields'!$A67<>0,('CGS yields'!Z$8-'CGS yields'!$A67)/365.25," ") -> 12.90896646 | AA66: =IF('CGS yields'!$A67<>0,('CGS yields'!AA$8-'CGS yields'!$A67)/365.25," ") -> 13.91101985 | AB66: =IF('CGS yields'!$A67<>0,('CGS yields'!AB$8-'CGS yields'!$A67)/365.25," ") -> 14.91033539 | AC66: =IF('CGS yields'!$A67<>0,('CGS yields'!AC$8-'CGS yields'!$A67)/365.25," ") -> 15.90965092 | AD66: =IF('CGS yields'!$A67<>0,('CGS yields'!AD$8-'CGS yields'!$A67)/365.25," ") -> 16.90896646 | AE66: =IF('CGS yields'!$A67<>0,('CGS yields'!AE$8-'CGS yields'!$A67)/365.25," ") -> 17.49486653 | AF66: =IF('CGS yields'!$A67<>0,('CGS yields'!AF$8-'CGS yields'!$A67)/365.25," ") -> 17.99315537 | AG66: =IF('CGS yields'!$A67<>0,('CGS yields'!AG$8-'CGS yields'!$A67)/365.25," ") -> 18.49691992 | AH66: =IF('CGS yields'!$A67<>0,('CGS yields'!AH$8-'CGS yields'!$A67)/365.25," ") -> 18.91033539 | AI66: =IF('CGS yields'!$A67<>0,('CGS yields'!AI$8-'CGS yields'!$A67)/365.25," ") -> 19.49623546 | AJ66: =IF('CGS yields'!$A67<>0,('CGS yields'!AJ$8-'CGS yields'!$A67)/365.25," ") -> 22.91033539 | AK66: =IF('CGS yields'!$A67<>0,('CGS yields'!AK$8-'CGS yields'!$A67)/365.25," ") -> 25.07597536 | AL66: =IF('CGS yields'!$A67<>0,('CGS yields'!AL$8-'CGS yields'!$A67)/365.25," ") -> 26.91033539 | AM66: =IF('CGS yields'!$A67<>0,('CGS yields'!AM$8-'CGS yields'!$A67)/365.25," ") -> 29.07597536 | AN66: =IF('CGS yields'!$A67<>0,('CGS yields'!AN$8-'CGS yields'!$A67)/365.25," ") -> 36.82409309
A67: ='CGS yields'!A68 -> 2010-05-25 | B67: =VLOOKUP(A67,'CGS yields'!$A$10:$B$2709,2,FALSE) -> 59 | C67: =IF('CGS yields'!$A68<>0,('CGS yields'!C$8-'CGS yields'!$A68)/365.25," ") -> 0.2245037645 | D67: =IF('CGS yields'!$A68<>0,('CGS yields'!D$8-'CGS yields'!$A68)/365.25," ") -> 1.056810404 | E67: =IF('CGS yields'!$A68<>0,('CGS yields'!E$8-'CGS yields'!$A68)/365.25," ") -> 1.891854894 | F67: =IF('CGS yields'!$A68<>0,('CGS yields'!F$8-'CGS yields'!$A68)/365.25," ") -> 2.477754962 | G67: =IF('CGS yields'!$A68<>0,('CGS yields'!G$8-'CGS yields'!$A68)/365.25," ") -> 2.973305955 | H67: =IF('CGS yields'!$A68<>0,('CGS yields'!H$8-'CGS yields'!$A68)/365.25," ") -> 3.559206023 | I67: =IF('CGS yields'!$A68<>0,('CGS yields'!I$8-'CGS yields'!$A68)/365.25," ") -> 4.057494867 | J67: =IF('CGS yields'!$A68<>0,('CGS yields'!J$8-'CGS yields'!$A68)/365.25," ") -> 4.407939767 | K67: =IF('CGS yields'!$A68<>0,('CGS yields'!K$8-'CGS yields'!$A68)/365.25," ") -> 4.889801506 | L67: =IF('CGS yields'!$A68<>0,('CGS yields'!L$8-'CGS yields'!$A68)/365.25," ") -> 5.407255305 | M67: =IF('CGS yields'!$A68<>0,('CGS yields'!M$8-'CGS yields'!$A68)/365.25," ") -> 6.058863792 | N67: =IF('CGS yields'!$A68<>0,('CGS yields'!N$8-'CGS yields'!$A68)/365.25," ") -> 6.729637235 | O67: =IF('CGS yields'!$A68<>0,('CGS yields'!O$8-'CGS yields'!$A68)/365.25," ") -> 7.156741958 | P67: =IF('CGS yields'!$A68<>0,('CGS yields'!P$8-'CGS yields'!$A68)/365.25," ") -> 7.660506502 | Q67: =IF('CGS yields'!$A68<>0,('CGS yields'!Q$8-'CGS yields'!$A68)/365.25," ") -> 8.407939767 | R67: =IF('CGS yields'!$A68<>0,('CGS yields'!R$8-'CGS yields'!$A68)/365.25," ") -> 8.804928131 | S67: =IF('CGS yields'!$A68<>0,('CGS yields'!S$8-'CGS yields'!$A68)/365.25," ") -> 9.407255305 | T67: =IF('CGS yields'!$A68<>0,('CGS yields'!T$8-'CGS yields'!$A68)/365.25," ") -> 9.891854894 | U67: =IF('CGS yields'!$A68<>0,('CGS yields'!U$8-'CGS yields'!$A68)/365.25," ") -> 10.49418207 | V67: =IF('CGS yields'!$A68<>0,('CGS yields'!V$8-'CGS yields'!$A68)/365.25," ") -> 10.97330595 | W67: =IF('CGS yields'!$A68<>0,('CGS yields'!W$8-'CGS yields'!$A68)/365.25," ") -> 11.57563313 | X67: =IF('CGS yields'!$A68<>0,('CGS yields'!X$8-'CGS yields'!$A68)/365.25," ") -> 12.13963039 | Y67: =IF('CGS yields'!$A68<>0,('CGS yields'!Y$8-'CGS yields'!$A68)/365.25," ") -> 12.49281314 | Z67: =IF('CGS yields'!$A68<>0,('CGS yields'!Z$8-'CGS yields'!$A68)/365.25," ") -> 12.90622861 | AA67: =IF('CGS yields'!$A68<>0,('CGS yields'!AA$8-'CGS yields'!$A68)/365.25," ") -> 13.908282 | AB67: =IF('CGS yields'!$A68<>0,('CGS yields'!AB$8-'CGS yields'!$A68)/365.25," ") -> 14.90759754 | AC67: =IF('CGS yields'!$A68<>0,('CGS yields'!AC$8-'CGS yields'!$A68)/365.25," ") -> 15.90691307 | AD67: =IF('CGS yields'!$A68<>0,('CGS yields'!AD$8-'CGS yields'!$A68)/365.25," ") -> 16.90622861 | AE67: =IF('CGS yields'!$A68<>0,('CGS yields'!AE$8-'CGS yields'!$A68)/365.25," ") -> 17.49212868 | AF67: =IF('CGS yields'!$A68<>0,('CGS yields'!AF$8-'CGS yields'!$A68)/365.25," ") -> 17.99041752 | AG67: =IF('CGS yields'!$A68<>0,('CGS yields'!AG$8-'CGS yields'!$A68)/365.25," ") -> 18.49418207 | AH67: =IF('CGS yields'!$A68<>0,('CGS yields'!AH$8-'CGS yields'!$A68)/365.25," ") -> 18.90759754 | AI67: =IF('CGS yields'!$A68<>0,('CGS yields'!AI$8-'CGS yields'!$A68)/365.25," ") -> 19.4934976 | AJ67: =IF('CGS yields'!$A68<>0,('CGS yields'!AJ$8-'CGS yields'!$A68)/365.25," ") -> 22.90759754 | AK67: =IF('CGS yields'!$A68<>0,('CGS yields'!AK$8-'CGS yields'!$A68)/365.25," ") -> 25.07323751 | AL67: =IF('CGS yields'!$A68<>0,('CGS yields'!AL$8-'CGS yields'!$A68)/365.25," ") -> 26.90759754 | AM67: =IF('CGS yields'!$A68<>0,('CGS yields'!AM$8-'CGS yields'!$A68)/365.25," ") -> 29.07323751 | AN67: =IF('CGS yields'!$A68<>0,('CGS yields'!AN$8-'CGS yields'!$A68)/365.25," ") -> 36.82135524
A68: ='CGS yields'!A69 -> 2010-05-26 | B68: =VLOOKUP(A68,'CGS yields'!$A$10:$B$2709,2,FALSE) -> 60 | C68: =IF('CGS yields'!$A69<>0,('CGS yields'!C$8-'CGS yields'!$A69)/365.25," ") -> 0.2217659138 | D68: =IF('CGS yields'!$A69<>0,('CGS yields'!D$8-'CGS yields'!$A69)/365.25," ") -> 1.054072553 | E68: =IF('CGS yields'!$A69<>0,('CGS yields'!E$8-'CGS yields'!$A69)/365.25," ") -> 1.889117043 | F68: =IF('CGS yields'!$A69<>0,('CGS yields'!F$8-'CGS yields'!$A69)/365.25," ") -> 2.475017112 | G68: =IF('CGS yields'!$A69<>0,('CGS yields'!G$8-'CGS yields'!$A69)/365.25," ") -> 2.970568104 | H68: =IF('CGS yields'!$A69<>0,('CGS yields'!H$8-'CGS yields'!$A69)/365.25," ") -> 3.556468172 | I68: =IF('CGS yields'!$A69<>0,('CGS yields'!I$8-'CGS yields'!$A69)/365.25," ") -> 4.054757016 | J68: =IF('CGS yields'!$A69<>0,('CGS yields'!J$8-'CGS yields'!$A69)/365.25," ") -> 4.405201916 | K68: =IF('CGS yields'!$A69<>0,('CGS yields'!K$8-'CGS yields'!$A69)/365.25," ") -> 4.887063655 | L68: =IF('CGS yields'!$A69<>0,('CGS yields'!L$8-'CGS yields'!$A69)/365.25," ") -> 5.404517454 | M68: =IF('CGS yields'!$A69<>0,('CGS yields'!M$8-'CGS yields'!$A69)/365.25," ") -> 6.056125941 | N68: =IF('CGS yields'!$A69<>0,('CGS yields'!N$8-'CGS yields'!$A69)/365.25," ") -> 6.726899384 | O68: =IF('CGS yields'!$A69<>0,('CGS yields'!O$8-'CGS yields'!$A69)/365.25," ") -> 7.154004107 | P68: =IF('CGS yields'!$A69<>0,('CGS yields'!P$8-'CGS yields'!$A69)/365.25," ") -> 7.657768652 | Q68: =IF('CGS yields'!$A69<>0,('CGS yields'!Q$8-'CGS yields'!$A69)/365.25," ") -> 8.405201916 | R68: =IF('CGS yields'!$A69<>0,('CGS yields'!R$8-'CGS yields'!$A69)/365.25," ") -> 8.802190281 | S68: =IF('CGS yields'!$A69<>0,('CGS yields'!S$8-'CGS yields'!$A69)/365.25," ") -> 9.404517454 | T68: =IF('CGS yields'!$A69<>0,('CGS yields'!T$8-'CGS yields'!$A69)/365.25," ") -> 9.889117043 | U68: =IF('CGS yields'!$A69<>0,('CGS yields'!U$8-'CGS yields'!$A69)/365.25," ") -> 10.49144422 | V68: =IF('CGS yields'!$A69<>0,('CGS yields'!V$8-'CGS yields'!$A69)/365.25," ") -> 10.9705681 | W68: =IF('CGS yields'!$A69<>0,('CGS yields'!W$8-'CGS yields'!$A69)/365.25," ") -> 11.57289528 | X68: =IF('CGS yields'!$A69<>0,('CGS yields'!X$8-'CGS yields'!$A69)/365.25," ") -> 12.13689254 | Y68: =IF('CGS yields'!$A69<>0,('CGS yields'!Y$8-'CGS yields'!$A69)/365.25," ") -> 12.49007529 | Z68: =IF('CGS yields'!$A69<>0,('CGS yields'!Z$8-'CGS yields'!$A69)/365.25," ") -> 12.90349076 | AA68: =IF('CGS yields'!$A69<>0,('CGS yields'!AA$8-'CGS yields'!$A69)/365.25," ") -> 13.90554415 | AB68: =IF('CGS yields'!$A69<>0,('CGS yields'!AB$8-'CGS yields'!$A69)/365.25," ") -> 14.90485969 | AC68: =IF('CGS yields'!$A69<>0,('CGS yields'!AC$8-'CGS yields'!$A69)/365.25," ") -> 15.90417522 | AD68: =IF('CGS yields'!$A69<>0,('CGS yields'!AD$8-'CGS yields'!$A69)/365.25," ") -> 16.90349076 | AE68: =IF('CGS yields'!$A69<>0,('CGS yields'!AE$8-'CGS yields'!$A69)/365.25," ") -> 17.48939083 | AF68: =IF('CGS yields'!$A69<>0,('CGS yields'!AF$8-'CGS yields'!$A69)/365.25," ") -> 17.98767967 | AG68: =IF('CGS yields'!$A69<>0,('CGS yields'!AG$8-'CGS yields'!$A69)/365.25," ") -> 18.49144422 | AH68: =IF('CGS yields'!$A69<>0,('CGS yields'!AH$8-'CGS yields'!$A69)/365.25," ") -> 18.90485969 | AI68: =IF('CGS yields'!$A69<>0,('CGS yields'!AI$8-'CGS yields'!$A69)/365.25," ") -> 19.49075975 | AJ68: =IF('CGS yields'!$A69<>0,('CGS yields'!AJ$8-'CGS yields'!$A69)/365.25," ") -> 22.90485969 | AK68: =IF('CGS yields'!$A69<>0,('CGS yields'!AK$8-'CGS yields'!$A69)/365.25," ") -> 25.07049966 | AL68: =IF('CGS yields'!$A69<>0,('CGS yields'!AL$8-'CGS yields'!$A69)/365.25," ") -> 26.90485969 | AM68: =IF('CGS yields'!$A69<>0,('CGS yields'!AM$8-'CGS yields'!$A69)/365.25," ") -> 29.07049966 | AN68: =IF('CGS yields'!$A69<>0,('CGS yields'!AN$8-'CGS yields'!$A69)/365.25," ") -> 36.81861739
A69: ='CGS yields'!A70 -> 2010-05-27 | B69: =VLOOKUP(A69,'CGS yields'!$A$10:$B$2709,2,FALSE) -> 61 | C69: =IF('CGS yields'!$A70<>0,('CGS yields'!C$8-'CGS yields'!$A70)/365.25," ") -> 0.219028063 | D69: =IF('CGS yields'!$A70<>0,('CGS yields'!D$8-'CGS yields'!$A70)/365.25," ") -> 1.051334702 | E69: =IF('CGS yields'!$A70<>0,('CGS yields'!E$8-'CGS yields'!$A70)/365.25," ") -> 1.886379192 | F69: =IF('CGS yields'!$A70<>0,('CGS yields'!F$8-'CGS yields'!$A70)/365.25," ") -> 2.472279261 | G69: =IF('CGS yields'!$A70<>0,('CGS yields'!G$8-'CGS yields'!$A70)/365.25," ") -> 2.967830253 | H69: =IF('CGS yields'!$A70<>0,('CGS yields'!H$8-'CGS yields'!$A70)/365.25," ") -> 3.553730322 | I69: =IF('CGS yields'!$A70<>0,('CGS yields'!I$8-'CGS yields'!$A70)/365.25," ") -> 4.052019165 | J69: =IF('CGS yields'!$A70<>0,('CGS yields'!J$8-'CGS yields'!$A70)/365.25," ") -> 4.402464066 | K69: =IF('CGS yields'!$A70<>0,('CGS yields'!K$8-'CGS yields'!$A70)/365.25," ") -> 4.884325804 | L69: =IF('CGS yields'!$A70<>0,('CGS yields'!L$8-'CGS yields'!$A70)/365.25," ") -> 5.401779603 | M69: =IF('CGS yields'!$A70<>0,('CGS yields'!M$8-'CGS yields'!$A70)/365.25," ") -> 6.05338809 | N69: =IF('CGS yields'!$A70<>0,('CGS yields'!N$8-'CGS yields'!$A70)/365.25," ") -> 6.724161533 | O69: =IF('CGS yields'!$A70<>0,('CGS yields'!O$8-'CGS yields'!$A70)/365.25," ") -> 7.151266256 | P69: =IF('CGS yields'!$A70<>0,('CGS yields'!P$8-'CGS yields'!$A70)/365.25," ") -> 7.655030801 | Q69: =IF('CGS yields'!$A70<>0,('CGS yields'!Q$8-'CGS yields'!$A70)/365.25," ") -> 8.402464066 | R69: =IF('CGS yields'!$A70<>0,('CGS yields'!R$8-'CGS yields'!$A70)/365.25," ") -> 8.79945243 | S69: =IF('CGS yields'!$A70<>0,('CGS yields'!S$8-'CGS yields'!$A70)/365.25," ") -> 9.401779603 | T69: =IF('CGS yields'!$A70<>0,('CGS yields'!T$8-'CGS yields'!$A70)/365.25," ") -> 9.886379192 | U69: =IF('CGS yields'!$A70<>0,('CGS yields'!U$8-'CGS yields'!$A70)/365.25," ") -> 10.48870637 | V69: =IF('CGS yields'!$A70<>0,('CGS yields'!V$8-'CGS yields'!$A70)/365.25," ") -> 10.96783025 | W69: =IF('CGS yields'!$A70<>0,('CGS yields'!W$8-'CGS yields'!$A70)/365.25," ") -> 11.57015743 | X69: =IF('CGS yields'!$A70<>0,('CGS yields'!X$8-'CGS yields'!$A70)/365.25," ") -> 12.13415469 | Y69: =IF('CGS yields'!$A70<>0,('CGS yields'!Y$8-'CGS yields'!$A70)/365.25," ") -> 12.48733744 | Z69: =IF('CGS yields'!$A70<>0,('CGS yields'!Z$8-'CGS yields'!$A70)/365.25," ") -> 12.90075291 | AA69: =IF('CGS yields'!$A70<>0,('CGS yields'!AA$8-'CGS yields'!$A70)/365.25," ") -> 13.9028063 | AB69: =IF('CGS yields'!$A70<>0,('CGS yields'!AB$8-'CGS yields'!$A70)/365.25," ") -> 14.90212183 | AC69: =IF('CGS yields'!$A70<>0,('CGS yields'!AC$8-'CGS yields'!$A70)/365.25," ") -> 15.90143737 | AD69: =IF('CGS yields'!$A70<>0,('CGS yields'!AD$8-'CGS yields'!$A70)/365.25," ") -> 16.90075291 | AE69: =IF('CGS yields'!$A70<>0,('CGS yields'!AE$8-'CGS yields'!$A70)/365.25," ") -> 17.48665298 | AF69: =IF('CGS yields'!$A70<>0,('CGS yields'!AF$8-'CGS yields'!$A70)/365.25," ") -> 17.98494182 | AG69: =IF('CGS yields'!$A70<>0,('CGS yields'!AG$8-'CGS yields'!$A70)/365.25," ") -> 18.48870637 | AH69: =IF('CGS yields'!$A70<>0,('CGS yields'!AH$8-'CGS yields'!$A70)/365.25," ") -> 18.90212183 | AI69: =IF('CGS yields'!$A70<>0,('CGS yields'!AI$8-'CGS yields'!$A70)/365.25," ") -> 19.4880219 | AJ69: =IF('CGS yields'!$A70<>0,('CGS yields'!AJ$8-'CGS yields'!$A70)/365.25," ") -> 22.90212183 | AK69: =IF('CGS yields'!$A70<>0,('CGS yields'!AK$8-'CGS yields'!$A70)/365.25," ") -> 25.06776181 | AL69: =IF('CGS yields'!$A70<>0,('CGS yields'!AL$8-'CGS yields'!$A70)/365.25," ") -> 26.90212183 | AM69: =IF('CGS yields'!$A70<>0,('CGS yields'!AM$8-'CGS yields'!$A70)/365.25," ") -> 29.06776181 | AN69: =IF('CGS yields'!$A70<>0,('CGS yields'!AN$8-'CGS yields'!$A70)/365.25," ") -> 36.81587953
A70: ='CGS yields'!A71 -> 2010-05-28 | B70: =VLOOKUP(A70,'CGS yields'!$A$10:$B$2709,2,FALSE) -> 62 | C70: =IF('CGS yields'!$A71<>0,('CGS yields'!C$8-'CGS yields'!$A71)/365.25," ") -> 0.2162902122 | D70: =IF('CGS yields'!$A71<>0,('CGS yields'!D$8-'CGS yields'!$A71)/365.25," ") -> 1.048596851 | E70: =IF('CGS yields'!$A71<>0,('CGS yields'!E$8-'CGS yields'!$A71)/365.25," ") -> 1.883641342 | F70: =IF('CGS yields'!$A71<>0,('CGS yields'!F$8-'CGS yields'!$A71)/365.25," ") -> 2.46954141 | G70: =IF('CGS yields'!$A71<>0,('CGS yields'!G$8-'CGS yields'!$A71)/365.25," ") -> 2.965092402 | H70: =IF('CGS yields'!$A71<>0,('CGS yields'!H$8-'CGS yields'!$A71)/365.25," ") -> 3.550992471 | I70: =IF('CGS yields'!$A71<>0,('CGS yields'!I$8-'CGS yields'!$A71)/365.25," ") -> 4.049281314 | J70: =IF('CGS yields'!$A71<>0,('CGS yields'!J$8-'CGS yields'!$A71)/365.25," ") -> 4.399726215 | K70: =IF('CGS yields'!$A71<>0,('CGS yields'!K$8-'CGS yields'!$A71)/365.25," ") -> 4.881587953 | L70: =IF('CGS yields'!$A71<>0,('CGS yields'!L$8-'CGS yields'!$A71)/365.25," ") -> 5.399041752 | M70: =IF('CGS yields'!$A71<>0,('CGS yields'!M$8-'CGS yields'!$A71)/365.25," ") -> 6.05065024 | N70: =IF('CGS yields'!$A71<>0,('CGS yields'!N$8-'CGS yields'!$A71)/365.25," ") -> 6.721423682 | O70: =IF('CGS yields'!$A71<>0,('CGS yields'!O$8-'CGS yields'!$A71)/365.25," ") -> 7.148528405 | P70: =IF('CGS yields'!$A71<>0,('CGS yields'!P$8-'CGS yields'!$A71)/365.25," ") -> 7.65229295 | Q70: =IF('CGS yields'!$A71<>0,('CGS yields'!Q$8-'CGS yields'!$A71)/365.25," ") -> 8.399726215 | R70: =IF('CGS yields'!$A71<>0,('CGS yields'!R$8-'CGS yields'!$A71)/365.25," ") -> 8.796714579 | S70: =IF('CGS yields'!$A71<>0,('CGS yields'!S$8-'CGS yields'!$A71)/365.25," ") -> 9.399041752 | T70: =IF('CGS yields'!$A71<>0,('CGS yields'!T$8-'CGS yields'!$A71)/365.25," ") -> 9.883641342 | U70: =IF('CGS yields'!$A71<>0,('CGS yields'!U$8-'CGS yields'!$A71)/365.25," ") -> 10.48596851 | V70: =IF('CGS yields'!$A71<>0,('CGS yields'!V$8-'CGS yields'!$A71)/365.25," ") -> 10.9650924 | W70: =IF('CGS yields'!$A71<>0,('CGS yields'!W$8-'CGS yields'!$A71)/365.25," ") -> 11.56741958 | X70: =IF('CGS yields'!$A71<>0,('CGS yields'!X$8-'CGS yields'!$A71)/365.25," ") -> 12.13141684 | Y70: =IF('CGS yields'!$A71<>0,('CGS yields'!Y$8-'CGS yields'!$A71)/365.25," ") -> 12.48459959 | Z70: =IF('CGS yields'!$A71<>0,('CGS yields'!Z$8-'CGS yields'!$A71)/365.25," ") -> 12.89801506 | AA70: =IF('CGS yields'!$A71<>0,('CGS yields'!AA$8-'CGS yields'!$A71)/365.25," ") -> 13.90006845 | AB70: =IF('CGS yields'!$A71<>0,('CGS yields'!AB$8-'CGS yields'!$A71)/365.25," ") -> 14.89938398 | AC70: =IF('CGS yields'!$A71<>0,('CGS yields'!AC$8-'CGS yields'!$A71)/365.25," ") -> 15.89869952 | AD70: =IF('CGS yields'!$A71<>0,('CGS yields'!AD$8-'CGS yields'!$A71)/365.25," ") -> 16.89801506 | AE70: =IF('CGS yields'!$A71<>0,('CGS yields'!AE$8-'CGS yields'!$A71)/365.25," ") -> 17.48391513 | AF70: =IF('CGS yields'!$A71<>0,('CGS yields'!AF$8-'CGS yields'!$A71)/365.25," ") -> 17.98220397 | AG70: =IF('CGS yields'!$A71<>0,('CGS yields'!AG$8-'CGS yields'!$A71)/365.25," ") -> 18.48596851 | AH70: =IF('CGS yields'!$A71<>0,('CGS yields'!AH$8-'CGS yields'!$A71)/365.25," ") -> 18.89938398 | AI70: =IF('CGS yields'!$A71<>0,('CGS yields'!AI$8-'CGS yields'!$A71)/365.25," ") -> 19.48528405 | AJ70: =IF('CGS yields'!$A71<>0,('CGS yields'!AJ$8-'CGS yields'!$A71)/365.25," ") -> 22.89938398 | AK70: =IF('CGS yields'!$A71<>0,('CGS yields'!AK$8-'CGS yields'!$A71)/365.25," ") -> 25.06502396 | AL70: =IF('CGS yields'!$A71<>0,('CGS yields'!AL$8-'CGS yields'!$A71)/365.25," ") -> 26.89938398 | AM70: =IF('CGS yields'!$A71<>0,('CGS yields'!AM$8-'CGS yields'!$A71)/365.25," ") -> 29.06502396 | AN70: =IF('CGS yields'!$A71<>0,('CGS yields'!AN$8-'CGS yields'!$A71)/365.25," ") -> 36.81314168
A71: ='CGS yields'!A72 -> 2010-05-31 | B71: =VLOOKUP(A71,'CGS yields'!$A$10:$B$2709,2,FALSE) -> 63 | C71: =IF('CGS yields'!$A72<>0,('CGS yields'!C$8-'CGS yields'!$A72)/365.25," ") -> 0.2080766598 | D71: =IF('CGS yields'!$A72<>0,('CGS yields'!D$8-'CGS yields'!$A72)/365.25," ") -> 1.040383299 | E71: =IF('CGS yields'!$A72<>0,('CGS yields'!E$8-'CGS yields'!$A72)/365.25," ") -> 1.875427789 | F71: =IF('CGS yields'!$A72<>0,('CGS yields'!F$8-'CGS yields'!$A72)/365.25," ") -> 2.461327858 | G71: =IF('CGS yields'!$A72<>0,('CGS yields'!G$8-'CGS yields'!$A72)/365.25," ") -> 2.95687885 | H71: =IF('CGS yields'!$A72<>0,('CGS yields'!H$8-'CGS yields'!$A72)/365.25," ") -> 3.542778919 | I71: =IF('CGS yields'!$A72<>0,('CGS yields'!I$8-'CGS yields'!$A72)/365.25," ") -> 4.041067762 | J71: =IF('CGS yields'!$A72<>0,('CGS yields'!J$8-'CGS yields'!$A72)/365.25," ") -> 4.391512663 | K71: =IF('CGS yields'!$A72<>0,('CGS yields'!K$8-'CGS yields'!$A72)/365.25," ") -> 4.873374401 | L71: =IF('CGS yields'!$A72<>0,('CGS yields'!L$8-'CGS yields'!$A72)/365.25," ") -> 5.3908282 | M71: =IF('CGS yields'!$A72<>0,('CGS yields'!M$8-'CGS yields'!$A72)/365.25," ") -> 6.042436687 | N71: =IF('CGS yields'!$A72<>0,('CGS yields'!N$8-'CGS yields'!$A72)/365.25," ") -> 6.71321013 | O71: =IF('CGS yields'!$A72<>0,('CGS yields'!O$8-'CGS yields'!$A72)/365.25," ") -> 7.140314853 | P71: =IF('CGS yields'!$A72<>0,('CGS yields'!P$8-'CGS yields'!$A72)/365.25," ") -> 7.644079398 | Q71: =IF('CGS yields'!$A72<>0,('CGS yields'!Q$8-'CGS yields'!$A72)/365.25," ") -> 8.391512663 | R71: =IF('CGS yields'!$A72<>0,('CGS yields'!R$8-'CGS yields'!$A72)/365.25," ") -> 8.788501027 | S71: =IF('CGS yields'!$A72<>0,('CGS yields'!S$8-'CGS yields'!$A72)/365.25," ") -> 9.3908282 | T71: =IF('CGS yields'!$A72<>0,('CGS yields'!T$8-'CGS yields'!$A72)/365.25," ") -> 9.875427789 | U71: =IF('CGS yields'!$A72<>0,('CGS yields'!U$8-'CGS yields'!$A72)/365.25," ") -> 10.47775496 | V71: =IF('CGS yields'!$A72<>0,('CGS yields'!V$8-'CGS yields'!$A72)/365.25," ") -> 10.95687885 | W71: =IF('CGS yields'!$A72<>0,('CGS yields'!W$8-'CGS yields'!$A72)/365.25," ") -> 11.55920602 | X71: =IF('CGS yields'!$A72<>0,('CGS yields'!X$8-'CGS yields'!$A72)/365.25," ") -> 12.12320329 | Y71: =IF('CGS yields'!$A72<>0,('CGS yields'!Y$8-'CGS yields'!$A72)/365.25," ") -> 12.47638604 | Z71: =IF('CGS yields'!$A72<>0,('CGS yields'!Z$8-'CGS yields'!$A72)/365.25," ") -> 12.88980151 | AA71: =IF('CGS yields'!$A72<>0,('CGS yields'!AA$8-'CGS yields'!$A72)/365.25," ") -> 13.89185489 | AB71: =IF('CGS yields'!$A72<>0,('CGS yields'!AB$8-'CGS yields'!$A72)/365.25," ") -> 14.89117043 | AC71: =IF('CGS yields'!$A72<>0,('CGS yields'!AC$8-'CGS yields'!$A72)/365.25," ") -> 15.89048597 | AD71: =IF('CGS yields'!$A72<>0,('CGS yields'!AD$8-'CGS yields'!$A72)/365.25," ") -> 16.88980151 | AE71: =IF('CGS yields'!$A72<>0,('CGS yields'!AE$8-'CGS yields'!$A72)/365.25," ") -> 17.47570157 | AF71: =IF('CGS yields'!$A72<>0,('CGS yields'!AF$8-'CGS yields'!$A72)/365.25," ") -> 17.97399042 | AG71: =IF('CGS yields'!$A72<>0,('CGS yields'!AG$8-'CGS yields'!$A72)/365.25," ") -> 18.47775496 | AH71: =IF('CGS yields'!$A72<>0,('CGS yields'!AH$8-'CGS yields'!$A72)/365.25," ") -> 18.89117043 | AI71: =IF('CGS yields'!$A72<>0,('CGS yields'!AI$8-'CGS yields'!$A72)/365.25," ") -> 19.4770705 | AJ71: =IF('CGS yields'!$A72<>0,('CGS yields'!AJ$8-'CGS yields'!$A72)/365.25," ") -> 22.89117043 | AK71: =IF('CGS yields'!$A72<>0,('CGS yields'!AK$8-'CGS yields'!$A72)/365.25," ") -> 25.0568104 | AL71: =IF('CGS yields'!$A72<>0,('CGS yields'!AL$8-'CGS yields'!$A72)/365.25," ") -> 26.89117043 | AM71: =IF('CGS yields'!$A72<>0,('CGS yields'!AM$8-'CGS yields'!$A72)/365.25," ") -> 29.0568104 | AN71: =IF('CGS yields'!$A72<>0,('CGS yields'!AN$8-'CGS yields'!$A72)/365.25," ") -> 36.80492813
A72: ='CGS yields'!A73 -> 2010-06-01 | B72: =VLOOKUP(A72,'CGS yields'!$A$10:$B$2709,2,FALSE) -> 64 | C72: =IF('CGS yields'!$A73<>0,('CGS yields'!C$8-'CGS yields'!$A73)/365.25," ") -> 0.205338809 | D72: =IF('CGS yields'!$A73<>0,('CGS yields'!D$8-'CGS yields'!$A73)/365.25," ") -> 1.037645448 | E72: =IF('CGS yields'!$A73<>0,('CGS yields'!E$8-'CGS yields'!$A73)/365.25," ") -> 1.872689938 | F72: =IF('CGS yields'!$A73<>0,('CGS yields'!F$8-'CGS yields'!$A73)/365.25," ") -> 2.458590007 | G72: =IF('CGS yields'!$A73<>0,('CGS yields'!G$8-'CGS yields'!$A73)/365.25," ") -> 2.954140999 | H72: =IF('CGS yields'!$A73<>0,('CGS yields'!H$8-'CGS yields'!$A73)/365.25," ") -> 3.540041068 | I72: =IF('CGS yields'!$A73<>0,('CGS yields'!I$8-'CGS yields'!$A73)/365.25," ") -> 4.038329911 | J72: =IF('CGS yields'!$A73<>0,('CGS yields'!J$8-'CGS yields'!$A73)/365.25," ") -> 4.388774812 | K72: =IF('CGS yields'!$A73<>0,('CGS yields'!K$8-'CGS yields'!$A73)/365.25," ") -> 4.87063655 | L72: =IF('CGS yields'!$A73<>0,('CGS yields'!L$8-'CGS yields'!$A73)/365.25," ") -> 5.388090349 | M72: =IF('CGS yields'!$A73<>0,('CGS yields'!M$8-'CGS yields'!$A73)/365.25," ") -> 6.039698836 | N72: =IF('CGS yields'!$A73<>0,('CGS yields'!N$8-'CGS yields'!$A73)/365.25," ") -> 6.710472279 | O72: =IF('CGS yields'!$A73<>0,('CGS yields'!O$8-'CGS yields'!$A73)/365.25," ") -> 7.137577002 | P72: =IF('CGS yields'!$A73<>0,('CGS yields'!P$8-'CGS yields'!$A73)/365.25," ") -> 7.641341547 | Q72: =IF('CGS yields'!$A73<>0,('CGS yields'!Q$8-'CGS yields'!$A73)/365.25," ") -> 8.388774812 | R72: =IF('CGS yields'!$A73<>0,('CGS yields'!R$8-'CGS yields'!$A73)/365.25," ") -> 8.785763176 | S72: =IF('CGS yields'!$A73<>0,('CGS yields'!S$8-'CGS yields'!$A73)/365.25," ") -> 9.388090349 | T72: =IF('CGS yields'!$A73<>0,('CGS yields'!T$8-'CGS yields'!$A73)/365.25," ") -> 9.872689938 | U72: =IF('CGS yields'!$A73<>0,('CGS yields'!U$8-'CGS yields'!$A73)/365.25," ") -> 10.47501711 | V72: =IF('CGS yields'!$A73<>0,('CGS yields'!V$8-'CGS yields'!$A73)/365.25," ") -> 10.954141 | W72: =IF('CGS yields'!$A73<>0,('CGS yields'!W$8-'CGS yields'!$A73)/365.25," ") -> 11.55646817 | X72: =IF('CGS yields'!$A73<>0,('CGS yields'!X$8-'CGS yields'!$A73)/365.25," ") -> 12.12046543 | Y72: =IF('CGS yields'!$A73<>0,('CGS yields'!Y$8-'CGS yields'!$A73)/365.25," ") -> 12.47364819 | Z72: =IF('CGS yields'!$A73<>0,('CGS yields'!Z$8-'CGS yields'!$A73)/365.25," ") -> 12.88706366 | AA72: =IF('CGS yields'!$A73<>0,('CGS yields'!AA$8-'CGS yields'!$A73)/365.25," ") -> 13.88911704 | AB72: =IF('CGS yields'!$A73<>0,('CGS yields'!AB$8-'CGS yields'!$A73)/365.25," ") -> 14.88843258 | AC72: =IF('CGS yields'!$A73<>0,('CGS yields'!AC$8-'CGS yields'!$A73)/365.25," ") -> 15.88774812 | AD72: =IF('CGS yields'!$A73<>0,('CGS yields'!AD$8-'CGS yields'!$A73)/365.25," ") -> 16.88706366 | AE72: =IF('CGS yields'!$A73<>0,('CGS yields'!AE$8-'CGS yields'!$A73)/365.25," ") -> 17.47296372 | AF72: =IF('CGS yields'!$A73<>0,('CGS yields'!AF$8-'CGS yields'!$A73)/365.25," ") -> 17.97125257 | AG72: =IF('CGS yields'!$A73<>0,('CGS yields'!AG$8-'CGS yields'!$A73)/365.25," ") -> 18.47501711 | AH72: =IF('CGS yields'!$A73<>0,('CGS yields'!AH$8-'CGS yields'!$A73)/365.25," ") -> 18.88843258 | AI72: =IF('CGS yields'!$A73<>0,('CGS yields'!AI$8-'CGS yields'!$A73)/365.25," ") -> 19.47433265 | AJ72: =IF('CGS yields'!$A73<>0,('CGS yields'!AJ$8-'CGS yields'!$A73)/365.25," ") -> 22.88843258 | AK72: =IF('CGS yields'!$A73<>0,('CGS yields'!AK$8-'CGS yields'!$A73)/365.25," ") -> 25.05407255 | AL72: =IF('CGS yields'!$A73<>0,('CGS yields'!AL$8-'CGS yields'!$A73)/365.25," ") -> 26.88843258 | AM72: =IF('CGS yields'!$A73<>0,('CGS yields'!AM$8-'CGS yields'!$A73)/365.25," ") -> 29.05407255 | AN72: =IF('CGS yields'!$A73<>0,('CGS yields'!AN$8-'CGS yields'!$A73)/365.25," ") -> 36.80219028
A73: ='CGS yields'!A74 -> 2010-06-02 | B73: =VLOOKUP(A73,'CGS yields'!$A$10:$B$2709,2,FALSE) -> 65 | C73: =IF('CGS yields'!$A74<>0,('CGS yields'!C$8-'CGS yields'!$A74)/365.25," ") -> 0.2026009582 | D73: =IF('CGS yields'!$A74<>0,('CGS yields'!D$8-'CGS yields'!$A74)/365.25," ") -> 1.034907598 | E73: =IF('CGS yields'!$A74<>0,('CGS yields'!E$8-'CGS yields'!$A74)/365.25," ") -> 1.869952088 | F73: =IF('CGS yields'!$A74<>0,('CGS yields'!F$8-'CGS yields'!$A74)/365.25," ") -> 2.455852156 | G73: =IF('CGS yields'!$A74<>0,('CGS yields'!G$8-'CGS yields'!$A74)/365.25," ") -> 2.951403149 | H73: =IF('CGS yields'!$A74<>0,('CGS yields'!H$8-'CGS yields'!$A74)/365.25," ") -> 3.537303217 | I73: =IF('CGS yields'!$A74<>0,('CGS yields'!I$8-'CGS yields'!$A74)/365.25," ") -> 4.03559206 | J73: =IF('CGS yields'!$A74<>0,('CGS yields'!J$8-'CGS yields'!$A74)/365.25," ") -> 4.386036961 | K73: =IF('CGS yields'!$A74<>0,('CGS yields'!K$8-'CGS yields'!$A74)/365.25," ") -> 4.8678987 | L73: =IF('CGS yields'!$A74<>0,('CGS yields'!L$8-'CGS yields'!$A74)/365.25," ") -> 5.385352498 | M73: =IF('CGS yields'!$A74<>0,('CGS yields'!M$8-'CGS yields'!$A74)/365.25," ") -> 6.036960986 | N73: =IF('CGS yields'!$A74<>0,('CGS yields'!N$8-'CGS yields'!$A74)/365.25," ") -> 6.707734428 | O73: =IF('CGS yields'!$A74<>0,('CGS yields'!O$8-'CGS yields'!$A74)/365.25," ") -> 7.134839151 | P73: =IF('CGS yields'!$A74<>0,('CGS yields'!P$8-'CGS yields'!$A74)/365.25," ") -> 7.638603696 | Q73: =IF('CGS yields'!$A74<>0,('CGS yields'!Q$8-'CGS yields'!$A74)/365.25," ") -> 8.386036961 | R73: =IF('CGS yields'!$A74<>0,('CGS yields'!R$8-'CGS yields'!$A74)/365.25," ") -> 8.783025325 | S73: =IF('CGS yields'!$A74<>0,('CGS yields'!S$8-'CGS yields'!$A74)/365.25," ") -> 9.385352498 | T73: =IF('CGS yields'!$A74<>0,('CGS yields'!T$8-'CGS yields'!$A74)/365.25," ") -> 9.869952088 | U73: =IF('CGS yields'!$A74<>0,('CGS yields'!U$8-'CGS yields'!$A74)/365.25," ") -> 10.47227926 | V73: =IF('CGS yields'!$A74<>0,('CGS yields'!V$8-'CGS yields'!$A74)/365.25," ") -> 10.95140315 | W73: =IF('CGS yields'!$A74<>0,('CGS yields'!W$8-'CGS yields'!$A74)/365.25," ") -> 11.55373032 | X73: =IF('CGS yields'!$A74<>0,('CGS yields'!X$8-'CGS yields'!$A74)/365.25," ") -> 12.11772758 | Y73: =IF('CGS yields'!$A74<>0,('CGS yields'!Y$8-'CGS yields'!$A74)/365.25," ") -> 12.47091034 | Z73: =IF('CGS yields'!$A74<>0,('CGS yields'!Z$8-'CGS yields'!$A74)/365.25," ") -> 12.8843258 | AA73: =IF('CGS yields'!$A74<>0,('CGS yields'!AA$8-'CGS yields'!$A74)/365.25," ") -> 13.88637919 | AB73: =IF('CGS yields'!$A74<>0,('CGS yields'!AB$8-'CGS yields'!$A74)/365.25," ") -> 14.88569473 | AC73: =IF('CGS yields'!$A74<>0,('CGS yields'!AC$8-'CGS yields'!$A74)/365.25," ") -> 15.88501027 | AD73: =IF('CGS yields'!$A74<>0,('CGS yields'!AD$8-'CGS yields'!$A74)/365.25," ") -> 16.8843258 | AE73: =IF('CGS yields'!$A74<>0,('CGS yields'!AE$8-'CGS yields'!$A74)/365.25," ") -> 17.47022587 | AF73: =IF('CGS yields'!$A74<>0,('CGS yields'!AF$8-'CGS yields'!$A74)/365.25," ") -> 17.96851472 | AG73: =IF('CGS yields'!$A74<>0,('CGS yields'!AG$8-'CGS yields'!$A74)/365.25," ") -> 18.47227926 | AH73: =IF('CGS yields'!$A74<>0,('CGS yields'!AH$8-'CGS yields'!$A74)/365.25," ") -> 18.88569473 | AI73: =IF('CGS yields'!$A74<>0,('CGS yields'!AI$8-'CGS yields'!$A74)/365.25," ") -> 19.4715948 | AJ73: =IF('CGS yields'!$A74<>0,('CGS yields'!AJ$8-'CGS yields'!$A74)/365.25," ") -> 22.88569473 | AK73: =IF('CGS yields'!$A74<>0,('CGS yields'!AK$8-'CGS yields'!$A74)/365.25," ") -> 25.0513347 | AL73: =IF('CGS yields'!$A74<>0,('CGS yields'!AL$8-'CGS yields'!$A74)/365.25," ") -> 26.88569473 | AM73: =IF('CGS yields'!$A74<>0,('CGS yields'!AM$8-'CGS yields'!$A74)/365.25," ") -> 29.0513347 | AN73: =IF('CGS yields'!$A74<>0,('CGS yields'!AN$8-'CGS yields'!$A74)/365.25," ") -> 36.79945243
A74: ='CGS yields'!A75 -> 2010-06-03 | B74: =VLOOKUP(A74,'CGS yields'!$A$10:$B$2709,2,FALSE) -> 66 | C74: =IF('CGS yields'!$A75<>0,('CGS yields'!C$8-'CGS yields'!$A75)/365.25," ") -> 0.1998631075 | D74: =IF('CGS yields'!$A75<>0,('CGS yields'!D$8-'CGS yields'!$A75)/365.25," ") -> 1.032169747 | E74: =IF('CGS yields'!$A75<>0,('CGS yields'!E$8-'CGS yields'!$A75)/365.25," ") -> 1.867214237 | F74: =IF('CGS yields'!$A75<>0,('CGS yields'!F$8-'CGS yields'!$A75)/365.25," ") -> 2.453114305 | G74: =IF('CGS yields'!$A75<>0,('CGS yields'!G$8-'CGS yields'!$A75)/365.25," ") -> 2.948665298 | H74: =IF('CGS yields'!$A75<>0,('CGS yields'!H$8-'CGS yields'!$A75)/365.25," ") -> 3.534565366 | I74: =IF('CGS yields'!$A75<>0,('CGS yields'!I$8-'CGS yields'!$A75)/365.25," ") -> 4.032854209 | J74: =IF('CGS yields'!$A75<>0,('CGS yields'!J$8-'CGS yields'!$A75)/365.25," ") -> 4.38329911 | K74: =IF('CGS yields'!$A75<>0,('CGS yields'!K$8-'CGS yields'!$A75)/365.25," ") -> 4.865160849 | L74: =IF('CGS yields'!$A75<>0,('CGS yields'!L$8-'CGS yields'!$A75)/365.25," ") -> 5.382614648 | M74: =IF('CGS yields'!$A75<>0,('CGS yields'!M$8-'CGS yields'!$A75)/365.25," ") -> 6.034223135 | N74: =IF('CGS yields'!$A75<>0,('CGS yields'!N$8-'CGS yields'!$A75)/365.25," ") -> 6.704996578 | O74: =IF('CGS yields'!$A75<>0,('CGS yields'!O$8-'CGS yields'!$A75)/365.25," ") -> 7.1321013 | P74: =IF('CGS yields'!$A75<>0,('CGS yields'!P$8-'CGS yields'!$A75)/365.25," ") -> 7.635865845 | Q74: =IF('CGS yields'!$A75<>0,('CGS yields'!Q$8-'CGS yields'!$A75)/365.25," ") -> 8.38329911 | R74: =IF('CGS yields'!$A75<>0,('CGS yields'!R$8-'CGS yields'!$A75)/365.25," ") -> 8.780287474 | S74: =IF('CGS yields'!$A75<>0,('CGS yields'!S$8-'CGS yields'!$A75)/365.25," ") -> 9.382614648 | T74: =IF('CGS yields'!$A75<>0,('CGS yields'!T$8-'CGS yields'!$A75)/365.25," ") -> 9.867214237 | U74: =IF('CGS yields'!$A75<>0,('CGS yields'!U$8-'CGS yields'!$A75)/365.25," ") -> 10.46954141 | V74: =IF('CGS yields'!$A75<>0,('CGS yields'!V$8-'CGS yields'!$A75)/365.25," ") -> 10.9486653 | W74: =IF('CGS yields'!$A75<>0,('CGS yields'!W$8-'CGS yields'!$A75)/365.25," ") -> 11.55099247 | X74: =IF('CGS yields'!$A75<>0,('CGS yields'!X$8-'CGS yields'!$A75)/365.25," ") -> 12.11498973 | Y74: =IF('CGS yields'!$A75<>0,('CGS yields'!Y$8-'CGS yields'!$A75)/365.25," ") -> 12.46817248 | Z74: =IF('CGS yields'!$A75<>0,('CGS yields'!Z$8-'CGS yields'!$A75)/365.25," ") -> 12.88158795 | AA74: =IF('CGS yields'!$A75<>0,('CGS yields'!AA$8-'CGS yields'!$A75)/365.25," ") -> 13.88364134 | AB74: =IF('CGS yields'!$A75<>0,('CGS yields'!AB$8-'CGS yields'!$A75)/365.25," ") -> 14.88295688 | AC74: =IF('CGS yields'!$A75<>0,('CGS yields'!AC$8-'CGS yields'!$A75)/365.25," ") -> 15.88227242 | AD74: =IF('CGS yields'!$A75<>0,('CGS yields'!AD$8-'CGS yields'!$A75)/365.25," ") -> 16.88158795 | AE74: =IF('CGS yields'!$A75<>0,('CGS yields'!AE$8-'CGS yields'!$A75)/365.25," ") -> 17.46748802 | AF74: =IF('CGS yields'!$A75<>0,('CGS yields'!AF$8-'CGS yields'!$A75)/365.25," ") -> 17.96577687 | AG74: =IF('CGS yields'!$A75<>0,('CGS yields'!AG$8-'CGS yields'!$A75)/365.25," ") -> 18.46954141 | AH74: =IF('CGS yields'!$A75<>0,('CGS yields'!AH$8-'CGS yields'!$A75)/365.25," ") -> 18.88295688 | AI74: =IF('CGS yields'!$A75<>0,('CGS yields'!AI$8-'CGS yields'!$A75)/365.25," ") -> 19.46885695 | AJ74: =IF('CGS yields'!$A75<>0,('CGS yields'!AJ$8-'CGS yields'!$A75)/365.25," ") -> 22.88295688 | AK74: =IF('CGS yields'!$A75<>0,('CGS yields'!AK$8-'CGS yields'!$A75)/365.25," ") -> 25.04859685 | AL74: =IF('CGS yields'!$A75<>0,('CGS yields'!AL$8-'CGS yields'!$A75)/365.25," ") -> 26.88295688 | AM74: =IF('CGS yields'!$A75<>0,('CGS yields'!AM$8-'CGS yields'!$A75)/365.25," ") -> 29.04859685 | AN74: =IF('CGS yields'!$A75<>0,('CGS yields'!AN$8-'CGS yields'!$A75)/365.25," ") -> 36.79671458
